Workbook

Sheet GUIA PARA PREENCHIMENTO
A1: GUIA PARA PREENCHIMENTO
A3: 1 - Preencher apenas as guias azuis:
A5: 2 - Recomendamos preencher somente as células com fundo azul claro. As demais possuem fórmulas e sugerimos não alterá-las.

Sheet MODELO PROPOSTA
B2: MODELO DA PROPOSTA COMPLETA
B4: .
B5: I – FORMALIZAÇÃO
B7: PREGÃO ELETRÔNICO N. 90026/2024
B8: OBJETO: Prestação de serviços continuados de limpeza e conservação, a serem executados com regime de dedicação exclusiva de mão de obra, com fornecimento de materiais e equipamentos, e prestação de serviços de controle de vetores, em prédios administrativos da Câmara dos Deputados, pelo período de 30 (trinta) meses.
B11: LICITANTE: _____________________________________________________
B12: CNPJ: ________________________________________________________
B13: ENDEREÇO COMPLETO: _________________________________________
B14: TELEFONE:_____________________________________________________
B15: E-MAIL: ________________________________________________________
B17: Apresentamos nossa proposta para o item único da presente licitação, de acordo com as disposições do Edital.
B18: Decorre do conteúdo da presente proposta a explicitação do seguinte PREÇO DE JULGAMENTO (GLOBAL) PARA O ITEM ÚNICO, REFERENTE AO PERÍODO DE TRINTA MESES:
B19: =Resumo!#REF! -> 
B20: =Extenso_Valor(B19) -> 
B22: (por extenso)
B24: No valor proposto estão incluídos todos os custos e todas as despesas, diretas e indiretas, para a execução dos serviços objeto da licitação, em conformidade com as especificações e demais condições e exigências constantes do Edital.
B25: Informamos que eventuais rubricas dispostas em Acordo ou Convenção Coletiva de Trabalho que não se relacionem ao custo direto da venda do serviço, tais como “Participação nos Resultados” e “Abono substitutivo de Participação nos Resultados”, serão consideradas nos custos indiretos da proposta.
B26: O prazo de validade da presente proposta é de ______ (por extenso) dias. (observado o disposto no Título 4 do Edital).
B28: Convenção coletiva de trabalho ou a norma coletiva a que estamos obrigados:
B29: Data-Base:
B30: Número do Registro SRT:
B31: Regime de tributação da empresa:
B32: Empresa é beneficiada pela desoneração da folha de pagamento instituída pela Lei n. 12.546, de 2001, alterada pela Lei n. 13.161, de 2015?
B33: Empresa adere ao PAT (Programa de Alimentação do Trabalhador)?
B34: (Se adere ao PAT): Os valores do auxílio-alimentação apresentados na presente proposta correspondem somente aos efetivamente pagos pelas empresas aos empregados?
B36: DECLARAÇÕES
B37: Declaramos que seremos responsáveis pelo descarte ambientalmente responsável de qualquer resíduo do serviço a ser prestado, objeto desta licitação – incluindo consumíveis, peças usadas, embalagens – e que temos conhecimento da legislação ambiental sobre o descarte de materiais, em especial a Lei n. 9.605/1998 e a Lei n. 12.305/2010, além da NBR 10.004.
B43: A SEREM PRESTADAS SOMENTE NA HIPÓTESE DE LICITANTE MICROEMPRESA OU EMPRESA DE PEQUENO PORTE, EM CONFORMIDADE COM OS ARTIGOS 17, 18, 30 E 31 DA LEI COMPLEMENTAR N. 123, de 2006, E O ACÓRDÃO TCU 2798/2010-PLENÁRIO
B44: Declaramos que:
B45: a) em se tratando dos serviços vedados descritos no artigo 17 da Lei Complementar n. 123, de 2006, notadamente os descritos no inciso XII (cessão ou locação de mão de obra), ressalvados os serviços listados nos parágrafos 5o-B a 5o-E do artigo 18 da referida Lei, a proposta apresentada não contempla qualquer benefício tributário referente ao SIMPLES NACIONAL, conforme os itens 4.20 e 4.21 do Edital;
B46: b) na hipótese de contratação desta Microempresa ou Empresa de Pequeno Porte inscrita no SIMPLES NACIONAL e executora de atividade vedada, ficamos sujeitos à exclusão obrigatória no SIMPLES NACIONAL a contar do mês seguinte ao da contratação, em consequência do que dispõem o artigo 17, inciso XII e o artigo 31, inciso II da Lei Complementar n, 123/2006, devendo entregar à Câmara dos Deputados, à título de comprovação, cópia de ofício – com comprovante de entrega e recebimento, que comunique a assinatura do contrato de prestação de serviços mediante cessão de mão de obra e encaminhado pela contratada à Receita Federal do Brasil até o último dia útil do mês subsequente ao da contratação, consoante artigo 30, § 1º, inciso II da Lei Complementar n. 123/2006.
B49: A SEREM PRESTADAS SOMENTE NA HIPÓTESE DE LICITANTE BENEFICIADA PELA DESONERAÇÃO DA FOLHA DE PAGAMENTO INSTITUÍDA PELA LEI N. 12.546/2011, ALTERADA PELA LEI N. 13.161/2015.
B51: Declaramos, sob as penas da Lei, que:
B52: a) recolhemos a contribuição previdenciária incidente sobre o valor da receita bruta, em substituição às contribuições previdenciárias incidentes sobre a folha de pagamento, previstas nos incisos I e III do caput do artigo 22 da Lei n. 8.212/1991, na forma do caput do artigo 7º (ou 8º) da Lei n. 12.546/2011, alterada pela Lei n. 13.161/2015;
B53: b) temos ciência que nossa manifestação, conforme alínea “a” anterior, será remetida à Receita Federal do Brasil e que, em caso de constatação de falsidade, estará sujeita às sanções administrativas cabíveis, sem prejuízo do encaminhamento dos documentos ao Ministério Público para apuração de eventual responsabilidade criminal desta declarante.
B55: A SEREM PRESTADAS SOMENTE PARA A LICITANTE QUE SEJA A ATUAL TITULAR DO CONTRATO QUE SERÁ SUCEDIDO PELA CONTRATAÇÃO DECORRENTE DO PREGÃO EM EPÍGRAFE, NA HIPÓTESE DE HAVER SALÁRIO(S) PRATICADO(S) NO CONTRATO VIGENTE SUPERIOR(ES) AOS MÍNIMOS FIXADOS NO EDITAL E QUE TENHA OPTADO POR TOMAR COMO BASE EM SEUS LANCES E NA PRESENTE PROPOSTA DE PREÇOS SALÁRIO(S) FIXADO(S) NESTE EDITAL:
B58: Declaramos que:
B59: a) estamos cientes de que deveremos apresentar à Câmara dos Deputados, no prazo improrrogável de 60 (sessenta) dias, contado da data de início da vigência do contrato, a convenção ou o acordo coletivo de trabalho, entabulado com a participação do sindicato dos trabalhadores, em que se autoriza a redução salarial, na forma do art. 7°, VI, da Constituição Federal, considerado, ainda, o disposto no subitem 10.9.2.1 do Título 10 da minuta do Termo de Contrato anexa;
B61: b) estamos cientes de que, na hipótese de não cumprirmos o disposto no teor da declaração da alínea anterior (“a”) e não logrado êxito na contratação de remanescente, sendo necessária a realização de nova licitação, caso participemos do certame, deveremos tomar como base em nossos lances e em nossa proposta de preços o(s) salário(s) maior(es), absorvendo ou acrescentando eventual diferença no BDI, sob pena de desclassificação.
B63: É OBRIGATÓRIA A COMPROVAÇÃO A QUE SE REFERE O ITEM 4.3 DO TÍTULO 4 DO TERMO DE REFERÊNCIA (referente ao valor do Fator Acidentário de Prevenção (FAP)).
B65: DADOS PARA ASSINATURA DO CONTRATO
B66: Nome do signatário
B67: Cargo
B68: Qualificação (naturalidade e domicílio)
B69: OBS.: O signatário deve possuir poderes de administração estabelecidos em contrato social e/ou possuir procuração com poderes para assinar contratos em nome da empresa. A documentação comprobatória deverá ser encaminhada quando da assinatura do contrato.
B71: MODALIDADE DE GARANTIA De acordo com o disposto no Termo de Referência anexo ao Edital, informamos que, caso o objeto nos seja adjudicado, optaremos pela seguinte modalidade de garantia de execução do contrato (artigos 96 e seguintes da Lei 14.133/2021): ____________________________________
B78: Brasília, de de 2024.
B80: Assinatura do representante legal da empresa
B83: Nome do representante legal da empresa

Sheet Remunerações
B1: QUADRO DE REMUNERAÇÕES
C3: ITEM | D3: POSTO DE TRABALHO | E3: QUANTIDADE | F3: SALÁRIO | G3: ADICIONAL DE PERICULOSIDADE | H3: ADICIONAL DE INSALUBRIDADE | I3: ADICIONAL NOTURNO | J3: OUTROS | K3: SALÁRIO COM ADICIONAIS
D4: POSTO DE TRABALHO - EQUIPE DE TRABALHO
C5: 1 | D5: =HLOOKUP($C5,'Dados Gerais'!$D$5:$L$68,6) -> ENCARREGADO GERAL | E5: =HLOOKUP($C5,'Dados Gerais'!$D$5:$L$68,10) -> 1 | F5: =HLOOKUP($C5,'Dados Gerais'!$D$5:$L$68,8) -> 7744.91 | G5: =HLOOKUP($C5,'Dados Gerais'!$D$5:$L$68,26) -> 0 | H5: =HLOOKUP($C5,'Dados Gerais'!$D$5:$L$68,31) -> 0 | I5: =HLOOKUP($C5,'Dados Gerais'!$D$5:$L$68,46) -> 0 | J5: =HLOOKUP($C5,'Dados Gerais'!$D$5:$L$68,33) -> 0 | K5: =SUM(F5:J5) -> 7744.91
C6: 2 | D6: =HLOOKUP($C6,'Dados Gerais'!$D$5:$L$68,6) -> ENCARREGADO SETORIAL | E6: =HLOOKUP($C6,'Dados Gerais'!$D$5:$L$68,10) -> 2 | F6: =HLOOKUP($C6,'Dados Gerais'!$D$5:$L$68,8) -> 4428.78 | G6: =HLOOKUP($C6,'Dados Gerais'!$D$5:$L$68,26) -> 0 | H6: =HLOOKUP($C6,'Dados Gerais'!$D$5:$L$68,31) -> 0 | I6: =HLOOKUP($C6,'Dados Gerais'!$D$5:$L$68,46) -> 0 | J6: =HLOOKUP($C6,'Dados Gerais'!$D$5:$L$68,33) -> 0 | K6: =SUM(F6:J6) -> 4428.78
C7: 3 | D7: =HLOOKUP($C7,'Dados Gerais'!$D$5:$L$68,6) -> ENCARREGADO DE SERVIÇO | E7: =HLOOKUP($C7,'Dados Gerais'!$D$5:$L$68,10) -> 12 | F7: =HLOOKUP($C7,'Dados Gerais'!$D$5:$L$68,8) -> 3483.45 | G7: =HLOOKUP($C7,'Dados Gerais'!$D$5:$L$68,26) -> 0 | H7: =HLOOKUP($C7,'Dados Gerais'!$D$5:$L$68,31) -> 0 | I7: =HLOOKUP($C7,'Dados Gerais'!$D$5:$L$68,46) -> 0 | J7: =HLOOKUP($C7,'Dados Gerais'!$D$5:$L$68,33) -> 0 | K7: 3483.45
C8: 4 | D8: =HLOOKUP($C8,'Dados Gerais'!$D$5:$L$68,6) -> AUXILIAR DE ENCARREGADO | E8: =HLOOKUP($C8,'Dados Gerais'!$D$5:$L$68,10) -> 1 | F8: =HLOOKUP($C8,'Dados Gerais'!$D$5:$L$68,8) -> 2598.63 | G8: =HLOOKUP($C8,'Dados Gerais'!$D$5:$L$68,26) -> 0 | H8: =HLOOKUP($C8,'Dados Gerais'!$D$5:$L$68,31) -> 0 | I8: =HLOOKUP($C8,'Dados Gerais'!$D$5:$L$68,46) -> 0 | J8: =HLOOKUP($C8,'Dados Gerais'!$D$5:$L$68,33) -> 0 | K8: =SUM(F8:J8) -> 2598.63
C9: 5 | D9: =HLOOKUP($C9,'Dados Gerais'!$D$5:$L$68,6) -> ALMOXARIFE | E9: =HLOOKUP($C9,'Dados Gerais'!$D$5:$L$68,10) -> 2 | F9: =HLOOKUP($C9,'Dados Gerais'!$D$5:$L$68,8) -> 3035.66 | G9: =HLOOKUP($C9,'Dados Gerais'!$D$5:$L$68,26) -> 0 | H9: =HLOOKUP($C9,'Dados Gerais'!$D$5:$L$68,31) -> 0 | I9: =HLOOKUP($C9,'Dados Gerais'!$D$5:$L$68,46) -> 0 | J9: =HLOOKUP($C9,'Dados Gerais'!$D$5:$L$68,33) -> 0 | K9: 3035.66
C10: 6 | D10: =HLOOKUP($C10,'Dados Gerais'!$D$5:$L$68,6) -> SERVENTE | E10: =HLOOKUP($C10,'Dados Gerais'!$D$5:$L$68,10) -> 189 | F10: =HLOOKUP($C10,'Dados Gerais'!$D$5:$L$68,8) -> 2017.21 | G10: =HLOOKUP($C10,'Dados Gerais'!$D$5:$L$68,26) -> 0 | H10: =HLOOKUP($C10,'Dados Gerais'!$D$5:$L$68,31) -> 0 | I10: =HLOOKUP($C10,'Dados Gerais'!$D$5:$L$68,46) -> 0 | J10: =HLOOKUP($C10,'Dados Gerais'!$D$5:$L$68,33) -> 0 | K10: =SUM(F10:J10) -> 2017.21
C11: 7 | D11: =HLOOKUP($C11,'Dados Gerais'!$D$5:$L$68,6) -> 0 | E11: =HLOOKUP($C11,'Dados Gerais'!$D$5:$L$68,10) -> 0 | F11: =HLOOKUP($C11,'Dados Gerais'!$D$5:$L$68,8) -> 0 | G11: =HLOOKUP($C11,'Dados Gerais'!$D$5:$L$68,26) -> 0 | H11: =HLOOKUP($C11,'Dados Gerais'!$D$5:$L$68,31) -> 0 | I11: =HLOOKUP($C11,'Dados Gerais'!$D$5:$L$68,46) -> 0 | J11: =HLOOKUP($C11,'Dados Gerais'!$D$5:$L$68,33) -> 0 | K11: 0
C12: 8 | D12: =HLOOKUP($C12,'Dados Gerais'!$D$5:$L$68,6) -> 0 | E12: =HLOOKUP($C12,'Dados Gerais'!$D$5:$L$68,10) -> 0 | F12: =HLOOKUP($C12,'Dados Gerais'!$D$5:$L$68,8) -> 0 | G12: =HLOOKUP($C12,'Dados Gerais'!$D$5:$L$68,26) -> 0 | H12: =HLOOKUP($C12,'Dados Gerais'!$D$5:$L$68,31) -> 0 | I12: =HLOOKUP($C12,'Dados Gerais'!$D$5:$L$68,46) -> 0 | J12: =HLOOKUP($C12,'Dados Gerais'!$D$5:$L$68,33) -> 0 | K12: 0
C13: 9 | D13: =HLOOKUP($C13,'Dados Gerais'!$D$5:$L$68,6) -> 0 | E13: =HLOOKUP($C13,'Dados Gerais'!$D$5:$L$68,10) -> 0 | F13: =HLOOKUP($C13,'Dados Gerais'!$D$5:$L$68,8) -> 0 | G13: =HLOOKUP($C13,'Dados Gerais'!$D$5:$L$68,26) -> 0 | H13: =HLOOKUP($C13,'Dados Gerais'!$D$5:$L$68,31) -> 0 | I13: =HLOOKUP($C13,'Dados Gerais'!$D$5:$L$68,46) -> 0 | J13: =HLOOKUP($C13,'Dados Gerais'!$D$5:$L$68,33) -> 0 | K13: 0
D15: TOTAL DE POSTOS | E15: =SUM(E5:E14) -> 207
L53: =SUM(L8:L51) -> 0

Sheet Resumo
B3: RESUMO - TOTAIS MENSAIS - FATURA ORDINÁRIA (SEM O 13º E SEM OS ITENS SOB DEMANDA)
C6: ITEM | D6: POSTO DE TRABALHO | E6: QUANTIDADE | F6: PREÇO UNIT (SEM O 13º) | G6: DESTAQUE DO 13º | H6: PREÇO POR EMPREGADO | I6: PREÇO TOTAL (MENSAL)
C7: 1 | D7: =HLOOKUP(C7,'Dados Gerais'!$D$5:$BK$10,6) -> ENCARREGADO GERAL | E7: =HLOOKUP(C7,'Dados Gerais'!$D$5:$BK$14,10) -> 1 | F7: ='1'!$E$116 -> 16684.92807 | G7: 0 | H7: =G7+F7 -> 16684.92807 | I7: =H7*E7 -> 16684.92807
C8: 2 | D8: =HLOOKUP(C8,'Dados Gerais'!$D$5:$BK$10,6) -> ENCARREGADO SETORIAL | E8: =HLOOKUP(C8,'Dados Gerais'!$D$5:$BK$14,10) -> 2 | F8: ='2'!$E$116 -> 10221.05949 | G8: 0 | H8: 10221.05949 | I8: 20442.11899
C9: 3 | D9: =HLOOKUP(C9,'Dados Gerais'!$D$5:$BK$10,6) -> ENCARREGADO DE SERVIÇO | E9: =HLOOKUP(C9,'Dados Gerais'!$D$5:$BK$14,10) -> 12 | F9: ='3'!$E$115 -> 8419.049636 | G9: 0 | H9: 8419.049636 | I9: 101028.5956
C10: 4 | D10: =HLOOKUP(C10,'Dados Gerais'!$D$5:$BK$10,6) -> AUXILIAR DE ENCARREGADO | E10: =HLOOKUP(C10,'Dados Gerais'!$D$5:$BK$14,10) -> 1 | F10: ='4'!$E$115 -> 6734.215079 | G10: 0 | H10: =G10+F10 -> 6734.215079 | I10: =H10*E10 -> 6734.215079
C11: 5 | D11: =HLOOKUP(C11,'Dados Gerais'!$D$5:$BK$10,6) -> ALMOXARIFE | E11: =HLOOKUP(C11,'Dados Gerais'!$D$5:$BK$14,10) -> 2 | F11: ='5'!$E$115 -> 7502.078979 | G11: 0 | H11: 7502.078979 | I11: 15004.15796
C12: 6 | D12: =HLOOKUP(C12,'Dados Gerais'!$D$5:$BK$10,6) -> SERVENTE | E12: =HLOOKUP(C12,'Dados Gerais'!$D$5:$BK$14,10) -> 189 | F12: ='6'!$E$115 -> 5564.336095 | G12: 0 | H12: 5564.336095 | I12: 1051659.522
C13: 7 | D13: =HLOOKUP(C13,'Dados Gerais'!$D$5:$BK$10,6) -> 0 | E13: =HLOOKUP(C13,'Dados Gerais'!$D$5:$BK$14,10) -> 0 | F13: ='7'!$E$115 -> 0 | G13: 0 | H13: =G13+F13 -> 0 | I13: =H13*E13 -> 0
C14: 8 | D14: =HLOOKUP(C14,'Dados Gerais'!$D$5:$BK$10,6) -> 0 | E14: =HLOOKUP(C14,'Dados Gerais'!$D$5:$BK$14,10) -> 0 | F14: ='8'!$E$115 -> 0 | G14: 0 | H14: 0 | I14: 0
C15: 9 | D15: =HLOOKUP(C15,'Dados Gerais'!$D$5:$BK$10,6) -> 0 | E15: =HLOOKUP(C15,'Dados Gerais'!$D$5:$BK$14,10) -> 0 | F15: ='9'!$E$115 -> 0 | G15: 0 | H15: 0 | I15: 0
D17: TOTAL MENSAL - SALÁRIOS | I17: =SUM(I7:I16) -> 1211553.538
B20: RESUMO - TOTAIS MENSAIS - DESTAQUE DO 13º SALÁRIO
C23: ITEM | D23: POSTO DE TRABALHO | E23: QUANTIDADE | F23: PREÇO UNIT (SEM O 13º) | G23: DESTAQUE DO 13º | H23: PREÇO POR EMPREGADO | I23: PREÇO TOTAL (MENSAL)
C24: 1 | D24: =HLOOKUP(C24,'Dados Gerais'!$D$5:$BK$10,6) -> ENCARREGADO GERAL | E24: =HLOOKUP(C24,'Dados Gerais'!$D$5:$BK$14,10) -> 1 | F24: 0 | G24: =G41 -> 1132.64 | H24: =G24+F24 -> 1132.64 | I24: =H24*E24 -> 1132.64
C25: 2 | D25: =HLOOKUP(C25,'Dados Gerais'!$D$5:$BK$10,6) -> ENCARREGADO SETORIAL | E25: =HLOOKUP(C25,'Dados Gerais'!$D$5:$BK$14,10) -> 2 | F25: 0 | G25: =G42 -> 647.68 | H25: =G25+F25 -> 647.68 | I25: 1295.36
C26: 3 | D26: =HLOOKUP(C26,'Dados Gerais'!$D$5:$BK$10,6) -> ENCARREGADO DE SERVIÇO | E26: =HLOOKUP(C26,'Dados Gerais'!$D$5:$BK$14,10) -> 12 | F26: 0 | G26: =G43 -> 483.05 | H26: 483.05 | I26: 5796.6
C27: 4 | D27: =HLOOKUP(C27,'Dados Gerais'!$D$5:$BK$10,6) -> AUXILIAR DE ENCARREGADO | E27: =HLOOKUP(C27,'Dados Gerais'!$D$5:$BK$14,10) -> 1 | F27: 0 | G27: 360.36 | H27: =G27+F27 -> 360.36 | I27: =H27*E27 -> 360.36
C28: 5 | D28: =HLOOKUP(C28,'Dados Gerais'!$D$5:$BK$10,6) -> ALMOXARIFE | E28: =HLOOKUP(C28,'Dados Gerais'!$D$5:$BK$14,10) -> 2 | F28: 0 | G28: 420.96 | H28: 420.96 | I28: 841.92
C29: 6 | D29: =HLOOKUP(C29,'Dados Gerais'!$D$5:$BK$10,6) -> SERVENTE | E29: =HLOOKUP(C29,'Dados Gerais'!$D$5:$BK$14,10) -> 189 | F29: 0 | G29: 279.73 | H29: 279.73 | I29: 52868.97
C30: 7 | D30: =HLOOKUP(C30,'Dados Gerais'!$D$5:$BK$10,6) -> 0 | E30: =HLOOKUP(C30,'Dados Gerais'!$D$5:$BK$14,10) -> 0 | F30: 0 | G30: 0 | H30: =G30+F30 -> 0 | I30: =H30*E30 -> 0
C31: 8 | D31: =HLOOKUP(C31,'Dados Gerais'!$D$5:$BK$10,6) -> 0 | E31: =HLOOKUP(C31,'Dados Gerais'!$D$5:$BK$14,10) -> 0 | F31: 0 | G31: 0 | H31: 0 | I31: 0
C32: 9 | D32: =HLOOKUP(C32,'Dados Gerais'!$D$5:$BK$10,6) -> 0 | E32: =HLOOKUP(C32,'Dados Gerais'!$D$5:$BK$14,10) -> 0 | F32: 0 | G32: 0 | H32: 0 | I32: 0
D34: TOTAL MENSAL - DESTAQUE DO 13º | I34: =SUM(I24:I33) -> 62295.85
B37: RESUMO - TOTAIS MENSAIS - FATURA ORDINÁRIA TOTAL
C40: ITEM | D40: POSTO DE TRABALHO | E40: QUANTIDADE | F40: PREÇO UNIT (SEM O 13º) | G40: DESTAQUE DO 13º | H40: PREÇO POR EMPREGADO | I40: PREÇO TOTAL (MENSAL)
C41: 1 | D41: =HLOOKUP(C41,'Dados Gerais'!$D$5:$BK$10,6) -> ENCARREGADO GERAL | E41: =HLOOKUP(C41,'Dados Gerais'!$D$5:$BK$14,10) -> 1 | F41: =F7 -> 16684.92807 | G41: ='1'!$E$117 -> 1132.64 | H41: =G41+F41 -> 17817.56807 | I41: =H41*E41 -> 17817.56807 | K41: =I41/$I$51 -> 0.0139871858 | L41: =$I$62*K41 -> 3359.358911
C42: 2 | D42: =HLOOKUP(C42,'Dados Gerais'!$D$5:$BK$10,6) -> ENCARREGADO SETORIAL | E42: =HLOOKUP(C42,'Dados Gerais'!$D$5:$BK$14,10) -> 2 | F42: =F8 -> 10221.05949 | G42: ='2'!$E$117 -> 647.68 | H42: 10868.73949 | I42: 21737.47899 | K42: 0.01706440275 | L42: 4098.426533
C43: 3 | D43: =HLOOKUP(C43,'Dados Gerais'!$D$5:$BK$10,6) -> ENCARREGADO DE SERVIÇO | E43: =HLOOKUP(C43,'Dados Gerais'!$D$5:$BK$14,10) -> 12 | F43: 8419.049636 | G43: ='3'!$E$116 -> 483.05 | H43: 8902.099636 | I43: 106825.1956 | K43: 0.083860146 | L43: 20141.02999
C44: 4 | D44: =HLOOKUP(C44,'Dados Gerais'!$D$5:$BK$10,6) -> AUXILIAR DE ENCARREGADO | E44: =HLOOKUP(C44,'Dados Gerais'!$D$5:$BK$14,10) -> 1 | F44: 6734.215079 | G44: ='4'!$E$116 -> 360.36 | H44: =G44+F44 -> 7094.575079 | I44: =H44*E44 -> 7094.575079 | K44: =I44/$I$51 -> 0.005569398665 | L44: =$I$62*K44 -> 1337.624973
C45: 5 | D45: =HLOOKUP(C45,'Dados Gerais'!$D$5:$BK$10,6) -> ALMOXARIFE | E45: =HLOOKUP(C45,'Dados Gerais'!$D$5:$BK$14,10) -> 2 | F45: 7502.078979 | G45: ='5'!$E$116 -> 420.96 | H45: 7923.038979 | I45: 15846.07796 | K45: 0.01243952237 | L45: 2987.650334
C46: 6 | D46: =HLOOKUP(C46,'Dados Gerais'!$D$5:$BK$10,6) -> SERVENTE | E46: =HLOOKUP(C46,'Dados Gerais'!$D$5:$BK$14,10) -> 189 | F46: 5564.336095 | G46: ='6'!$E$116 -> 279.73 | H46: 5844.066095 | I46: 1104528.492 | K46: 0.8670793444 | L46: 208249.9484
C47: 7 | D47: =HLOOKUP(C47,'Dados Gerais'!$D$5:$BK$10,6) -> 0 | E47: =HLOOKUP(C47,'Dados Gerais'!$D$5:$BK$14,10) -> 0 | F47: 0 | G47: ='7'!$E$116 -> 0 | H47: =G47+F47 -> 0 | I47: =H47*E47 -> 0 | K47: 0 | L47: 0
C48: 8 | D48: =HLOOKUP(C48,'Dados Gerais'!$D$5:$BK$10,6) -> 0 | E48: =HLOOKUP(C48,'Dados Gerais'!$D$5:$BK$14,10) -> 0 | F48: 0 | G48: ='8'!$E$116 -> 0 | H48: 0 | I48: 0 | K48: 0 | L48: 0
C49: 9 | D49: =HLOOKUP(C49,'Dados Gerais'!$D$5:$BK$10,6) -> 0 | E49: =HLOOKUP(C49,'Dados Gerais'!$D$5:$BK$14,10) -> 0 | F49: 0 | G49: ='9'!$E$116 -> 0 | H49: 0 | I49: 0 | K49: 0 | L49: 0
D51: TOTAL MENSAL - SALÁRIOS | I51: =SUM(I41:I50) -> 1273849.388
C53: ITEM | D53: DESCRIÇÃO | I53: PREÇO TOTAL (MENSAL) | L53: =SUM(L8:L51) -> 240174.0392
C54: EQUIP | D54: EQUIPAMENTOS NÃO RELACIONADOS DIRETAMENTE A UM POSTO DE TRABALHO | I54: ='Não Rel - Depr'!M60 -> 0
C55: HEXTRA | D55: HORAS EXTRAS | I55: ='Não Rel - Depr'!M60 -> 0
C56: HNOT | D56: ADICIONAL DE HORAS NOTURNAS (SOB DEMANDA) | I56: 0
C57: SREP | D57: SISTEMA DE REGISTRO ELETRÔNICO DE PRESENÇA - SREP | I57: =SREP!$M$46 -> 1218.79
C58: EPI - N.REL | D58: EQUIPAMENTOS DE PROTEÇÃO INDIVIDUAL NÃO RELACIONADOS DIRETAMENTE A UM POSTO DE TRABALHO | I58: ='Não Rel - EPI'!K29 -> 2863.645
C59: EQUIP - N.REL | D59: EQUIPAMENTOS NÃO RELACIONADAS DIRETAMENTE A UM POSTO DE TRABALHO | I59: ='Não Rel - Depr'!M61 -> 2961.79
C60: MAT | D60: MATERIAIS NÃO RELACIONADOS DIRETAMENTE A UM POSTO DE TRABALHO | I60: ='Não Rel - Mat Consumo'!L52 -> 229430.8917
C61: MAT CONS DURAVEL | D61: MATERIAIS DE CONSUMO DURÁVEL NÃO RELACIONADOS DIRETAMENTE A UM POSTO DE TRABALHO | I61: ='Não Rel - Mat Cons Durável'!M33 -> 3698.9225
D62: TOTAL MENSAL | I62: =SUM(I54:I61) -> 240174.0392 | K62: =(I62+I51)*12 -> 18168281.12
B65: RESUMO - TOTAL MENSAL - SOB DEMANDA
C68: ITEM | D68: DESCRIÇÃO | I68: PREÇO TOTAL (MENSAL) | L68: =SUM(L39:L67) -> 480348.0783
C69: EQUIP | D69: EQUIPAMENTOS NÃO RELACIONADOS DIRETAMENTE A UM POSTO DE TRABALHO | I69: ='Não Rel - Depr'!M91 -> 0
C70: HEXTRA | D70: HORAS EXTRAS | I70: ='Não Rel - Depr'!M91 -> 0
C71: HNOT | D71: ADICIONAL DE HORAS NOTURNAS (SOB DEMANDA) | I71: 0
C72: SERV. SOB DEMANDA | D72: SERVIÇOS DE DESINSETIZAÇÃO E DESRATIZAÇÃO | I72: ='Não Rel - Serviços'!K10 -> 3255.2075
D74: TOTAL MENSAL | I74: =SUM(I69:I73) -> 3255.2075
D76: TOTAL MENSAL - FATURA ORDINÁRIA - SERVIÇOS DE LIMPEZA E CONSERVAÇÃO
D77: DESCRIÇÃO | H77: VALOR
D78: Postos de Trabalho - Inclusive 13º Salário | H78: =I51 -> 1273849.388
D79: Adicional de Horas Noturnas | H79: =I56 -> 0
D80: Sistema de Registro Eletrônico de Presença - SREP | H80: =I57 -> 1218.79
D81: Equipamentos de Proteção Individual não relacionados diretamente a um posto de trabalho | H81: =I58 -> 2863.645
D82: Equipamentos não relacionadas diretamente a um posto de trabalho | H82: =I59 -> 2961.79
D83: Materiais de consumo não relacionados diretamente a um posto de trabalho | H83: =$I$60 -> 229430.8917
D84: Materiais de consumo duráveis não relacionados diretamente a um posto de trabalho | H84: =$I$61 -> 3698.9225
G85: TOTAL MENSAL DA CONTRATAÇÃO - FATURA ORDINÁRIA | H85: =SUM(H78:H84) -> 1514023.427
D87: TOTAL MENSAL - SOB DEMANDA - SERVIÇOS DE LIMPEZA E CONSERVAÇÃO
D88: DESCRIÇÃO | H88: VALOR
D90: Serviços de desinsetização e desratização | H90: =I74 -> 3255.2075
G91: TOTAL MENSAL DA CONTRATAÇÃO - SOB DEMANDA | H91: =H90 -> 3255.2075
D93: TOTAL MENSAL - SERVIÇOS DE LIMPEZA E CONSERVAÇÃO (FATURA ORDINÁRIA + SOB DEMANDA)
G95: VALOR MENSAL | H95: =H85+H91 -> 1517278.634
D97: TOTAL ANUAL - SERVIÇOS DE LIMPEZA E CONSERVAÇÃO
G99: 12 x TOTAL MENSAL | H99: =12*H95 -> 18207343.61
D101: TOTAL GLOBAL (30 MESES) - SERVIÇOS DE LIMPEZA E CONSERVAÇÃO
G103: 30 x TOTAL MENSAL | H103: =30*H95 -> 45518359.03

Sheet 1
B2: PLANILHA DE ESTIMATIVA DE CUSTOS
B3: Padrão IN 05/2017 e IN 07/2018 - MPDG
B5: 1 | D5: =HLOOKUP($B$5,'Dados Gerais'!$D$5:$BK$20,6) -> ENCARREGADO GERAL | E5: QUANTIDADE | F5: =HLOOKUP($B$5,'Dados Gerais'!$D$5:$BK$20,10) -> 1
B6: CCT | D6: =HLOOKUP($B$5,'Dados Gerais'!$D$5:$BK$20,15) -> SEAC/DF X SINDISERVIÇOS/DF 2024/2024 Nº DF000012/2024 | E6: DATA-BASE | F6: =HLOOKUP($B$5,'Dados Gerais'!$D$5:$BK$20,16) -> 2024-01-01
B8: MÓDULO 1 - COMPOSIÇÃO DA REMUNERAÇÃO | F8: Valor
C9: A | D9: Salário-Base | F9: =HLOOKUP($B$5,'Dados Gerais'!$D$5:$BK$20,8) -> 7744.91
C10: B | D10: Adicional de Periculosidade | F10: =HLOOKUP($B$5,'Dados Gerais'!$D$5:$BK$37,25) -> 0
C11: C | D11: Adicional de Insalubridade | F11: =HLOOKUP($B$5,'Dados Gerais'!$D$5:$BK$37,31) -> 0
C12: D | D12: Adicional Noturno | F12: =HLOOKUP($B$5,'Dados Gerais'!$D$5:$BK$50,46) -> 0 | H12: * Nota 1 - O Módulo 1 refere-se ao valor mensal devido ao empregado pela prestação do serviço no período de 12 meses.
C13: E | D13: Adicional de Hora Extra | F13: =HLOOKUP($B$5,'Dados Gerais'!$D$5:$BK$67,63) -> 0 | H13: * Nota 2 - O adicional de hora extra no feriado trabalhado foi suprimido pela Lei 13.467/17
C14: F | D14: Outros (especificar) | F14: =HLOOKUP($B$5,'Dados Gerais'!$D$5:$BK$59,33) -> 0 | H14: * Nota 3 - ART. 7º, § 2º, DA LEI Nº 605/49.Sendo mensalista o obreiro, o adicional noturno pago de forma fixa já é considerado integrado para os efeitos do pagamento do repouso semanal remunerado, nos termos do art. 7º, § 2º, da Lei nº 605/49.
D16: TOTAL DA REMUNERAÇÃO | F16: =SUM(F9:F14) -> 7744.91
B18: MÓDULO 2 - ENCARGOS E BENEFÍCIOS ANUAIS, MENSAIS E DIÁRIOS | E18: Percentuais | F18: Valor
B19: Submódulo 2.1 - 13º Salário, Férias e Adicional de Férias
C20: A | D20: 13º Salário - Calculado no Módulo 7 - Destacado | E20: 0 | F20: =ROUND(E20*F$16,2) -> 0
C21: B | D21: Férias e Adicional de Férias | E21: ='Encargos Sociais'!E31 -> 0.0303 | F21: =ROUND(E21*F$16,2) -> 234.67 | H21: * Nota 1 - Provisiona-se, mensalmente, o proporcional a 1/12 dos valores referentes a gratificação natalina, férias e adicional de férias.
H22: * Nota 2 - O adicional de férias contido no Submódulo 2.1 corresponde a 1/3 da remuneração que, por sua vez, é dividida por 12 contome Nota 1.
B23: Submódulo 2.2 - Encargos Previdenciários (GPS), Fundo de Garantia por Tempo de Serviço (FGTS) e Outras Contribuições
C24: A | D24: INSS (art. 22, inciso I, Lei nº 8.212/91) | E24: ='Encargos Sociais'!E14 -> 0.2 | F24: =ROUND(E24*($F$16+$F$41+$F$73),2) -> 1767.7
C25: B | D25: Salário Educação (art. 3º, inciso I, Decreto nº 87.043/82) | E25: ='Encargos Sociais'!E15 -> 0.025 | F25: =ROUND(E25*($F$16+$F$41+$F$73),2) -> 220.96
C26: C | D26: SAT/RAT (art. 22, II, Lei 8.212/91 e Anexo V, Decreto 6.042/07) - Enquadramento 8211-3/00 | E26: ='Encargos Sociais'!E16 -> 0.03 | F26: 265.15
C27: D | D27: SESC ou SESI (art. 30, Lei nº 8.036/90 e art. 1º, Lei 8.154/90) | E27: ='Encargos Sociais'!E17 -> 0.015 | F27: 132.58
C28: E | D28: SENAI ou SENAC (Decreto nº 2.318/86) | E28: ='Encargos Sociais'!E18 -> 0.01 | F28: 88.38
C29: F | D29: SEBRAE (§ 3º, art. 8º, Lei 8.029/90, alterada pela Lei nº 8.154/90) | E29: ='Encargos Sociais'!E19 -> 0.006 | F29: 53.03
C30: G | D30: INCRA (art. 1º, I, Decreto Lei 1.146/70 e Lei 7.787, de 30/06/89) | E30: ='Encargos Sociais'!E20 -> 0.002 | F30: 17.68 | H30: * Nota 1 - Os percentuais dos encargos previdenciários, do FGTS e demais contribuições são estabelecidos por legislação vigente.
C31: H | D31: FGTS (Lei Complementar nº 110/01 e art. 30, Lei nº 8.036/90) | E31: ='Encargos Sociais'!E21 -> 0.08 | F31: 707.08 | H31: * Nota 2 - O SAT, a depender do grau de risco do serviço, irá variar entre 1%, para risco leve, de 2%, para risco médio, e de 3% para risco grave.
C32: I | D32: SECONCI (Convenções Coletivas de Trabalho da construção) | E32: ='Encargos Sociais'!E22 -> 0 | F32: 0 | H32: * Nota 3 - Os percentuais do Submódulo 2.2 incidem sobre o Módulo 1 e o Submódulo 2.1.
B34: Submódulo 2.3 - Benefícios Mensais e Diários
C35: A | D35: Auxílio Transporte | F35: =HLOOKUP($B$5,'Dados Gerais'!$D$5:$BK$93,82) -> 0
C36: B | D36: Auxílio Alimentação | F36: =HLOOKUP($B$5,'Dados Gerais'!$D$5:$BK$93,89) -> 1012.8
C37: C | D37: Assistência Médica e Familiar | F37: =HLOOKUP($B$5,'Dados Gerais'!$D$5:$BK$101,97) -> 0
C38: D | D38: Outros (Seguro de vida e auxílio funeral e auxílio odontológico) | F38: =HLOOKUP($B$5,'Dados Gerais'!$D$5:$BK$118,114) -> 0 | H38: * Nota 1 - O valor informado deverá ser o custo real do benefício (descontado o valor eventualmente pago pelo empregado).
H39: * Nota 2 - Observar a previsão dos benefícios contidos em Acordos, Convenções e Dissídios Coletivos de Trabalho e o disposto no art. 6º da IN 5/2017
D40: QUADRO-RESUMO DO MÓDULO 2
D41: 2.1 - 13º Salário, Férias e Adicional de Férias - 13º Destacado - Calculado no Módulo 7 | E41: =SUM(E20:E21) -> 0.0303 | F41: =F20+F21 -> 234.67
D42: 2.2 - Encargos Previdenciários (GPS), Fundo de Garantia por Tempo de Serviço (FGTS) e Contribuições | E42: =SUM(E24:E32) -> 0.368 | F42: =SUM(F24:F32) -> 3252.56
D43: 2.3 - Benefícios Mensais e Diários | F43: =SUM(F35:F38) -> 1012.8
D45: TOTAL DOS ENCARGOS E BENEFÍCIOS | F45: =SUM(F41:F43) -> 4500.03
B47: MÓDULO 3 - PREVISÃO PARA RESCISÃO | E47: Percentuais | F47: Valor
C48: A | D48: Aviso Prévio Indenizado (Art. 7º, inciso XXI, da CF/1988 e arts. 477, 487, §1º, e 491 da CLT) | E48: ='Encargos Sociais'!E36 -> 0.0083 | F48: =ROUND(E48*$F$16,2) -> 64.28
C49: B | D49: Incidência do FGTS sobre o Aviso Prévio Indenizado (Súmula 305 TST) | E49: ='Encargos Sociais'!E37 -> 0.0007 | F49: 5.42 | H49: * Nota 1 - Adotou-se os parâmetros do estudo do STF (http://www.stf.jus.br/arquivo/cms/sobrestfestudosci/anexo/encargos_sociais_03102007.pdf), onde 5% do pessoal é demitido pelo empregador no decurso do contrato (para estes, considerou-se o aviso prévio indenizado). Desprezou-se as demissões por justa causa e os pedidos de demissão.
C50: C | D50: Multa do FGTS e Contribuição Social sobre o Aviso Prévio Indenizado (Art. 18, §1º, da Lei 8.036/1990 e art. 1º da LC nº 110/2001) | E50: ='Encargos Sociais'!E38 -> 0.0038 | F50: 29.43 | H50: * Nota 2 - No cálculo do percentual, considerou-se 36 dias, correspondendo à metade da duração média dos contratos (2 anos)
C51: D | D51: Aviso Prévio Trabalhado (Art. 488, parágrafo único, CLT) | E51: ='Encargos Sociais'!E39 -> 0.012 | F51: 92.94 | H51: * Nota 3 - Incide sobre a Remuneração + 13º salário (1/12) + Férias (1/12) + Adicional de Férias (1/36) x 50% multa (40% para o empregado e 10% de contribuição social) x 8% FGTS
C52: E | D52: Incidência de GPS, FGTS e outras contribuições sobre o Aviso Prévio Trabalhado | E52: ='Encargos Sociais'!E40 -> 0.0044 | F52: 34.08 | H52: * Nota 4 - Os 95% restantes do cálculo, a um prazo médio de contrato de 4 anos. Assim, calcula-se 7 dias para o 1º ano de contrato e mais 3 dias para os 3 anos seguintes.
C53: F | D53: Multa do FGTS e Contribuição Social sobre o Aviso Prévio Trabalhado | E53: ='Encargos Sociais'!E41 -> 0.0344 | F53: 266.42 | L53: =SUM(L8:L51) -> 0
D55: TOTAL DE PREVISÃO PARA RESCISÃO | F55: =SUM(F48:F53) -> 492.57
B57: MÓDULO 4 - CUSTO DO PROFISSIONAL AUSENTE | E57: Percentuais | F57: Valor
B58: Submódulo 4.1 - Ausências Legais
C59: A | D59: Férias (Arts. 129 e 130, inc. I, da CLT) | E59: ='Encargos Sociais'!E25 -> 0.0909 | F59: =ROUND(E59*$F$16,2) -> 704.01 | H59: * Nota 1 - As alíneas “A” a “F” referem-se somente ao custo que será pago ao repositor pelos dias trabalhados quando da necessidade de substituir a mão de obra alocada na prestação do serviço.
C60: B | D60: Ausências Legais (Arts. 131 e 473 da CLT) | E60: ='Encargos Sociais'!E26 -> 0.0079 | F60: 61.18 | H60: * Nota 2 - Adotou-se a estimativa do SINAPI de 2 dias por ano.
C61: C | D61: Licença-Paternidade (Art. 7º, XIX, e art. 10, §1º, do ADCT, CF/1988 e Art. 1º, II, da Lei 11.770/2008) | E61: ='Encargos Sociais'!E27 -> 0.0008 | F61: 6.2 | H61: * Nota 3 - Utilizada a proporção de 50% para homens, 5 dias de afastamento, e a probabilidade de um trabalhador requerer a Licença Paternidade em 5,22%, conforme SINAPI (citando dados da PNAD 2015)
C62: D | D62: Ausência por Acidente de Trabalho (Art. 131, III, da CLT) | E62: ='Encargos Sociais'!E28 -> 0.0009 | F62: 6.97 | H62: * Nota 4 - Utilzada a estatística de 1,96% dos contribuintes beneficiados com a emissão do auxílio, conforme Anuário Estatístico da Previdência Social. Afastamento de 15 dias a cargo da empresa.
C63: E | D63: Afastamento Maternidade (Art. 71 da Lei nº 8.213/1991) | E63: ='Encargos Sociais'!E29 -> 0.0033 | F63: 25.56 | H63: * Nota 5 - Utilizada a proporção de 50% para mulheres, 180 dias de afastamento, e a probabilidade de uma trabalhadora requerer a Licença Maternidade em 4,91%, conforme SINAPI (citando dados do IBGE 2016)
C64: F | D64: Auxílio Enfermidade - Doença (Art. 59 da Lei nº 8.213/1991) | E64: ='Encargos Sociais'!E30 -> 0.0071 | F64: 54.99 | H64: * Nota 6 - Utilizada a estatística de 3,37% dos contribuintes beneficiados com o auxílio, conforme Anuário Estatístico da Previdência Social de 2015 (acrescidos de 2 dias ao ano, para os quais o trabalhador nem requer o benefício da Previdência - conforme SINAPI)
B66: Submódulo 4.2 - Intrajornada
C67: A | D67: Intervalo para repouso ou alimentação | E67: ='Encargos Sociais'!E33 -> 0 | F67: =ROUND(E67*$F$16,2) -> 0
D69: QUADRO-RESUMO DO MÓDULO 4 | F69: Valor
D70: 4.1 - Ausências Legais | E70: =SUM(E59:E64) -> 0.1109 | F70: =ROUND(E70*$F$16,2) -> 858.91
D71: 4.2 - Intrajornada | E71: =E67 -> 0 | F71: =ROUND(E71*$F$16,2) -> 0
D73: TOTAL DE PREVISÃO PARA RESCISÃO E INTERVALO INTRAJORNADA | F73: =SUM(F70:F71) -> 858.91
B75: MÓDULO 5 - INSUMOS DIVERSOS | F75: Valor
C76: A | D76: Uniformes - aquisição | F76: =ROUND(HLOOKUP($B$5,Uniformes!L4:EA88,3)/12,2) -> 114.45
C77: B | D77: Materiais de consumo relacionados ao posto - aquisição | F77: =ROUND(HLOOKUP(B5,'Mat Cons'!I11:DX13,3)/12,2) -> 0
C78: C | D78: Materiais permanentes relacionados ao posto - remuneração da sua depreciação / manutenção | F78: =HLOOKUP(B5,'Mat Perm'!Q11:EF13,3) -> 0
C79: D | D79: Equipamentos relacionados ao posto - remuneração da sua depreciação / manutenção | F79: =HLOOKUP(B5,'Equip Rel'!Q11:EF13,3) -> 0
C80: E | D80: Equipamentos de Proteção Individual - EPI - aquisição | F80: =ROUND(HLOOKUP(B5,EPI!J4:DY6,3)/12,2) -> 0.14
D82: TOTAL DE INSUMOS DIVERSOS | F82: =SUM(F76:F81) -> 114.59 | H82: * Nota - Valores mensais por empregado
B84: MÓDULO 6 - CUSTOS INDIRETOS, TRIBUTOS E LUCRO - BDI | E84: Percentuais | F84: Valor
C85: A | D85: Custos Indiretos | E85: =BDI!E6 -> 0.027
C86: A.1 | D86: Administração Central | E86: =BDI!E7 -> 0.0216
C87: A.2 | D87: Seguros, Garantias e Riscos | E87: =BDI!E8 -> 0.0054
C88: B | D88: Lucro | E88: =BDI!E10 -> 0.0334
C89: C | D89: Tributos | E89: =SUM(E90:E91) -> 0.124
C90: C.1 | D90: Tributos Federais (COFINS, PIS e CPRB) | E90: =BDI!E18 -> 0.074
C91: C.2 | D91: Tributos Distritais (ISS) | E91: =BDI!E23 -> 0.05 | H91: * Nota - Utilizou-se o indicado pelo Sindicato da Arquitetura e da Engenharia (Sinaenco, 2008, p. 22), que adota um percentual redutor de 20% no cálculo dos custos tributários relativos às contribuições PIS e COFINS
C92: D | D92: Despesas Financeiras | E92: =BDI!E13 -> 0.004466921098
D94: TOTAL DE BDI | E94: =BDI!E26 -> 0.2169 | F94: =E94*E102 -> 2973.918069
D96: QUADRO-RESUMO DO CUSTO MENSAL POR EMPREGADO - SEM O 13º | E96: Valor
D97: Módulo 1 - Composição da Remuneração | E97: =F16 -> 7744.91
D98: Módulo 2 - Encargos e Benefícios Anuais, Mensais e Diários | E98: =F45 -> 4500.03
D99: Módulo 3 - Provisão para Rescisão | E99: =F55 -> 492.57
D100: Módulo 4 - Custo de Reposição do Profissional Ausente | E100: =F73 -> 858.91
D101: Módulo 5 - Insumos Diversos | E101: =F82 -> 114.59
D102: SUBTOTAL (A+B+C+D+E) | E102: =SUM(E97:E101) -> 13711.01
D103: Módulo 6 - Custos Indiretos, Tributos e Lucro | E103: =F94 -> 2973.918069
D105: TOTAL DO POSTO | E105: =SUM(E102:E103) -> 16684.92807
B107: MÓDULO 7 - DESTAQUE DO MÓDULO 2 - 13º SALÁRIO | E107: Percentuais | F107: Valor
C108: A | D108: 13º Salário | E108: ='Encargos Sociais'!E32 -> 0.0833 | F108: =ROUND(E108*F$16,2) -> 645.15
C109: B | D109: Encargos Sociais sobre o 13º Salário - Taxa calculada no SUBMÓDULO 2.2 | E109: =SUM($E$24:$E$32) -> 0.368 | F109: =ROUND(E109*$F$108,2) -> 237.42 | H109: * Nota 1 - Provisiona-se, mensalmente, o proporcional a 1/12 dos valores referentes a gratificação natalina e adicional de férias.
C110: C | D110: Reincidência de férias sobre o 13º Salário | E110: =E59 -> 0.0909 | F110: =ROUND(E110*$F$108,2) -> 58.64
C111: D | D111: BDI sobre o 13º Salário - Taxa calculada no MÓDULO 6 | E111: =E94 -> 0.2169 | F111: =ROUND(E111*($F$108+$F$109),2) -> 191.43
D113: TOTAL DO DESTAQUE DO 13º SALÁRIO | F113: =SUM(F108:F111) -> 1132.64
D115: QUADRO-RESUMO DO CUSTO MENSAL POR EMPREGADO | E115: Valor
D116: Custo total - sem o 13º Salário | E116: =E105 -> 16684.92807
D117: Destaque do 13º Salário (valor mensal) | E117: =F113 -> 1132.64
D119: TOTAL DO POSTO | E119: =E116+E117 -> 17817.56807

Sheet 2
B2: PLANILHA DE ESTIMATIVA DE CUSTOS
B3: Padrão IN 05/2017 e IN 07/2018 - MPDG
B5: 2 | D5: =HLOOKUP($B$5,'Dados Gerais'!$D$5:$BK$20,6) -> ENCARREGADO SETORIAL | E5: QUANTIDADE | F5: =HLOOKUP($B$5,'Dados Gerais'!$D$5:$BK$20,10) -> 2
B6: CCT | D6: =HLOOKUP($B$5,'Dados Gerais'!$D$5:$BK$20,15) -> SEAC/DF X SINDISERVIÇOS/DF 2024/2024 Nº DF000012/2024 | E6: DATA-BASE | F6: =HLOOKUP($B$5,'Dados Gerais'!$D$5:$BK$20,16) -> 2024-01-01
B8: MÓDULO 1 - COMPOSIÇÃO DA REMUNERAÇÃO | F8: Valor
C9: A | D9: Salário-Base | F9: =HLOOKUP($B$5,'Dados Gerais'!$D$5:$BK$20,8) -> 4428.78
C10: B | D10: Adicional de Periculosidade | F10: =HLOOKUP($B$5,'Dados Gerais'!$D$5:$BK$37,25) -> 0
C11: C | D11: Adicional de Insalubridade | F11: =HLOOKUP($B$5,'Dados Gerais'!$D$5:$BK$37,31) -> 0
C12: D | D12: Adicional Noturno | F12: =HLOOKUP($B$5,'Dados Gerais'!$D$5:$BK$50,46) -> 0 | H12: * Nota 1 - O Módulo 1 refere-se ao valor mensal devido ao empregado pela prestação do serviço no período de 12 meses.
C13: E | D13: Adicional de Hora Extra | F13: =HLOOKUP($B$5,'Dados Gerais'!$D$5:$BK$67,63) -> 0 | H13: * Nota 2 - O adicional de hora extra no feriado trabalhado foi suprimido pela Lei 13.467/17
C14: F | D14: Outros (especificar) | F14: =HLOOKUP($B$5,'Dados Gerais'!$D$5:$BK$59,33) -> 0 | H14: * Nota 3 - ART. 7º, § 2º, DA LEI Nº 605/49.Sendo mensalista o obreiro, o adicional noturno pago de forma fixa já é considerado integrado para os efeitos do pagamento do repouso semanal remunerado, nos termos do art. 7º, § 2º, da Lei nº 605/49.
D16: TOTAL DA REMUNERAÇÃO | F16: =SUM(F9:F14) -> 4428.78
B18: MÓDULO 2 - ENCARGOS E BENEFÍCIOS ANUAIS, MENSAIS E DIÁRIOS | E18: Percentuais | F18: Valor
B19: Submódulo 2.1 - 13º Salário, Férias e Adicional de Férias
C20: A | D20: 13º Salário - Calculado no Módulo 7 - Destacado | E20: 0 | F20: =ROUND(E20*F$16,2) -> 0
C21: B | D21: Férias e Adicional de Férias | E21: ='Encargos Sociais'!E31 -> 0.0303 | F21: =ROUND(E21*F$16,2) -> 134.19 | H21: * Nota 1 - Provisiona-se, mensalmente, o proporcional a 1/12 dos valores referentes a gratificação natalina, férias e adicional de férias.
H22: * Nota 2 - O adicional de férias contido no Submódulo 2.1 corresponde a 1/3 da remuneração que, por sua vez, é dividida por 12 contome Nota 1.
B23: Submódulo 2.2 - Encargos Previdenciários (GPS), Fundo de Garantia por Tempo de Serviço (FGTS) e Outras Contribuições
C24: A | D24: INSS (art. 22, inciso I, Lei nº 8.212/91) | E24: ='Encargos Sociais'!E14 -> 0.2 | F24: =ROUND(E24*($F$16+$F$41+$F$73),2) -> 1010.82
C25: B | D25: Salário Educação (art. 3º, inciso I, Decreto nº 87.043/82) | E25: ='Encargos Sociais'!E15 -> 0.025 | F25: =ROUND(E25*($F$16+$F$41+$F$73),2) -> 126.35
C26: C | D26: SAT/RAT (art. 22, II, Lei 8.212/91 e Anexo V, Decreto 6.042/07) - Enquadramento 8211-3/00 | E26: ='Encargos Sociais'!E16 -> 0.03 | F26: 151.62
C27: D | D27: SESC ou SESI (art. 30, Lei nº 8.036/90 e art. 1º, Lei 8.154/90) | E27: ='Encargos Sociais'!E17 -> 0.015 | F27: 75.81
C28: E | D28: SENAI ou SENAC (Decreto nº 2.318/86) | E28: ='Encargos Sociais'!E18 -> 0.01 | F28: 50.54
C29: F | D29: SEBRAE (§ 3º, art. 8º, Lei 8.029/90, alterada pela Lei nº 8.154/90) | E29: ='Encargos Sociais'!E19 -> 0.006 | F29: 30.32
C30: G | D30: INCRA (art. 1º, I, Decreto Lei 1.146/70 e Lei 7.787, de 30/06/89) | E30: ='Encargos Sociais'!E20 -> 0.002 | F30: 10.11 | H30: * Nota 1 - Os percentuais dos encargos previdenciários, do FGTS e demais contribuições são estabelecidos por legislação vigente.
C31: H | D31: FGTS (Lei Complementar nº 110/01 e art. 30, Lei nº 8.036/90) | E31: ='Encargos Sociais'!E21 -> 0.08 | F31: 404.33 | H31: * Nota 2 - O SAT, a depender do grau de risco do serviço, irá variar entre 1%, para risco leve, de 2%, para risco médio, e de 3% para risco grave.
C32: I | D32: SECONCI (Convenções Coletivas de Trabalho da construção) | E32: ='Encargos Sociais'!E22 -> 0 | F32: 0 | H32: * Nota 3 - Os percentuais do Submódulo 2.2 incidem sobre o Módulo 1 e o Submódulo 2.1.
B34: Submódulo 2.3 - Benefícios Mensais e Diários
C35: A | D35: Auxílio Transporte | F35: =HLOOKUP($B$5,'Dados Gerais'!$D$5:$BK$93,82) -> 75.97
C36: B | D36: Auxílio Alimentação | F36: =HLOOKUP($B$5,'Dados Gerais'!$D$5:$BK$93,89) -> 1012.8
C37: C | D37: Assistência Médica e Familiar | F37: =HLOOKUP($B$5,'Dados Gerais'!$D$5:$BK$101,97) -> 0
C38: D | D38: Outros (Seguro de vida e auxílio funeral e auxílio odontológico) | F38: =HLOOKUP($B$5,'Dados Gerais'!$D$5:$BK$118,114) -> 0 | H38: * Nota 1 - O valor informado deverá ser o custo real do benefício (descontado o valor eventualmente pago pelo empregado).
H39: * Nota 2 - Observar a previsão dos benefícios contidos em Acordos, Convenções e Dissídios Coletivos de Trabalho e o disposto no art. 6º da IN 5/2017
D40: QUADRO-RESUMO DO MÓDULO 2
D41: 2.1 - 13º Salário, Férias e Adicional de Férias - 13º Destacado - Calculado no Módulo 7 | E41: =SUM(E20:E21) -> 0.0303 | F41: =F20+F21 -> 134.19
D42: 2.2 - Encargos Previdenciários (GPS), Fundo de Garantia por Tempo de Serviço (FGTS) e Contribuições | E42: =SUM(E24:E32) -> 0.368 | F42: =SUM(F24:F32) -> 1859.9
D43: 2.3 - Benefícios Mensais e Diários | F43: =SUM(F35:F38) -> 1088.77
D45: TOTAL DOS ENCARGOS E BENEFÍCIOS | F45: =SUM(F41:F43) -> 3082.86
B47: MÓDULO 3 - PREVISÃO PARA RESCISÃO | E47: Percentuais | F47: Valor
C48: A | D48: Aviso Prévio Indenizado (Art. 7º, inciso XXI, da CF/1988 e arts. 477, 487, §1º, e 491 da CLT) | E48: ='Encargos Sociais'!E36 -> 0.0083 | F48: =ROUND(E48*$F$16,2) -> 36.76
C49: B | D49: Incidência do FGTS sobre o Aviso Prévio Indenizado (Súmula 305 TST) | E49: ='Encargos Sociais'!E37 -> 0.0007 | F49: 3.1 | H49: * Nota 1 - Adotou-se os parâmetros do estudo do STF (http://www.stf.jus.br/arquivo/cms/sobrestfestudosci/anexo/encargos_sociais_03102007.pdf), onde 5% do pessoal é demitido pelo empregador no decurso do contrato (para estes, considerou-se o aviso prévio indenizado). Desprezou-se as demissões por justa causa e os pedidos de demissão.
C50: C | D50: Multa do FGTS e Contribuição Social sobre o Aviso Prévio Indenizado (Art. 18, §1º, da Lei 8.036/1990 e art. 1º da LC nº 110/2001) | E50: ='Encargos Sociais'!E38 -> 0.0038 | F50: 16.83 | H50: * Nota 2 - No cálculo do percentual, considerou-se 36 dias, correspondendo à metade da duração média dos contratos (2 anos)
C51: D | D51: Aviso Prévio Trabalhado (Art. 488, parágrafo único, CLT) | E51: ='Encargos Sociais'!E39 -> 0.012 | F51: 53.15 | H51: * Nota 3 - Incide sobre a Remuneração + 13º salário (1/12) + Férias (1/12) + Adicional de Férias (1/36) x 50% multa (40% para o empregado e 10% de contribuição social) x 8% FGTS
C52: E | D52: Incidência de GPS, FGTS e outras contribuições sobre o Aviso Prévio Trabalhado | E52: ='Encargos Sociais'!E40 -> 0.0044 | F52: 19.49 | H52: * Nota 4 - Os 95% restantes do cálculo, a um prazo médio de contrato de 4 anos. Assim, calcula-se 7 dias para o 1º ano de contrato e mais 3 dias para os 3 anos seguintes.
C53: F | D53: Multa do FGTS e Contribuição Social sobre o Aviso Prévio Trabalhado | E53: ='Encargos Sociais'!E41 -> 0.0344 | F53: 152.35 | L53: =SUM(L8:L51) -> 0
D55: TOTAL DE PREVISÃO PARA RESCISÃO | F55: =SUM(F48:F53) -> 281.68
B57: MÓDULO 4 - CUSTO DO PROFISSIONAL AUSENTE | E57: Percentuais | F57: Valor
B58: Submódulo 4.1 - Ausências Legais
C59: A | D59: Férias (Arts. 129 e 130, inc. I, da CLT) | E59: ='Encargos Sociais'!E25 -> 0.0909 | F59: =ROUND(E59*$F$16,2) -> 402.58 | H59: * Nota 1 - As alíneas “A” a “F” referem-se somente ao custo que será pago ao repositor pelos dias trabalhados quando da necessidade de substituir a mão de obra alocada na prestação do serviço.
C60: B | D60: Ausências Legais (Arts. 131 e 473 da CLT) | E60: ='Encargos Sociais'!E26 -> 0.0079 | F60: 34.99 | H60: * Nota 2 - Adotou-se a estimativa do SINAPI de 2 dias por ano.
C61: C | D61: Licença-Paternidade (Art. 7º, XIX, e art. 10, §1º, do ADCT, CF/1988 e Art. 1º, II, da Lei 11.770/2008) | E61: ='Encargos Sociais'!E27 -> 0.0008 | F61: 3.54 | H61: * Nota 3 - Utilizada a proporção de 50% para homens, 5 dias de afastamento, e a probabilidade de um trabalhador requerer a Licença Paternidade em 5,22%, conforme SINAPI (citando dados da PNAD 2015)
C62: D | D62: Ausência por Acidente de Trabalho (Art. 131, III, da CLT) | E62: ='Encargos Sociais'!E28 -> 0.0009 | F62: 3.99 | H62: * Nota 4 - Utilzada a estatística de 1,96% dos contribuintes beneficiados com a emissão do auxílio, conforme Anuário Estatístico da Previdência Social. Afastamento de 15 dias a cargo da empresa.
C63: E | D63: Afastamento Maternidade (Art. 71 da Lei nº 8.213/1991) | E63: ='Encargos Sociais'!E29 -> 0.0033 | F63: 14.61 | H63: * Nota 5 - Utilizada a proporção de 50% para mulheres, 180 dias de afastamento, e a probabilidade de uma trabalhadora requerer a Licença Maternidade em 4,91%, conforme SINAPI (citando dados do IBGE 2016)
C64: F | D64: Auxílio Enfermidade - Doença (Art. 59 da Lei nº 8.213/1991) | E64: ='Encargos Sociais'!E30 -> 0.0071 | F64: 31.44 | H64: * Nota 6 - Utilizada a estatística de 3,37% dos contribuintes beneficiados com o auxílio, conforme Anuário Estatístico da Previdência Social de 2015 (acrescidos de 2 dias ao ano, para os quais o trabalhador nem requer o benefício da Previdência - conforme SINAPI)
B66: Submódulo 4.2 - Intrajornada
C67: A | D67: Intervalo para repouso ou alimentação | E67: ='Encargos Sociais'!E33 -> 0 | F67: =ROUND(E67*$F$16,2) -> 0
D69: QUADRO-RESUMO DO MÓDULO 4 | F69: Valor
D70: 4.1 - Ausências Legais | E70: =SUM(E59:E64) -> 0.1109 | F70: =ROUND(E70*$F$16,2) -> 491.15
D71: 4.2 - Intrajornada | E71: =E67 -> 0 | F71: =ROUND(E71*$F$16,2) -> 0
D73: TOTAL DE PREVISÃO PARA RESCISÃO E INTERVALO INTRAJORNADA | F73: =SUM(F70:F71) -> 491.15
B75: MÓDULO 5 - INSUMOS DIVERSOS | F75: Valor
C76: A | D76: Uniformes - aquisição | F76: =ROUND(HLOOKUP($B$5,Uniformes!L4:EA88,3)/12,2) -> 114.45
C77: B | D77: Materiais de consumo relacionados ao posto - aquisição | F77: =ROUND(HLOOKUP(B5,'Mat Cons'!I11:DX13,3)/12,2) -> 0
C78: C | D78: Materiais permanentes relacionados ao posto - remuneração da sua depreciação / manutenção | F78: =HLOOKUP(B5,'Mat Perm'!Q11:EF13,3) -> 0
C79: D | D79: Equipamentos relacionados ao posto - remuneração da sua depreciação / manutenção | F79: =HLOOKUP(B5,'Equip Rel'!Q11:EF13,3) -> 0
C80: E | D80: Equipamentos de Proteção Individual - EPI - aquisição | F80: =ROUND(HLOOKUP(B5,EPI!J4:DY6,3)/12,2) -> 0.34
D82: TOTAL DE INSUMOS DIVERSOS | F82: =SUM(F76:F81) -> 114.79 | H82: * Nota - Valores mensais por empregado
B84: MÓDULO 6 - CUSTOS INDIRETOS, TRIBUTOS E LUCRO - BDI | E84: Percentuais | F84: Valor
C85: A | D85: Custos Indiretos | E85: =BDI!E6 -> 0.027
C86: A.1 | D86: Administração Central | E86: =BDI!E7 -> 0.0216
C87: A.2 | D87: Seguros, Garantias e Riscos | E87: =BDI!E8 -> 0.0054
C88: B | D88: Lucro | E88: =BDI!E10 -> 0.0334
C89: C | D89: Tributos | E89: =SUM(E90:E91) -> 0.124
C90: C.1 | D90: Tributos Federais (COFINS, PIS e CPRB) | E90: =BDI!E18 -> 0.074
C91: C.2 | D91: Tributos Distritais (ISS) | E91: =BDI!E23 -> 0.05 | H91: * Nota - Utilizou-se o indicado pelo Sindicato da Arquitetura e da Engenharia (Sinaenco, 2008, p. 22), que adota um percentual redutor de 20% no cálculo dos custos tributários relativos às contribuições PIS e COFINS
C92: D | D92: Despesas Financeiras | E92: =BDI!E13 -> 0.004466921098
D94: TOTAL DE BDI | E94: =BDI!E26 -> 0.2169 | F94: =E94*E102 -> 1821.799494
D96: QUADRO-RESUMO DO CUSTO MENSAL POR EMPREGADO - SEM O 13º | E96: Valor
D97: Módulo 1 - Composição da Remuneração | E97: =F16 -> 4428.78
D98: Módulo 2 - Encargos e Benefícios Anuais, Mensais e Diários | E98: =F45 -> 3082.86
D99: Módulo 3 - Provisão para Rescisão | E99: =F55 -> 281.68
D100: Módulo 4 - Custo de Reposição do Profissional Ausente | E100: =F73 -> 491.15
D101: Módulo 5 - Insumos Diversos | E101: =F82 -> 114.79
D102: SUBTOTAL (A+B+C+D+E) | E102: =SUM(E97:E101) -> 8399.26
D103: Módulo 6 - Custos Indiretos, Tributos e Lucro | E103: =F94 -> 1821.799494
D105: TOTAL DO POSTO | E105: =SUM(E102:E103) -> 10221.05949
B107: MÓDULO 7 - DESTAQUE DO MÓDULO 2 - 13º SALÁRIO | E107: Percentuais | F107: Valor
C108: A | D108: 13º Salário | E108: ='Encargos Sociais'!E32 -> 0.0833 | F108: =ROUND(E108*F$16,2) -> 368.92
C109: B | D109: Encargos Sociais sobre o 13º Salário - Taxa calculada no SUBMÓDULO 2.2 | E109: =SUM($E$24:$E$32) -> 0.368 | F109: =ROUND(E109*$F$108,2) -> 135.76 | H109: * Nota 1 - Provisiona-se, mensalmente, o proporcional a 1/12 dos valores referentes a gratificação natalina e adicional de férias.
C110: C | D110: Reincidência de férias sobre o 13º Salário | E110: =E59 -> 0.0909 | F110: =ROUND(E110*$F$108,2) -> 33.53
C111: D | D111: BDI sobre o 13º Salário - Taxa calculada no MÓDULO 6 | E111: =E94 -> 0.2169 | F111: =ROUND(E111*($F$108+$F$109),2) -> 109.47
D113: TOTAL DO DESTAQUE DO 13º SALÁRIO | F113: =SUM(F108:F111) -> 647.68
D115: QUADRO-RESUMO DO CUSTO MENSAL POR EMPREGADO | E115: Valor
D116: Custo total - sem o 13º Salário | E116: =E105 -> 10221.05949
D117: Destaque do 13º Salário (valor mensal) | E117: =F113 -> 647.68
D119: TOTAL DO POSTO | E119: =E116+E117 -> 10868.73949

Sheet 3
B2: PLANILHA DE ESTIMATIVA DE CUSTOS
B3: Padrão IN 05/2017 e IN 07/2018 - MPDG
B5: 3 | D5: =HLOOKUP($B$5,'Dados Gerais'!$D$5:$BK$20,6) -> ENCARREGADO DE SERVIÇO | E5: QUANTIDADE | F5: =HLOOKUP($B$5,'Dados Gerais'!$D$5:$BK$20,10) -> 12
B6: CCT | D6: =HLOOKUP($B$5,'Dados Gerais'!$D$5:$BK$20,15) -> SEAC/DF X SINDISERVIÇOS/DF 2024/2024 Nº DF000012/2024 | E6: DATA-BASE | F6: =HLOOKUP($B$5,'Dados Gerais'!$D$5:$BK$20,16) -> 2024-01-01
B8: MÓDULO 1 - COMPOSIÇÃO DA REMUNERAÇÃO | F8: Valor
C9: A | D9: Salário-Base | F9: =HLOOKUP($B$5,'Dados Gerais'!$D$5:$BK$20,8) -> 3483.45
C10: B | D10: Adicional de Periculosidade | F10: =HLOOKUP($B$5,'Dados Gerais'!$D$5:$BK$37,25) -> 0
C11: C | D11: Adicional de Insalubridade | F11: =HLOOKUP($B$5,'Dados Gerais'!$D$5:$BK$37,31) -> 0
C12: D | D12: Adicional Noturno | F12: =HLOOKUP($B$5,'Dados Gerais'!$D$5:$BK$50,46) -> 0 | H12: * Nota 1 - O Módulo 1 refere-se ao valor mensal devido ao empregado pela prestação do serviço no período de 12 meses.
C13: E | D13: Adicional de Hora Extra | F13: =HLOOKUP($B$5,'Dados Gerais'!$D$5:$BK$67,63) -> 0 | H13: * Nota 2 - O adicional de hora extra no feriado trabalhado foi suprimido pela Lei 13.467/17
C14: F | D14: Outros (especificar) | F14: =HLOOKUP($B$5,'Dados Gerais'!$D$5:$BK$59,33) -> 0 | H14: * Nota 3 - ART. 7º, § 2º, DA LEI Nº 605/49.Sendo mensalista o obreiro, o adicional noturno pago de forma fixa já é considerado integrado para os efeitos do pagamento do repouso semanal remunerado, nos termos do art. 7º, § 2º, da Lei nº 605/49.
D16: TOTAL DA REMUNERAÇÃO | F16: =SUM(F9:F14) -> 3483.45
B18: MÓDULO 2 - ENCARGOS E BENEFÍCIOS ANUAIS, MENSAIS E DIÁRIOS | E18: Percentuais | F18: Valor
B19: Submódulo 2.1 - 13º Salário, Férias e Adicional de Férias
C20: A | D20: 13º Salário - Calculado no Módulo 7 - Destacado | E20: 0 | F20: =ROUND(E20*F$16,2) -> 0
C21: B | D21: Férias e Adicional de Férias | E21: ='Encargos Sociais'!E31 -> 0.0303 | F21: =ROUND(E21*F$16,2) -> 105.55 | H21: * Nota 1 - Provisiona-se, mensalmente, o proporcional a 1/12 dos valores referentes a gratificação natalina, férias e adicional de férias.
H22: * Nota 2 - O adicional de férias contido no Submódulo 2.1 corresponde a 1/3 da remuneração que, por sua vez, é dividida por 12 contome Nota 1.
B23: Submódulo 2.2 - Encargos Previdenciários (GPS), Fundo de Garantia por Tempo de Serviço (FGTS) e Outras Contribuições
C24: A | D24: INSS (art. 22, inciso I, Lei nº 8.212/91) | E24: ='Encargos Sociais'!E14 -> 0.2 | F24: =ROUND(E24*($F$16+$F$41+$F$73),2) -> 795.06
C25: B | D25: Salário Educação (art. 3º, inciso I, Decreto nº 87.043/82) | E25: ='Encargos Sociais'!E15 -> 0.025 | F25: =ROUND(E25*($F$16+$F$41+$F$73),2) -> 99.38
C26: C | D26: SAT/RAT (art. 22, II, Lei 8.212/91 e Anexo V, Decreto 6.042/07) - Enquadramento 8211-3/00 | E26: ='Encargos Sociais'!E16 -> 0.03 | F26: 119.26
C27: D | D27: SESC ou SESI (art. 30, Lei nº 8.036/90 e art. 1º, Lei 8.154/90) | E27: ='Encargos Sociais'!E17 -> 0.015 | F27: 59.63
C28: E | D28: SENAI ou SENAC (Decreto nº 2.318/86) | E28: ='Encargos Sociais'!E18 -> 0.01 | F28: 39.75
C29: F | D29: SEBRAE (§ 3º, art. 8º, Lei 8.029/90, alterada pela Lei nº 8.154/90) | E29: ='Encargos Sociais'!E19 -> 0.006 | F29: 23.85
C30: G | D30: INCRA (art. 1º, I, Decreto Lei 1.146/70 e Lei 7.787, de 30/06/89) | E30: ='Encargos Sociais'!E20 -> 0.002 | F30: 7.95 | H30: * Nota 1 - Os percentuais dos encargos previdenciários, do FGTS e demais contribuições são estabelecidos por legislação vigente.
C31: H | D31: FGTS (Lei Complementar nº 110/01 e art. 30, Lei nº 8.036/90) | E31: ='Encargos Sociais'!E21 -> 0.08 | F31: 318.02 | H31: * Nota 2 - O SAT, a depender do grau de risco do serviço, irá variar entre 1%, para risco leve, de 2%, para risco médio, e de 3% para risco grave.
C32: I | D32: SECONCI (Convenções Coletivas de Trabalho da construção) | E32: ='Encargos Sociais'!E22 -> 0 | F32: 0 | H32: * Nota 3 - Os percentuais do Submódulo 2.2 incidem sobre o Módulo 1 e o Submódulo 2.1.
B34: Submódulo 2.3 - Benefícios Mensais e Diários
C35: A | D35: Auxílio Transporte | F35: =HLOOKUP($B$5,'Dados Gerais'!$D$5:$BK$93,82) -> 132.69
C36: B | D36: Auxílio Alimentação | F36: =HLOOKUP($B$5,'Dados Gerais'!$D$5:$BK$93,89) -> 1012.8
C37: C | D37: Assistência Médica e Familiar | F37: =HLOOKUP($B$5,'Dados Gerais'!$D$5:$BK$101,97) -> 0
C38: D | D38: Outros (Seguro de vida e auxílio funeral e auxílio odontológico) | F38: =HLOOKUP($B$5,'Dados Gerais'!$D$5:$BK$118,114) -> 0 | H38: * Nota 1 - O valor informado deverá ser o custo real do benefício (descontado o valor eventualmente pago pelo empregado).
H39: * Nota 2 - Observar a previsão dos benefícios contidos em Acordos, Convenções e Dissídios Coletivos de Trabalho e o disposto no art. 6º da IN 5/2017
D40: QUADRO-RESUMO DO MÓDULO 2
D41: 2.1 - 13º Salário, Férias e Adicional de Férias - 13º Destacado - Calculado no Módulo 7 | E41: =SUM(E20:E21) -> 0.0303 | F41: =F20+F21 -> 105.55
D42: 2.2 - Encargos Previdenciários (GPS), Fundo de Garantia por Tempo de Serviço (FGTS) e Contribuições | E42: =SUM(E24:E32) -> 0.368 | F42: =SUM(F24:F32) -> 1462.9
D43: 2.3 - Benefícios Mensais e Diários | F43: =SUM(F35:F38) -> 1145.49
D45: TOTAL DOS ENCARGOS E BENEFÍCIOS | F45: =SUM(F41:F43) -> 2713.94
B47: MÓDULO 3 - PREVISÃO PARA RESCISÃO | E47: Percentuais | F47: Valor
C48: A | D48: Aviso Prévio Indenizado (Art. 7º, inciso XXI, da CF/1988 e arts. 477, 487, §1º, e 491 da CLT) | E48: ='Encargos Sociais'!E36 -> 0.0083 | F48: =ROUND(E48*$F$16,2) -> 28.91
C49: B | D49: Incidência do FGTS sobre o Aviso Prévio Indenizado (Súmula 305 TST) | E49: ='Encargos Sociais'!E37 -> 0.0007 | F49: 2.44 | H49: * Nota 1 - Adotou-se os parâmetros do estudo do STF (http://www.stf.jus.br/arquivo/cms/sobrestfestudosci/anexo/encargos_sociais_03102007.pdf), onde 5% do pessoal é demitido pelo empregador no decurso do contrato (para estes, considerou-se o aviso prévio indenizado). Desprezou-se as demissões por justa causa e os pedidos de demissão.
C50: C | D50: Multa do FGTS e Contribuição Social sobre o Aviso Prévio Indenizado (Art. 18, §1º, da Lei 8.036/1990 e art. 1º da LC nº 110/2001) | E50: ='Encargos Sociais'!E38 -> 0.0038 | F50: 13.24 | H50: * Nota 2 - No cálculo do percentual, considerou-se 36 dias, correspondendo à metade da duração média dos contratos (2 anos)
C51: D | D51: Aviso Prévio Trabalhado (Art. 488, parágrafo único, CLT) | E51: ='Encargos Sociais'!E39 -> 0.012 | F51: 41.8 | H51: * Nota 3 - Incide sobre a Remuneração + 13º salário (1/12) + Férias (1/12) + Adicional de Férias (1/36) x 50% multa (40% para o empregado e 10% de contribuição social) x 8% FGTS
C52: E | D52: Incidência de GPS, FGTS e outras contribuições sobre o Aviso Prévio Trabalhado | E52: ='Encargos Sociais'!E40 -> 0.0044 | F52: 15.33 | H52: * Nota 4 - Os 95% restantes do cálculo, a um prazo médio de contrato de 4 anos. Assim, calcula-se 7 dias para o 1º ano de contrato e mais 3 dias para os 3 anos seguintes.
C53: F | D53: Multa do FGTS e Contribuição Social sobre o Aviso Prévio Trabalhado | E53: ='Encargos Sociais'!E41 -> 0.0344 | F53: 119.83 | L53: =SUM(L8:L51) -> 0
D55: TOTAL DE PREVISÃO PARA RESCISÃO | F55: =SUM(F48:F53) -> 221.55
B57: MÓDULO 4 - CUSTO DO PROFISSIONAL AUSENTE | E57: Percentuais | F57: Valor
B58: Submódulo 4.1 - Ausências Legais
C59: A | D59: Férias (Arts. 129 e 130, inc. I, da CLT) | E59: ='Encargos Sociais'!E25 -> 0.0909 | F59: =ROUND(E59*$F$16,2) -> 316.65 | H59: * Nota 1 - As alíneas “A” a “F” referem-se somente ao custo que será pago ao repositor pelos dias trabalhados quando da necessidade de substituir a mão de obra alocada na prestação do serviço.
C60: B | D60: Ausências Legais (Arts. 131 e 473 da CLT) | E60: ='Encargos Sociais'!E26 -> 0.0079 | F60: 27.52 | H60: * Nota 2 - Adotou-se a estimativa do SINAPI de 2 dias por ano.
C61: C | D61: Licença-Paternidade (Art. 7º, XIX, e art. 10, §1º, do ADCT, CF/1988 e Art. 1º, II, da Lei 11.770/2008) | E61: ='Encargos Sociais'!E27 -> 0.0008 | F61: 2.79 | H61: * Nota 3 - Utilizada a proporção de 50% para homens, 5 dias de afastamento, e a probabilidade de um trabalhador requerer a Licença Paternidade em 5,22%, conforme SINAPI (citando dados da PNAD 2015)
C62: D | D62: Ausência por Acidente de Trabalho (Art. 131, III, da CLT) | E62: ='Encargos Sociais'!E28 -> 0.0009 | F62: 3.14 | H62: * Nota 4 - Utilzada a estatística de 1,96% dos contribuintes beneficiados com a emissão do auxílio, conforme Anuário Estatístico da Previdência Social. Afastamento de 15 dias a cargo da empresa.
C63: E | D63: Afastamento Maternidade (Art. 71 da Lei nº 8.213/1991) | E63: ='Encargos Sociais'!E29 -> 0.0033 | F63: 11.5 | H63: * Nota 5 - Utilizada a proporção de 50% para mulheres, 180 dias de afastamento, e a probabilidade de uma trabalhadora requerer a Licença Maternidade em 4,91%, conforme SINAPI (citando dados do IBGE 2016)
C64: F | D64: Auxílio Enfermidade - Doença (Art. 59 da Lei nº 8.213/1991) | E64: ='Encargos Sociais'!E30 -> 0.0071 | F64: 24.73 | H64: * Nota 6 - Utilizada a estatística de 3,37% dos contribuintes beneficiados com o auxílio, conforme Anuário Estatístico da Previdência Social de 2015 (acrescidos de 2 dias ao ano, para os quais o trabalhador nem requer o benefício da Previdência - conforme SINAPI)
B66: Submódulo 4.2 - Intrajornada
C67: A | D67: Intervalo para repouso ou alimentação | E67: ='Encargos Sociais'!E33 -> 0 | F67: =ROUND(E67*$F$16,2) -> 0
D69: QUADRO-RESUMO DO MÓDULO 4 | F69: Valor
D70: 4.1 - Ausências Legais | E70: =SUM(E59:E64) -> 0.1109 | F70: =ROUND(E70*$F$16,2) -> 386.31
D71: 4.2 - Intrajornada | E71: =E67 -> 0 | F71: =ROUND(E71*$F$16,2) -> 0
D73: TOTAL DE PREVISÃO PARA RESCISÃO E INTERVALO INTRAJORNADA | F73: =SUM(F70:F71) -> 386.31
B75: MÓDULO 5 - INSUMOS DIVERSOS | F75: Valor
C76: A | D76: Uniformes - aquisição | F76: =ROUND(HLOOKUP($B$5,Uniformes!L4:EA6,3)/12,2) -> 112.85
C77: B | D77: Materiais de consumo relacionados ao posto - aquisição | F77: =ROUND(HLOOKUP(B5,'Mat Cons'!I11:DX13,3)/12,2) -> 0
C78: C | D78: Materiais permanentes relacionados ao posto - remuneração da sua depreciação / manutenção | F78: =HLOOKUP(B5,'Mat Perm'!Q11:EF13,3) -> 0
C79: D | D79: Equipamentos relacionados ao posto - remuneração da sua depreciação / manutenção | F79: =HLOOKUP(B5,'Equip Rel'!Q11:EF13,3) -> 0
C80: E | D80: Equipamentos de Proteção Individual - EPI - aquisição | F80: =ROUND(HLOOKUP(B5,EPI!J4:DY6,3)/12,2) -> 0.34
D82: TOTAL DE INSUMOS DIVERSOS | F82: =SUM(F76:F81) -> 113.19 | H82: * Nota - Valores mensais por empregado
B84: MÓDULO 6 - CUSTOS INDIRETOS, TRIBUTOS E LUCRO - BDI | E84: Percentuais | F84: Valor
C85: A | D85: Custos Indiretos | E85: =BDI!E6 -> 0.027
C86: A.1 | D86: Administração Central | E86: =BDI!E7 -> 0.0216
C87: A.2 | D87: Seguros, Garantias e Riscos | E87: =BDI!E8 -> 0.0054
C88: B | D88: Lucro | E88: =BDI!E10 -> 0.0334
C89: C | D89: Tributos | E89: =SUM(E90:E91) -> 0.124
C90: C.1 | D90: Tributos Federais (COFINS, PIS e CPRB) | E90: =BDI!E18 -> 0.074
C91: C.2 | D91: Tributos Distritais (ISS) | E91: =BDI!E23 -> 0.05 | H91: * Nota - Utilizou-se o indicado pelo Sindicato da Arquitetura e da Engenharia (Sinaenco, 2008, p. 22), que adota um percentual redutor de 20% no cálculo dos custos tributários relativos às contribuições PIS e COFINS
C92: D | D92: Despesas Financeiras | E92: =BDI!E13 -> 0.004466921098
D94: TOTAL DE BDI | E94: =BDI!E26 -> 0.2169 | F94: =E94*E102 -> 1500.609636
D96: QUADRO-RESUMO DO CUSTO MENSAL POR EMPREGADO - SEM O 13º | E96: Valor
D97: Módulo 1 - Composição da Remuneração | E97: =F16 -> 3483.45
D98: Módulo 2 - Encargos e Benefícios Anuais, Mensais e Diários | E98: =F45 -> 2713.94
D99: Módulo 3 - Provisão para Rescisão | E99: =F55 -> 221.55
D100: Módulo 4 - Custo de Reposição do Profissional Ausente | E100: =F73 -> 386.31
D101: Módulo 5 - Insumos Diversos | E101: =F82 -> 113.19
D102: SUBTOTAL (A+B+C+D+E) | E102: =SUM(E97:E101) -> 6918.44
D103: Módulo 6 - Custos Indiretos, Tributos e Lucro | E103: =F94 -> 1500.609636
D105: TOTAL DO POSTO | E105: =SUM(E102:E103) -> 8419.049636
B107: MÓDULO 7 - DESTAQUE DO MÓDULO 2 - 13º SALÁRIO | E107: Percentuais | F107: Valor
C108: A | D108: 13º Salário | E108: ='Encargos Sociais'!E32 -> 0.0833 | F108: =ROUND(E108*F$16,2) -> 290.17
C109: B | D109: Encargos Sociais sobre o 13º Salário - Taxa calculada no SUBMÓDULO 2.2 | E109: =SUM($E$24:$E$32) -> 0.368 | F109: =ROUND(E109*$F$108,2) -> 106.78 | H109: * Nota 1 - Provisiona-se, mensalmente, o proporcional a 1/12 dos valores referentes a gratificação natalina e adicional de férias.
C110: C | D110: BDI sobre o 13º Salário - Taxa calculada no MÓDULO 6 | E110: =E94 -> 0.2169 | F110: =ROUND(E110*($F$108+$F$109),2) -> 86.1
D112: TOTAL DO DESTAQUE DO 13º SALÁRIO | F112: =SUM(F108:F110) -> 483.05
D114: QUADRO-RESUMO DO CUSTO MENSAL POR EMPREGADO | E114: Valor
D115: Custo total - sem o 13º Salário | E115: =E105 -> 8419.049636
D116: Destaque do 13º Salário (valor mensal) | E116: =F112 -> 483.05
D118: TOTAL DO POSTO | E118: =E115+E116 -> 8902.099636

Sheet 4
B2: PLANILHA DE ESTIMATIVA DE CUSTOS
B3: Padrão IN 05/2017 e IN 07/2018 - MPDG
B5: 4 | D5: =HLOOKUP($B$5,'Dados Gerais'!$D$5:$BK$20,6) -> AUXILIAR DE ENCARREGADO | E5: QUANTIDADE | F5: =HLOOKUP($B$5,'Dados Gerais'!$D$5:$BK$20,10) -> 1
B6: CCT | D6: =HLOOKUP($B$5,'Dados Gerais'!$D$5:$BK$20,15) -> SEAC/DF X SINDISERVIÇOS/DF 2024/2024 Nº DF000012/2024 | E6: DATA-BASE | F6: =HLOOKUP($B$5,'Dados Gerais'!$D$5:$BK$20,16) -> 2024-01-01
B8: MÓDULO 1 - COMPOSIÇÃO DA REMUNERAÇÃO | F8: Valor
C9: A | D9: Salário-Base | F9: =HLOOKUP($B$5,'Dados Gerais'!$D$5:$BK$20,8) -> 2598.63
C10: B | D10: Adicional de Periculosidade | F10: =HLOOKUP($B$5,'Dados Gerais'!$D$5:$BK$37,25) -> 0
C11: C | D11: Adicional de Insalubridade | F11: =HLOOKUP($B$5,'Dados Gerais'!$D$5:$BK$37,31) -> 0
C12: D | D12: Adicional Noturno | F12: =HLOOKUP($B$5,'Dados Gerais'!$D$5:$BK$50,46) -> 0 | H12: * Nota 1 - O Módulo 1 refere-se ao valor mensal devido ao empregado pela prestação do serviço no período de 12 meses.
C13: E | D13: Adicional de Hora Extra | F13: =HLOOKUP($B$5,'Dados Gerais'!$D$5:$BK$67,63) -> 0 | H13: * Nota 2 - O adicional de hora extra no feriado trabalhado foi suprimido pela Lei 13.467/17
C14: F | D14: Outros (especificar) | F14: =HLOOKUP($B$5,'Dados Gerais'!$D$5:$BK$59,33) -> 0 | H14: * Nota 3 - ART. 7º, § 2º, DA LEI Nº 605/49.Sendo mensalista o obreiro, o adicional noturno pago de forma fixa já é considerado integrado para os efeitos do pagamento do repouso semanal remunerado, nos termos do art. 7º, § 2º, da Lei nº 605/49.
D16: TOTAL DA REMUNERAÇÃO | F16: =SUM(F9:F14) -> 2598.63
B18: MÓDULO 2 - ENCARGOS E BENEFÍCIOS ANUAIS, MENSAIS E DIÁRIOS | E18: Percentuais | F18: Valor
B19: Submódulo 2.1 - 13º Salário, Férias e Adicional de Férias
C20: A | D20: 13º Salário - Calculado no Módulo 7 - Destacado | E20: 0 | F20: =ROUND(E20*F$16,2) -> 0
C21: B | D21: Férias e Adicional de Férias | E21: ='Encargos Sociais'!E31 -> 0.0303 | F21: =ROUND(E21*F$16,2) -> 78.74 | H21: * Nota 1 - Provisiona-se, mensalmente, o proporcional a 1/12 dos valores referentes a gratificação natalina, férias e adicional de férias.
H22: * Nota 2 - O adicional de férias contido no Submódulo 2.1 corresponde a 1/3 da remuneração que, por sua vez, é dividida por 12 contome Nota 1.
B23: Submódulo 2.2 - Encargos Previdenciários (GPS), Fundo de Garantia por Tempo de Serviço (FGTS) e Outras Contribuições
C24: A | D24: INSS (art. 22, inciso I, Lei nº 8.212/91) | E24: ='Encargos Sociais'!E14 -> 0.2 | F24: =ROUND(E24*($F$16+$F$41+$F$73),2) -> 593.11
C25: B | D25: Salário Educação (art. 3º, inciso I, Decreto nº 87.043/82) | E25: ='Encargos Sociais'!E15 -> 0.025 | F25: =ROUND(E25*($F$16+$F$41+$F$73),2) -> 74.14
C26: C | D26: SAT/RAT (art. 22, II, Lei 8.212/91 e Anexo V, Decreto 6.042/07) - Enquadramento 8211-3/00 | E26: ='Encargos Sociais'!E16 -> 0.03 | F26: 88.97
C27: D | D27: SESC ou SESI (art. 30, Lei nº 8.036/90 e art. 1º, Lei 8.154/90) | E27: ='Encargos Sociais'!E17 -> 0.015 | F27: 44.48
C28: E | D28: SENAI ou SENAC (Decreto nº 2.318/86) | E28: ='Encargos Sociais'!E18 -> 0.01 | F28: 29.66
C29: F | D29: SEBRAE (§ 3º, art. 8º, Lei 8.029/90, alterada pela Lei nº 8.154/90) | E29: ='Encargos Sociais'!E19 -> 0.006 | F29: 17.79
C30: G | D30: INCRA (art. 1º, I, Decreto Lei 1.146/70 e Lei 7.787, de 30/06/89) | E30: ='Encargos Sociais'!E20 -> 0.002 | F30: 5.93 | H30: * Nota 1 - Os percentuais dos encargos previdenciários, do FGTS e demais contribuições são estabelecidos por legislação vigente.
C31: H | D31: FGTS (Lei Complementar nº 110/01 e art. 30, Lei nº 8.036/90) | E31: ='Encargos Sociais'!E21 -> 0.08 | F31: 237.24 | H31: * Nota 2 - O SAT, a depender do grau de risco do serviço, irá variar entre 1%, para risco leve, de 2%, para risco médio, e de 3% para risco grave.
C32: I | D32: SECONCI (Convenções Coletivas de Trabalho da construção) | E32: ='Encargos Sociais'!E22 -> 0 | F32: 0 | H32: * Nota 3 - Os percentuais do Submódulo 2.2 incidem sobre o Módulo 1 e o Submódulo 2.1.
B34: Submódulo 2.3 - Benefícios Mensais e Diários
C35: A | D35: Auxílio Transporte | F35: =HLOOKUP($B$5,'Dados Gerais'!$D$5:$BK$93,82) -> 185.78
C36: B | D36: Auxílio Alimentação | F36: =HLOOKUP($B$5,'Dados Gerais'!$D$5:$BK$93,89) -> 1012.8
C37: C | D37: Assistência Médica e Familiar | F37: =HLOOKUP($B$5,'Dados Gerais'!$D$5:$BK$101,97) -> 0
C38: D | D38: Outros (Seguro de vida e auxílio funeral e auxílio odontológico) | F38: =HLOOKUP($B$5,'Dados Gerais'!$D$5:$BK$118,114) -> 0 | H38: * Nota 1 - O valor informado deverá ser o custo real do benefício (descontado o valor eventualmente pago pelo empregado).
H39: * Nota 2 - Observar a previsão dos benefícios contidos em Acordos, Convenções e Dissídios Coletivos de Trabalho e o disposto no art. 6º da IN 5/2017
D40: QUADRO-RESUMO DO MÓDULO 2
D41: 2.1 - 13º Salário, Férias e Adicional de Férias - 13º Destacado - Calculado no Módulo 7 | E41: =SUM(E20:E21) -> 0.0303 | F41: =F20+F21 -> 78.74
D42: 2.2 - Encargos Previdenciários (GPS), Fundo de Garantia por Tempo de Serviço (FGTS) e Contribuições | E42: =SUM(E24:E32) -> 0.368 | F42: =SUM(F24:F32) -> 1091.32
D43: 2.3 - Benefícios Mensais e Diários | F43: =SUM(F35:F38) -> 1198.58
D45: TOTAL DOS ENCARGOS E BENEFÍCIOS | F45: =SUM(F41:F43) -> 2368.64
B47: MÓDULO 3 - PREVISÃO PARA RESCISÃO | E47: Percentuais | F47: Valor
C48: A | D48: Aviso Prévio Indenizado (Art. 7º, inciso XXI, da CF/1988 e arts. 477, 487, §1º, e 491 da CLT) | E48: ='Encargos Sociais'!E36 -> 0.0083 | F48: =ROUND(E48*$F$16,2) -> 21.57
C49: B | D49: Incidência do FGTS sobre o Aviso Prévio Indenizado (Súmula 305 TST) | E49: ='Encargos Sociais'!E37 -> 0.0007 | F49: 1.82 | H49: * Nota 1 - Adotou-se os parâmetros do estudo do STF (http://www.stf.jus.br/arquivo/cms/sobrestfestudosci/anexo/encargos_sociais_03102007.pdf), onde 5% do pessoal é demitido pelo empregador no decurso do contrato (para estes, considerou-se o aviso prévio indenizado). Desprezou-se as demissões por justa causa e os pedidos de demissão.
C50: C | D50: Multa do FGTS e Contribuição Social sobre o Aviso Prévio Indenizado (Art. 18, §1º, da Lei 8.036/1990 e art. 1º da LC nº 110/2001) | E50: ='Encargos Sociais'!E38 -> 0.0038 | F50: 9.87 | H50: * Nota 2 - No cálculo do percentual, considerou-se 36 dias, correspondendo à metade da duração média dos contratos (2 anos)
C51: D | D51: Aviso Prévio Trabalhado (Art. 488, parágrafo único, CLT) | E51: ='Encargos Sociais'!E39 -> 0.012 | F51: 31.18 | H51: * Nota 3 - Incide sobre a Remuneração + 13º salário (1/12) + Férias (1/12) + Adicional de Férias (1/36) x 50% multa (40% para o empregado e 10% de contribuição social) x 8% FGTS
C52: E | D52: Incidência de GPS, FGTS e outras contribuições sobre o Aviso Prévio Trabalhado | E52: ='Encargos Sociais'!E40 -> 0.0044 | F52: 11.43 | H52: * Nota 4 - Os 95% restantes do cálculo, a um prazo médio de contrato de 4 anos. Assim, calcula-se 7 dias para o 1º ano de contrato e mais 3 dias para os 3 anos seguintes.
C53: F | D53: Multa do FGTS e Contribuição Social sobre o Aviso Prévio Trabalhado | E53: ='Encargos Sociais'!E41 -> 0.0344 | F53: 89.39 | L53: =SUM(L8:L51) -> 0
D55: TOTAL DE PREVISÃO PARA RESCISÃO | F55: =SUM(F48:F53) -> 165.26
B57: MÓDULO 4 - CUSTO DO PROFISSIONAL AUSENTE | E57: Percentuais | F57: Valor
B58: Submódulo 4.1 - Ausências Legais
C59: A | D59: Férias (Arts. 129 e 130, inc. I, da CLT) | E59: ='Encargos Sociais'!E25 -> 0.0909 | F59: =ROUND(E59*$F$16,2) -> 236.22 | H59: * Nota 1 - As alíneas “A” a “F” referem-se somente ao custo que será pago ao repositor pelos dias trabalhados quando da necessidade de substituir a mão de obra alocada na prestação do serviço.
C60: B | D60: Ausências Legais (Arts. 131 e 473 da CLT) | E60: ='Encargos Sociais'!E26 -> 0.0079 | F60: 20.53 | H60: * Nota 2 - Adotou-se a estimativa do SINAPI de 2 dias por ano.
C61: C | D61: Licença-Paternidade (Art. 7º, XIX, e art. 10, §1º, do ADCT, CF/1988 e Art. 1º, II, da Lei 11.770/2008) | E61: ='Encargos Sociais'!E27 -> 0.0008 | F61: 2.08 | H61: * Nota 3 - Utilizada a proporção de 50% para homens, 5 dias de afastamento, e a probabilidade de um trabalhador requerer a Licença Paternidade em 5,22%, conforme SINAPI (citando dados da PNAD 2015)
C62: D | D62: Ausência por Acidente de Trabalho (Art. 131, III, da CLT) | E62: ='Encargos Sociais'!E28 -> 0.0009 | F62: 2.34 | H62: * Nota 4 - Utilzada a estatística de 1,96% dos contribuintes beneficiados com a emissão do auxílio, conforme Anuário Estatístico da Previdência Social. Afastamento de 15 dias a cargo da empresa.
C63: E | D63: Afastamento Maternidade (Art. 71 da Lei nº 8.213/1991) | E63: ='Encargos Sociais'!E29 -> 0.0033 | F63: 8.58 | H63: * Nota 5 - Utilizada a proporção de 50% para mulheres, 180 dias de afastamento, e a probabilidade de uma trabalhadora requerer a Licença Maternidade em 4,91%, conforme SINAPI (citando dados do IBGE 2016)
C64: F | D64: Auxílio Enfermidade - Doença (Art. 59 da Lei nº 8.213/1991) | E64: ='Encargos Sociais'!E30 -> 0.0071 | F64: 18.45 | H64: * Nota 6 - Utilizada a estatística de 3,37% dos contribuintes beneficiados com o auxílio, conforme Anuário Estatístico da Previdência Social de 2015 (acrescidos de 2 dias ao ano, para os quais o trabalhador nem requer o benefício da Previdência - conforme SINAPI)
B66: Submódulo 4.2 - Intrajornada
C67: A | D67: Intervalo para repouso ou alimentação | E67: ='Encargos Sociais'!E33 -> 0 | F67: =ROUND(E67*$F$16,2) -> 0
D69: QUADRO-RESUMO DO MÓDULO 4 | F69: Valor
D70: 4.1 - Ausências Legais | E70: =SUM(E59:E64) -> 0.1109 | F70: =ROUND(E70*$F$16,2) -> 288.19
D71: 4.2 - Intrajornada | E71: =E67 -> 0 | F71: =ROUND(E71*$F$16,2) -> 0
D73: TOTAL DE PREVISÃO PARA RESCISÃO E INTERVALO INTRAJORNADA | F73: =SUM(F70:F71) -> 288.19
B75: MÓDULO 5 - INSUMOS DIVERSOS | F75: Valor
C76: A | D76: Uniformes - aquisição | F76: =ROUND(HLOOKUP($B$5,Uniformes!L4:EA6,3)/12,2) -> 112.85
C77: B | D77: Materiais de consumo relacionados ao posto - aquisição | F77: =ROUND(HLOOKUP(B5,'Mat Cons'!I11:DX13,3)/12,2) -> 0
C78: C | D78: Materiais permanentes relacionados ao posto - remuneração da sua depreciação / manutenção | F78: =HLOOKUP(B5,'Mat Perm'!Q11:EF13,3) -> 0
C79: D | D79: Equipamentos relacionados ao posto - remuneração da sua depreciação / manutenção | F79: =HLOOKUP(B5,'Equip Rel'!Q11:EF13,3) -> 0
C80: E | D80: Equipamentos de Proteção Individual - EPI - aquisição | F80: =ROUND(HLOOKUP(B5,EPI!J4:DY6,3)/12,2) -> 0.34
D82: TOTAL DE INSUMOS DIVERSOS | F82: =SUM(F76:F81) -> 113.19 | H82: * Nota - Valores mensais por empregado
B84: MÓDULO 6 - CUSTOS INDIRETOS, TRIBUTOS E LUCRO - BDI | E84: Percentuais | F84: Valor
C85: A | D85: Custos Indiretos | E85: =BDI!E6 -> 0.027
C86: A.1 | D86: Administração Central | E86: =BDI!E7 -> 0.0216
C87: A.2 | D87: Seguros, Garantias e Riscos | E87: =BDI!E8 -> 0.0054
C88: B | D88: Lucro | E88: =BDI!E10 -> 0.0334
C89: C | D89: Tributos | E89: =SUM(E90:E91) -> 0.124
C90: C.1 | D90: Tributos Federais (COFINS, PIS e CPRB) | E90: =BDI!E18 -> 0.074
C91: C.2 | D91: Tributos Distritais (ISS) | E91: =BDI!E23 -> 0.05 | H91: * Nota - Utilizou-se o indicado pelo Sindicato da Arquitetura e da Engenharia (Sinaenco, 2008, p. 22), que adota um percentual redutor de 20% no cálculo dos custos tributários relativos às contribuições PIS e COFINS
C92: D | D92: Despesas Financeiras | E92: =BDI!E13 -> 0.004466921098
D94: TOTAL DE BDI | E94: =BDI!E26 -> 0.2169 | F94: =E94*E102 -> 1200.305079
D96: QUADRO-RESUMO DO CUSTO MENSAL POR EMPREGADO - SEM O 13º | E96: Valor
D97: Módulo 1 - Composição da Remuneração | E97: =F16 -> 2598.63
D98: Módulo 2 - Encargos e Benefícios Anuais, Mensais e Diários | E98: =F45 -> 2368.64
D99: Módulo 3 - Provisão para Rescisão | E99: =F55 -> 165.26
D100: Módulo 4 - Custo de Reposição do Profissional Ausente | E100: =F73 -> 288.19
D101: Módulo 5 - Insumos Diversos | E101: =F82 -> 113.19
D102: SUBTOTAL (A+B+C+D+E) | E102: =SUM(E97:E101) -> 5533.91
D103: Módulo 6 - Custos Indiretos, Tributos e Lucro | E103: =F94 -> 1200.305079
D105: TOTAL DO POSTO | E105: =SUM(E102:E103) -> 6734.215079
B107: MÓDULO 7 - DESTAQUE DO MÓDULO 2 - 13º SALÁRIO | E107: Percentuais | F107: Valor
C108: A | D108: 13º Salário | E108: ='Encargos Sociais'!E32 -> 0.0833 | F108: =ROUND(E108*F$16,2) -> 216.47
C109: B | D109: Encargos Sociais sobre o 13º Salário - Taxa calculada no SUBMÓDULO 2.2 | E109: =SUM($E$24:$E$32) -> 0.368 | F109: =ROUND(E109*$F$108,2) -> 79.66 | H109: * Nota 1 - Provisiona-se, mensalmente, o proporcional a 1/12 dos valores referentes a gratificação natalina e adicional de férias.
C110: C | D110: BDI sobre o 13º Salário - Taxa calculada no MÓDULO 6 | E110: =E94 -> 0.2169 | F110: =ROUND(E110*($F$108+$F$109),2) -> 64.23
D112: TOTAL DO DESTAQUE DO 13º SALÁRIO | F112: =SUM(F108:F110) -> 360.36
D114: QUADRO-RESUMO DO CUSTO MENSAL POR EMPREGADO | E114: Valor
D115: Custo total - sem o 13º Salário | E115: =E105 -> 6734.215079
D116: Destaque do 13º Salário (valor mensal) | E116: =F112 -> 360.36
D118: TOTAL DO POSTO | E118: =E115+E116 -> 7094.575079

Sheet 5
B2: PLANILHA DE ESTIMATIVA DE CUSTOS
B3: Padrão IN 05/2017 e IN 07/2018 - MPDG
B5: 5 | D5: =HLOOKUP($B$5,'Dados Gerais'!$D$5:$BK$20,6) -> ALMOXARIFE | E5: QUANTIDADE | F5: =HLOOKUP($B$5,'Dados Gerais'!$D$5:$BK$20,10) -> 2
B6: CCT | D6: =HLOOKUP($B$5,'Dados Gerais'!$D$5:$BK$20,15) -> SEAC/DF X SINDISERVIÇOS/DF 2024/2024 Nº DF000012/2024 | E6: DATA-BASE | F6: =HLOOKUP($B$5,'Dados Gerais'!$D$5:$BK$20,16) -> 2024-01-01
B8: MÓDULO 1 - COMPOSIÇÃO DA REMUNERAÇÃO | F8: Valor
C9: A | D9: Salário-Base | F9: =HLOOKUP($B$5,'Dados Gerais'!$D$5:$BK$20,8) -> 3035.66
C10: B | D10: Adicional de Periculosidade | F10: =HLOOKUP($B$5,'Dados Gerais'!$D$5:$BK$37,25) -> 0
C11: C | D11: Adicional de Insalubridade | F11: =HLOOKUP($B$5,'Dados Gerais'!$D$5:$BK$37,31) -> 0
C12: D | D12: Adicional Noturno | F12: =HLOOKUP($B$5,'Dados Gerais'!$D$5:$BK$50,46) -> 0 | H12: * Nota 1 - O Módulo 1 refere-se ao valor mensal devido ao empregado pela prestação do serviço no período de 12 meses.
C13: E | D13: Adicional de Hora Extra | F13: =HLOOKUP($B$5,'Dados Gerais'!$D$5:$BK$67,63) -> 0 | H13: * Nota 2 - O adicional de hora extra no feriado trabalhado foi suprimido pela Lei 13.467/17
C14: F | D14: Outros (especificar) | F14: =HLOOKUP($B$5,'Dados Gerais'!$D$5:$BK$59,33) -> 0 | H14: * Nota 3 - ART. 7º, § 2º, DA LEI Nº 605/49.Sendo mensalista o obreiro, o adicional noturno pago de forma fixa já é considerado integrado para os efeitos do pagamento do repouso semanal remunerado, nos termos do art. 7º, § 2º, da Lei nº 605/49.
D16: TOTAL DA REMUNERAÇÃO | F16: =SUM(F9:F14) -> 3035.66
B18: MÓDULO 2 - ENCARGOS E BENEFÍCIOS ANUAIS, MENSAIS E DIÁRIOS | E18: Percentuais | F18: Valor
B19: Submódulo 2.1 - 13º Salário, Férias e Adicional de Férias
C20: A | D20: 13º Salário - Calculado no Módulo 7 - Destacado | E20: 0 | F20: =ROUND(E20*F$16,2) -> 0
C21: B | D21: Férias e Adicional de Férias | E21: ='Encargos Sociais'!E31 -> 0.0303 | F21: =ROUND(E21*F$16,2) -> 91.98 | H21: * Nota 1 - Provisiona-se, mensalmente, o proporcional a 1/12 dos valores referentes a gratificação natalina, férias e adicional de férias.
H22: * Nota 2 - O adicional de férias contido no Submódulo 2.1 corresponde a 1/3 da remuneração que, por sua vez, é dividida por 12 contome Nota 1.
B23: Submódulo 2.2 - Encargos Previdenciários (GPS), Fundo de Garantia por Tempo de Serviço (FGTS) e Outras Contribuições
C24: A | D24: INSS (art. 22, inciso I, Lei nº 8.212/91) | E24: ='Encargos Sociais'!E14 -> 0.2 | F24: =ROUND(E24*($F$16+$F$41+$F$73),2) -> 692.86
C25: B | D25: Salário Educação (art. 3º, inciso I, Decreto nº 87.043/82) | E25: ='Encargos Sociais'!E15 -> 0.025 | F25: =ROUND(E25*($F$16+$F$41+$F$73),2) -> 86.61
C26: C | D26: SAT/RAT (art. 22, II, Lei 8.212/91 e Anexo V, Decreto 6.042/07) - Enquadramento 8211-3/00 | E26: ='Encargos Sociais'!E16 -> 0.03 | F26: 103.93
C27: D | D27: SESC ou SESI (art. 30, Lei nº 8.036/90 e art. 1º, Lei 8.154/90) | E27: ='Encargos Sociais'!E17 -> 0.015 | F27: 51.96
C28: E | D28: SENAI ou SENAC (Decreto nº 2.318/86) | E28: ='Encargos Sociais'!E18 -> 0.01 | F28: 34.64
C29: F | D29: SEBRAE (§ 3º, art. 8º, Lei 8.029/90, alterada pela Lei nº 8.154/90) | E29: ='Encargos Sociais'!E19 -> 0.006 | F29: 20.79
C30: G | D30: INCRA (art. 1º, I, Decreto Lei 1.146/70 e Lei 7.787, de 30/06/89) | E30: ='Encargos Sociais'!E20 -> 0.002 | F30: 6.93 | H30: * Nota 1 - Os percentuais dos encargos previdenciários, do FGTS e demais contribuições são estabelecidos por legislação vigente.
C31: H | D31: FGTS (Lei Complementar nº 110/01 e art. 30, Lei nº 8.036/90) | E31: ='Encargos Sociais'!E21 -> 0.08 | F31: 277.14 | H31: * Nota 2 - O SAT, a depender do grau de risco do serviço, irá variar entre 1%, para risco leve, de 2%, para risco médio, e de 3% para risco grave.
C32: I | D32: SECONCI (Convenções Coletivas de Trabalho da construção) | E32: ='Encargos Sociais'!E22 -> 0 | F32: 0 | H32: * Nota 3 - Os percentuais do Submódulo 2.2 incidem sobre o Módulo 1 e o Submódulo 2.1.
B34: Submódulo 2.3 - Benefícios Mensais e Diários
C35: A | D35: Auxílio Transporte | F35: =HLOOKUP($B$5,'Dados Gerais'!$D$5:$BK$93,82) -> 159.56
C36: B | D36: Auxílio Alimentação | F36: =HLOOKUP($B$5,'Dados Gerais'!$D$5:$BK$93,89) -> 1012.8
C37: C | D37: Assistência Médica e Familiar | F37: =HLOOKUP($B$5,'Dados Gerais'!$D$5:$BK$101,97) -> 0
C38: D | D38: Outros (Seguro de vida e auxílio funeral e auxílio odontológico) | F38: =HLOOKUP($B$5,'Dados Gerais'!$D$5:$BK$118,114) -> 0 | H38: * Nota 1 - O valor informado deverá ser o custo real do benefício (descontado o valor eventualmente pago pelo empregado).
H39: * Nota 2 - Observar a previsão dos benefícios contidos em Acordos, Convenções e Dissídios Coletivos de Trabalho e o disposto no art. 6º da IN 5/2017
D40: QUADRO-RESUMO DO MÓDULO 2
D41: 2.1 - 13º Salário, Férias e Adicional de Férias - 13º Destacado - Calculado no Módulo 7 | E41: =SUM(E20:E21) -> 0.0303 | F41: =F20+F21 -> 91.98
D42: 2.2 - Encargos Previdenciários (GPS), Fundo de Garantia por Tempo de Serviço (FGTS) e Contribuições | E42: =SUM(E24:E32) -> 0.368 | F42: =SUM(F24:F32) -> 1274.86
D43: 2.3 - Benefícios Mensais e Diários | F43: =SUM(F35:F38) -> 1172.36
D45: TOTAL DOS ENCARGOS E BENEFÍCIOS | F45: =SUM(F41:F43) -> 2539.2
B47: MÓDULO 3 - PREVISÃO PARA RESCISÃO | E47: Percentuais | F47: Valor
C48: A | D48: Aviso Prévio Indenizado (Art. 7º, inciso XXI, da CF/1988 e arts. 477, 487, §1º, e 491 da CLT) | E48: ='Encargos Sociais'!E36 -> 0.0083 | F48: =ROUND(E48*$F$16,2) -> 25.2
C49: B | D49: Incidência do FGTS sobre o Aviso Prévio Indenizado (Súmula 305 TST) | E49: ='Encargos Sociais'!E37 -> 0.0007 | F49: 2.12 | H49: * Nota 1 - Adotou-se os parâmetros do estudo do STF (http://www.stf.jus.br/arquivo/cms/sobrestfestudosci/anexo/encargos_sociais_03102007.pdf), onde 5% do pessoal é demitido pelo empregador no decurso do contrato (para estes, considerou-se o aviso prévio indenizado). Desprezou-se as demissões por justa causa e os pedidos de demissão.
C50: C | D50: Multa do FGTS e Contribuição Social sobre o Aviso Prévio Indenizado (Art. 18, §1º, da Lei 8.036/1990 e art. 1º da LC nº 110/2001) | E50: ='Encargos Sociais'!E38 -> 0.0038 | F50: 11.54 | H50: * Nota 2 - No cálculo do percentual, considerou-se 36 dias, correspondendo à metade da duração média dos contratos (2 anos)
C51: D | D51: Aviso Prévio Trabalhado (Art. 488, parágrafo único, CLT) | E51: ='Encargos Sociais'!E39 -> 0.012 | F51: 36.43 | H51: * Nota 3 - Incide sobre a Remuneração + 13º salário (1/12) + Férias (1/12) + Adicional de Férias (1/36) x 50% multa (40% para o empregado e 10% de contribuição social) x 8% FGTS
C52: E | D52: Incidência de GPS, FGTS e outras contribuições sobre o Aviso Prévio Trabalhado | E52: ='Encargos Sociais'!E40 -> 0.0044 | F52: 13.36 | H52: * Nota 4 - Os 95% restantes do cálculo, a um prazo médio de contrato de 4 anos. Assim, calcula-se 7 dias para o 1º ano de contrato e mais 3 dias para os 3 anos seguintes.
C53: F | D53: Multa do FGTS e Contribuição Social sobre o Aviso Prévio Trabalhado | E53: ='Encargos Sociais'!E41 -> 0.0344 | F53: 104.43 | L53: =SUM(L8:L51) -> 0
D55: TOTAL DE PREVISÃO PARA RESCISÃO | F55: =SUM(F48:F53) -> 193.08
B57: MÓDULO 4 - CUSTO DO PROFISSIONAL AUSENTE | E57: Percentuais | F57: Valor
B58: Submódulo 4.1 - Ausências Legais
C59: A | D59: Férias (Arts. 129 e 130, inc. I, da CLT) | E59: ='Encargos Sociais'!E25 -> 0.0909 | F59: =ROUND(E59*$F$16,2) -> 275.94 | H59: * Nota 1 - As alíneas “A” a “F” referem-se somente ao custo que será pago ao repositor pelos dias trabalhados quando da necessidade de substituir a mão de obra alocada na prestação do serviço.
C60: B | D60: Ausências Legais (Arts. 131 e 473 da CLT) | E60: ='Encargos Sociais'!E26 -> 0.0079 | F60: 23.98 | H60: * Nota 2 - Adotou-se a estimativa do SINAPI de 2 dias por ano.
C61: C | D61: Licença-Paternidade (Art. 7º, XIX, e art. 10, §1º, do ADCT, CF/1988 e Art. 1º, II, da Lei 11.770/2008) | E61: ='Encargos Sociais'!E27 -> 0.0008 | F61: 2.43 | H61: * Nota 3 - Utilizada a proporção de 50% para homens, 5 dias de afastamento, e a probabilidade de um trabalhador requerer a Licença Paternidade em 5,22%, conforme SINAPI (citando dados da PNAD 2015)
C62: D | D62: Ausência por Acidente de Trabalho (Art. 131, III, da CLT) | E62: ='Encargos Sociais'!E28 -> 0.0009 | F62: 2.73 | H62: * Nota 4 - Utilzada a estatística de 1,96% dos contribuintes beneficiados com a emissão do auxílio, conforme Anuário Estatístico da Previdência Social. Afastamento de 15 dias a cargo da empresa.
C63: E | D63: Afastamento Maternidade (Art. 71 da Lei nº 8.213/1991) | E63: ='Encargos Sociais'!E29 -> 0.0033 | F63: 10.02 | H63: * Nota 5 - Utilizada a proporção de 50% para mulheres, 180 dias de afastamento, e a probabilidade de uma trabalhadora requerer a Licença Maternidade em 4,91%, conforme SINAPI (citando dados do IBGE 2016)
C64: F | D64: Auxílio Enfermidade - Doença (Art. 59 da Lei nº 8.213/1991) | E64: ='Encargos Sociais'!E30 -> 0.0071 | F64: 21.55 | H64: * Nota 6 - Utilizada a estatística de 3,37% dos contribuintes beneficiados com o auxílio, conforme Anuário Estatístico da Previdência Social de 2015 (acrescidos de 2 dias ao ano, para os quais o trabalhador nem requer o benefício da Previdência - conforme SINAPI)
B66: Submódulo 4.2 - Intrajornada
C67: A | D67: Intervalo para repouso ou alimentação | E67: ='Encargos Sociais'!E33 -> 0 | F67: =ROUND(E67*$F$16,2) -> 0
D69: QUADRO-RESUMO DO MÓDULO 4 | F69: Valor
D70: 4.1 - Ausências Legais | E70: =SUM(E59:E64) -> 0.1109 | F70: =ROUND(E70*$F$16,2) -> 336.65
D71: 4.2 - Intrajornada | E71: =E67 -> 0 | F71: =ROUND(E71*$F$16,2) -> 0
D73: TOTAL DE PREVISÃO PARA RESCISÃO E INTERVALO INTRAJORNADA | F73: =SUM(F70:F71) -> 336.65
B75: MÓDULO 5 - INSUMOS DIVERSOS | F75: Valor
C76: A | D76: Uniformes - aquisição | F76: =ROUND(HLOOKUP($B$5,Uniformes!L4:EA6,3)/12,2) -> 37.29
C77: B | D77: Materiais de consumo relacionados ao posto - aquisição | F77: =ROUND(HLOOKUP(B5,'Mat Cons'!I11:DX13,3)/12,2) -> 0
C78: C | D78: Materiais permanentes relacionados ao posto - remuneração da sua depreciação / manutenção | F78: =HLOOKUP(B5,'Mat Perm'!Q11:EF13,3) -> 0
C79: D | D79: Equipamentos relacionados ao posto - remuneração da sua depreciação / manutenção | F79: =HLOOKUP(B5,'Equip Rel'!Q11:EF13,3) -> 0
C80: E | D80: Equipamentos de Proteção Individual - EPI - aquisição | F80: =ROUND(HLOOKUP(B5,EPI!J4:DY6,3)/12,2) -> 23.03
D82: TOTAL DE INSUMOS DIVERSOS | F82: =SUM(F76:F81) -> 60.32 | H82: * Nota - Valores mensais por empregado
B84: MÓDULO 6 - CUSTOS INDIRETOS, TRIBUTOS E LUCRO - BDI | E84: Percentuais | F84: Valor
C85: A | D85: Custos Indiretos | E85: =BDI!E6 -> 0.027
C86: A.1 | D86: Administração Central | E86: =BDI!E7 -> 0.0216
C87: A.2 | D87: Seguros, Garantias e Riscos | E87: =BDI!E8 -> 0.0054
C88: B | D88: Lucro | E88: =BDI!E10 -> 0.0334
C89: C | D89: Tributos | E89: =SUM(E90:E91) -> 0.124
C90: C.1 | D90: Tributos Federais (COFINS, PIS e CPRB) | E90: =BDI!E18 -> 0.074
C91: C.2 | D91: Tributos Distritais (ISS) | E91: =BDI!E23 -> 0.05 | H91: * Nota - Utilizou-se o indicado pelo Sindicato da Arquitetura e da Engenharia (Sinaenco, 2008, p. 22), que adota um percentual redutor de 20% no cálculo dos custos tributários relativos às contribuições PIS e COFINS
C92: D | D92: Despesas Financeiras | E92: =BDI!E13 -> 0.004466921098
D94: TOTAL DE BDI | E94: =BDI!E26 -> 0.2169 | F94: =E94*E102 -> 1337.168979
D96: QUADRO-RESUMO DO CUSTO MENSAL POR EMPREGADO - SEM O 13º | E96: Valor
D97: Módulo 1 - Composição da Remuneração | E97: =F16 -> 3035.66
D98: Módulo 2 - Encargos e Benefícios Anuais, Mensais e Diários | E98: =F45 -> 2539.2
D99: Módulo 3 - Provisão para Rescisão | E99: =F55 -> 193.08
D100: Módulo 4 - Custo de Reposição do Profissional Ausente | E100: =F73 -> 336.65
D101: Módulo 5 - Insumos Diversos | E101: =F82 -> 60.32
D102: SUBTOTAL (A+B+C+D+E) | E102: =SUM(E97:E101) -> 6164.91
D103: Módulo 6 - Custos Indiretos, Tributos e Lucro | E103: =F94 -> 1337.168979
D105: TOTAL DO POSTO | E105: =SUM(E102:E103) -> 7502.078979
B107: MÓDULO 7 - DESTAQUE DO MÓDULO 2 - 13º SALÁRIO | E107: Percentuais | F107: Valor
C108: A | D108: 13º Salário | E108: ='Encargos Sociais'!E32 -> 0.0833 | F108: =ROUND(E108*F$16,2) -> 252.87
C109: B | D109: Encargos Sociais sobre o 13º Salário - Taxa calculada no SUBMÓDULO 2.2 | E109: =SUM($E$24:$E$32) -> 0.368 | F109: =ROUND(E109*$F$108,2) -> 93.06 | H109: * Nota 1 - Provisiona-se, mensalmente, o proporcional a 1/12 dos valores referentes a gratificação natalina e adicional de férias.
C110: C | D110: BDI sobre o 13º Salário - Taxa calculada no MÓDULO 6 | E110: =E94 -> 0.2169 | F110: =ROUND(E110*($F$108+$F$109),2) -> 75.03
D112: TOTAL DO DESTAQUE DO 13º SALÁRIO | F112: =SUM(F108:F110) -> 420.96
D114: QUADRO-RESUMO DO CUSTO MENSAL POR EMPREGADO | E114: Valor
D115: Custo total - sem o 13º Salário | E115: =E105 -> 7502.078979
D116: Destaque do 13º Salário (valor mensal) | E116: =F112 -> 420.96
D118: TOTAL DO POSTO | E118: =E115+E116 -> 7923.038979

Sheet 6
B2: PLANILHA DE ESTIMATIVA DE CUSTOS
B3: Padrão IN 05/2017 e IN 07/2018 - MPDG
B5: 6 | D5: =HLOOKUP($B$5,'Dados Gerais'!$D$5:$BK$20,6) -> SERVENTE | E5: QUANTIDADE | F5: =HLOOKUP($B$5,'Dados Gerais'!$D$5:$BK$20,10) -> 189
B6: CCT | D6: =HLOOKUP($B$5,'Dados Gerais'!$D$5:$BK$20,15) -> SEAC/DF X SINDISERVIÇOS/DF 2024/2024 Nº DF000012/2024 | E6: DATA-BASE | F6: =HLOOKUP($B$5,'Dados Gerais'!$D$5:$BK$20,16) -> 2024-01-01
B8: MÓDULO 1 - COMPOSIÇÃO DA REMUNERAÇÃO | F8: Valor
C9: A | D9: Salário-Base | F9: =HLOOKUP($B$5,'Dados Gerais'!$D$5:$BK$20,8) -> 2017.21
C10: B | D10: Adicional de Periculosidade | F10: =HLOOKUP($B$5,'Dados Gerais'!$D$5:$BK$37,25) -> 0
C11: C | D11: Adicional de Insalubridade | F11: =HLOOKUP($B$5,'Dados Gerais'!$D$5:$BK$37,31) -> 0
C12: D | D12: Adicional Noturno | F12: =HLOOKUP($B$5,'Dados Gerais'!$D$5:$BK$50,46) -> 0 | H12: * Nota 1 - O Módulo 1 refere-se ao valor mensal devido ao empregado pela prestação do serviço no período de 12 meses.
C13: E | D13: Adicional de Hora Extra | F13: =HLOOKUP($B$5,'Dados Gerais'!$D$5:$BK$67,63) -> 0 | H13: * Nota 2 - O adicional de hora extra no feriado trabalhado foi suprimido pela Lei 13.467/17
C14: F | D14: Outros (especificar) | F14: =HLOOKUP($B$5,'Dados Gerais'!$D$5:$BK$59,33) -> 0 | H14: * Nota 3 - ART. 7º, § 2º, DA LEI Nº 605/49.Sendo mensalista o obreiro, o adicional noturno pago de forma fixa já é considerado integrado para os efeitos do pagamento do repouso semanal remunerado, nos termos do art. 7º, § 2º, da Lei nº 605/49.
D16: TOTAL DA REMUNERAÇÃO | F16: =SUM(F9:F14) -> 2017.21
B18: MÓDULO 2 - ENCARGOS E BENEFÍCIOS ANUAIS, MENSAIS E DIÁRIOS | E18: Percentuais | F18: Valor
B19: Submódulo 2.1 - 13º Salário, Férias e Adicional de Férias
C20: A | D20: 13º Salário - Calculado no Módulo 7 - Destacado | E20: 0 | F20: =ROUND(E20*F$16,2) -> 0
C21: B | D21: Férias e Adicional de Férias | E21: ='Encargos Sociais'!E31 -> 0.0303 | F21: =ROUND(E21*F$16,2) -> 61.12 | H21: * Nota 1 - Provisiona-se, mensalmente, o proporcional a 1/12 dos valores referentes a gratificação natalina, férias e adicional de férias.
H22: * Nota 2 - O adicional de férias contido no Submódulo 2.1 corresponde a 1/3 da remuneração que, por sua vez, é dividida por 12 contome Nota 1.
B23: Submódulo 2.2 - Encargos Previdenciários (GPS), Fundo de Garantia por Tempo de Serviço (FGTS) e Outras Contribuições
C24: A | D24: INSS (art. 22, inciso I, Lei nº 8.212/91) | E24: ='Encargos Sociais'!E14 -> 0.2 | F24: =ROUND(E24*($F$16+$F$41+$F$73),2) -> 460.41
C25: B | D25: Salário Educação (art. 3º, inciso I, Decreto nº 87.043/82) | E25: ='Encargos Sociais'!E15 -> 0.025 | F25: =ROUND(E25*($F$16+$F$41+$F$73),2) -> 57.55
C26: C | D26: SAT/RAT (art. 22, II, Lei 8.212/91 e Anexo V, Decreto 6.042/07) - Enquadramento 8211-3/00 | E26: ='Encargos Sociais'!E16 -> 0.03 | F26: 69.06
C27: D | D27: SESC ou SESI (art. 30, Lei nº 8.036/90 e art. 1º, Lei 8.154/90) | E27: ='Encargos Sociais'!E17 -> 0.015 | F27: 34.53
C28: E | D28: SENAI ou SENAC (Decreto nº 2.318/86) | E28: ='Encargos Sociais'!E18 -> 0.01 | F28: 23.02
C29: F | D29: SEBRAE (§ 3º, art. 8º, Lei 8.029/90, alterada pela Lei nº 8.154/90) | E29: ='Encargos Sociais'!E19 -> 0.006 | F29: 13.81
C30: G | D30: INCRA (art. 1º, I, Decreto Lei 1.146/70 e Lei 7.787, de 30/06/89) | E30: ='Encargos Sociais'!E20 -> 0.002 | F30: 4.6 | H30: * Nota 1 - Os percentuais dos encargos previdenciários, do FGTS e demais contribuições são estabelecidos por legislação vigente.
C31: H | D31: FGTS (Lei Complementar nº 110/01 e art. 30, Lei nº 8.036/90) | E31: ='Encargos Sociais'!E21 -> 0.08 | F31: 184.16 | H31: * Nota 2 - O SAT, a depender do grau de risco do serviço, irá variar entre 1%, para risco leve, de 2%, para risco médio, e de 3% para risco grave.
C32: I | D32: SECONCI (Convenções Coletivas de Trabalho da construção) | E32: ='Encargos Sociais'!E22 -> 0 | F32: 0 | H32: * Nota 3 - Os percentuais do Submódulo 2.2 incidem sobre o Módulo 1 e o Submódulo 2.1.
B34: Submódulo 2.3 - Benefícios Mensais e Diários
C35: A | D35: Auxílio Transporte | F35: =HLOOKUP($B$5,'Dados Gerais'!$D$5:$BK$93,82) -> 220.67
C36: B | D36: Auxílio Alimentação | F36: =HLOOKUP($B$5,'Dados Gerais'!$D$5:$BK$93,89) -> 1012.8
C37: C | D37: Assistência Médica e Familiar | F37: =HLOOKUP($B$5,'Dados Gerais'!$D$5:$BK$101,97) -> 0
C38: D | D38: Outros (Seguro de vida e auxílio funeral e auxílio odontológico) | F38: =HLOOKUP($B$5,'Dados Gerais'!$D$5:$BK$118,114) -> 0 | H38: * Nota 1 - O valor informado deverá ser o custo real do benefício (descontado o valor eventualmente pago pelo empregado).
H39: * Nota 2 - Observar a previsão dos benefícios contidos em Acordos, Convenções e Dissídios Coletivos de Trabalho e o disposto no art. 6º da IN 5/2017
D40: QUADRO-RESUMO DO MÓDULO 2
D41: 2.1 - 13º Salário, Férias e Adicional de Férias - 13º Destacado - Calculado no Módulo 7 | E41: =SUM(E20:E21) -> 0.0303 | F41: =F20+F21 -> 61.12
D42: 2.2 - Encargos Previdenciários (GPS), Fundo de Garantia por Tempo de Serviço (FGTS) e Contribuições | E42: =SUM(E24:E32) -> 0.368 | F42: =SUM(F24:F32) -> 847.14
D43: 2.3 - Benefícios Mensais e Diários | F43: =SUM(F35:F38) -> 1233.47
D45: TOTAL DOS ENCARGOS E BENEFÍCIOS | F45: =SUM(F41:F43) -> 2141.73
B47: MÓDULO 3 - PREVISÃO PARA RESCISÃO | E47: Percentuais | F47: Valor
C48: A | D48: Aviso Prévio Indenizado (Art. 7º, inciso XXI, da CF/1988 e arts. 477, 487, §1º, e 491 da CLT) | E48: ='Encargos Sociais'!E36 -> 0.0083 | F48: =ROUND(E48*$F$16,2) -> 16.74
C49: B | D49: Incidência do FGTS sobre o Aviso Prévio Indenizado (Súmula 305 TST) | E49: ='Encargos Sociais'!E37 -> 0.0007 | F49: 1.41 | H49: * Nota 1 - Adotou-se os parâmetros do estudo do STF (http://www.stf.jus.br/arquivo/cms/sobrestfestudosci/anexo/encargos_sociais_03102007.pdf), onde 5% do pessoal é demitido pelo empregador no decurso do contrato (para estes, considerou-se o aviso prévio indenizado). Desprezou-se as demissões por justa causa e os pedidos de demissão.
C50: C | D50: Multa do FGTS e Contribuição Social sobre o Aviso Prévio Indenizado (Art. 18, §1º, da Lei 8.036/1990 e art. 1º da LC nº 110/2001) | E50: ='Encargos Sociais'!E38 -> 0.0038 | F50: 7.67 | H50: * Nota 2 - No cálculo do percentual, considerou-se 36 dias, correspondendo à metade da duração média dos contratos (2 anos)
C51: D | D51: Aviso Prévio Trabalhado (Art. 488, parágrafo único, CLT) | E51: ='Encargos Sociais'!E39 -> 0.012 | F51: 24.21 | H51: * Nota 3 - Incide sobre a Remuneração + 13º salário (1/12) + Férias (1/12) + Adicional de Férias (1/36) x 50% multa (40% para o empregado e 10% de contribuição social) x 8% FGTS
C52: E | D52: Incidência de GPS, FGTS e outras contribuições sobre o Aviso Prévio Trabalhado | E52: ='Encargos Sociais'!E40 -> 0.0044 | F52: 8.88 | H52: * Nota 4 - Os 95% restantes do cálculo, a um prazo médio de contrato de 4 anos. Assim, calcula-se 7 dias para o 1º ano de contrato e mais 3 dias para os 3 anos seguintes.
C53: F | D53: Multa do FGTS e Contribuição Social sobre o Aviso Prévio Trabalhado | E53: ='Encargos Sociais'!E41 -> 0.0344 | F53: 69.39 | L53: =SUM(L8:L51) -> 0
D55: TOTAL DE PREVISÃO PARA RESCISÃO | F55: =SUM(F48:F53) -> 128.3
B57: MÓDULO 4 - CUSTO DO PROFISSIONAL AUSENTE | E57: Percentuais | F57: Valor
B58: Submódulo 4.1 - Ausências Legais
C59: A | D59: Férias (Arts. 129 e 130, inc. I, da CLT) | E59: ='Encargos Sociais'!E25 -> 0.0909 | F59: =ROUND(E59*$F$16,2) -> 183.36 | H59: * Nota 1 - As alíneas “A” a “F” referem-se somente ao custo que será pago ao repositor pelos dias trabalhados quando da necessidade de substituir a mão de obra alocada na prestação do serviço.
C60: B | D60: Ausências Legais (Arts. 131 e 473 da CLT) | E60: ='Encargos Sociais'!E26 -> 0.0079 | F60: 15.94 | H60: * Nota 2 - Adotou-se a estimativa do SINAPI de 2 dias por ano.
C61: C | D61: Licença-Paternidade (Art. 7º, XIX, e art. 10, §1º, do ADCT, CF/1988 e Art. 1º, II, da Lei 11.770/2008) | E61: ='Encargos Sociais'!E27 -> 0.0008 | F61: 1.61 | H61: * Nota 3 - Utilizada a proporção de 50% para homens, 5 dias de afastamento, e a probabilidade de um trabalhador requerer a Licença Paternidade em 5,22%, conforme SINAPI (citando dados da PNAD 2015)
C62: D | D62: Ausência por Acidente de Trabalho (Art. 131, III, da CLT) | E62: ='Encargos Sociais'!E28 -> 0.0009 | F62: 1.82 | H62: * Nota 4 - Utilzada a estatística de 1,96% dos contribuintes beneficiados com a emissão do auxílio, conforme Anuário Estatístico da Previdência Social. Afastamento de 15 dias a cargo da empresa.
C63: E | D63: Afastamento Maternidade (Art. 71 da Lei nº 8.213/1991) | E63: ='Encargos Sociais'!E29 -> 0.0033 | F63: 6.66 | H63: * Nota 5 - Utilizada a proporção de 50% para mulheres, 180 dias de afastamento, e a probabilidade de uma trabalhadora requerer a Licença Maternidade em 4,91%, conforme SINAPI (citando dados do IBGE 2016)
C64: F | D64: Auxílio Enfermidade - Doença (Art. 59 da Lei nº 8.213/1991) | E64: ='Encargos Sociais'!E30 -> 0.0071 | F64: 14.32 | H64: * Nota 6 - Utilizada a estatística de 3,37% dos contribuintes beneficiados com o auxílio, conforme Anuário Estatístico da Previdência Social de 2015 (acrescidos de 2 dias ao ano, para os quais o trabalhador nem requer o benefício da Previdência - conforme SINAPI)
B66: Submódulo 4.2 - Intrajornada
C67: A | D67: Intervalo para repouso ou alimentação | E67: ='Encargos Sociais'!E33 -> 0 | F67: =ROUND(E67*$F$16,2) -> 0
D69: QUADRO-RESUMO DO MÓDULO 4 | F69: Valor
D70: 4.1 - Ausências Legais | E70: =SUM(E59:E64) -> 0.1109 | F70: =ROUND(E70*$F$16,2) -> 223.71
D71: 4.2 - Intrajornada | E71: =E67 -> 0 | F71: =ROUND(E71*$F$16,2) -> 0
D73: TOTAL DE PREVISÃO PARA RESCISÃO E INTERVALO INTRAJORNADA | F73: =SUM(F70:F71) -> 223.71
B75: MÓDULO 5 - INSUMOS DIVERSOS | F75: Valor
C76: A | D76: Uniformes - aquisição | F76: =ROUND(HLOOKUP($B$5,Uniformes!L4:EA6,3)/12,2) -> 37.29
C77: B | D77: Materiais de consumo relacionados ao posto - aquisição | F77: =ROUND(HLOOKUP(B5,'Mat Cons'!I11:DX13,3)/12,2) -> 0
C78: C | D78: Materiais permanentes relacionados ao posto - remuneração da sua depreciação / manutenção | F78: =HLOOKUP(B5,'Mat Perm'!Q11:EF13,3) -> 0
C79: D | D79: Equipamentos relacionados ao posto - remuneração da sua depreciação / manutenção | F79: =HLOOKUP(B5,'Equip Rel'!Q11:EF13,3) -> 0
C80: E | D80: Equipamentos de Proteção Individual - EPI - aquisição | F80: =ROUND(HLOOKUP(B5,EPI!J4:DY6,3)/12,2) -> 24.31
D82: TOTAL DE INSUMOS DIVERSOS | F82: =SUM(F76:F81) -> 61.6 | H82: * Nota - Valores mensais por empregado
B84: MÓDULO 6 - CUSTOS INDIRETOS, TRIBUTOS E LUCRO - BDI | E84: Percentuais | F84: Valor
C85: A | D85: Custos Indiretos | E85: =BDI!E6 -> 0.027
C86: A.1 | D86: Administração Central | E86: =BDI!E7 -> 0.0216
C87: A.2 | D87: Seguros, Garantias e Riscos | E87: =BDI!E8 -> 0.0054
C88: B | D88: Lucro | E88: =BDI!E10 -> 0.0334
C89: C | D89: Tributos | E89: =SUM(E90:E91) -> 0.124
C90: C.1 | D90: Tributos Federais (COFINS, PIS e CPRB) | E90: =BDI!E18 -> 0.074
C91: C.2 | D91: Tributos Distritais (ISS) | E91: =BDI!E23 -> 0.05 | H91: * Nota - Utilizou-se o indicado pelo Sindicato da Arquitetura e da Engenharia (Sinaenco, 2008, p. 22), que adota um percentual redutor de 20% no cálculo dos custos tributários relativos às contribuições PIS e COFINS
C92: D | D92: Despesas Financeiras | E92: =BDI!E13 -> 0.004466921098
D94: TOTAL DE BDI | E94: =BDI!E26 -> 0.2169 | F94: =E94*E102 -> 991.786095
D96: QUADRO-RESUMO DO CUSTO MENSAL POR EMPREGADO - SEM O 13º | E96: Valor
D97: Módulo 1 - Composição da Remuneração | E97: =F16 -> 2017.21
D98: Módulo 2 - Encargos e Benefícios Anuais, Mensais e Diários | E98: =F45 -> 2141.73
D99: Módulo 3 - Provisão para Rescisão | E99: =F55 -> 128.3
D100: Módulo 4 - Custo de Reposição do Profissional Ausente | E100: =F73 -> 223.71
D101: Módulo 5 - Insumos Diversos | E101: =F82 -> 61.6
D102: SUBTOTAL (A+B+C+D+E) | E102: =SUM(E97:E101) -> 4572.55
D103: Módulo 6 - Custos Indiretos, Tributos e Lucro | E103: =F94 -> 991.786095
D105: TOTAL DO POSTO | E105: =SUM(E102:E103) -> 5564.336095
B107: MÓDULO 7 - DESTAQUE DO MÓDULO 2 - 13º SALÁRIO | E107: Percentuais | F107: Valor
C108: A | D108: 13º Salário | E108: ='Encargos Sociais'!E32 -> 0.0833 | F108: =ROUND(E108*F$16,2) -> 168.03
C109: B | D109: Encargos Sociais sobre o 13º Salário - Taxa calculada no SUBMÓDULO 2.2 | E109: =SUM($E$24:$E$32) -> 0.368 | F109: =ROUND(E109*$F$108,2) -> 61.84 | H109: * Nota 1 - Provisiona-se, mensalmente, o proporcional a 1/12 dos valores referentes a gratificação natalina e adicional de férias.
C110: C | D110: BDI sobre o 13º Salário - Taxa calculada no MÓDULO 6 | E110: =E94 -> 0.2169 | F110: =ROUND(E110*($F$108+$F$109),2) -> 49.86
D112: TOTAL DO DESTAQUE DO 13º SALÁRIO | F112: =SUM(F108:F110) -> 279.73
D114: QUADRO-RESUMO DO CUSTO MENSAL POR EMPREGADO | E114: Valor
D115: Custo total - sem o 13º Salário | E115: =E105 -> 5564.336095
D116: Destaque do 13º Salário (valor mensal) | E116: =F112 -> 279.73
D118: TOTAL DO POSTO | E118: =E115+E116 -> 5844.066095

Sheet 7 (hidden)
B2: PLANILHA DE ESTIMATIVA DE CUSTOS
B3: Padrão IN 05/2017 e IN 07/2018 - MPDG
B5: 7 | D5: =HLOOKUP($B$5,'Dados Gerais'!$D$5:$BK$20,6) -> 0 | E5: QUANTIDADE | F5: =HLOOKUP($B$5,'Dados Gerais'!$D$5:$BK$20,10) -> 0
B6: CCT | D6: =HLOOKUP($B$5,'Dados Gerais'!$D$5:$BK$20,15) -> 0 | E6: DATA-BASE | F6: =HLOOKUP($B$5,'Dados Gerais'!$D$5:$BK$20,16) -> 00:00:00
B8: MÓDULO 1 - COMPOSIÇÃO DA REMUNERAÇÃO | F8: Valor
C9: A | D9: Salário-Base | F9: =HLOOKUP($B$5,'Dados Gerais'!$D$5:$BK$20,8) -> 0
C10: B | D10: Adicional de Periculosidade | F10: =HLOOKUP($B$5,'Dados Gerais'!$D$5:$BK$37,25) -> 0
C11: C | D11: Adicional de Insalubridade | F11: =HLOOKUP($B$5,'Dados Gerais'!$D$5:$BK$37,31) -> 0
C12: D | D12: Adicional Noturno | F12: =HLOOKUP($B$5,'Dados Gerais'!$D$5:$BK$50,46) -> 0 | H12: * Nota 1 - O Módulo 1 refere-se ao valor mensal devido ao empregado pela prestação do serviço no período de 12 meses.
C13: E | D13: Adicional de Hora Extra | F13: =HLOOKUP($B$5,'Dados Gerais'!$D$5:$BK$67,63) -> 0 | H13: * Nota 2 - O adicional de hora extra no feriado trabalhado foi suprimido pela Lei 13.467/17
C14: F | D14: Outros (especificar) | F14: =HLOOKUP($B$5,'Dados Gerais'!$D$5:$BK$59,33) -> 0 | H14: * Nota 3 - ART. 7º, § 2º, DA LEI Nº 605/49.Sendo mensalista o obreiro, o adicional noturno pago de forma fixa já é considerado integrado para os efeitos do pagamento do repouso semanal remunerado, nos termos do art. 7º, § 2º, da Lei nº 605/49.
D16: TOTAL DA REMUNERAÇÃO | F16: =SUM(F9:F14) -> 0
B18: MÓDULO 2 - ENCARGOS E BENEFÍCIOS ANUAIS, MENSAIS E DIÁRIOS | E18: Percentuais | F18: Valor
B19: Submódulo 2.1 - 13º Salário, Férias e Adicional de Férias
C20: A | D20: 13º Salário - Calculado no Módulo 7 - Destacado | E20: 0 | F20: =ROUND(E20*F$16,2) -> 0
C21: B | D21: Férias e Adicional de Férias | E21: ='Encargos Sociais'!E31 -> 0.0303 | F21: =ROUND(E21*F$16,2) -> 0 | H21: * Nota 1 - Provisiona-se, mensalmente, o proporcional a 1/12 dos valores referentes a gratificação natalina, férias e adicional de férias.
H22: * Nota 2 - O adicional de férias contido no Submódulo 2.1 corresponde a 1/3 da remuneração que, por sua vez, é dividida por 12 contome Nota 1.
B23: Submódulo 2.2 - Encargos Previdenciários (GPS), Fundo de Garantia por Tempo de Serviço (FGTS) e Outras Contribuições
C24: A | D24: INSS (art. 22, inciso I, Lei nº 8.212/91) | E24: ='Encargos Sociais'!E14 -> 0.2 | F24: =ROUND(E24*($F$16+$F$41+$F$73),2) -> 0
C25: B | D25: Salário Educação (art. 3º, inciso I, Decreto nº 87.043/82) | E25: ='Encargos Sociais'!E15 -> 0.025 | F25: =ROUND(E25*($F$16+$F$41+$F$73),2) -> 0
C26: C | D26: SAT/RAT (art. 22, II, Lei 8.212/91 e Anexo V, Decreto 6.042/07) - Enquadramento 8211-3/00 | E26: ='Encargos Sociais'!E16 -> 0.03 | F26: 0
C27: D | D27: SESC ou SESI (art. 30, Lei nº 8.036/90 e art. 1º, Lei 8.154/90) | E27: ='Encargos Sociais'!E17 -> 0.015 | F27: 0
C28: E | D28: SENAI ou SENAC (Decreto nº 2.318/86) | E28: ='Encargos Sociais'!E18 -> 0.01 | F28: 0
C29: F | D29: SEBRAE (§ 3º, art. 8º, Lei 8.029/90, alterada pela Lei nº 8.154/90) | E29: ='Encargos Sociais'!E19 -> 0.006 | F29: 0
C30: G | D30: INCRA (art. 1º, I, Decreto Lei 1.146/70 e Lei 7.787, de 30/06/89) | E30: ='Encargos Sociais'!E20 -> 0.002 | F30: 0 | H30: * Nota 1 - Os percentuais dos encargos previdenciários, do FGTS e demais contribuições são estabelecidos por legislação vigente.
C31: H | D31: FGTS (Lei Complementar nº 110/01 e art. 30, Lei nº 8.036/90) | E31: ='Encargos Sociais'!E21 -> 0.08 | F31: 0 | H31: * Nota 2 - O SAT, a depender do grau de risco do serviço, irá variar entre 1%, para risco leve, de 2%, para risco médio, e de 3% para risco grave.
C32: I | D32: SECONCI (Convenções Coletivas de Trabalho da construção) | E32: ='Encargos Sociais'!E22 -> 0 | F32: 0 | H32: * Nota 3 - Os percentuais do Submódulo 2.2 incidem sobre o Módulo 1 e o Submódulo 2.1.
B34: Submódulo 2.3 - Benefícios Mensais e Diários
C35: A | D35: Auxílio Transporte | F35: =HLOOKUP($B$5,'Dados Gerais'!$D$5:$BK$93,82) -> 0
C36: B | D36: Auxílio Alimentação | F36: =HLOOKUP($B$5,'Dados Gerais'!$D$5:$BK$93,89) -> 0
C37: C | D37: Assistência Médica e Familiar | F37: =HLOOKUP($B$5,'Dados Gerais'!$D$5:$BK$101,97) -> 0
C38: D | D38: Outros (Seguro de vida e auxílio funeral e auxílio odontológico) | F38: =HLOOKUP($B$5,'Dados Gerais'!$D$5:$BK$118,114) -> 0 | H38: * Nota 1 - O valor informado deverá ser o custo real do benefício (descontado o valor eventualmente pago pelo empregado).
H39: * Nota 2 - Observar a previsão dos benefícios contidos em Acordos, Convenções e Dissídios Coletivos de Trabalho e o disposto no art. 6º da IN 5/2017
D40: QUADRO-RESUMO DO MÓDULO 2
D41: 2.1 - 13º Salário, Férias e Adicional de Férias - 13º Destacado - Calculado no Módulo 7 | E41: =SUM(E20:E21) -> 0.0303 | F41: =F20+F21 -> 0
D42: 2.2 - Encargos Previdenciários (GPS), Fundo de Garantia por Tempo de Serviço (FGTS) e Contribuições | E42: =SUM(E24:E32) -> 0.368 | F42: =SUM(F24:F32) -> 0
D43: 2.3 - Benefícios Mensais e Diários | F43: =SUM(F35:F38) -> 0
D45: TOTAL DOS ENCARGOS E BENEFÍCIOS | F45: =SUM(F41:F43) -> 0
B47: MÓDULO 3 - PREVISÃO PARA RESCISÃO | E47: Percentuais | F47: Valor
C48: A | D48: Aviso Prévio Indenizado (Art. 7º, inciso XXI, da CF/1988 e arts. 477, 487, §1º, e 491 da CLT) | E48: ='Encargos Sociais'!E36 -> 0.0083 | F48: =ROUND(E48*$F$16,2) -> 0
C49: B | D49: Incidência do FGTS sobre o Aviso Prévio Indenizado (Súmula 305 TST) | E49: ='Encargos Sociais'!E37 -> 0.0007 | F49: 0 | H49: * Nota 1 - Adotou-se os parâmetros do estudo do STF (http://www.stf.jus.br/arquivo/cms/sobrestfestudosci/anexo/encargos_sociais_03102007.pdf), onde 5% do pessoal é demitido pelo empregador no decurso do contrato (para estes, considerou-se o aviso prévio indenizado). Desprezou-se as demissões por justa causa e os pedidos de demissão.
C50: C | D50: Multa do FGTS e Contribuição Social sobre o Aviso Prévio Indenizado (Art. 18, §1º, da Lei 8.036/1990 e art. 1º da LC nº 110/2001) | E50: ='Encargos Sociais'!E38 -> 0.0038 | F50: 0 | H50: * Nota 2 - No cálculo do percentual, considerou-se 36 dias, correspondendo à metade da duração média dos contratos (2 anos)
C51: D | D51: Aviso Prévio Trabalhado (Art. 488, parágrafo único, CLT) | E51: ='Encargos Sociais'!E39 -> 0.012 | F51: 0 | H51: * Nota 3 - Incide sobre a Remuneração + 13º salário (1/12) + Férias (1/12) + Adicional de Férias (1/36) x 50% multa (40% para o empregado e 10% de contribuição social) x 8% FGTS
C52: E | D52: Incidência de GPS, FGTS e outras contribuições sobre o Aviso Prévio Trabalhado | E52: ='Encargos Sociais'!E40 -> 0.0044 | F52: 0 | H52: * Nota 4 - Os 95% restantes do cálculo, a um prazo médio de contrato de 4 anos. Assim, calcula-se 7 dias para o 1º ano de contrato e mais 3 dias para os 3 anos seguintes.
C53: F | D53: Multa do FGTS e Contribuição Social sobre o Aviso Prévio Trabalhado | E53: ='Encargos Sociais'!E41 -> 0.0344 | F53: 0
D55: TOTAL DE PREVISÃO PARA RESCISÃO | F55: =SUM(F48:F53) -> 0
B57: MÓDULO 4 - CUSTO DO PROFISSIONAL AUSENTE | E57: Percentuais | F57: Valor
B58: Submódulo 4.1 - Ausências Legais
C59: A | D59: Férias (Arts. 129 e 130, inc. I, da CLT) | E59: ='Encargos Sociais'!E25 -> 0.0909 | F59: =ROUND(E59*$F$16,2) -> 0 | H59: * Nota 1 - As alíneas “A” a “F” referem-se somente ao custo que será pago ao repositor pelos dias trabalhados quando da necessidade de substituir a mão de obra alocada na prestação do serviço.
C60: B | D60: Ausências Legais (Arts. 131 e 473 da CLT) | E60: ='Encargos Sociais'!E26 -> 0.0079 | F60: 0 | H60: * Nota 2 - Adotou-se a estimativa do SINAPI de 2 dias por ano.
C61: C | D61: Licença-Paternidade (Art. 7º, XIX, e art. 10, §1º, do ADCT, CF/1988 e Art. 1º, II, da Lei 11.770/2008) | E61: ='Encargos Sociais'!E27 -> 0.0008 | F61: 0 | H61: * Nota 3 - Utilizada a proporção de 50% para homens, 5 dias de afastamento, e a probabilidade de um trabalhador requerer a Licença Paternidade em 5,22%, conforme SINAPI (citando dados da PNAD 2015)
C62: D | D62: Ausência por Acidente de Trabalho (Art. 131, III, da CLT) | E62: ='Encargos Sociais'!E28 -> 0.0009 | F62: 0 | H62: * Nota 4 - Utilzada a estatística de 1,96% dos contribuintes beneficiados com a emissão do auxílio, conforme Anuário Estatístico da Previdência Social. Afastamento de 15 dias a cargo da empresa.
C63: E | D63: Afastamento Maternidade (Art. 71 da Lei nº 8.213/1991) | E63: ='Encargos Sociais'!E29 -> 0.0033 | F63: 0 | H63: * Nota 5 - Utilizada a proporção de 50% para mulheres, 180 dias de afastamento, e a probabilidade de uma trabalhadora requerer a Licença Maternidade em 4,91%, conforme SINAPI (citando dados do IBGE 2016)
C64: F | D64: Auxílio Enfermidade - Doença (Art. 59 da Lei nº 8.213/1991) | E64: ='Encargos Sociais'!E30 -> 0.0071 | F64: 0 | H64: * Nota 6 - Utilizada a estatística de 3,37% dos contribuintes beneficiados com o auxílio, conforme Anuário Estatístico da Previdência Social de 2015 (acrescidos de 2 dias ao ano, para os quais o trabalhador nem requer o benefício da Previdência - conforme SINAPI)
B66: Submódulo 4.2 - Intrajornada
C67: A | D67: Intervalo para repouso ou alimentação | E67: ='Encargos Sociais'!E33 -> 0 | F67: =ROUND(E67*$F$16,2) -> 0
D69: QUADRO-RESUMO DO MÓDULO 4 | F69: Valor
D70: 4.1 - Ausências Legais | E70: =SUM(E59:E64) -> 0.1109 | F70: =ROUND(E70*$F$16,2) -> 0
D71: 4.2 - Intrajornada | E71: =E67 -> 0 | F71: =ROUND(E71*$F$16,2) -> 0
D73: TOTAL DE PREVISÃO PARA RESCISÃO E INTERVALO INTRAJORNADA | F73: =SUM(F70:F71) -> 0
B75: MÓDULO 5 - INSUMOS DIVERSOS | F75: Valor
C76: A | D76: Uniformes - aquisição | F76: =ROUND(HLOOKUP($B$5,Uniformes!L4:EA6,3)/12,2) -> 0
C77: B | D77: Materiais de consumo relacionados ao posto - aquisição | F77: =ROUND(HLOOKUP(B5,'Mat Cons'!I11:DX13,3)/12,2) -> 0
C78: C | D78: Materiais permanentes relacionados ao posto - remuneração da sua depreciação / manutenção | F78: =HLOOKUP(B5,'Mat Perm'!Q11:EF13,3) -> 0
C79: D | D79: Equipamentos relacionados ao posto - remuneração da sua depreciação / manutenção | F79: =HLOOKUP(B5,'Equip Rel'!Q11:EF13,3) -> 0
C80: E | D80: Equipamentos de Proteção Individual - EPI - aquisição | F80: =ROUND(HLOOKUP(B5,EPI!J4:DY6,3)/12,2) -> 0
D82: TOTAL DE INSUMOS DIVERSOS | F82: =SUM(F76:F81) -> 0 | H82: * Nota - Valores mensais por empregado
B84: MÓDULO 6 - CUSTOS INDIRETOS, TRIBUTOS E LUCRO - BDI | E84: Percentuais | F84: Valor
C85: A | D85: Custos Indiretos | E85: =BDI!E6 -> 0.027
C86: A.1 | D86: Administração Central | E86: =BDI!E7 -> 0.0216
C87: A.2 | D87: Seguros, Garantias e Riscos | E87: =BDI!E8 -> 0.0054
C88: B | D88: Lucro | E88: =BDI!E10 -> 0.0334
C89: C | D89: Tributos | E89: =SUM(E90:E91) -> 0.124
C90: C.1 | D90: Tributos Federais (COFINS, PIS e CPRB) | E90: =BDI!E18 -> 0.074
C91: C.2 | D91: Tributos Distritais (ISS) | E91: =BDI!E23 -> 0.05 | H91: * Nota - Utilizou-se o indicado pelo Sindicato da Arquitetura e da Engenharia (Sinaenco, 2008, p. 22), que adota um percentual redutor de 20% no cálculo dos custos tributários relativos às contribuições PIS e COFINS
C92: D | D92: Despesas Financeiras | E92: =BDI!E13 -> 0.004466921098
D94: TOTAL DE BDI | E94: =BDI!E26 -> 0.2169 | F94: =E94*E102 -> 0
D96: QUADRO-RESUMO DO CUSTO MENSAL POR EMPREGADO - SEM O 13º | E96: Valor
D97: Módulo 1 - Composição da Remuneração | E97: =F16 -> 0
D98: Módulo 2 - Encargos e Benefícios Anuais, Mensais e Diários | E98: =F45 -> 0
D99: Módulo 3 - Provisão para Rescisão | E99: =F55 -> 0
D100: Módulo 4 - Custo de Reposição do Profissional Ausente | E100: =F73 -> 0
D101: Módulo 5 - Insumos Diversos | E101: =F82 -> 0
D102: SUBTOTAL (A+B+C+D+E) | E102: =SUM(E97:E101) -> 0
D103: Módulo 6 - Custos Indiretos, Tributos e Lucro | E103: =F94 -> 0
D105: TOTAL DO POSTO | E105: =SUM(E102:E103) -> 0
B107: MÓDULO 7 - DESTAQUE DO MÓDULO 2 - 13º SALÁRIO | E107: Percentuais | F107: Valor
C108: A | D108: 13º Salário | E108: ='Encargos Sociais'!E32 -> 0.0833 | F108: =ROUND(E108*F$16,2) -> 0
C109: B | D109: Encargos Sociais sobre o 13º Salário - Taxa calculada no SUBMÓDULO 2.2 | E109: =SUM($E$24:$E$32) -> 0.368 | F109: =ROUND(E109*$F$108,2) -> 0 | H109: * Nota 1 - Provisiona-se, mensalmente, o proporcional a 1/12 dos valores referentes a gratificação natalina e adicional de férias.
C110: C | D110: BDI sobre o 13º Salário - Taxa calculada no MÓDULO 6 | E110: =E94 -> 0.2169 | F110: =ROUND(E110*($F$108+$F$109),2) -> 0
D112: TOTAL DO DESTAQUE DO 13º SALÁRIO | F112: =SUM(F108:F110) -> 0
D114: QUADRO-RESUMO DO CUSTO MENSAL POR EMPREGADO | E114: Valor
D115: Custo total - sem o 13º Salário | E115: =E105 -> 0
D116: Destaque do 13º Salário (valor mensal) | E116: =F112 -> 0
D118: TOTAL DO POSTO | E118: =E115+E116 -> 0

Sheet 8 (hidden)
B2: PLANILHA DE ESTIMATIVA DE CUSTOS
B3: Padrão IN 05/2017 e IN 07/2018 - MPDG
B5: 8 | D5: =HLOOKUP($B$5,'Dados Gerais'!$D$5:$BK$20,6) -> 0 | E5: QUANTIDADE | F5: =HLOOKUP($B$5,'Dados Gerais'!$D$5:$BK$20,10) -> 0
B6: CCT | D6: =HLOOKUP($B$5,'Dados Gerais'!$D$5:$BK$20,15) -> 0 | E6: DATA-BASE | F6: =HLOOKUP($B$5,'Dados Gerais'!$D$5:$BK$20,16) -> 00:00:00
B8: MÓDULO 1 - COMPOSIÇÃO DA REMUNERAÇÃO | F8: Valor
C9: A | D9: Salário-Base | F9: =HLOOKUP($B$5,'Dados Gerais'!$D$5:$BK$20,8) -> 0
C10: B | D10: Adicional de Periculosidade | F10: =HLOOKUP($B$5,'Dados Gerais'!$D$5:$BK$37,25) -> 0
C11: C | D11: Adicional de Insalubridade | F11: =HLOOKUP($B$5,'Dados Gerais'!$D$5:$BK$37,31) -> 0
C12: D | D12: Adicional Noturno | F12: =HLOOKUP($B$5,'Dados Gerais'!$D$5:$BK$50,46) -> 0 | H12: * Nota 1 - O Módulo 1 refere-se ao valor mensal devido ao empregado pela prestação do serviço no período de 12 meses.
C13: E | D13: Adicional de Hora Extra | F13: =HLOOKUP($B$5,'Dados Gerais'!$D$5:$BK$67,63) -> 0 | H13: * Nota 2 - O adicional de hora extra no feriado trabalhado foi suprimido pela Lei 13.467/17
C14: F | D14: Outros (especificar) | F14: =HLOOKUP($B$5,'Dados Gerais'!$D$5:$BK$59,33) -> 0 | H14: * Nota 3 - ART. 7º, § 2º, DA LEI Nº 605/49.Sendo mensalista o obreiro, o adicional noturno pago de forma fixa já é considerado integrado para os efeitos do pagamento do repouso semanal remunerado, nos termos do art. 7º, § 2º, da Lei nº 605/49.
D16: TOTAL DA REMUNERAÇÃO | F16: =SUM(F9:F14) -> 0
B18: MÓDULO 2 - ENCARGOS E BENEFÍCIOS ANUAIS, MENSAIS E DIÁRIOS | E18: Percentuais | F18: Valor
B19: Submódulo 2.1 - 13º Salário, Férias e Adicional de Férias
C20: A | D20: 13º Salário - Calculado no Módulo 7 - Destacado | E20: 0 | F20: =ROUND(E20*F$16,2) -> 0
C21: B | D21: Férias e Adicional de Férias | E21: ='Encargos Sociais'!E31 -> 0.0303 | F21: =ROUND(E21*F$16,2) -> 0 | H21: * Nota 1 - Provisiona-se, mensalmente, o proporcional a 1/12 dos valores referentes a gratificação natalina, férias e adicional de férias.
H22: * Nota 2 - O adicional de férias contido no Submódulo 2.1 corresponde a 1/3 da remuneração que, por sua vez, é dividida por 12 contome Nota 1.
B23: Submódulo 2.2 - Encargos Previdenciários (GPS), Fundo de Garantia por Tempo de Serviço (FGTS) e Outras Contribuições
C24: A | D24: INSS (art. 22, inciso I, Lei nº 8.212/91) | E24: ='Encargos Sociais'!E14 -> 0.2 | F24: =ROUND(E24*($F$16+$F$41+$F$73),2) -> 0
C25: B | D25: Salário Educação (art. 3º, inciso I, Decreto nº 87.043/82) | E25: ='Encargos Sociais'!E15 -> 0.025 | F25: =ROUND(E25*($F$16+$F$41+$F$73),2) -> 0
C26: C | D26: SAT/RAT (art. 22, II, Lei 8.212/91 e Anexo V, Decreto 6.042/07) - Enquadramento 8211-3/00 | E26: ='Encargos Sociais'!E16 -> 0.03 | F26: 0
C27: D | D27: SESC ou SESI (art. 30, Lei nº 8.036/90 e art. 1º, Lei 8.154/90) | E27: ='Encargos Sociais'!E17 -> 0.015 | F27: 0
C28: E | D28: SENAI ou SENAC (Decreto nº 2.318/86) | E28: ='Encargos Sociais'!E18 -> 0.01 | F28: 0
C29: F | D29: SEBRAE (§ 3º, art. 8º, Lei 8.029/90, alterada pela Lei nº 8.154/90) | E29: ='Encargos Sociais'!E19 -> 0.006 | F29: 0
C30: G | D30: INCRA (art. 1º, I, Decreto Lei 1.146/70 e Lei 7.787, de 30/06/89) | E30: ='Encargos Sociais'!E20 -> 0.002 | F30: 0 | H30: * Nota 1 - Os percentuais dos encargos previdenciários, do FGTS e demais contribuições são estabelecidos por legislação vigente.
C31: H | D31: FGTS (Lei Complementar nº 110/01 e art. 30, Lei nº 8.036/90) | E31: ='Encargos Sociais'!E21 -> 0.08 | F31: 0 | H31: * Nota 2 - O SAT, a depender do grau de risco do serviço, irá variar entre 1%, para risco leve, de 2%, para risco médio, e de 3% para risco grave.
C32: I | D32: SECONCI (Convenções Coletivas de Trabalho da construção) | E32: ='Encargos Sociais'!E22 -> 0 | F32: 0 | H32: * Nota 3 - Os percentuais do Submódulo 2.2 incidem sobre o Módulo 1 e o Submódulo 2.1.
B34: Submódulo 2.3 - Benefícios Mensais e Diários
C35: A | D35: Auxílio Transporte | F35: =HLOOKUP($B$5,'Dados Gerais'!$D$5:$BK$93,82) -> 0
C36: B | D36: Auxílio Alimentação | F36: =HLOOKUP($B$5,'Dados Gerais'!$D$5:$BK$93,89) -> 0
C37: C | D37: Assistência Médica e Familiar | F37: =HLOOKUP($B$5,'Dados Gerais'!$D$5:$BK$101,97) -> 0
C38: D | D38: Outros (Seguro de vida e auxílio funeral e auxílio odontológico) | F38: =HLOOKUP($B$5,'Dados Gerais'!$D$5:$BK$118,114) -> 0 | H38: * Nota 1 - O valor informado deverá ser o custo real do benefício (descontado o valor eventualmente pago pelo empregado).
H39: * Nota 2 - Observar a previsão dos benefícios contidos em Acordos, Convenções e Dissídios Coletivos de Trabalho e o disposto no art. 6º da IN 5/2017
D40: QUADRO-RESUMO DO MÓDULO 2
D41: 2.1 - 13º Salário, Férias e Adicional de Férias - 13º Destacado - Calculado no Módulo 7 | E41: =SUM(E20:E21) -> 0.0303 | F41: =F20+F21 -> 0
D42: 2.2 - Encargos Previdenciários (GPS), Fundo de Garantia por Tempo de Serviço (FGTS) e Contribuições | E42: =SUM(E24:E32) -> 0.368 | F42: =SUM(F24:F32) -> 0
D43: 2.3 - Benefícios Mensais e Diários | F43: =SUM(F35:F38) -> 0
D45: TOTAL DOS ENCARGOS E BENEFÍCIOS | F45: =SUM(F41:F43) -> 0
B47: MÓDULO 3 - PREVISÃO PARA RESCISÃO | E47: Percentuais | F47: Valor
C48: A | D48: Aviso Prévio Indenizado (Art. 7º, inciso XXI, da CF/1988 e arts. 477, 487, §1º, e 491 da CLT) | E48: ='Encargos Sociais'!E36 -> 0.0083 | F48: =ROUND(E48*$F$16,2) -> 0
C49: B | D49: Incidência do FGTS sobre o Aviso Prévio Indenizado (Súmula 305 TST) | E49: ='Encargos Sociais'!E37 -> 0.0007 | F49: 0 | H49: * Nota 1 - Adotou-se os parâmetros do estudo do STF (http://www.stf.jus.br/arquivo/cms/sobrestfestudosci/anexo/encargos_sociais_03102007.pdf), onde 5% do pessoal é demitido pelo empregador no decurso do contrato (para estes, considerou-se o aviso prévio indenizado). Desprezou-se as demissões por justa causa e os pedidos de demissão.
C50: C | D50: Multa do FGTS e Contribuição Social sobre o Aviso Prévio Indenizado (Art. 18, §1º, da Lei 8.036/1990 e art. 1º da LC nº 110/2001) | E50: ='Encargos Sociais'!E38 -> 0.0038 | F50: 0 | H50: * Nota 2 - No cálculo do percentual, considerou-se 36 dias, correspondendo à metade da duração média dos contratos (2 anos)
C51: D | D51: Aviso Prévio Trabalhado (Art. 488, parágrafo único, CLT) | E51: ='Encargos Sociais'!E39 -> 0.012 | F51: 0 | H51: * Nota 3 - Incide sobre a Remuneração + 13º salário (1/12) + Férias (1/12) + Adicional de Férias (1/36) x 50% multa (40% para o empregado e 10% de contribuição social) x 8% FGTS
C52: E | D52: Incidência de GPS, FGTS e outras contribuições sobre o Aviso Prévio Trabalhado | E52: ='Encargos Sociais'!E40 -> 0.0044 | F52: 0 | H52: * Nota 4 - Os 95% restantes do cálculo, a um prazo médio de contrato de 4 anos. Assim, calcula-se 7 dias para o 1º ano de contrato e mais 3 dias para os 3 anos seguintes.
C53: F | D53: Multa do FGTS e Contribuição Social sobre o Aviso Prévio Trabalhado | E53: ='Encargos Sociais'!E41 -> 0.0344 | F53: 0
D55: TOTAL DE PREVISÃO PARA RESCISÃO | F55: =SUM(F48:F53) -> 0
B57: MÓDULO 4 - CUSTO DO PROFISSIONAL AUSENTE | E57: Percentuais | F57: Valor
B58: Submódulo 4.1 - Ausências Legais
C59: A | D59: Férias (Arts. 129 e 130, inc. I, da CLT) | E59: ='Encargos Sociais'!E25 -> 0.0909 | F59: =ROUND(E59*$F$16,2) -> 0 | H59: * Nota 1 - As alíneas “A” a “F” referem-se somente ao custo que será pago ao repositor pelos dias trabalhados quando da necessidade de substituir a mão de obra alocada na prestação do serviço.
C60: B | D60: Ausências Legais (Arts. 131 e 473 da CLT) | E60: ='Encargos Sociais'!E26 -> 0.0079 | F60: 0 | H60: * Nota 2 - Adotou-se a estimativa do SINAPI de 2 dias por ano.
C61: C | D61: Licença-Paternidade (Art. 7º, XIX, e art. 10, §1º, do ADCT, CF/1988 e Art. 1º, II, da Lei 11.770/2008) | E61: ='Encargos Sociais'!E27 -> 0.0008 | F61: 0 | H61: * Nota 3 - Utilizada a proporção de 50% para homens, 5 dias de afastamento, e a probabilidade de um trabalhador requerer a Licença Paternidade em 5,22%, conforme SINAPI (citando dados da PNAD 2015)
C62: D | D62: Ausência por Acidente de Trabalho (Art. 131, III, da CLT) | E62: ='Encargos Sociais'!E28 -> 0.0009 | F62: 0 | H62: * Nota 4 - Utilzada a estatística de 1,96% dos contribuintes beneficiados com a emissão do auxílio, conforme Anuário Estatístico da Previdência Social. Afastamento de 15 dias a cargo da empresa.
C63: E | D63: Afastamento Maternidade (Art. 71 da Lei nº 8.213/1991) | E63: ='Encargos Sociais'!E29 -> 0.0033 | F63: 0 | H63: * Nota 5 - Utilizada a proporção de 50% para mulheres, 180 dias de afastamento, e a probabilidade de uma trabalhadora requerer a Licença Maternidade em 4,91%, conforme SINAPI (citando dados do IBGE 2016)
C64: F | D64: Auxílio Enfermidade - Doença (Art. 59 da Lei nº 8.213/1991) | E64: ='Encargos Sociais'!E30 -> 0.0071 | F64: 0 | H64: * Nota 6 - Utilizada a estatística de 3,37% dos contribuintes beneficiados com o auxílio, conforme Anuário Estatístico da Previdência Social de 2015 (acrescidos de 2 dias ao ano, para os quais o trabalhador nem requer o benefício da Previdência - conforme SINAPI)
B66: Submódulo 4.2 - Intrajornada
C67: A | D67: Intervalo para repouso ou alimentação | E67: ='Encargos Sociais'!E33 -> 0 | F67: =ROUND(E67*$F$16,2) -> 0
D69: QUADRO-RESUMO DO MÓDULO 4 | F69: Valor
D70: 4.1 - Ausências Legais | E70: =SUM(E59:E64) -> 0.1109 | F70: =ROUND(E70*$F$16,2) -> 0
D71: 4.2 - Intrajornada | E71: =E67 -> 0 | F71: =ROUND(E71*$F$16,2) -> 0
D73: TOTAL DE PREVISÃO PARA RESCISÃO E INTERVALO INTRAJORNADA | F73: =SUM(F70:F71) -> 0
B75: MÓDULO 5 - INSUMOS DIVERSOS | F75: Valor
C76: A | D76: Uniformes - aquisição | F76: =ROUND(HLOOKUP($B$5,Uniformes!L4:EA6,3)/12,2) -> 0
C77: B | D77: Materiais de consumo relacionados ao posto - aquisição | F77: =ROUND(HLOOKUP(B5,'Mat Cons'!I11:DX13,3)/12,2) -> 0
C78: C | D78: Materiais permanentes relacionados ao posto - remuneração da sua depreciação / manutenção | F78: =HLOOKUP(B5,'Mat Perm'!Q11:EF13,3) -> 0
C79: D | D79: Equipamentos relacionados ao posto - remuneração da sua depreciação / manutenção | F79: =HLOOKUP(B5,'Equip Rel'!Q11:EF13,3) -> 0
C80: E | D80: Equipamentos de Proteção Individual - EPI - aquisição | F80: =ROUND(HLOOKUP(B5,EPI!J4:DY6,3)/12,2) -> 0
D82: TOTAL DE INSUMOS DIVERSOS | F82: =SUM(F76:F81) -> 0 | H82: * Nota - Valores mensais por empregado
B84: MÓDULO 6 - CUSTOS INDIRETOS, TRIBUTOS E LUCRO - BDI | E84: Percentuais | F84: Valor
C85: A | D85: Custos Indiretos | E85: =BDI!E6 -> 0.027
C86: A.1 | D86: Administração Central | E86: =BDI!E7 -> 0.0216
C87: A.2 | D87: Seguros, Garantias e Riscos | E87: =BDI!E8 -> 0.0054
C88: B | D88: Lucro | E88: =BDI!E10 -> 0.0334
C89: C | D89: Tributos | E89: =SUM(E90:E91) -> 0.124
C90: C.1 | D90: Tributos Federais (COFINS, PIS e CPRB) | E90: =BDI!E18 -> 0.074
C91: C.2 | D91: Tributos Distritais (ISS) | E91: =BDI!E23 -> 0.05 | H91: * Nota - Utilizou-se o indicado pelo Sindicato da Arquitetura e da Engenharia (Sinaenco, 2008, p. 22), que adota um percentual redutor de 20% no cálculo dos custos tributários relativos às contribuições PIS e COFINS
C92: D | D92: Despesas Financeiras | E92: =BDI!E13 -> 0.004466921098
D94: TOTAL DE BDI | E94: =BDI!E26 -> 0.2169 | F94: =E94*E102 -> 0
D96: QUADRO-RESUMO DO CUSTO MENSAL POR EMPREGADO - SEM O 13º | E96: Valor
D97: Módulo 1 - Composição da Remuneração | E97: =F16 -> 0
D98: Módulo 2 - Encargos e Benefícios Anuais, Mensais e Diários | E98: =F45 -> 0
D99: Módulo 3 - Provisão para Rescisão | E99: =F55 -> 0
D100: Módulo 4 - Custo de Reposição do Profissional Ausente | E100: =F73 -> 0
D101: Módulo 5 - Insumos Diversos | E101: =F82 -> 0
D102: SUBTOTAL (A+B+C+D+E) | E102: =SUM(E97:E101) -> 0
D103: Módulo 6 - Custos Indiretos, Tributos e Lucro | E103: =F94 -> 0
D105: TOTAL DO POSTO | E105: =SUM(E102:E103) -> 0
B107: MÓDULO 7 - DESTAQUE DO MÓDULO 2 - 13º SALÁRIO | E107: Percentuais | F107: Valor
C108: A | D108: 13º Salário | E108: ='Encargos Sociais'!E32 -> 0.0833 | F108: =ROUND(E108*F$16,2) -> 0
C109: B | D109: Encargos Sociais sobre o 13º Salário - Taxa calculada no SUBMÓDULO 2.2 | E109: =SUM($E$24:$E$32) -> 0.368 | F109: =ROUND(E109*$F$108,2) -> 0 | H109: * Nota 1 - Provisiona-se, mensalmente, o proporcional a 1/12 dos valores referentes a gratificação natalina e adicional de férias.
C110: C | D110: BDI sobre o 13º Salário - Taxa calculada no MÓDULO 6 | E110: =E94 -> 0.2169 | F110: =ROUND(E110*($F$108+$F$109),2) -> 0
D112: TOTAL DO DESTAQUE DO 13º SALÁRIO | F112: =SUM(F108:F110) -> 0
D114: QUADRO-RESUMO DO CUSTO MENSAL POR EMPREGADO | E114: Valor
D115: Custo total - sem o 13º Salário | E115: =E105 -> 0
D116: Destaque do 13º Salário (valor mensal) | E116: =F112 -> 0
D118: TOTAL DO POSTO | E118: =E115+E116 -> 0

Sheet 9 (hidden)
B2: PLANILHA DE ESTIMATIVA DE CUSTOS
B3: Padrão IN 05/2017 e IN 07/2018 - MPDG
B5: 9 | D5: =HLOOKUP($B$5,'Dados Gerais'!$D$5:$BK$20,6) -> 0 | E5: QUANTIDADE | F5: =HLOOKUP($B$5,'Dados Gerais'!$D$5:$BK$20,10) -> 0
B6: CCT | D6: =HLOOKUP($B$5,'Dados Gerais'!$D$5:$BK$20,15) -> 0 | E6: DATA-BASE | F6: =HLOOKUP($B$5,'Dados Gerais'!$D$5:$BK$20,16) -> 00:00:00
B8: MÓDULO 1 - COMPOSIÇÃO DA REMUNERAÇÃO | F8: Valor
C9: A | D9: Salário-Base | F9: =HLOOKUP($B$5,'Dados Gerais'!$D$5:$BK$20,8) -> 0
C10: B | D10: Adicional de Periculosidade | F10: =HLOOKUP($B$5,'Dados Gerais'!$D$5:$BK$37,25) -> 0
C11: C | D11: Adicional de Insalubridade | F11: =HLOOKUP($B$5,'Dados Gerais'!$D$5:$BK$37,31) -> 0
C12: D | D12: Adicional Noturno | F12: =HLOOKUP($B$5,'Dados Gerais'!$D$5:$BK$50,46) -> 0 | H12: * Nota 1 - O Módulo 1 refere-se ao valor mensal devido ao empregado pela prestação do serviço no período de 12 meses.
C13: E | D13: Adicional de Hora Extra | F13: =HLOOKUP($B$5,'Dados Gerais'!$D$5:$BK$67,63) -> 0 | H13: * Nota 2 - O adicional de hora extra no feriado trabalhado foi suprimido pela Lei 13.467/17
C14: F | D14: Outros (especificar) | F14: =HLOOKUP($B$5,'Dados Gerais'!$D$5:$BK$59,33) -> 0 | H14: * Nota 3 - ART. 7º, § 2º, DA LEI Nº 605/49.Sendo mensalista o obreiro, o adicional noturno pago de forma fixa já é considerado integrado para os efeitos do pagamento do repouso semanal remunerado, nos termos do art. 7º, § 2º, da Lei nº 605/49.
D16: TOTAL DA REMUNERAÇÃO | F16: =SUM(F9:F14) -> 0
B18: MÓDULO 2 - ENCARGOS E BENEFÍCIOS ANUAIS, MENSAIS E DIÁRIOS | E18: Percentuais | F18: Valor
B19: Submódulo 2.1 - 13º Salário, Férias e Adicional de Férias
C20: A | D20: 13º Salário - Calculado no Módulo 7 - Destacado | E20: 0 | F20: =ROUND(E20*F$16,2) -> 0
C21: B | D21: Férias e Adicional de Férias | E21: ='Encargos Sociais'!E31 -> 0.0303 | F21: =ROUND(E21*F$16,2) -> 0 | H21: * Nota 1 - Provisiona-se, mensalmente, o proporcional a 1/12 dos valores referentes a gratificação natalina, férias e adicional de férias.
H22: * Nota 2 - O adicional de férias contido no Submódulo 2.1 corresponde a 1/3 da remuneração que, por sua vez, é dividida por 12 contome Nota 1.
B23: Submódulo 2.2 - Encargos Previdenciários (GPS), Fundo de Garantia por Tempo de Serviço (FGTS) e Outras Contribuições
C24: A | D24: INSS (art. 22, inciso I, Lei nº 8.212/91) | E24: ='Encargos Sociais'!E14 -> 0.2 | F24: =ROUND(E24*($F$16+$F$41+$F$73),2) -> 0
C25: B | D25: Salário Educação (art. 3º, inciso I, Decreto nº 87.043/82) | E25: ='Encargos Sociais'!E15 -> 0.025 | F25: =ROUND(E25*($F$16+$F$41+$F$73),2) -> 0
C26: C | D26: SAT/RAT (art. 22, II, Lei 8.212/91 e Anexo V, Decreto 6.042/07) - Enquadramento 8211-3/00 | E26: ='Encargos Sociais'!E16 -> 0.03 | F26: 0
C27: D | D27: SESC ou SESI (art. 30, Lei nº 8.036/90 e art. 1º, Lei 8.154/90) | E27: ='Encargos Sociais'!E17 -> 0.015 | F27: 0
C28: E | D28: SENAI ou SENAC (Decreto nº 2.318/86) | E28: ='Encargos Sociais'!E18 -> 0.01 | F28: 0
C29: F | D29: SEBRAE (§ 3º, art. 8º, Lei 8.029/90, alterada pela Lei nº 8.154/90) | E29: ='Encargos Sociais'!E19 -> 0.006 | F29: 0
C30: G | D30: INCRA (art. 1º, I, Decreto Lei 1.146/70 e Lei 7.787, de 30/06/89) | E30: ='Encargos Sociais'!E20 -> 0.002 | F30: 0 | H30: * Nota 1 - Os percentuais dos encargos previdenciários, do FGTS e demais contribuições são estabelecidos por legislação vigente.
C31: H | D31: FGTS (Lei Complementar nº 110/01 e art. 30, Lei nº 8.036/90) | E31: ='Encargos Sociais'!E21 -> 0.08 | F31: 0 | H31: * Nota 2 - O SAT, a depender do grau de risco do serviço, irá variar entre 1%, para risco leve, de 2%, para risco médio, e de 3% para risco grave.
C32: I | D32: SECONCI (Convenções Coletivas de Trabalho da construção) | E32: ='Encargos Sociais'!E22 -> 0 | F32: 0 | H32: * Nota 3 - Os percentuais do Submódulo 2.2 incidem sobre o Módulo 1 e o Submódulo 2.1.
B34: Submódulo 2.3 - Benefícios Mensais e Diários
C35: A | D35: Auxílio Transporte | F35: =HLOOKUP($B$5,'Dados Gerais'!$D$5:$BK$93,82) -> 0
C36: B | D36: Auxílio Alimentação | F36: =HLOOKUP($B$5,'Dados Gerais'!$D$5:$BK$93,89) -> 0
C37: C | D37: Assistência Médica e Familiar | F37: =HLOOKUP($B$5,'Dados Gerais'!$D$5:$BK$101,97) -> 0
C38: D | D38: Outros (Seguro de vida e auxílio funeral e auxílio odontológico) | F38: =HLOOKUP($B$5,'Dados Gerais'!$D$5:$BK$118,114) -> 0 | H38: * Nota 1 - O valor informado deverá ser o custo real do benefício (descontado o valor eventualmente pago pelo empregado).
H39: * Nota 2 - Observar a previsão dos benefícios contidos em Acordos, Convenções e Dissídios Coletivos de Trabalho e o disposto no art. 6º da IN 5/2017
D40: QUADRO-RESUMO DO MÓDULO 2
D41: 2.1 - 13º Salário, Férias e Adicional de Férias - 13º Destacado - Calculado no Módulo 7 | E41: =SUM(E20:E21) -> 0.0303 | F41: =F20+F21 -> 0
D42: 2.2 - Encargos Previdenciários (GPS), Fundo de Garantia por Tempo de Serviço (FGTS) e Contribuições | E42: =SUM(E24:E32) -> 0.368 | F42: =SUM(F24:F32) -> 0
D43: 2.3 - Benefícios Mensais e Diários | F43: =SUM(F35:F38) -> 0
D45: TOTAL DOS ENCARGOS E BENEFÍCIOS | F45: =SUM(F41:F43) -> 0
B47: MÓDULO 3 - PREVISÃO PARA RESCISÃO | E47: Percentuais | F47: Valor
C48: A | D48: Aviso Prévio Indenizado (Art. 7º, inciso XXI, da CF/1988 e arts. 477, 487, §1º, e 491 da CLT) | E48: ='Encargos Sociais'!E36 -> 0.0083 | F48: =ROUND(E48*$F$16,2) -> 0
C49: B | D49: Incidência do FGTS sobre o Aviso Prévio Indenizado (Súmula 305 TST) | E49: ='Encargos Sociais'!E37 -> 0.0007 | F49: 0 | H49: * Nota 1 - Adotou-se os parâmetros do estudo do STF (http://www.stf.jus.br/arquivo/cms/sobrestfestudosci/anexo/encargos_sociais_03102007.pdf), onde 5% do pessoal é demitido pelo empregador no decurso do contrato (para estes, considerou-se o aviso prévio indenizado). Desprezou-se as demissões por justa causa e os pedidos de demissão.
C50: C | D50: Multa do FGTS e Contribuição Social sobre o Aviso Prévio Indenizado (Art. 18, §1º, da Lei 8.036/1990 e art. 1º da LC nº 110/2001) | E50: ='Encargos Sociais'!E38 -> 0.0038 | F50: 0 | H50: * Nota 2 - No cálculo do percentual, considerou-se 36 dias, correspondendo à metade da duração média dos contratos (2 anos)
C51: D | D51: Aviso Prévio Trabalhado (Art. 488, parágrafo único, CLT) | E51: ='Encargos Sociais'!E39 -> 0.012 | F51: 0 | H51: * Nota 3 - Incide sobre a Remuneração + 13º salário (1/12) + Férias (1/12) + Adicional de Férias (1/36) x 50% multa (40% para o empregado e 10% de contribuição social) x 8% FGTS
C52: E | D52: Incidência de GPS, FGTS e outras contribuições sobre o Aviso Prévio Trabalhado | E52: ='Encargos Sociais'!E40 -> 0.0044 | F52: 0 | H52: * Nota 4 - Os 95% restantes do cálculo, a um prazo médio de contrato de 4 anos. Assim, calcula-se 7 dias para o 1º ano de contrato e mais 3 dias para os 3 anos seguintes.
C53: F | D53: Multa do FGTS e Contribuição Social sobre o Aviso Prévio Trabalhado | E53: ='Encargos Sociais'!E41 -> 0.0344 | F53: 0
D55: TOTAL DE PREVISÃO PARA RESCISÃO | F55: =SUM(F48:F53) -> 0
B57: MÓDULO 4 - CUSTO DO PROFISSIONAL AUSENTE | E57: Percentuais | F57: Valor
B58: Submódulo 4.1 - Ausências Legais
C59: A | D59: Férias (Arts. 129 e 130, inc. I, da CLT) | E59: ='Encargos Sociais'!E25 -> 0.0909 | F59: =ROUND(E59*$F$16,2) -> 0 | H59: * Nota 1 - As alíneas “A” a “F” referem-se somente ao custo que será pago ao repositor pelos dias trabalhados quando da necessidade de substituir a mão de obra alocada na prestação do serviço.
C60: B | D60: Ausências Legais (Arts. 131 e 473 da CLT) | E60: ='Encargos Sociais'!E26 -> 0.0079 | F60: 0 | H60: * Nota 2 - Adotou-se a estimativa do SINAPI de 2 dias por ano.
C61: C | D61: Licença-Paternidade (Art. 7º, XIX, e art. 10, §1º, do ADCT, CF/1988 e Art. 1º, II, da Lei 11.770/2008) | E61: ='Encargos Sociais'!E27 -> 0.0008 | F61: 0 | H61: * Nota 3 - Utilizada a proporção de 50% para homens, 5 dias de afastamento, e a probabilidade de um trabalhador requerer a Licença Paternidade em 5,22%, conforme SINAPI (citando dados da PNAD 2015)
C62: D | D62: Ausência por Acidente de Trabalho (Art. 131, III, da CLT) | E62: ='Encargos Sociais'!E28 -> 0.0009 | F62: 0 | H62: * Nota 4 - Utilzada a estatística de 1,96% dos contribuintes beneficiados com a emissão do auxílio, conforme Anuário Estatístico da Previdência Social. Afastamento de 15 dias a cargo da empresa.
C63: E | D63: Afastamento Maternidade (Art. 71 da Lei nº 8.213/1991) | E63: ='Encargos Sociais'!E29 -> 0.0033 | F63: 0 | H63: * Nota 5 - Utilizada a proporção de 50% para mulheres, 180 dias de afastamento, e a probabilidade de uma trabalhadora requerer a Licença Maternidade em 4,91%, conforme SINAPI (citando dados do IBGE 2016)
C64: F | D64: Auxílio Enfermidade - Doença (Art. 59 da Lei nº 8.213/1991) | E64: ='Encargos Sociais'!E30 -> 0.0071 | F64: 0 | H64: * Nota 6 - Utilizada a estatística de 3,37% dos contribuintes beneficiados com o auxílio, conforme Anuário Estatístico da Previdência Social de 2015 (acrescidos de 2 dias ao ano, para os quais o trabalhador nem requer o benefício da Previdência - conforme SINAPI)
B66: Submódulo 4.2 - Intrajornada
C67: A | D67: Intervalo para repouso ou alimentação | E67: ='Encargos Sociais'!E33 -> 0 | F67: =ROUND(E67*$F$16,2) -> 0
D69: QUADRO-RESUMO DO MÓDULO 4 | F69: Valor
D70: 4.1 - Ausências Legais | E70: =SUM(E59:E64) -> 0.1109 | F70: =ROUND(E70*$F$16,2) -> 0
D71: 4.2 - Intrajornada | E71: =E67 -> 0 | F71: =ROUND(E71*$F$16,2) -> 0
D73: TOTAL DE PREVISÃO PARA RESCISÃO E INTERVALO INTRAJORNADA | F73: =SUM(F70:F71) -> 0
B75: MÓDULO 5 - INSUMOS DIVERSOS | F75: Valor
C76: A | D76: Uniformes - aquisição | F76: =ROUND(HLOOKUP($B$5,Uniformes!L4:EA6,3)/12,2) -> 0
C77: B | D77: Materiais de consumo relacionados ao posto - aquisição | F77: =ROUND(HLOOKUP(B5,'Mat Cons'!I11:DX13,3)/12,2) -> 0
C78: C | D78: Materiais permanentes relacionados ao posto - remuneração da sua depreciação / manutenção | F78: =HLOOKUP(B5,'Mat Perm'!Q11:EF13,3) -> 0
C79: D | D79: Equipamentos relacionados ao posto - remuneração da sua depreciação / manutenção | F79: =HLOOKUP(B5,'Equip Rel'!Q11:EF13,3) -> 0
C80: E | D80: Equipamentos de Proteção Individual - EPI - aquisição | F80: =ROUND(HLOOKUP(B5,EPI!J4:DY6,3)/12,2) -> 0
D82: TOTAL DE INSUMOS DIVERSOS | F82: =SUM(F76:F81) -> 0 | H82: * Nota - Valores mensais por empregado
B84: MÓDULO 6 - CUSTOS INDIRETOS, TRIBUTOS E LUCRO - BDI | E84: Percentuais | F84: Valor
C85: A | D85: Custos Indiretos | E85: =BDI!E6 -> 0.027
C86: A.1 | D86: Administração Central | E86: =BDI!E7 -> 0.0216
C87: A.2 | D87: Seguros, Garantias e Riscos | E87: =BDI!E8 -> 0.0054
C88: B | D88: Lucro | E88: =BDI!E10 -> 0.0334
C89: C | D89: Tributos | E89: =SUM(E90:E91) -> 0.124
C90: C.1 | D90: Tributos Federais (COFINS, PIS e CPRB) | E90: =BDI!E18 -> 0.074
C91: C.2 | D91: Tributos Distritais (ISS) | E91: =BDI!E23 -> 0.05 | H91: * Nota - Utilizou-se o indicado pelo Sindicato da Arquitetura e da Engenharia (Sinaenco, 2008, p. 22), que adota um percentual redutor de 20% no cálculo dos custos tributários relativos às contribuições PIS e COFINS
C92: D | D92: Despesas Financeiras | E92: =BDI!E13 -> 0.004466921098
D94: TOTAL DE BDI | E94: =BDI!E26 -> 0.2169 | F94: =E94*E102 -> 0
D96: QUADRO-RESUMO DO CUSTO MENSAL POR EMPREGADO - SEM O 13º | E96: Valor
D97: Módulo 1 - Composição da Remuneração | E97: =F16 -> 0
D98: Módulo 2 - Encargos e Benefícios Anuais, Mensais e Diários | E98: =F45 -> 0
D99: Módulo 3 - Provisão para Rescisão | E99: =F55 -> 0
D100: Módulo 4 - Custo de Reposição do Profissional Ausente | E100: =F73 -> 0
D101: Módulo 5 - Insumos Diversos | E101: =F82 -> 0
D102: SUBTOTAL (A+B+C+D+E) | E102: =SUM(E97:E101) -> 0
D103: Módulo 6 - Custos Indiretos, Tributos e Lucro | E103: =F94 -> 0
D105: TOTAL DO POSTO | E105: =SUM(E102:E103) -> 0
B107: MÓDULO 7 - DESTAQUE DO MÓDULO 2 - 13º SALÁRIO | E107: Percentuais | F107: Valor
C108: A | D108: 13º Salário | E108: ='Encargos Sociais'!E32 -> 0.0833 | F108: =ROUND(E108*F$16,2) -> 0
C109: B | D109: Encargos Sociais sobre o 13º Salário - Taxa calculada no SUBMÓDULO 2.2 | E109: =SUM($E$24:$E$32) -> 0.368 | F109: =ROUND(E109*$F$108,2) -> 0 | H109: * Nota 1 - Provisiona-se, mensalmente, o proporcional a 1/12 dos valores referentes a gratificação natalina e adicional de férias.
C110: C | D110: BDI sobre o 13º Salário - Taxa calculada no MÓDULO 6 | E110: =E94 -> 0.2169 | F110: =ROUND(E110*($F$108+$F$109),2) -> 0
D112: TOTAL DO DESTAQUE DO 13º SALÁRIO | F112: =SUM(F108:F110) -> 0
D114: QUADRO-RESUMO DO CUSTO MENSAL POR EMPREGADO | E114: Valor
D115: Custo total - sem o 13º Salário | E115: =E105 -> 0
D116: Destaque do 13º Salário (valor mensal) | E116: =F112 -> 0
D118: TOTAL DO POSTO | E118: =E115+E116 -> 0

Sheet Dados Gerais
B3: INFORMAÇÕES DE ENTRADA
D5: 1 | E5: 2 | F5: 3 | G5: 4 | H5: 5 | I5: 6 | J5: 7 | K5: 8 | L5: 9 | M5: 10 | N5: 11 | O5: 12 | P5: 13 | Q5: 14 | R5: 15 | S5: 16 | T5: 17 | U5: 18 | V5: 19 | W5: 20 | X5: 21 | Y5: 22 | Z5: 23 | AA5: 24 | AB5: 25 | AC5: 26 | AD5: 27 | AE5: 28 | AF5: 29 | AG5: 30 | AH5: 31 | AI5: 32 | AJ5: 33 | AK5: 34 | AL5: 35 | AM5: 36 | AN5: 37 | AO5: 38 | AP5: 39 | AQ5: 40 | AR5: 41 | AS5: 42 | AT5: 43 | AU5: 44 | AV5: 45 | AW5: 46 | AX5: 47 | AY5: 48 | AZ5: 49 | BA5: 50 | BB5: 51 | BC5: 52 | BD5: 53 | BE5: 54 | BF5: 55 | BG5: 56 | BH5: 57 | BI5: 58 | BJ5: 59 | BK5: 60
D6: CARGO 1 | E6: CARGO 2 | F6: CARGO 3 | G6: CARGO 4 | H6: CARGO 5 | I6: CARGO 6 | J6: CARGO 7 | K6: CARGO 8 | L6: CARGO 9 | M6: CARGO 10 | N6: CARGO 11 | O6: CARGO 12 | P6: CARGO 13 | Q6: CARGO 14 | R6: CARGO 15 | S6: CARGO 16 | T6: CARGO 17 | U6: CARGO 18 | V6: CARGO 19 | W6: CARGO 20 | X6: CARGO 21 | Y6: CARGO 22 | Z6: CARGO 23 | AA6: CARGO 24 | AB6: CARGO 25 | AC6: CARGO 26 | AD6: CARGO 27 | AE6: CARGO 28 | AF6: CARGO 29 | AG6: CARGO 30 | AH6: CARGO 31 | AI6: CARGO 32 | AJ6: CARGO 33 | AK6: CARGO 34 | AL6: CARGO 35 | AM6: CARGO 36 | AN6: CARGO 37 | AO6: CARGO 38 | AP6: CARGO 39 | AQ6: CARGO 40 | AR6: CARGO 41 | AS6: CARGO 42 | AT6: CARGO 43 | AU6: CARGO 44 | AV6: CARGO 45 | AW6: CARGO 46 | AX6: CARGO 47 | AY6: CARGO 48 | AZ6: CARGO 49 | BA6: CARGO 50 | BB6: CARGO 51 | BC6: CARGO 52 | BD6: CARGO 53 | BE6: CARGO 54 | BF6: CARGO 55 | BG6: CARGO 56 | BH6: CARGO 57 | BI6: CARGO 58 | BJ6: CARGO 59 | BK6: CARGO 60
B7: INFORMAÇÕES BÁSICAS
B9: DESCRIÇÃO DOS POSTOS DE SERVIÇO
D10: ENCARREGADO GERAL | E10: ENCARREGADO SETORIAL | F10: ENCARREGADO DE SERVIÇO | G10: AUXILIAR DE ENCARREGADO | H10: ALMOXARIFE | I10: SERVENTE
B11: REMUNERAÇÕES
D12: 7744.91 | E12: 4428.78 | F12: 3483.45 | G12: 2598.63 | H12: 3035.66 | I12: 2017.21
B13: QUANTIDADE DE POSTOS
D14: 1 | E14: 2 | F14: 12 | G14: 1 | H14: 2 | I14: 189
B15: JORNADA
C16: HORAS | D16: 220 | E16: =44*5 -> 220 | F16: 220 | G16: 220 | H16: 220 | I16: 220
C17: DIAS/MÊS | D17: 24 | E17: 24 | F17: 24 | G17: 24 | H17: 24 | I17: 24
B18: CCT UTILIZADA
C19: SINDICATOS E REFERÊNCIA | D19: SEAC/DF X SINDISERVIÇOS/DF 2024/2024 Nº DF000012/2024 | E19: =D19 -> SEAC/DF X SINDISERVIÇOS/DF 2024/2024 Nº DF000012/2024 | F19: =E19 -> SEAC/DF X SINDISERVIÇOS/DF 2024/2024 Nº DF000012/2024 | G19: SEAC/DF X SINDISERVIÇOS/DF 2024/2024 Nº DF000012/2024 | H19: SEAC/DF X SINDISERVIÇOS/DF 2024/2024 Nº DF000012/2024 | I19: SEAC/DF X SINDISERVIÇOS/DF 2024/2024 Nº DF000012/2024
C20: DATA-BASE | D20: 2024-01-01 | E20: =D20 -> 2024-01-01 | F20: =E20 -> 2024-01-01 | G20: 2024-01-01 | H20: 2024-01-01 | I20: 2024-01-01
B22: ADICIONAIS LEGAIS E GRATIFICAÇÕES
B24: PERICULOSIDADE (PERCENTUAL)
D25: 0 | E25: 0 | F25: 0 | G25: 0 | H25: 0 | I25: 0
B26: BASE DE CÁLCULO DO ADICIONAL DE PERICULOSIDADE (SALÁRIO BÁSICO)
D27: =D12 -> 7744.91 | E27: 2386.75 | F27: 2386.75 | G27: 2386.75 | H27: 2386.75 | I27: 2386.75
B28: VALOR MENSAL DO ADICIONAL DE PERICULOSIDADE
D29: =ROUND(D25*D12,2) -> 0 | E29: 0 | F29: 0 | G29: 0 | H29: 0 | I29: 0
B30: INSALUBRIDADE (PERCENTUAL)
D31: 0 | E31: 0 | F31: 0 | G31: 0 | H31: 0 | I31: 0
B32: BASE DE CÁLCULO DO ADICIONAL DE INSALUBRIDADE (SALÁRIO MÍNIMO LEGAL)
D33: 1412 | E33: =D33 -> 1412 | F33: =E33 -> 1412 | G33: =F33 -> 1412 | H33: =G33 -> 1412 | I33: =H33 -> 1412
B34: VALOR MENSAL DO ADICIONAL DE INSALUBRIDADE
D35: =D31*D33 -> 0 | E35: 0 | F35: 0 | G35: 0 | H35: 0 | I35: 0
B36: GRATIFICAÇÃO - VALOR MENSAL (R$)
D37: 0 | E37: 0 | F37: 0 | G37: 0 | H37: 0 | I37: 0
B39: ADICIONAL NOTURNO
B41: INCIDÊNCIA (PERCENTUAL CONFORME CCT)
D42: 0.2 | E42: =D42 -> 0.2 | F42: =E42 -> 0.2 | G42: =F42 -> 0.2 | H42: =G42 -> 0.2 | I42: =H42 -> 0.2
B43: HORAS REAIS POR DIA
D44: 0 | E44: 0 | F44: 0 | G44: 0 | H44: 0 | I44: 0
B45: HORAS FICTAS POR DIA
D46: =D44*8/7 -> 0 | E46: 0 | F46: =F44*8/7 -> 0 | G46: 0 | H46: 0 | I46: 0
B47: BASE DE CÁLCULO DO ADICIONAL NOTURNO (INCLUINDO ADICIONAIS E GRATIFICAÇÕES)
D48: =D12+D29+D35+D37 -> 7744.91 | E48: =E12+E29+E35+E37 -> 4428.78 | F48: =F12+F29+F35+F37 -> 3483.45 | G48: 2598.63 | H48: 3035.66 | I48: 2017.21
B49: VALOR MENSAL DO ADICIONAL NOTURNO (HORA NORMAL + HORA REDUZIDA) - POR POSTO
D50: =ROUND(D46*D17*D42*D48/D16,2) -> 0 | E50: =ROUND(E46*E17*E42*E48/E16,2) -> 0 | F50: =ROUND(F46*F17*F42*F48/F16,2) -> 0 | G50: 0 | H50: 0 | I50: 0
B52: ADICIONAL DE HORA EXTRA
L53: =SUM(L8:L51) -> 0
B54: INCIDÊNCIA (PERCENTUAL 1)
D55: 0.5 | E55: 0.5 | F55: 0.5 | G55: 0.5 | H55: 0.5 | I55: 0.5
B56: HORAS EXTRAS POR MÊS (PERCENTUAL 1)
D57: 0 | E57: 0 | F57: 0 | G57: 0 | H57: 0 | I57: 0
B58: VALOR MENSAL DO ADICIONAL DE HORAS EXTRAS (PERCENTUAL 1) - POR POSTO
D59: =ROUND(D57*D55*D12/D16,2) -> 0 | E59: 0 | F59: 0 | G59: 0 | H59: 0 | I59: 0
B60: INCIDÊNCIA (PERCENTUAL 2)
D61: 1 | E61: 1 | F61: 1 | G61: 1 | H61: 1 | I61: 1
B62: HORAS EXTRAS POR MÊS (PERCENTUAL 2)
D63: 0 | E63: 0 | F63: 0 | G63: 0 | H63: 0 | I63: 0
B64: VALOR MENSAL DO ADICIONAL DE HORAS EXTRAS (PERCENTUAL 2) - POR POSTO
D65: =ROUND(D63*D61*D12/D16,2) -> 0 | E65: 0 | F65: 0 | G65: 0 | H65: 0 | I65: 0
B66: TOTAL MENSAL DOS ADICIONAIS DE HORAS EXTRAS - POR POSTO
D67: =D65+D59 -> 0 | E67: 0 | F67: 0 | G67: 0 | H67: 0 | I67: 0
B69: BENEFÍCIOS COMUNS - AUXÍLIO TRANSPORTE
B71: DISTRIBUIÇÃO ESTIMADA DE PROCEDÊNCIA
C72: Cidade-satélite | D72: =100%-D73 -> 0.7681 | E72: =D72 -> 0.7681 | F72: =E72 -> 0.7681 | G72: 0.7681 | H72: 0.7681 | I72: 0.7681
C73: Região do entorno (percentual considerando contrato em andamento) | D73: =ROUND(48/Remunerações!$E$15,4) -> 0.2319 | E73: =D73 -> 0.2319 | F73: 0.2319 | G73: 0.2319 | H73: 0.2319 | I73: 0.2319
C74: Esplanada - apenas para os que vêm do entorno | D74: =D73 -> 0.2319 | E74: 0.2319 | F74: 0.2319 | G74: 0.2319 | H74: 0.2319 | I74: 0.2319
B75: VALORES DOS VALES
C76: Cidade-satélite | D76: 5.5 | E76: =D76 -> 5.5 | F76: =E76 -> 5.5 | G76: 5.5 | H76: 5.5 | I76: 5.5
C77: Região do entorno (média ponderada considerando contrato em andamento) | D77: 9.73 | E77: =D77 -> 9.73 | F77: 9.73 | G77: 9.73 | H77: 9.73 | I77: 9.73
C78: Esplanada | D78: 2.75 | E78: 2.75 | F78: 2.75 | G78: 2.75 | H78: 2.75 | I78: 2.75
B79: VALOR MENSAL BRUTO DE PAGAMENTO - POR POSTO
D80: =ROUND((D72*D76+D73*D77+D74*D78)*2*D17,2) -> 341.7 | E80: =ROUND((E72*E76+E73*E77+E74*E78)*2*E17,2) -> 341.7 | F80: 341.7 | G80: 341.7 | H80: 341.7 | I80: 341.7
B81: PERCENTUAL DE DESCONTO
D82: 0.06 | E82: 0.06 | F82: 0.06 | G82: 0.06 | H82: 0.06 | I82: 0.06
B83: VALOR MENSAL DO DESCONTO - POR POSTO
D84: =ROUND(D82*D12,2) -> 464.69 | E84: =ROUND(E82*E12,2) -> 265.73 | F84: =ROUND(F82*F12,2) -> 209.01 | G84: 155.92 | H84: 182.14 | I84: 121.03
B85: VALOR MENSAL LÍQUIDO DO VALE TRANSPORTE - POR POSTO
D86: =IF(D80>D84,D80-D84,0) -> 0 | E86: 75.97 | F86: =IF(F80>F84,F80-F84,0) -> 132.69 | G86: 185.78 | H86: 159.56 | I86: 220.67
D87: =D86*D14 -> 0 | E87: 2962.54 | F87: 2962.54 | G87: 2962.54 | H87: 2962.54 | I87: 2962.54
B88: BENEFÍCIOS COMUNS - AUXÍLIO ALIMENTAÇÃO
C90: VALOR CCT | D90: 42.2 | E90: =D90 -> 42.2 | F90: =E90 -> 42.2 | G90: =F90 -> 42.2 | H90: =G90 -> 42.2 | I90: =H90 -> 42.2
C91: VALOR CD | D91: 35 | E91: 35 | F91: 35 | G91: 35 | H91: 35 | I91: 35
B92: VALOR MENSAL DO AUXÍLIO ALIMENTAÇÃO - POR POSTO
D93: =ROUND(LARGE(D90:D91,1)*D17,2) -> 1012.8 | E93: =ROUND(LARGE(E90:E91,1)*E17,2) -> 1012.8 | F93: 1012.8 | G93: 1012.8 | H93: 1012.8 | I93: 1012.8
D94: =D93*D14 -> 1012.8 | E94: 10339.56 | F94: 10339.56 | G94: 10339.56 | H94: 10339.56 | I94: 10339.56
B95: BENEFÍCIOS ESPECIAIS - ASSISTÊNCIA MÉDICA E FAMILIAR
C97: OBRIGAÇÃO DE PAGTO | D97: NÃO | E97: NÃO | F97: NÃO | G97: NÃO | H97: NÃO | I97: NÃO
C98: VALOR CCT | D98: 0 | E98: 0 | F98: 0 | G98: 0 | H98: 0 | I98: 0
C99: VALOR MERCADO | D99: 0 | E99: 0 | F99: 0 | G99: 0 | H99: 0 | I99: 0
B100: VALOR MENSAL DO AUXÍLIO ESPECIAL - ASSISTÊNCIA MÉDICA E FAMILIAR - POR POSTO
D101: =IF(D97="SIM",ROUND(SMALL(D98:D99,1),2),0) -> 0 | E101: 0 | F101: =IF(F97="SIM",ROUND(SMALL(F98:F99,1),2),0) -> 0 | G101: 0 | H101: 0 | I101: 0
B103: BENEFÍCIOS ESPECIAIS - SEGURO DE VIDA E AUXÍLIO-FUNERAL, AUX ODONT, AUX CRECHE
B105: SEGURO DE VIDA E AUXÍLIO FUNERAL
C106: OBRIGAÇÃO DE PAGTO | D106: NÃO | E106: NÃO | F106: NÃO | G106: NÃO | H106: NÃO | I106: NÃO
C107: VALOR CCT | D107: 0 | E107: 0 | F107: 0 | G107: 0 | H107: 0 | I107: 0
C108: VALOR MERCADO | D108: 0 | E108: 0 | F108: 0 | G108: 0 | H108: 0 | I108: 0
B109: VALOR MENSAL DO AUXÍLIO ESPECIAL - SEGURO DE VIDA E AUXÍLIO FUNERAL - POR POSTO
D110: =IF(D106="SIM",ROUND(SMALL(D107:D108,1),2),0) -> 0 | E110: 0 | F110: =IF(F106="SIM",ROUND(SMALL(F107:F108,1),2),0) -> 0 | G110: 0 | H110: 0 | I110: 0
B111: AUXÍLIO ODONTOLÓGICO
C112: OBRIGAÇÃO DE PAGTO | D112: NÃO | E112: NÃO | F112: NÃO | G112: NÃO | H112: NÃO | I112: NÃO
C113: VALOR CCT | D113: 0 | E113: 0 | F113: 0 | G113: 0 | H113: 0 | I113: 0
C114: VALOR MERCADO | D114: 0 | E114: 0 | F114: 0 | G114: 0 | H114: 0 | I114: 0
B115: VALOR MENSAL DO AUXÍLIO ODONTOLÓGICO - POR POSTO
D116: =IF(D112="SIM",ROUND(SMALL(D113:D114,1),2)*D17,0) -> 0 | E116: 0 | F116: 0 | G116: 0 | H116: 0 | I116: 0
B117: TOTAL MENSAL DOS AUXÍLIOS ESPECIAIS - POR POSTO
D118: =D116+D110 -> 0 | E118: 0 | F118: =F116+F110 -> 0 | G118: 0 | H118: 0 | I118: 0

Sheet Encargos Sociais
B4: ENCARGOS SOCIAIS SOBRE A MÃO DE OBRA
E5: Percentuais
B7: Referência:
C8: SINAPI OUT/2018
B10: Categorias:
C11: TODAS
B13: GRUPO A: Encargos Sociais Básicos - Previdenciários (GPS), Fundo de Garantia por Tempo de Serviço (FGTS) e Outras Contribuições | E13: =ROUND(SUM(E14:E22),4) -> 0.368
C14: A | D14: INSS (art. 22, inciso I, Lei nº 8.212/91) | E14: 0.2
C15: B | D15: Salário Educação (art. 3º, inciso I, Decreto nº 87.043/82) | E15: 0.025
C16: C | D16: SAT/RAT (art. 22, II, Lei 8.212/91 e Anexo V, Decreto 6.042/07) - Enquadramento 8121-4/00 | E16: 0.03
C17: D | D17: SESC ou SESI (art. 30, Lei nº 8.036/90 e art. 1º, Lei 8.154/90) | E17: 0.015
C18: E | D18: SENAI ou SENAC (Decreto nº 2.318/86) | E18: 0.01
C19: F | D19: SEBRAE (§ 3º, art. 8º, Lei 8.029/90, alterada pela Lei nº 8.154/90) | E19: 0.006 | G19: * Nota 1 - Os percentuais dos encargos previdenciários, do FGTS e demais contribuições são estabelecidos por legislação vigente.
C20: G | D20: INCRA (art. 1º, I, Decreto Lei 1.146/70 e Lei 7.787, de 30/06/89) | E20: 0.002 | G20: * Nota 2 - O SAT, a depender do grau de risco do serviço, irá variar entre 1%, para risco leve, de 2%, para risco médio, e de 3% para risco grave.
C21: H | D21: FGTS (Lei Complementar nº 110/01 e art. 30, Lei nº 8.036/90) | E21: 0.08 | G21: * Nota 3 - Os percentuais do Submódulo 2.2 incidem sobre o Módulo 1, o Submódulo 2.1, o Módulo 3, o Módulo 4 e o Módulo 6.
C22: I | D22: SECONCI (Convenções Coletivas de Trabalho da construção) | E22: 0
B24: GRUPO B: Encargos Sociais Relacionados ao Custo do Profissional Ausente - Ausências Legais | E24: =ROUND(SUM(E25:E33),4) -> 0.2245
C25: A | D25: Férias (Arts. 129 e 130, inc. I, da CLT) | E25: =ROUND(1/11,4) -> 0.0909 | G25: Nota 1 - As alíneas “A” a “F” referem-se ao custo que será pago pela empresa ao profissional ausente (férias e ausências legais)
C26: B | D26: Ausências Legais (Arts. 131 e 473 da CLT) | E26: =ROUND(2/252,4) -> 0.0079 | G26: * Nota 2 - Adotou-se a estimativa do SINAPI de 2 dias por ano. Em 252 dias úteis por ano.
C27: C | D27: Licença-Paternidade (Art. 7º, XIX, e art. 10, §1º, do ADCT, CF/1988 e Art. 1º, II, da Lei 11.770/2008) | E27: =ROUND((5/(30*12))*0.0596,4) -> 0.0008 | G27: * Nota 3 - Utilizada a proporção de 50% para homens, 5 dias de afastamento, e a probabilidade de um trabalhador requerer a Licença Paternidade em 5,96%, conforme SINAPI (Anuário Estatístico da Previdência Social - 2017)
C28: D | D28: Ausência por Acidente de Trabalho (Art. 131, III, da CLT) | E28: =ROUND(0.0205*15/360,4) -> 0.0009 | G28: * Nota 4 - Utilzada a estatística de 2,05% dos contribuintes beneficiados com a emissão do auxílio, conforme Anuário Estatístico da Previdência Social. Afastamento de 15 dias a cargo da empresa.
C29: E | D29: Afastamento Maternidade (Art. 71 da Lei nº 8.213/1991) | E29: =ROUND(0.0508*(120/360)*(30+30*4/3)/360,4) -> 0.0033 | G29: * Nota 5 - Utilizada a estimativa de 120 dias de afastamento, e a probabilidade de uma trabalhadora requerer a Licença Maternidade em 5,08%, conforme SINAPI (citando dados do IBGE 2017) - A própria previdência paga o benefício pelos 120 dias, contudo o empregador arca com o 13º e com as férias
C30: F | D30: Auxílio Enfermidade - Doença (Art. 59 da Lei nº 8.213/1991) | E30: =ROUND(((0.0376*15)+2)/360,4) -> 0.0071 | G30: * Nota 6 - Utilizada a estatística de 3,76% dos contribuintes beneficiados com o auxílio, conforme Anuário Estatístico da Previdência Social de 2016 (acrescidos de 2 dias ao ano, para os quais o trabalhador nem requer o benefício da Previdência - conforme SINAPI)
C31: G | D31: Adicional de Férias (componente do Submódulo 2.1) | E31: =ROUND(1/3*1/11,4) -> 0.0303 | G31: * Nota 7 - O adicional de férias contido no Submódulo 2.1 corresponde a 1/3 da remuneração que, por sua vez, é dividida por 11 contome Nota 1.
C32: H | D32: 13º Salário (destacado na planilha de custos) | E32: =ROUND(1/12,4) -> 0.0833 | G32: * Nota 8 - Provisiona-se, mensalmente, o proporcional a 1/12 dos valores referentes a gratificação natalina e adicional de férias.
C33: I | D33: Intervalo para repouso ou alimentação (componente do Submódulo 4.2) | E33: 0
B35: GRUPO C: Encargos Sociais Relacionados à Previsão para Rescisão Trabalhista | E35: =ROUND(SUM(E36:E41),4) -> 0.0636
C36: A | D36: Aviso Prévio Indenizado (Art. 7º, inciso XXI, da CF/1988 e arts. 477, 487, §1º, e 491 da CLT) | E36: =ROUND(0.1*30/360,4) -> 0.0083 | G36: * Nota 1 - Considerou-se demissões de 10% por ano para substituições, a um prazo estimado de contrato de 3 anos. Aviso prévio - 1º ano 30 dias. Considerou-se os 10% demitidos sem justa causa e recebendo aviso indenizado.
C37: B | D37: Incidência do FGTS sobre o Aviso Prévio Indenizado (Súmula 305 TST) | E37: =ROUND(E21*E36,4) -> 0.0007
C38: C | D38: Multa do FGTS e Contribuição Social sobre o Aviso Prévio Indenizado (Art. 18, §1º, da Lei 8.036/1990 e art. 1º da LC nº 110/2001) | E38: =ROUND((1+1/12+1/12+1/36)*0.4*E21*0.2*0.5,4) -> 0.0038 | G38: * Nota 2 - Incide sobre a Remuneração + 13º salário (1/12) + Férias (1/12) + Adicional de Férias (1/36) x 40% multa para o empregador x 8% FGTS x taxa de rotatividade estimada 20% ao ano, sendo 50% demitidos sem justa causa
C39: D | D39: Aviso Prévio Trabalhado (Art. 488, parágrafo único, CLT) | E39: =ROUND(((7+2*3)*100%/360)/3,4) -> 0.012 | G39: * Nota 3 - Considerou-se demissões de 100% ao final do contrato, com um prazo médio estimado de 3 anos. Assim, calcula-se 7 dias para o 1º ano de contrato e mais 3 dias para os 2 anos seguintes. Total 13 dias.
C40: E | D40: Incidência de GPS, FGTS e outras contribuições sobre o Aviso Prévio Trabalhado | E40: =ROUND(E39*E13,4) -> 0.0044
C41: F | D41: Multa do FGTS e Contribuição Social sobre o Aviso Prévio Trabalhado | E41: =ROUND((1+1/12+1/12+1/36)*0.4*E21*(1-0.2*0.5),4) -> 0.0344 | G41: * Nota 4 - Incide sobre a Remuneração + 13º salário (1/12) + Férias (1/12) + Adicional de Férias (1/36) x 40% multa para o empregador x 8% FGTS x (1- taxa de rotatividade estimada Nota2)
B43: GRUPO D: Reincidências | E43: =ROUND(SUM(E44:E44),4) -> 0.0826
C44: A | D44: Reincidência do Grupo A sobre o Grupo B | E44: =E13*E24 -> 0.082616
D46: SOMATÓRIO - ENCARGOS SOCIAIS SOBRE A MÃO DE OBRA | E46: =E43+E35+E24+E13 -> 0.7387
L53: =SUM(L8:L51) -> 0

Sheet BDI
B3: COMPOSIÇÃO DA TAXA DE CUSTOS INDIRETOS, TRIBUTOS E LUCRO - BDI
B4: APLICAÇÃO: MÃO DE OBRA, 13º, MATERIAIS, EPC E EQUIPAMENTO DE REGISTRO DE FREQUÊNCIA | E4: Percentuais
B6: Custos Indiretos da Contratada | E6: =SUM(E7:E8) -> 0.027
C7: A | D7: Administração Central | E7: 0.0216 | G7: * Nota 1 - O Somatório da Administração Central com o Lucro deve ser inferior a 12%
C8: B | D8: Seguros, Garantias e Riscos | E8: =0.34%+0.2% -> 0.0054 | G8: * Nota 2 - O risco previsto para o porte do contrato majorado em mais 0,20% devido ao não pagamento dos insumos componentes do custo do posto quando da ausência do mesmo.
B10: Lucro | E10: =SUM(E11:E11) -> 0.0334
C11: A | D11: Lucro Real sobre os Custos Administrados | E11: 0.0334
B13: Despesas Financeiras | E13: =E14 -> 0.004466921098
C14: A | D14: Cálculo Baseado no Prazo para a Restituição dos Desembolsos Realizados pelo Contratado e na Taxa de Retorno Arbitrada | E14: =(1+E16)^(E15/252)-1 -> 0.004466921098 | G14: * Nota 1 - DF = [(1+TR)^(DU/252)]/100
C15: A.1 | D15: Dias Úteis Considerados | E15: 11 | G15: * Nota 2 - Diferença de dias entre o desembolso, pelo contratado, e o pagamento, pela Câmara
C16: A.2 | D16: Taxa de Retorno | E16: 0.1075 | G16: * Nota 3 - A taxa sugerida é a meta da SELIC
B18: Impostos - Tributos Federais | E18: =SUM(E19:E21) -> 0.074
C19: A | D19: Contribuição para o Financiamento da Seguridade Social - COFINS | E19: =0.8*7.6% -> 0.0608 | G19: * Nota 1 - Redução de 20% considerando as deduções permitidas em Lei, conforme SENGE, citado pelo TCU - Acórdão 2622/2013
C20: B | D20: Programa de Integração Social - PIS | E20: =0.8*1.65% -> 0.0132 | G20: * Nota 2 - Redução de 20% considerando as deduções permitidas em Lei, conforme SENGE, citado pelo TCU - Acórdão 2622/2013
C21: C | D21: Contribuição Previdenciária sobre a Receita Bruta - CPRB | E21: 0 | G21: * Nota 3 - Lei 12.546/2011 - Verificar atualizações e setores beneficiados
B23: Impostos - Tributos Distritais | E23: =SUM(E24:E24) -> 0.05
C24: A | D24: Imposto sobre Serviço de Qualquer Natureza - ISS | E24: 0.05
D26: SOMATÓRIO - ENCARGOS SOCIAIS SOBRE A MÃO DE OBRA | E26: =ROUND((((1+E6)*(1+E10)*(1+E13)/(1-E18-E23))-1),4) -> 0.2169 | G26: * Nota 1 - [(1+AC+SGR)*(1+L)*(1+DF)/(1-CONFINS-PIS-CPRB-ISS)]-1
L53: =SUM(L8:L51) -> 0

Sheet Uniformes
B4: UNIFORMES - AQUISIÇÃO | L4: 1 | N4: =L4+1 -> 2 | P4: =N4+1 -> 3 | R4: =P4+1 -> 4 | T4: =R4+1 -> 5 | V4: =T4+1 -> 6 | X4: =V4+1 -> 7 | Z4: =X4+1 -> 8 | AB4: =Z4+1 -> 9 | AD4: =AB4+1 -> 10 | AF4: =AD4+1 -> 11 | AH4: =AF4+1 -> 12 | AJ4: =AH4+1 -> 13 | AL4: =AJ4+1 -> 14 | AN4: =AL4+1 -> 15 | AP4: =AN4+1 -> 16 | AR4: =AP4+1 -> 17 | AT4: =AR4+1 -> 18 | AV4: =AT4+1 -> 19 | AX4: =AV4+1 -> 20 | AZ4: =AX4+1 -> 21 | BB4: =AZ4+1 -> 22 | BD4: =BB4+1 -> 23 | BF4: =BD4+1 -> 24 | BH4: =BF4+1 -> 25 | BJ4: =BH4+1 -> 26 | BL4: =BJ4+1 -> 27 | BN4: =BL4+1 -> 28 | BP4: =BN4+1 -> 29 | BR4: =BP4+1 -> 30 | BT4: =BR4+1 -> 31 | BV4: =BT4+1 -> 32 | BX4: =BV4+1 -> 33 | BZ4: =BX4+1 -> 34 | CB4: =BZ4+1 -> 35 | CD4: =CB4+1 -> 36 | CF4: =CD4+1 -> 37 | CH4: =CF4+1 -> 38 | CJ4: =CH4+1 -> 39 | CL4: =CJ4+1 -> 40 | CN4: =CL4+1 -> 41 | CP4: =CN4+1 -> 42 | CR4: =CP4+1 -> 43 | CT4: =CR4+1 -> 44 | CV4: =CT4+1 -> 45 | CX4: =CV4+1 -> 46 | CZ4: =CX4+1 -> 47 | DB4: =CZ4+1 -> 48 | DD4: =DB4+1 -> 49 | DF4: =DD4+1 -> 50 | DH4: =DF4+1 -> 51 | DJ4: =DH4+1 -> 52 | DL4: =DJ4+1 -> 53 | DN4: =DL4+1 -> 54 | DP4: =DN4+1 -> 55 | DR4: =DP4+1 -> 56 | DT4: =DR4+1 -> 57 | DV4: =DT4+1 -> 58 | DX4: =DV4+1 -> 59 | DZ4: =DX4+1 -> 60
L6: =ROUND(SUM(M5:M107),2) -> 1373.36 | N6: =ROUND(SUM(O5:O107),2) -> 1373.36 | P6: =ROUND(SUM(Q5:Q107),2) -> 1354.19 | R6: =ROUND(SUM(S5:S107),2) -> 1354.19 | T6: =ROUND(SUM(U5:U107),2) -> 447.52 | V6: =ROUND(SUM(W5:W107),2) -> 447.52 | X6: =ROUND(SUM(Y5:Y107),2) -> 0 | Z6: =ROUND(SUM(AA5:AA107),2) -> 0 | AB6: =ROUND(SUM(AC5:AC107),2) -> 0 | AD6: =ROUND(SUM(AE5:AE107),2) -> 0 | AF6: =ROUND(SUM(AG5:AG107),2) -> 0 | AH6: =ROUND(SUM(AI5:AI107),2) -> 0 | AJ6: =ROUND(SUM(AK5:AK107),2) -> 0 | AL6: =ROUND(SUM(AM5:AM107),2) -> 0 | AN6: =ROUND(SUM(AO5:AO107),2) -> 0 | AP6: =ROUND(SUM(AQ5:AQ107),2) -> 0 | AR6: =ROUND(SUM(AS5:AS107),2) -> 0 | AT6: =ROUND(SUM(AU5:AU107),2) -> 0 | AV6: =ROUND(SUM(AW5:AW107),2) -> 0 | AX6: =ROUND(SUM(AY5:AY107),2) -> 0 | AZ6: =ROUND(SUM(BA5:BA107),2) -> 0 | BB6: =ROUND(SUM(BC5:BC107),2) -> 0 | BD6: =ROUND(SUM(BE5:BE107),2) -> 0 | BF6: =ROUND(SUM(BG5:BG107),2) -> 0 | BH6: =ROUND(SUM(BI5:BI107),2) -> 0 | BJ6: =ROUND(SUM(BK5:BK107),2) -> 0 | BL6: =ROUND(SUM(BM5:BM107),2) -> 0 | BN6: =ROUND(SUM(BO5:BO107),2) -> 0 | BP6: =ROUND(SUM(BQ5:BQ107),2) -> 0 | BR6: =ROUND(SUM(BS5:BS107),2) -> 0 | BT6: =ROUND(SUM(BU5:BU107),2) -> 0 | BV6: =ROUND(SUM(BW5:BW107),2) -> 0 | BX6: =ROUND(SUM(BY5:BY107),2) -> 0 | BZ6: =ROUND(SUM(CA5:CA107),2) -> 0 | CB6: =ROUND(SUM(CC5:CC107),2) -> 0 | CD6: =ROUND(SUM(CE5:CE107),2) -> 0 | CF6: =ROUND(SUM(CG5:CG107),2) -> 0 | CH6: =ROUND(SUM(CI5:CI107),2) -> 0 | CJ6: =ROUND(SUM(CK5:CK107),2) -> 0 | CL6: =ROUND(SUM(CM5:CM107),2) -> 0 | CN6: =ROUND(SUM(CO5:CO107),2) -> 0 | CP6: =ROUND(SUM(CQ5:CQ107),2) -> 0 | CR6: =ROUND(SUM(CS5:CS107),2) -> 0 | CT6: =ROUND(SUM(CU5:CU107),2) -> 0 | CV6: =ROUND(SUM(CW5:CW107),2) -> 0 | CX6: =ROUND(SUM(CY5:CY107),2) -> 0 | CZ6: =ROUND(SUM(DA5:DA107),2) -> 0 | DB6: =ROUND(SUM(DC5:DC107),2) -> 0 | DD6: =ROUND(SUM(DE5:DE107),2) -> 0 | DF6: =ROUND(SUM(DG5:DG107),2) -> 0 | DH6: =ROUND(SUM(DI5:DI107),2) -> 0 | DJ6: =ROUND(SUM(DK5:DK107),2) -> 0 | DL6: =ROUND(SUM(DM5:DM107),2) -> 0 | DN6: =ROUND(SUM(DO5:DO107),2) -> 0 | DP6: =ROUND(SUM(DQ5:DQ107),2) -> 0 | DR6: =ROUND(SUM(DS5:DS107),2) -> 0 | DT6: =ROUND(SUM(DU5:DU107),2) -> 0 | DV6: =ROUND(SUM(DW5:DW107),2) -> 0 | DX6: =ROUND(SUM(DY5:DY107),2) -> 0 | DZ6: =ROUND(SUM(EA5:EA107),2) -> 0
C7: CATEGORIAS | I7: QUANTIDADE
L8: =IF($C8=L$4,1,0) -> 0
C9: 1 | D9: =HLOOKUP($C9,'Dados Gerais'!$D$5:$BK$10,6) -> ENCARREGADO GERAL | I9: 1 | L9: 1 | N9: =IF($C9=N$4,1,0) -> 0 | P9: =IF($C9=P$4,1,0) -> 0 | R9: =IF($C9=R$4,1,0) -> 0 | T9: =IF($C9=T$4,1,0) -> 0 | V9: =IF($C9=V$4,1,0) -> 0 | X9: =IF($C9=X$4,1,0) -> 0 | Z9: =IF($C9=Z$4,1,0) -> 0 | AB9: =IF($C9=AB$4,1,0) -> 0 | AD9: =IF($C9=AD$4,1,0) -> 0 | AF9: =IF($C9=AF$4,1,0) -> 0 | AH9: =IF($C9=AH$4,1,0) -> 0 | AJ9: =IF($C9=AJ$4,1,0) -> 0 | AL9: =IF($C9=AL$4,1,0) -> 0 | AN9: =IF($C9=AN$4,1,0) -> 0 | AP9: =IF($C9=AP$4,1,0) -> 0 | AR9: =IF($C9=AR$4,1,0) -> 0 | AT9: =IF($C9=AT$4,1,0) -> 0 | AV9: =IF($C9=AV$4,1,0) -> 0 | AX9: =IF($C9=AX$4,1,0) -> 0 | AZ9: =IF($C9=AZ$4,1,0) -> 0 | BB9: =IF($C9=BB$4,1,0) -> 0 | BD9: =IF($C9=BD$4,1,0) -> 0 | BF9: =IF($C9=BF$4,1,0) -> 0 | BH9: =IF($C9=BH$4,1,0) -> 0 | BJ9: =IF($C9=BJ$4,1,0) -> 0 | BL9: =IF($C9=BL$4,1,0) -> 0 | BN9: =IF($C9=BN$4,1,0) -> 0 | BP9: =IF($C9=BP$4,1,0) -> 0 | BR9: =IF($C9=BR$4,1,0) -> 0 | BT9: =IF($C9=BT$4,1,0) -> 0 | BV9: =IF($C9=BV$4,1,0) -> 0 | BX9: =IF($C9=BX$4,1,0) -> 0 | BZ9: =IF($C9=BZ$4,1,0) -> 0 | CB9: =IF($C9=CB$4,1,0) -> 0 | CD9: =IF($C9=CD$4,1,0) -> 0 | CF9: =IF($C9=CF$4,1,0) -> 0 | CH9: =IF($C9=CH$4,1,0) -> 0 | CJ9: =IF($C9=CJ$4,1,0) -> 0 | CL9: =IF($C9=CL$4,1,0) -> 0 | CN9: =IF($C9=CN$4,1,0) -> 0 | CP9: =IF($C9=CP$4,1,0) -> 0 | CR9: =IF($C9=CR$4,1,0) -> 0 | CT9: =IF($C9=CT$4,1,0) -> 0 | CV9: =IF($C9=CV$4,1,0) -> 0 | CX9: =IF($C9=CX$4,1,0) -> 0 | CZ9: =IF($C9=CZ$4,1,0) -> 0 | DB9: =IF($C9=DB$4,1,0) -> 0 | DD9: =IF($C9=DD$4,1,0) -> 0 | DF9: =IF($C9=DF$4,1,0) -> 0 | DH9: =IF($C9=DH$4,1,0) -> 0 | DJ9: =IF($C9=DJ$4,1,0) -> 0 | DL9: =IF($C9=DL$4,1,0) -> 0 | DN9: =IF($C9=DN$4,1,0) -> 0 | DP9: =IF($C9=DP$4,1,0) -> 0 | DR9: =IF($C9=DR$4,1,0) -> 0 | DT9: =IF($C9=DT$4,1,0) -> 0 | DV9: =IF($C9=DV$4,1,0) -> 0 | DX9: =IF($C9=DX$4,1,0) -> 0 | DZ9: =IF($C9=DZ$4,1,0) -> 0
C10: 2 | D10: =HLOOKUP($C10,'Dados Gerais'!$D$5:$BK$10,6) -> ENCARREGADO SETORIAL | I10: =HLOOKUP($C10,'Dados Gerais'!$D$5:$BK$14,10) -> 2 | L10: =IF($C10=L$4,1,0) -> 0 | N10: 1 | P10: 0 | R10: 0 | T10: 0 | V10: 0 | X10: 0 | Z10: 0 | AB10: 0 | AD10: 0 | AF10: 0 | AH10: 0 | AJ10: 0 | AL10: 0 | AN10: 0 | AP10: 0 | AR10: 0 | AT10: 0 | AV10: 0 | AX10: 0 | AZ10: 0 | BB10: 0 | BD10: 0 | BF10: 0 | BH10: 0 | BJ10: 0 | BL10: 0 | BN10: 0 | BP10: 0 | BR10: 0 | BT10: 0 | BV10: 0 | BX10: 0 | BZ10: 0 | CB10: 0 | CD10: 0 | CF10: 0 | CH10: 0 | CJ10: 0 | CL10: 0 | CN10: 0 | CP10: 0 | CR10: 0 | CT10: 0 | CV10: 0 | CX10: 0 | CZ10: 0 | DB10: 0 | DD10: 0 | DF10: 0 | DH10: 0 | DJ10: 0 | DL10: 0 | DN10: 0 | DP10: 0 | DR10: 0 | DT10: 0 | DV10: 0 | DX10: 0 | DZ10: 0
L11: 0
C13: ITEM | D13: DESCRIÇÃO | E13: QUANT ANUAL POR POSTO | F13: % ESTIMADO POR GÊNERO | G13: Nº DE POSTOS | H13: QUANT ANUAL TOTAL ESTIMADA | I13: VALOR
M14: =IF(SUM(L$8:L$11)>0,$E14*$I14,0) -> 0 | O14: =IF(SUM(N$8:N$11)>0,$E14*$I14,0) -> 0 | Q14: =IF(SUM(P$8:P$11)>0,$E14*$I14,0) -> 0 | S14: =IF(SUM(R$8:R$11)>0,$E14*$I14,0) -> 0 | U14: =IF(SUM(T$8:T$11)>0,$E14*$I14,0) -> 0 | W14: =IF(SUM(V$8:V$11)>0,$E14*$I14,0) -> 0 | Y14: =IF(SUM(X$8:X$11)>0,$E14*$I14,0) -> 0 | AA14: =IF(SUM(Z$8:Z$11)>0,$E14*$I14,0) -> 0 | AC14: =IF(SUM(AB$8:AB$11)>0,$E14*$I14,0) -> 0 | AE14: =IF(SUM(AD$8:AD$11)>0,$E14*$I14,0) -> 0 | AG14: =IF(SUM(AF$8:AF$11)>0,$E14*$I14,0) -> 0 | AI14: =IF(SUM(AH$8:AH$11)>0,$E14*$I14,0) -> 0 | AK14: =IF(SUM(AJ$8:AJ$11)>0,$E14*$I14,0) -> 0 | AM14: =IF(SUM(AL$8:AL$11)>0,$E14*$I14,0) -> 0 | AO14: =IF(SUM(AN$8:AN$11)>0,$E14*$I14,0) -> 0 | AQ14: =IF(SUM(AP$8:AP$11)>0,$E14*$I14,0) -> 0 | AS14: =IF(SUM(AR$8:AR$11)>0,$E14*$I14,0) -> 0 | AU14: =IF(SUM(AT$8:AT$11)>0,$E14*$I14,0) -> 0 | AW14: =IF(SUM(AV$8:AV$11)>0,$E14*$I14,0) -> 0 | AY14: =IF(SUM(AX$8:AX$11)>0,$E14*$I14,0) -> 0 | BA14: =IF(SUM(AZ$8:AZ$11)>0,$E14*$I14,0) -> 0 | BC14: =IF(SUM(BB$8:BB$11)>0,$E14*$I14,0) -> 0 | BE14: =IF(SUM(BD$8:BD$11)>0,$E14*$I14,0) -> 0 | BG14: =IF(SUM(BF$8:BF$11)>0,$E14*$I14,0) -> 0 | BI14: =IF(SUM(BH$8:BH$11)>0,$E14*$I14,0) -> 0 | BK14: =IF(SUM(BJ$8:BJ$11)>0,$E14*$I14,0) -> 0 | BM14: =IF(SUM(BL$8:BL$11)>0,$E14*$I14,0) -> 0 | BO14: =IF(SUM(BN$8:BN$11)>0,$E14*$I14,0) -> 0 | BQ14: =IF(SUM(BP$8:BP$11)>0,$E14*$I14,0) -> 0 | BS14: =IF(SUM(BR$8:BR$11)>0,$E14*$I14,0) -> 0 | BU14: =IF(SUM(BT$8:BT$11)>0,$E14*$I14,0) -> 0 | BW14: =IF(SUM(BV$8:BV$11)>0,$E14*$I14,0) -> 0 | BY14: =IF(SUM(BX$8:BX$11)>0,$E14*$I14,0) -> 0 | CA14: =IF(SUM(BZ$8:BZ$11)>0,$E14*$I14,0) -> 0 | CC14: =IF(SUM(CB$8:CB$11)>0,$E14*$I14,0) -> 0 | CE14: =IF(SUM(CD$8:CD$11)>0,$E14*$I14,0) -> 0 | CG14: =IF(SUM(CF$8:CF$11)>0,$E14*$I14,0) -> 0 | CI14: =IF(SUM(CH$8:CH$11)>0,$E14*$I14,0) -> 0 | CK14: =IF(SUM(CJ$8:CJ$11)>0,$E14*$I14,0) -> 0 | CM14: =IF(SUM(CL$8:CL$11)>0,$E14*$I14,0) -> 0 | CO14: =IF(SUM(CN$8:CN$11)>0,$E14*$I14,0) -> 0 | CQ14: =IF(SUM(CP$8:CP$11)>0,$E14*$I14,0) -> 0 | CS14: =IF(SUM(CR$8:CR$11)>0,$E14*$I14,0) -> 0 | CU14: =IF(SUM(CT$8:CT$11)>0,$E14*$I14,0) -> 0 | CW14: =IF(SUM(CV$8:CV$11)>0,$E14*$I14,0) -> 0 | CY14: =IF(SUM(CX$8:CX$11)>0,$E14*$I14,0) -> 0 | DA14: =IF(SUM(CZ$8:CZ$11)>0,$E14*$I14,0) -> 0 | DC14: =IF(SUM(DB$8:DB$11)>0,$E14*$I14,0) -> 0 | DE14: =IF(SUM(DD$8:DD$11)>0,$E14*$I14,0) -> 0 | DG14: =IF(SUM(DF$8:DF$11)>0,$E14*$I14,0) -> 0 | DI14: =IF(SUM(DH$8:DH$11)>0,$E14*$I14,0) -> 0 | DK14: =IF(SUM(DJ$8:DJ$11)>0,$E14*$I14,0) -> 0 | DM14: =IF(SUM(DL$8:DL$11)>0,$E14*$I14,0) -> 0 | DO14: =IF(SUM(DN$8:DN$11)>0,$E14*$I14,0) -> 0 | DQ14: =IF(SUM(DP$8:DP$11)>0,$E14*$I14,0) -> 0 | DS14: =IF(SUM(DR$8:DR$11)>0,$E14*$I14,0) -> 0 | DU14: =IF(SUM(DT$8:DT$11)>0,$E14*$I14,0) -> 0 | DW14: =IF(SUM(DV$8:DV$11)>0,$E14*$I14,0) -> 0 | DY14: =IF(SUM(DX$8:DX$11)>0,$E14*$I14,0) -> 0 | EA14: =IF(SUM(DZ$8:DZ$11)>0,$E14*$I14,0) -> 0
C15: MASCULINO | D15: Calça social na cor azul noite, em tecido gabardine, 70% poliéster e 30% algodão | E15: 4 | F15: =ROUNDUP(1/2,2) -> 0.5 | G15: =SUM($I$9:$I$10) -> 3 | H15: =ROUNDUP(E15*F15*G15,0) -> 6 | I15: 97.45 | M15: =IF(SUM(L$8:L$11)>0,$H15*$I15,0)/SUM($I$9:$I$10) -> 194.9 | O15: =IF(SUM(N$8:N$11)>0,$H15*$I15,0)/SUM($I$9:$I$10) -> 194.9 | Q15: =IF(SUM(P$8:P$11)>0,$H15*$I15,0)/SUM($I$9:$I$10) -> 0 | S15: =IF(SUM(R$8:R$11)>0,$H15*$I15,0) -> 0 | U15: =IF(SUM(T$8:T$11)>0,$H15*$I15,0) -> 0 | W15: =IF(SUM(V$8:V$11)>0,$H15*$I15,0) -> 0 | Y15: =IF(SUM(X$8:X$11)>0,$H15*$I15,0) -> 0 | AA15: =IF(SUM(Z$8:Z$11)>0,$H15*$I15,0) -> 0 | AC15: =IF(SUM(AB$8:AB$11)>0,$H15*$I15,0) -> 0 | AE15: =IF(SUM(AD$8:AD$11)>0,$H15*$I15,0) -> 0 | AG15: 0 | AI15: 0 | AK15: 0 | AM15: 0 | AO15: 0 | AQ15: 0 | AS15: 0 | AU15: =IF(SUM(AT$8:AT$11)>0,$H15*$I15,0) -> 0 | AW15: 0 | AY15: 0 | BA15: 0 | BC15: 0 | BE15: 0 | BG15: 0 | BI15: 0 | BK15: 0 | BM15: 0 | BO15: 0 | BQ15: 0 | BS15: 0 | BU15: 0 | BW15: 0 | BY15: 0 | CA15: 0 | CC15: 0 | CE15: 0 | CG15: 0 | CI15: 0 | CK15: 0 | CM15: 0 | CO15: 0 | CQ15: 0 | CS15: 0 | CU15: 0 | CW15: 0 | CY15: 0 | DA15: 0 | DC15: 0 | DE15: 0 | DG15: =IF(SUM(DF$8:DF$11)>0,$H15*$I15,0) -> 0 | DI15: 0 | DK15: 0 | DM15: 0 | DO15: 0 | DQ15: 0 | DS15: 0 | DU15: 0 | DW15: 0 | DY15: 0 | EA15: 0
D16: Camisa social na cor azul claro, em tecido tricoline, 100% algodão | E16: 4 | F16: =F15 -> 0.5 | G16: 3 | H16: =ROUNDUP(E16*F16*G16,0) -> 6 | I16: 79.5 | M16: =IF(SUM(L$8:L$11)>0,$H16*$I16,0)/SUM($I$9:$I$10) -> 159 | O16: =IF(SUM(N$8:N$11)>0,$H16*$I16,0)/SUM($I$9:$I$10) -> 159 | Q16: 0 | S16: 0 | U16: 0 | W16: 0 | Y16: 0 | AA16: 0 | AC16: 0 | AE16: 0 | AG16: =IF(SUM(AF$8:AF$11)>0,$H16*$I16,0) -> 0 | AI16: 0 | AK16: 0 | AM16: 0 | AO16: 0 | AQ16: 0 | AS16: 0 | AU16: 0 | AW16: 0 | AY16: 0 | BA16: 0 | BC16: 0 | BE16: 0 | BG16: 0 | BI16: 0 | BK16: 0 | BM16: 0 | BO16: 0 | BQ16: 0 | BS16: 0 | BU16: 0 | BW16: 0 | BY16: 0 | CA16: 0 | CC16: 0 | CE16: 0 | CG16: 0 | CI16: 0 | CK16: 0 | CM16: 0 | CO16: 0 | CQ16: 0 | CS16: 0 | CU16: 0 | CW16: 0 | CY16: 0 | DA16: 0 | DC16: 0 | DE16: 0 | DG16: 0 | DI16: 0 | DK16: 0 | DM16: 0 | DO16: 0 | DQ16: 0 | DS16: 0 | DU16: 0 | DW16: 0 | DY16: 0 | EA16: 0
D17: Cinto em couro na cor preta | E17: 2 | F17: =F16 -> 0.5 | G17: 3 | H17: 3 | I17: 59.18 | M17: 59.18 | O17: =IF(SUM(N$8:N$11)>0,$H17*$I17,0)/SUM($I$9:$I$10) -> 59.18 | Q17: 0 | S17: 0 | U17: 0 | W17: 0 | Y17: 0 | AA17: 0 | AC17: 0 | AE17: 0 | AG17: 0 | AI17: 0 | AK17: 0 | AM17: 0 | AO17: 0 | AQ17: 0 | AS17: 0 | AU17: 0 | AW17: 0 | AY17: 0 | BA17: 0 | BC17: 0 | BE17: 0 | BG17: 0 | BI17: 0 | BK17: 0 | BM17: 0 | BO17: 0 | BQ17: 0 | BS17: 0 | BU17: 0 | BW17: 0 | BY17: 0 | CA17: 0 | CC17: 0 | CE17: 0 | CG17: 0 | CI17: 0 | CK17: 0 | CM17: 0 | CO17: 0 | CQ17: 0 | CS17: 0 | CU17: 0 | CW17: 0 | CY17: 0 | DA17: 0 | DC17: 0 | DE17: 0 | DG17: 0 | DI17: 0 | DK17: 0 | DM17: 0 | DO17: 0 | DQ17: 0 | DS17: 0 | DU17: 0 | DW17: 0 | DY17: 0 | EA17: 0
D18: Meia social na cor preta | E18: 4 | F18: 0.5 | G18: 3 | H18: 6 | I18: 11.54 | M18: 23.08 | O18: =IF(SUM(N$8:N$11)>0,$H18*$I18,0)/SUM($I$9:$I$10) -> 23.08 | Q18: 0 | S18: 0 | U18: 0 | W18: 0 | Y18: 0 | AA18: 0 | AC18: 0 | AE18: 0 | AG18: 0 | AI18: 0 | AK18: 0 | AM18: 0 | AO18: 0 | AQ18: 0 | AS18: 0 | AU18: 0 | AW18: 0 | AY18: 0 | BA18: 0 | BC18: 0 | BE18: 0 | BG18: 0 | BI18: 0 | BK18: 0 | BM18: 0 | BO18: 0 | BQ18: 0 | BS18: 0 | BU18: 0 | BW18: 0 | BY18: 0 | CA18: 0 | CC18: 0 | CE18: 0 | CG18: 0 | CI18: 0 | CK18: 0 | CM18: 0 | CO18: 0 | CQ18: 0 | CS18: 0 | CU18: 0 | CW18: 0 | CY18: 0 | DA18: 0 | DC18: 0 | DE18: 0 | DG18: 0 | DI18: 0 | DK18: 0 | DM18: 0 | DO18: 0 | DQ18: 0 | DS18: 0 | DU18: 0 | DW18: 0 | DY18: 0 | EA18: 0
D19: Sapato social preto, em couro acolchoado, com solo antiderrapante | E19: 4 | F19: 0.5 | G19: 3 | H19: 6 | I19: 153.95 | M19: 307.9 | O19: =IF(SUM(N$8:N$11)>0,$H19*$I19,0)/SUM($I$9:$I$10) -> 307.9 | Q19: 0 | S19: 0 | U19: 0 | W19: 0 | Y19: 0 | AA19: 0 | AC19: 0 | AE19: 0 | AG19: 0 | AI19: 0 | AK19: 0 | AM19: 0 | AO19: 0 | AQ19: 0 | AS19: 0 | AU19: 0 | AW19: 0 | AY19: 0 | BA19: 0 | BC19: 0 | BE19: 0 | BG19: 0 | BI19: 0 | BK19: 0 | BM19: 0 | BO19: 0 | BQ19: 0 | BS19: 0 | BU19: 0 | BW19: 0 | BY19: 0 | CA19: 0 | CC19: 0 | CE19: 0 | CG19: 0 | CI19: 0 | CK19: 0 | CM19: 0 | CO19: 0 | CQ19: 0 | CS19: 0 | CU19: 0 | CW19: 0 | CY19: 0 | DA19: 0 | DC19: 0 | DE19: 0 | DG19: 0 | DI19: 0 | DK19: 0 | DM19: 0 | DO19: 0 | DQ19: 0 | DS19: 0 | DU19: 0 | DW19: 0 | DY19: 0 | EA19: 0
C20: FEMININO | D20: Saia social na cor azul noite, em tecido gabardine, 70% poliéster e 30% algodão | E20: =E15 -> 4 | F20: 0.5 | G20: 3 | H20: 6 | I20: 82.45 | M20: =IF(SUM(L$8:L$11)>0,$H20*$I20,0)/SUM($I$9:$I$10) -> 164.9 | O20: =IF(SUM(N$8:N$11)>0,$H20*$I20,0)/SUM($I$9:$I$10) -> 164.9 | Q20: 0 | S20: 0 | U20: 0 | W20: 0 | Y20: 0 | AA20: 0 | AC20: 0 | AE20: 0 | AG20: 0 | AI20: 0 | AK20: 0 | AM20: 0 | AO20: 0 | AQ20: 0 | AS20: 0 | AU20: 0 | AW20: 0 | AY20: 0 | BA20: 0 | BC20: 0 | BE20: 0 | BG20: 0 | BI20: 0 | BK20: 0 | BM20: 0 | BO20: 0 | BQ20: 0 | BS20: 0 | BU20: 0 | BW20: 0 | BY20: 0 | CA20: 0 | CC20: 0 | CE20: 0 | CG20: 0 | CI20: 0 | CK20: 0 | CM20: 0 | CO20: 0 | CQ20: 0 | CS20: 0 | CU20: 0 | CW20: 0 | CY20: 0 | DA20: 0 | DC20: 0 | DE20: 0 | DG20: 0 | DI20: 0 | DK20: 0 | DM20: 0 | DO20: 0 | DQ20: 0 | DS20: 0 | DU20: 0 | DW20: 0 | DY20: 0 | EA20: 0
D21: Camisa social na cor azul claro, em tecido tricoline, 100% algodão | E21: =E16 -> 4 | F21: 0.5 | G21: 3 | H21: 6 | I21: 74.95 | M21: 149.9 | O21: =IF(SUM(N$8:N$11)>0,$H21*$I21,0)/SUM($I$9:$I$10) -> 149.9 | Q21: 0 | S21: 0 | U21: 0 | W21: 0 | Y21: 0 | AA21: 0 | AC21: 0 | AE21: 0 | AG21: 0 | AI21: 0 | AK21: 0 | AM21: 0 | AO21: 0 | AQ21: 0 | AS21: 0 | AU21: 0 | AW21: 0 | AY21: 0 | BA21: 0 | BC21: 0 | BE21: 0 | BG21: 0 | BI21: 0 | BK21: 0 | BM21: 0 | BO21: 0 | BQ21: 0 | BS21: 0 | BU21: 0 | BW21: 0 | BY21: 0 | CA21: 0 | CC21: 0 | CE21: 0 | CG21: 0 | CI21: 0 | CK21: 0 | CM21: 0 | CO21: 0 | CQ21: 0 | CS21: 0 | CU21: 0 | CW21: 0 | CY21: 0 | DA21: 0 | DC21: 0 | DE21: 0 | DG21: 0 | DI21: 0 | DK21: 0 | DM21: 0 | DO21: 0 | DQ21: 0 | DS21: 0 | DU21: 0 | DW21: 0 | DY21: 0 | EA21: 0
D22: Cinto em couro na cor preta | E22: =E17 -> 2 | F22: 0.5 | G22: 3 | H22: 3 | I22: 62.5 | M22: 62.5 | O22: =IF(SUM(N$8:N$11)>0,$H22*$I22,0)/SUM($I$9:$I$10) -> 62.5 | Q22: 0 | S22: 0 | U22: 0 | W22: 0 | Y22: 0 | AA22: 0 | AC22: 0 | AE22: 0 | AG22: =IF(SUM(AF$8:AF$11)>0,$H22*$I22,0) -> 0 | AI22: 0 | AK22: 0 | AM22: 0 | AO22: 0 | AQ22: 0 | AS22: 0 | AU22: 0 | AW22: 0 | AY22: 0 | BA22: 0 | BC22: 0 | BE22: 0 | BG22: 0 | BI22: 0 | BK22: 0 | BM22: 0 | BO22: 0 | BQ22: 0 | BS22: 0 | BU22: 0 | BW22: 0 | BY22: 0 | CA22: 0 | CC22: 0 | CE22: 0 | CG22: 0 | CI22: 0 | CK22: 0 | CM22: 0 | CO22: 0 | CQ22: 0 | CS22: =IF(SUM(CR$8:CR$11)>0,$H22*$I22,0) -> 0 | CU22: 0 | CW22: 0 | CY22: 0 | DA22: 0 | DC22: 0 | DE22: 0 | DG22: 0 | DI22: 0 | DK22: 0 | DM22: 0 | DO22: 0 | DQ22: 0 | DS22: 0 | DU22: 0 | DW22: 0 | DY22: 0 | EA22: 0
D23: Meia social na cor preta | E23: =E18 -> 4 | F23: 0.5 | G23: 3 | H23: 6 | I23: 21 | M23: 42 | O23: =IF(SUM(N$8:N$11)>0,$H23*$I23,0)/SUM($I$9:$I$10) -> 42 | Q23: 0 | S23: 0 | U23: 0 | W23: 0 | Y23: 0 | AA23: 0 | AC23: 0 | AE23: 0 | AG23: 0 | AI23: 0 | AK23: 0 | AM23: 0 | AO23: 0 | AQ23: 0 | AS23: 0 | AU23: 0 | AW23: 0 | AY23: 0 | BA23: 0 | BC23: 0 | BE23: 0 | BG23: 0 | BI23: 0 | BK23: 0 | BM23: 0 | BO23: 0 | BQ23: 0 | BS23: 0 | BU23: 0 | BW23: 0 | BY23: 0 | CA23: 0 | CC23: 0 | CE23: 0 | CG23: 0 | CI23: 0 | CK23: 0 | CM23: 0 | CO23: 0 | CQ23: 0 | CS23: 0 | CU23: 0 | CW23: 0 | CY23: 0 | DA23: 0 | DC23: 0 | DE23: 0 | DG23: 0 | DI23: 0 | DK23: 0 | DM23: 0 | DO23: 0 | DQ23: 0 | DS23: 0 | DU23: 0 | DW23: 0 | DY23: 0 | EA23: 0
D24: Sapato social preto, em couro acolchoado, com solo antiderrapante | E24: =E19 -> 4 | F24: 0.5 | G24: 3 | H24: 6 | I24: 105 | M24: 210 | O24: =IF(SUM(N$8:N$11)>0,$H24*$I24,0)/SUM($I$9:$I$10) -> 210 | Q24: 0 | S24: 0 | U24: 0 | W24: 0 | Y24: 0 | AA24: 0 | AC24: 0 | AE24: 0 | AG24: 0 | AI24: 0 | AK24: 0 | AM24: 0 | AO24: 0 | AQ24: 0 | AS24: 0 | AU24: 0 | AW24: 0 | AY24: 0 | BA24: 0 | BC24: 0 | BE24: 0 | BG24: 0 | BI24: 0 | BK24: 0 | BM24: 0 | BO24: 0 | BQ24: 0 | BS24: 0 | BU24: 0 | BW24: 0 | BY24: 0 | CA24: 0 | CC24: 0 | CE24: 0 | CG24: 0 | CI24: 0 | CK24: 0 | CM24: 0 | CO24: 0 | CQ24: 0 | CS24: 0 | CU24: 0 | CW24: 0 | CY24: 0 | DA24: 0 | DC24: 0 | DE24: 0 | DG24: 0 | DI24: 0 | DK24: 0 | DM24: 0 | DO24: 0 | DQ24: 0 | DS24: 0 | DU24: 0 | DW24: 0 | DY24: 0 | EA24: 0
M25: =IF(SUM(L$8:L$11)>0,$E25*$I25,0) -> 0 | O25: =IF(SUM(N$8:N$11)>0,$E25*$I25,0) -> 0 | Q25: =IF(SUM(P$8:P$11)>0,$E25*$I25,0) -> 0 | S25: =IF(SUM(R$8:R$11)>0,$E25*$I25,0) -> 0 | U25: =IF(SUM(T$8:T$11)>0,$E25*$I25,0) -> 0 | W25: =IF(SUM(V$8:V$11)>0,$E25*$I25,0) -> 0 | Y25: =IF(SUM(X$8:X$11)>0,$E25*$I25,0) -> 0 | AA25: =IF(SUM(Z$8:Z$11)>0,$E25*$I25,0) -> 0 | AC25: =IF(SUM(AB$8:AB$11)>0,$E25*$I25,0) -> 0 | AE25: =IF(SUM(AD$8:AD$11)>0,$E25*$I25,0) -> 0 | AG25: =IF(SUM(AF$8:AF$11)>0,$E25*$I25,0) -> 0 | AI25: =IF(SUM(AH$8:AH$11)>0,$E25*$I25,0) -> 0 | AK25: =IF(SUM(AJ$8:AJ$11)>0,$E25*$I25,0) -> 0 | AM25: =IF(SUM(AL$8:AL$11)>0,$E25*$I25,0) -> 0 | AO25: =IF(SUM(AN$8:AN$11)>0,$E25*$I25,0) -> 0 | AQ25: =IF(SUM(AP$8:AP$11)>0,$E25*$I25,0) -> 0 | AS25: =IF(SUM(AR$8:AR$11)>0,$E25*$I25,0) -> 0 | AU25: =IF(SUM(AT$8:AT$11)>0,$E25*$I25,0) -> 0 | AW25: =IF(SUM(AV$8:AV$11)>0,$E25*$I25,0) -> 0 | AY25: =IF(SUM(AX$8:AX$11)>0,$E25*$I25,0) -> 0 | BA25: =IF(SUM(AZ$8:AZ$11)>0,$E25*$I25,0) -> 0 | BC25: =IF(SUM(BB$8:BB$11)>0,$E25*$I25,0) -> 0 | BE25: =IF(SUM(BD$8:BD$11)>0,$E25*$I25,0) -> 0 | BG25: =IF(SUM(BF$8:BF$11)>0,$E25*$I25,0) -> 0 | BI25: =IF(SUM(BH$8:BH$11)>0,$E25*$I25,0) -> 0 | BK25: =IF(SUM(BJ$8:BJ$11)>0,$E25*$I25,0) -> 0 | BM25: =IF(SUM(BL$8:BL$11)>0,$E25*$I25,0) -> 0 | BO25: =IF(SUM(BN$8:BN$11)>0,$E25*$I25,0) -> 0 | BQ25: =IF(SUM(BP$8:BP$11)>0,$E25*$I25,0) -> 0 | BS25: =IF(SUM(BR$8:BR$11)>0,$E25*$I25,0) -> 0 | BU25: =IF(SUM(BT$8:BT$11)>0,$E25*$I25,0) -> 0 | BW25: =IF(SUM(BV$8:BV$11)>0,$E25*$I25,0) -> 0 | BY25: =IF(SUM(BX$8:BX$11)>0,$E25*$I25,0) -> 0 | CA25: =IF(SUM(BZ$8:BZ$11)>0,$E25*$I25,0) -> 0 | CC25: =IF(SUM(CB$8:CB$11)>0,$E25*$I25,0) -> 0 | CE25: =IF(SUM(CD$8:CD$11)>0,$E25*$I25,0) -> 0 | CG25: =IF(SUM(CF$8:CF$11)>0,$E25*$I25,0) -> 0 | CI25: =IF(SUM(CH$8:CH$11)>0,$E25*$I25,0) -> 0 | CK25: =IF(SUM(CJ$8:CJ$11)>0,$E25*$I25,0) -> 0 | CM25: =IF(SUM(CL$8:CL$11)>0,$E25*$I25,0) -> 0 | CO25: =IF(SUM(CN$8:CN$11)>0,$E25*$I25,0) -> 0 | CQ25: =IF(SUM(CP$8:CP$11)>0,$E25*$I25,0) -> 0 | CS25: =IF(SUM(CR$8:CR$11)>0,$E25*$I25,0) -> 0 | CU25: =IF(SUM(CT$8:CT$11)>0,$E25*$I25,0) -> 0 | CW25: =IF(SUM(CV$8:CV$11)>0,$E25*$I25,0) -> 0 | CY25: =IF(SUM(CX$8:CX$11)>0,$E25*$I25,0) -> 0 | DA25: =IF(SUM(CZ$8:CZ$11)>0,$E25*$I25,0) -> 0 | DC25: =IF(SUM(DB$8:DB$11)>0,$E25*$I25,0) -> 0 | DE25: =IF(SUM(DD$8:DD$11)>0,$E25*$I25,0) -> 0 | DG25: =IF(SUM(DF$8:DF$11)>0,$E25*$I25,0) -> 0 | DI25: =IF(SUM(DH$8:DH$11)>0,$E25*$I25,0) -> 0 | DK25: =IF(SUM(DJ$8:DJ$11)>0,$E25*$I25,0) -> 0 | DM25: =IF(SUM(DL$8:DL$11)>0,$E25*$I25,0) -> 0 | DO25: =IF(SUM(DN$8:DN$11)>0,$E25*$I25,0) -> 0 | DQ25: =IF(SUM(DP$8:DP$11)>0,$E25*$I25,0) -> 0 | DS25: =IF(SUM(DR$8:DR$11)>0,$E25*$I25,0) -> 0 | DU25: =IF(SUM(DT$8:DT$11)>0,$E25*$I25,0) -> 0 | DW25: =IF(SUM(DV$8:DV$11)>0,$E25*$I25,0) -> 0 | DY25: =IF(SUM(DX$8:DX$11)>0,$E25*$I25,0) -> 0 | EA25: =IF(SUM(DZ$8:DZ$11)>0,$E25*$I25,0) -> 0
C27: CATEGORIAS | I27: QUANTIDADE
L28: =IF($C28=L$4,1,0) -> 0 | N28: =IF($C28=N$4,1,0) -> 0 | P28: =IF($C28=P$4,1,0) -> 0 | R28: =IF($C28=R$4,1,0) -> 0 | T28: =IF($C28=T$4,1,0) -> 0 | V28: =IF($C28=V$4,1,0) -> 0 | X28: =IF($C28=X$4,1,0) -> 0 | Z28: =IF($C28=Z$4,1,0) -> 0 | AB28: =IF($C28=AB$4,1,0) -> 0 | AD28: =IF($C28=AD$4,1,0) -> 0 | AF28: 0 | AH28: 0 | AJ28: 0 | AL28: 0 | AN28: 0 | AP28: 0 | AR28: 0 | AT28: 0 | AV28: 0 | AX28: 0 | AZ28: 0 | BB28: 0 | BD28: 0 | BF28: 0 | BH28: 0 | BJ28: 0 | BL28: 0 | BN28: 0 | BP28: 0 | BR28: 0 | BT28: 0 | BV28: 0 | BX28: 0 | BZ28: 0 | CB28: 0 | CD28: 0 | CF28: 0 | CH28: 0 | CJ28: 0 | CL28: 0 | CN28: 0 | CP28: =IF($C28=CP$4,1,0) -> 0 | CR28: 0 | CT28: 0 | CV28: 0 | CX28: 0 | CZ28: 0 | DB28: 0 | DD28: 0 | DF28: 0 | DH28: 0 | DJ28: 0 | DL28: 0 | DN28: 0 | DP28: 0 | DR28: 0 | DT28: 0 | DV28: 0 | DX28: 0 | DZ28: 0
D29: =HLOOKUP($C29,'Dados Gerais'!$D$5:$BK$10,6) ->  | I29: =HLOOKUP($C29,'Dados Gerais'!$D$5:$BK$14,10) ->  | L29: =IF($C29=L$4,1,0) -> 0 | N29: 0 | P29: 0 | R29: 0 | T29: 0 | V29: 0 | X29: 0 | Z29: 0 | AB29: 0 | AD29: 0 | AF29: 0 | AH29: 0 | AJ29: 0 | AL29: 0 | AN29: 0 | AP29: 0 | AR29: 0 | AT29: 0 | AV29: 0 | AX29: 0 | AZ29: 0 | BB29: 0 | BD29: 0 | BF29: 0 | BH29: 0 | BJ29: 0 | BL29: 0 | BN29: 0 | BP29: 0 | BR29: 0 | BT29: 0 | BV29: 0 | BX29: 0 | BZ29: 0 | CB29: 0 | CD29: 0 | CF29: 0 | CH29: 0 | CJ29: 0 | CL29: 0 | CN29: 0 | CP29: 0 | CR29: 0 | CT29: 0 | CV29: 0 | CX29: 0 | CZ29: 0 | DB29: 0 | DD29: 0 | DF29: 0 | DH29: 0 | DJ29: 0 | DL29: 0 | DN29: 0 | DP29: 0 | DR29: 0 | DT29: 0 | DV29: 0 | DX29: 0 | DZ29: 0
D30: =HLOOKUP($C30,'Dados Gerais'!$D$5:$BK$10,6) ->  | I30: =HLOOKUP($C30,'Dados Gerais'!$D$5:$BK$14,10) ->  | L30: 0 | N30: 0 | P30: 0 | R30: =IF($C30=R$4,1,0) -> 0 | T30: 0 | V30: 0 | X30: 0 | Z30: 0 | AB30: 0 | AD30: 0 | AF30: 0 | AH30: 0 | AJ30: 0 | AL30: 0 | AN30: 0 | AP30: 0 | AR30: 0 | AT30: 0 | AV30: 0 | AX30: 0 | AZ30: 0 | BB30: 0 | BD30: 0 | BF30: 0 | BH30: 0 | BJ30: 0 | BL30: 0 | BN30: 0 | BP30: 0 | BR30: 0 | BT30: 0 | BV30: 0 | BX30: 0 | BZ30: 0 | CB30: 0 | CD30: 0 | CF30: 0 | CH30: 0 | CJ30: 0 | CL30: 0 | CN30: 0 | CP30: 0 | CR30: 0 | CT30: 0 | CV30: 0 | CX30: 0 | CZ30: 0 | DB30: 0 | DD30: 0 | DF30: 0 | DH30: 0 | DJ30: 0 | DL30: 0 | DN30: 0 | DP30: 0 | DR30: 0 | DT30: 0 | DV30: 0 | DX30: 0 | DZ30: 0
L31: =IF($C31=L$4,1,0) -> 0 | N31: =IF($C31=N$4,1,0) -> 0 | P31: =IF($C31=P$4,1,0) -> 0 | R31: 0 | T31: 0 | V31: 0 | X31: 0 | Z31: 0 | AB31: 0 | AD31: 0 | AF31: =IF($C31=AF$4,1,0) -> 0 | AH31: 0 | AJ31: 0 | AL31: 0 | AN31: 0 | AP31: 0 | AR31: 0 | AT31: 0 | AV31: 0 | AX31: 0 | AZ31: 0 | BB31: 0 | BD31: 0 | BF31: 0 | BH31: 0 | BJ31: 0 | BL31: 0 | BN31: 0 | BP31: 0 | BR31: 0 | BT31: 0 | BV31: 0 | BX31: 0 | BZ31: 0 | CB31: 0 | CD31: 0 | CF31: 0 | CH31: 0 | CJ31: 0 | CL31: 0 | CN31: 0 | CP31: 0 | CR31: 0 | CT31: 0 | CV31: 0 | CX31: 0 | CZ31: 0 | DB31: 0 | DD31: 0 | DF31: 0 | DH31: 0 | DJ31: 0 | DL31: 0 | DN31: 0 | DP31: 0 | DR31: 0 | DT31: 0 | DV31: 0 | DX31: 0 | DZ31: 0
C33: ITEM | D33: DESCRIÇÃO | E33: QUANT ANUAL POR POSTO | G33: Nº DE POSTOS | H33: QUANT ANUAL TOTAL | I33: VALOR
M34: =IF(SUM(L$8:L$11)>0,$E34*$I34,0) -> 0 | O34: =IF(SUM(N$8:N$11)>0,$E34*$I34,0) -> 0 | Q34: =IF(SUM(P$8:P$11)>0,$E34*$I34,0) -> 0 | S34: =IF(SUM(R$8:R$11)>0,$E34*$I34,0) -> 0 | U34: =IF(SUM(T$8:T$11)>0,$E34*$I34,0) -> 0 | W34: =IF(SUM(V$8:V$11)>0,$E34*$I34,0) -> 0 | Y34: =IF(SUM(X$8:X$11)>0,$E34*$I34,0) -> 0 | AA34: =IF(SUM(Z$8:Z$11)>0,$E34*$I34,0) -> 0 | AC34: =IF(SUM(AB$8:AB$11)>0,$E34*$I34,0) -> 0 | AE34: =IF(SUM(AD$8:AD$11)>0,$E34*$I34,0) -> 0 | AG34: =IF(SUM(AF$8:AF$11)>0,$E34*$I34,0) -> 0 | AI34: =IF(SUM(AH$8:AH$11)>0,$E34*$I34,0) -> 0 | AK34: =IF(SUM(AJ$8:AJ$11)>0,$E34*$I34,0) -> 0 | AM34: =IF(SUM(AL$8:AL$11)>0,$E34*$I34,0) -> 0 | AO34: =IF(SUM(AN$8:AN$11)>0,$E34*$I34,0) -> 0 | AQ34: =IF(SUM(AP$8:AP$11)>0,$E34*$I34,0) -> 0 | AS34: =IF(SUM(AR$8:AR$11)>0,$E34*$I34,0) -> 0 | AU34: =IF(SUM(AT$8:AT$11)>0,$E34*$I34,0) -> 0 | AW34: =IF(SUM(AV$8:AV$11)>0,$E34*$I34,0) -> 0 | AY34: =IF(SUM(AX$8:AX$11)>0,$E34*$I34,0) -> 0 | BA34: =IF(SUM(AZ$8:AZ$11)>0,$E34*$I34,0) -> 0 | BC34: =IF(SUM(BB$8:BB$11)>0,$E34*$I34,0) -> 0 | BE34: =IF(SUM(BD$8:BD$11)>0,$E34*$I34,0) -> 0 | BG34: =IF(SUM(BF$8:BF$11)>0,$E34*$I34,0) -> 0 | BI34: =IF(SUM(BH$8:BH$11)>0,$E34*$I34,0) -> 0 | BK34: =IF(SUM(BJ$8:BJ$11)>0,$E34*$I34,0) -> 0 | BM34: =IF(SUM(BL$8:BL$11)>0,$E34*$I34,0) -> 0 | BO34: =IF(SUM(BN$8:BN$11)>0,$E34*$I34,0) -> 0 | BQ34: =IF(SUM(BP$8:BP$11)>0,$E34*$I34,0) -> 0 | BS34: =IF(SUM(BR$8:BR$11)>0,$E34*$I34,0) -> 0 | BU34: =IF(SUM(BT$8:BT$11)>0,$E34*$I34,0) -> 0 | BW34: =IF(SUM(BV$8:BV$11)>0,$E34*$I34,0) -> 0 | BY34: =IF(SUM(BX$8:BX$11)>0,$E34*$I34,0) -> 0 | CA34: =IF(SUM(BZ$8:BZ$11)>0,$E34*$I34,0) -> 0 | CC34: =IF(SUM(CB$8:CB$11)>0,$E34*$I34,0) -> 0 | CE34: =IF(SUM(CD$8:CD$11)>0,$E34*$I34,0) -> 0 | CG34: =IF(SUM(CF$8:CF$11)>0,$E34*$I34,0) -> 0 | CI34: =IF(SUM(CH$8:CH$11)>0,$E34*$I34,0) -> 0 | CK34: =IF(SUM(CJ$8:CJ$11)>0,$E34*$I34,0) -> 0 | CM34: =IF(SUM(CL$8:CL$11)>0,$E34*$I34,0) -> 0 | CO34: =IF(SUM(CN$8:CN$11)>0,$E34*$I34,0) -> 0 | CQ34: =IF(SUM(CP$8:CP$11)>0,$E34*$I34,0) -> 0 | CS34: =IF(SUM(CR$8:CR$11)>0,$E34*$I34,0) -> 0 | CU34: =IF(SUM(CT$8:CT$11)>0,$E34*$I34,0) -> 0 | CW34: =IF(SUM(CV$8:CV$11)>0,$E34*$I34,0) -> 0 | CY34: =IF(SUM(CX$8:CX$11)>0,$E34*$I34,0) -> 0 | DA34: =IF(SUM(CZ$8:CZ$11)>0,$E34*$I34,0) -> 0 | DC34: =IF(SUM(DB$8:DB$11)>0,$E34*$I34,0) -> 0 | DE34: =IF(SUM(DD$8:DD$11)>0,$E34*$I34,0) -> 0 | DG34: =IF(SUM(DF$8:DF$11)>0,$E34*$I34,0) -> 0 | DI34: =IF(SUM(DH$8:DH$11)>0,$E34*$I34,0) -> 0 | DK34: =IF(SUM(DJ$8:DJ$11)>0,$E34*$I34,0) -> 0 | DM34: =IF(SUM(DL$8:DL$11)>0,$E34*$I34,0) -> 0 | DO34: =IF(SUM(DN$8:DN$11)>0,$E34*$I34,0) -> 0 | DQ34: =IF(SUM(DP$8:DP$11)>0,$E34*$I34,0) -> 0 | DS34: =IF(SUM(DR$8:DR$11)>0,$E34*$I34,0) -> 0 | DU34: =IF(SUM(DT$8:DT$11)>0,$E34*$I34,0) -> 0 | DW34: =IF(SUM(DV$8:DV$11)>0,$E34*$I34,0) -> 0 | DY34: =IF(SUM(DX$8:DX$11)>0,$E34*$I34,0) -> 0 | EA34: =IF(SUM(DZ$8:DZ$11)>0,$E34*$I34,0) -> 0
C35: 7 | E35: 4 | G35: =I29+I30 ->  | H35: =G35*E35 ->  | M35: =IF(SUM(L$29:L$31)>0,$E35*$I35,0) -> 0 | O35: =IF(SUM(N$29:N$31)>0,$E35*$I35,0) -> 0 | Q35: =IF(SUM(P$29:P$31)>0,$E35*$I35,0) -> 0 | S35: =IF(SUM(R$29:R$31)>0,$E35*$I35,0) -> 0 | U35: =IF(SUM(T$29:T$31)>0,$E35*$I35,0) -> 0 | W35: =IF(SUM(V$29:V$31)>0,$E35*$I35,0) -> 0 | Y35: =IF(SUM(X$29:X$31)>0,$E35*$I35,0) -> 0 | AA35: =IF(SUM(Z$29:Z$31)>0,$E35*$I35,0) -> 0 | AC35: =IF(SUM(AB$29:AB$31)>0,$E35*$I35,0) -> 0 | AE35: =IF(SUM(AD$29:AD$31)>0,$E35*$I35,0) -> 0 | AG35: =IF(SUM(AF$29:AF$31)>0,$E35*$I35,0) -> 0 | AI35: =IF(SUM(AH$29:AH$31)>0,$E35*$I35,0) -> 0 | AK35: =IF(SUM(AJ$29:AJ$31)>0,$E35*$I35,0) -> 0 | AM35: =IF(SUM(AL$29:AL$31)>0,$E35*$I35,0) -> 0 | AO35: =IF(SUM(AN$29:AN$31)>0,$E35*$I35,0) -> 0 | AQ35: =IF(SUM(AP$29:AP$31)>0,$E35*$I35,0) -> 0 | AS35: =IF(SUM(AR$29:AR$31)>0,$E35*$I35,0) -> 0 | AU35: =IF(SUM(AT$29:AT$31)>0,$E35*$I35,0) -> 0 | AW35: =IF(SUM(AV$29:AV$31)>0,$E35*$I35,0) -> 0 | AY35: =IF(SUM(AX$29:AX$31)>0,$E35*$I35,0) -> 0 | BA35: =IF(SUM(AZ$29:AZ$31)>0,$E35*$I35,0) -> 0 | BC35: =IF(SUM(BB$29:BB$31)>0,$E35*$I35,0) -> 0 | BE35: =IF(SUM(BD$29:BD$31)>0,$E35*$I35,0) -> 0 | BG35: =IF(SUM(BF$29:BF$31)>0,$E35*$I35,0) -> 0 | BI35: =IF(SUM(BH$29:BH$31)>0,$E35*$I35,0) -> 0 | BK35: =IF(SUM(BJ$29:BJ$31)>0,$E35*$I35,0) -> 0 | BM35: =IF(SUM(BL$29:BL$31)>0,$E35*$I35,0) -> 0 | BO35: =IF(SUM(BN$29:BN$31)>0,$E35*$I35,0) -> 0 | BQ35: =IF(SUM(BP$29:BP$31)>0,$E35*$I35,0) -> 0 | BS35: =IF(SUM(BR$29:BR$31)>0,$E35*$I35,0) -> 0 | BU35: =IF(SUM(BT$29:BT$31)>0,$E35*$I35,0) -> 0 | BW35: =IF(SUM(BV$29:BV$31)>0,$E35*$I35,0) -> 0 | BY35: =IF(SUM(BX$29:BX$31)>0,$E35*$I35,0) -> 0 | CA35: =IF(SUM(BZ$29:BZ$31)>0,$E35*$I35,0) -> 0 | CC35: =IF(SUM(CB$29:CB$31)>0,$E35*$I35,0) -> 0 | CE35: =IF(SUM(CD$29:CD$31)>0,$E35*$I35,0) -> 0 | CG35: =IF(SUM(CF$29:CF$31)>0,$E35*$I35,0) -> 0 | CI35: =IF(SUM(CH$29:CH$31)>0,$E35*$I35,0) -> 0 | CK35: =IF(SUM(CJ$29:CJ$31)>0,$E35*$I35,0) -> 0 | CM35: =IF(SUM(CL$29:CL$31)>0,$E35*$I35,0) -> 0 | CO35: =IF(SUM(CN$29:CN$31)>0,$E35*$I35,0) -> 0 | CQ35: =IF(SUM(CP$29:CP$31)>0,$E35*$I35,0) -> 0 | CS35: =IF(SUM(CR$29:CR$31)>0,$E35*$I35,0) -> 0 | CU35: =IF(SUM(CT$29:CT$31)>0,$E35*$I35,0) -> 0 | CW35: =IF(SUM(CV$29:CV$31)>0,$E35*$I35,0) -> 0 | CY35: =IF(SUM(CX$29:CX$31)>0,$E35*$I35,0) -> 0 | DA35: =IF(SUM(CZ$29:CZ$31)>0,$E35*$I35,0) -> 0 | DC35: =IF(SUM(DB$29:DB$31)>0,$E35*$I35,0) -> 0 | DE35: =IF(SUM(DD$29:DD$31)>0,$E35*$I35,0) -> 0 | DG35: =IF(SUM(DF$29:DF$31)>0,$E35*$I35,0) -> 0 | DI35: =IF(SUM(DH$29:DH$31)>0,$E35*$I35,0) -> 0 | DK35: =IF(SUM(DJ$29:DJ$31)>0,$E35*$I35,0) -> 0 | DM35: =IF(SUM(DL$29:DL$31)>0,$E35*$I35,0) -> 0 | DO35: =IF(SUM(DN$29:DN$31)>0,$E35*$I35,0) -> 0 | DQ35: =IF(SUM(DP$29:DP$31)>0,$E35*$I35,0) -> 0 | DS35: =IF(SUM(DR$29:DR$31)>0,$E35*$I35,0) -> 0 | DU35: =IF(SUM(DT$29:DT$31)>0,$E35*$I35,0) -> 0 | DW35: =IF(SUM(DV$29:DV$31)>0,$E35*$I35,0) -> 0 | DY35: =IF(SUM(DX$29:DX$31)>0,$E35*$I35,0) -> 0 | EA35: =IF(SUM(DZ$29:DZ$31)>0,$E35*$I35,0) -> 0
C36: 8 | E36: =E35 -> 4 | G36: =G35 ->  | M36: 0 | O36: 0 | Q36: 0 | S36: 0 | U36: 0 | W36: 0 | Y36: 0 | AA36: 0 | AC36: 0 | AE36: 0 | AG36: 0 | AI36: 0 | AK36: 0 | AM36: 0 | AO36: 0 | AQ36: 0 | AS36: 0 | AU36: 0 | AW36: 0 | AY36: 0 | BA36: 0 | BC36: 0 | BE36: 0 | BG36: 0 | BI36: 0 | BK36: 0 | BM36: 0 | BO36: 0 | BQ36: 0 | BS36: 0 | BU36: 0 | BW36: 0 | BY36: 0 | CA36: 0 | CC36: 0 | CE36: 0 | CG36: 0 | CI36: 0 | CK36: 0 | CM36: 0 | CO36: 0 | CQ36: 0 | CS36: 0 | CU36: 0 | CW36: 0 | CY36: 0 | DA36: 0 | DC36: 0 | DE36: 0 | DG36: 0 | DI36: 0 | DK36: 0 | DM36: 0 | DO36: 0 | DQ36: 0 | DS36: 0 | DU36: 0 | DW36: 0 | DY36: 0 | EA36: 0
C37: 9 | E37: =E36 -> 4 | G37: =G36 ->  | M37: 0 | O37: 0 | Q37: 0 | S37: 0 | U37: 0 | W37: 0 | Y37: 0 | AA37: 0 | AC37: 0 | AE37: 0 | AG37: 0 | AI37: 0 | AK37: 0 | AM37: 0 | AO37: 0 | AQ37: 0 | AS37: 0 | AU37: 0 | AW37: 0 | AY37: 0 | BA37: 0 | BC37: 0 | BE37: 0 | BG37: 0 | BI37: 0 | BK37: 0 | BM37: 0 | BO37: 0 | BQ37: 0 | BS37: 0 | BU37: 0 | BW37: 0 | BY37: 0 | CA37: 0 | CC37: 0 | CE37: 0 | CG37: 0 | CI37: 0 | CK37: 0 | CM37: 0 | CO37: 0 | CQ37: 0 | CS37: 0 | CU37: 0 | CW37: 0 | CY37: 0 | DA37: 0 | DC37: 0 | DE37: 0 | DG37: 0 | DI37: 0 | DK37: 0 | DM37: 0 | DO37: 0 | DQ37: 0 | DS37: 0 | DU37: 0 | DW37: 0 | DY37: 0 | EA37: 0
C38: 10 | E38: 4 | M38: 0 | O38: 0 | Q38: 0 | S38: 0 | U38: 0 | W38: 0 | Y38: 0 | AA38: 0 | AC38: 0 | AE38: 0 | AG38: 0 | AI38: 0 | AK38: 0 | AM38: 0 | AO38: 0 | AQ38: 0 | AS38: 0 | AU38: 0 | AW38: 0 | AY38: 0 | BA38: 0 | BC38: 0 | BE38: 0 | BG38: 0 | BI38: 0 | BK38: 0 | BM38: 0 | BO38: 0 | BQ38: 0 | BS38: 0 | BU38: 0 | BW38: 0 | BY38: 0 | CA38: 0 | CC38: 0 | CE38: 0 | CG38: 0 | CI38: 0 | CK38: 0 | CM38: 0 | CO38: 0 | CQ38: 0 | CS38: 0 | CU38: 0 | CW38: 0 | CY38: 0 | DA38: 0 | DC38: 0 | DE38: 0 | DG38: 0 | DI38: 0 | DK38: 0 | DM38: 0 | DO38: 0 | DQ38: 0 | DS38: 0 | DU38: 0 | DW38: 0 | DY38: 0 | EA38: 0
C39: 11 | E39: 4 | M39: 0 | O39: 0 | Q39: 0 | S39: 0 | U39: 0 | W39: 0 | Y39: 0 | AA39: 0 | AC39: 0 | AE39: 0 | AG39: 0 | AI39: 0 | AK39: 0 | AM39: 0 | AO39: 0 | AQ39: 0 | AS39: 0 | AU39: 0 | AW39: 0 | AY39: 0 | BA39: 0 | BC39: 0 | BE39: 0 | BG39: 0 | BI39: 0 | BK39: 0 | BM39: 0 | BO39: 0 | BQ39: 0 | BS39: 0 | BU39: 0 | BW39: 0 | BY39: 0 | CA39: 0 | CC39: 0 | CE39: 0 | CG39: 0 | CI39: 0 | CK39: 0 | CM39: 0 | CO39: 0 | CQ39: 0 | CS39: 0 | CU39: 0 | CW39: 0 | CY39: 0 | DA39: 0 | DC39: 0 | DE39: 0 | DG39: 0 | DI39: 0 | DK39: 0 | DM39: 0 | DO39: 0 | DQ39: 0 | DS39: 0 | DU39: 0 | DW39: 0 | DY39: 0 | EA39: 0
C40: 12 | E40: 4 | M40: 0 | O40: 0 | Q40: 0 | S40: 0 | U40: 0 | W40: 0 | Y40: 0 | AA40: 0 | AC40: 0 | AE40: 0 | AG40: 0 | AI40: 0 | AK40: 0 | AM40: 0 | AO40: 0 | AQ40: 0 | AS40: 0 | AU40: 0 | AW40: 0 | AY40: 0 | BA40: 0 | BC40: 0 | BE40: 0 | BG40: 0 | BI40: 0 | BK40: 0 | BM40: 0 | BO40: 0 | BQ40: 0 | BS40: 0 | BU40: 0 | BW40: 0 | BY40: 0 | CA40: 0 | CC40: 0 | CE40: 0 | CG40: 0 | CI40: 0 | CK40: 0 | CM40: 0 | CO40: 0 | CQ40: 0 | CS40: 0 | CU40: 0 | CW40: 0 | CY40: 0 | DA40: 0 | DC40: 0 | DE40: 0 | DG40: 0 | DI40: 0 | DK40: 0 | DM40: 0 | DO40: 0 | DQ40: 0 | DS40: 0 | DU40: 0 | DW40: 0 | DY40: 0 | EA40: 0
M41: 0 | O41: 0 | Q41: 0 | S41: 0 | U41: 0 | W41: 0 | Y41: 0 | AA41: 0 | AC41: 0 | AE41: 0 | AG41: 0 | AI41: 0 | AK41: 0 | AM41: 0 | AO41: 0 | AQ41: 0 | AS41: 0 | AU41: 0 | AW41: 0 | AY41: 0 | BA41: 0 | BC41: 0 | BE41: 0 | BG41: 0 | BI41: 0 | BK41: 0 | BM41: 0 | BO41: 0 | BQ41: 0 | BS41: 0 | BU41: 0 | BW41: 0 | BY41: 0 | CA41: 0 | CC41: 0 | CE41: 0 | CG41: 0 | CI41: 0 | CK41: 0 | CM41: 0 | CO41: 0 | CQ41: 0 | CS41: 0 | CU41: 0 | CW41: 0 | CY41: 0 | DA41: 0 | DC41: 0 | DE41: 0 | DG41: 0 | DI41: 0 | DK41: 0 | DM41: 0 | DO41: 0 | DQ41: 0 | DS41: 0 | DU41: 0 | DW41: 0 | DY41: 0 | EA41: 0
C42: CATEGORIAS | I42: QUANTIDADE
L43: =IF($C43=L$4,1,0) -> 0 | N43: =IF($C43=N$4,1,0) -> 0 | P43: =IF($C43=P$4,1,0) -> 0 | R43: =IF($C43=R$4,1,0) -> 0 | T43: =IF($C43=T$4,1,0) -> 0 | V43: =IF($C43=V$4,1,0) -> 0 | X43: =IF($C43=X$4,1,0) -> 0 | Z43: =IF($C43=Z$4,1,0) -> 0 | AB43: =IF($C43=AB$4,1,0) -> 0 | AD43: =IF($C43=AD$4,1,0) -> 0 | AF43: 0 | AH43: 0 | AJ43: 0 | AL43: 0 | AN43: 0 | AP43: 0 | AR43: 0 | AT43: 0 | AV43: 0 | AX43: 0 | AZ43: 0 | BB43: 0 | BD43: 0 | BF43: 0 | BH43: 0 | BJ43: 0 | BL43: 0 | BN43: 0 | BP43: 0 | BR43: 0 | BT43: 0 | BV43: 0 | BX43: 0 | BZ43: 0 | CB43: 0 | CD43: 0 | CF43: 0 | CH43: 0 | CJ43: 0 | CL43: 0 | CN43: 0 | CP43: =IF($C43=CP$4,1,0) -> 0 | CR43: 0 | CT43: 0 | CV43: 0 | CX43: 0 | CZ43: 0 | DB43: 0 | DD43: 0 | DF43: 0 | DH43: 0 | DJ43: 0 | DL43: 0 | DN43: 0 | DP43: 0 | DR43: 0 | DT43: 0 | DV43: 0 | DX43: 0 | DZ43: 0
D44: =HLOOKUP($C44,'Dados Gerais'!$D$5:$BK$10,6) ->  | I44: =HLOOKUP($C44,'Dados Gerais'!$D$5:$BK$14,10) ->  | L44: =IF($C44=L$4,1,0) -> 0 | N44: 0 | P44: 0 | R44: 0 | T44: 0 | V44: 0 | X44: 0 | Z44: 0 | AB44: 0 | AD44: 0 | AF44: 0 | AH44: 0 | AJ44: 0 | AL44: 0 | AN44: 0 | AP44: 0 | AR44: 0 | AT44: 0 | AV44: 0 | AX44: 0 | AZ44: 0 | BB44: 0 | BD44: 0 | BF44: 0 | BH44: 0 | BJ44: 0 | BL44: 0 | BN44: 0 | BP44: 0 | BR44: 0 | BT44: 0 | BV44: 0 | BX44: 0 | BZ44: 0 | CB44: 0 | CD44: 0 | CF44: 0 | CH44: 0 | CJ44: 0 | CL44: 0 | CN44: 0 | CP44: 0 | CR44: 0 | CT44: 0 | CV44: 0 | CX44: 0 | CZ44: 0 | DB44: 0 | DD44: 0 | DF44: 0 | DH44: 0 | DJ44: 0 | DL44: 0 | DN44: 0 | DP44: 0 | DR44: 0 | DT44: 0 | DV44: 0 | DX44: 0 | DZ44: 0
D45: =HLOOKUP($C45,'Dados Gerais'!$D$5:$BK$10,6) ->  | I45: =HLOOKUP($C45,'Dados Gerais'!$D$5:$BK$14,10) ->  | L45: 0 | N45: 0 | P45: 0 | R45: =IF($C45=R$4,1,0) -> 0 | T45: 0 | V45: 0 | X45: 0 | Z45: 0 | AB45: 0 | AD45: 0 | AF45: 0 | AH45: 0 | AJ45: 0 | AL45: 0 | AN45: 0 | AP45: 0 | AR45: 0 | AT45: 0 | AV45: 0 | AX45: 0 | AZ45: 0 | BB45: 0 | BD45: 0 | BF45: 0 | BH45: 0 | BJ45: 0 | BL45: 0 | BN45: 0 | BP45: 0 | BR45: 0 | BT45: 0 | BV45: 0 | BX45: 0 | BZ45: 0 | CB45: 0 | CD45: 0 | CF45: 0 | CH45: 0 | CJ45: 0 | CL45: 0 | CN45: 0 | CP45: 0 | CR45: 0 | CT45: 0 | CV45: 0 | CX45: 0 | CZ45: 0 | DB45: 0 | DD45: 0 | DF45: 0 | DH45: 0 | DJ45: 0 | DL45: 0 | DN45: 0 | DP45: 0 | DR45: 0 | DT45: 0 | DV45: 0 | DX45: 0 | DZ45: 0
L46: =IF($C46=L$4,1,0) -> 0 | N46: =IF($C46=N$4,1,0) -> 0 | P46: =IF($C46=P$4,1,0) -> 0 | R46: 0 | T46: 0 | V46: 0 | X46: 0 | Z46: 0 | AB46: 0 | AD46: 0 | AF46: =IF($C46=AF$4,1,0) -> 0 | AH46: 0 | AJ46: 0 | AL46: 0 | AN46: 0 | AP46: 0 | AR46: 0 | AT46: 0 | AV46: 0 | AX46: 0 | AZ46: 0 | BB46: 0 | BD46: 0 | BF46: 0 | BH46: 0 | BJ46: 0 | BL46: 0 | BN46: 0 | BP46: 0 | BR46: 0 | BT46: 0 | BV46: 0 | BX46: 0 | BZ46: 0 | CB46: 0 | CD46: 0 | CF46: 0 | CH46: 0 | CJ46: 0 | CL46: 0 | CN46: 0 | CP46: 0 | CR46: 0 | CT46: 0 | CV46: 0 | CX46: 0 | CZ46: 0 | DB46: 0 | DD46: 0 | DF46: 0 | DH46: 0 | DJ46: 0 | DL46: 0 | DN46: 0 | DP46: 0 | DR46: 0 | DT46: 0 | DV46: 0 | DX46: 0 | DZ46: 0
C48: ITEM | D48: DESCRIÇÃO | E48: QUANT ANUAL POR POSTO | G48: Nº DE POSTOS | H48: QUANT ANUAL TOTAL | I48: VALOR
M49: =IF(SUM(L$8:L$11)>0,$E49*$I49,0) -> 0 | O49: =IF(SUM(N$8:N$11)>0,$E49*$I49,0) -> 0 | Q49: =IF(SUM(P$8:P$11)>0,$E49*$I49,0) -> 0 | S49: =IF(SUM(R$8:R$11)>0,$E49*$I49,0) -> 0 | U49: =IF(SUM(T$8:T$11)>0,$E49*$I49,0) -> 0 | W49: =IF(SUM(V$8:V$11)>0,$E49*$I49,0) -> 0 | Y49: =IF(SUM(X$8:X$11)>0,$E49*$I49,0) -> 0 | AA49: =IF(SUM(Z$8:Z$11)>0,$E49*$I49,0) -> 0 | AC49: =IF(SUM(AB$8:AB$11)>0,$E49*$I49,0) -> 0 | AE49: =IF(SUM(AD$8:AD$11)>0,$E49*$I49,0) -> 0 | AG49: =IF(SUM(AF$8:AF$11)>0,$E49*$I49,0) -> 0 | AI49: =IF(SUM(AH$8:AH$11)>0,$E49*$I49,0) -> 0 | AK49: =IF(SUM(AJ$8:AJ$11)>0,$E49*$I49,0) -> 0 | AM49: =IF(SUM(AL$8:AL$11)>0,$E49*$I49,0) -> 0 | AO49: =IF(SUM(AN$8:AN$11)>0,$E49*$I49,0) -> 0 | AQ49: =IF(SUM(AP$8:AP$11)>0,$E49*$I49,0) -> 0 | AS49: =IF(SUM(AR$8:AR$11)>0,$E49*$I49,0) -> 0 | AU49: =IF(SUM(AT$8:AT$11)>0,$E49*$I49,0) -> 0 | AW49: =IF(SUM(AV$8:AV$11)>0,$E49*$I49,0) -> 0 | AY49: =IF(SUM(AX$8:AX$11)>0,$E49*$I49,0) -> 0 | BA49: =IF(SUM(AZ$8:AZ$11)>0,$E49*$I49,0) -> 0 | BC49: =IF(SUM(BB$8:BB$11)>0,$E49*$I49,0) -> 0 | BE49: =IF(SUM(BD$8:BD$11)>0,$E49*$I49,0) -> 0 | BG49: =IF(SUM(BF$8:BF$11)>0,$E49*$I49,0) -> 0 | BI49: =IF(SUM(BH$8:BH$11)>0,$E49*$I49,0) -> 0 | BK49: =IF(SUM(BJ$8:BJ$11)>0,$E49*$I49,0) -> 0 | BM49: =IF(SUM(BL$8:BL$11)>0,$E49*$I49,0) -> 0 | BO49: =IF(SUM(BN$8:BN$11)>0,$E49*$I49,0) -> 0 | BQ49: =IF(SUM(BP$8:BP$11)>0,$E49*$I49,0) -> 0 | BS49: =IF(SUM(BR$8:BR$11)>0,$E49*$I49,0) -> 0 | BU49: =IF(SUM(BT$8:BT$11)>0,$E49*$I49,0) -> 0 | BW49: =IF(SUM(BV$8:BV$11)>0,$E49*$I49,0) -> 0 | BY49: =IF(SUM(BX$8:BX$11)>0,$E49*$I49,0) -> 0 | CA49: =IF(SUM(BZ$8:BZ$11)>0,$E49*$I49,0) -> 0 | CC49: =IF(SUM(CB$8:CB$11)>0,$E49*$I49,0) -> 0 | CE49: =IF(SUM(CD$8:CD$11)>0,$E49*$I49,0) -> 0 | CG49: =IF(SUM(CF$8:CF$11)>0,$E49*$I49,0) -> 0 | CI49: =IF(SUM(CH$8:CH$11)>0,$E49*$I49,0) -> 0 | CK49: =IF(SUM(CJ$8:CJ$11)>0,$E49*$I49,0) -> 0 | CM49: =IF(SUM(CL$8:CL$11)>0,$E49*$I49,0) -> 0 | CO49: =IF(SUM(CN$8:CN$11)>0,$E49*$I49,0) -> 0 | CQ49: =IF(SUM(CP$8:CP$11)>0,$E49*$I49,0) -> 0 | CS49: =IF(SUM(CR$8:CR$11)>0,$E49*$I49,0) -> 0 | CU49: =IF(SUM(CT$8:CT$11)>0,$E49*$I49,0) -> 0 | CW49: =IF(SUM(CV$8:CV$11)>0,$E49*$I49,0) -> 0 | CY49: =IF(SUM(CX$8:CX$11)>0,$E49*$I49,0) -> 0 | DA49: =IF(SUM(CZ$8:CZ$11)>0,$E49*$I49,0) -> 0 | DC49: =IF(SUM(DB$8:DB$11)>0,$E49*$I49,0) -> 0 | DE49: =IF(SUM(DD$8:DD$11)>0,$E49*$I49,0) -> 0 | DG49: =IF(SUM(DF$8:DF$11)>0,$E49*$I49,0) -> 0 | DI49: =IF(SUM(DH$8:DH$11)>0,$E49*$I49,0) -> 0 | DK49: =IF(SUM(DJ$8:DJ$11)>0,$E49*$I49,0) -> 0 | DM49: =IF(SUM(DL$8:DL$11)>0,$E49*$I49,0) -> 0 | DO49: =IF(SUM(DN$8:DN$11)>0,$E49*$I49,0) -> 0 | DQ49: =IF(SUM(DP$8:DP$11)>0,$E49*$I49,0) -> 0 | DS49: =IF(SUM(DR$8:DR$11)>0,$E49*$I49,0) -> 0 | DU49: =IF(SUM(DT$8:DT$11)>0,$E49*$I49,0) -> 0 | DW49: =IF(SUM(DV$8:DV$11)>0,$E49*$I49,0) -> 0 | DY49: =IF(SUM(DX$8:DX$11)>0,$E49*$I49,0) -> 0 | EA49: =IF(SUM(DZ$8:DZ$11)>0,$E49*$I49,0) -> 0
C50: 13 | E50: 4 | G50: =I44+I45 ->  | H50: =G50*E50 ->  | M50: =IF(SUM(L$43:L$46)>0,$E50*$I50,0) -> 0 | O50: =IF(SUM(N$43:N$46)>0,$E50*$I50,0) -> 0 | Q50: =IF(SUM(P$43:P$46)>0,$E50*$I50,0) -> 0 | S50: =IF(SUM(R$43:R$46)>0,$E50*$I50,0) -> 0 | U50: =IF(SUM(T$43:T$46)>0,$E50*$I50,0) -> 0 | W50: =IF(SUM(V$43:V$46)>0,$E50*$I50,0) -> 0 | Y50: =IF(SUM(X$43:X$46)>0,$E50*$I50,0) -> 0 | AA50: =IF(SUM(Z$43:Z$46)>0,$E50*$I50,0) -> 0 | AC50: =IF(SUM(AB$43:AB$46)>0,$E50*$I50,0) -> 0 | AE50: =IF(SUM(AD$43:AD$46)>0,$E50*$I50,0) -> 0 | AG50: =IF(SUM(AF$43:AF$46)>0,$E50*$I50,0) -> 0 | AI50: =IF(SUM(AH$43:AH$46)>0,$E50*$I50,0) -> 0 | AK50: =IF(SUM(AJ$43:AJ$46)>0,$E50*$I50,0) -> 0 | AM50: =IF(SUM(AL$43:AL$46)>0,$E50*$I50,0) -> 0 | AO50: =IF(SUM(AN$43:AN$46)>0,$E50*$I50,0) -> 0 | AQ50: =IF(SUM(AP$43:AP$46)>0,$E50*$I50,0) -> 0 | AS50: =IF(SUM(AR$43:AR$46)>0,$E50*$I50,0) -> 0 | AU50: =IF(SUM(AT$43:AT$46)>0,$E50*$I50,0) -> 0 | AW50: =IF(SUM(AV$43:AV$46)>0,$E50*$I50,0) -> 0 | AY50: =IF(SUM(AX$43:AX$46)>0,$E50*$I50,0) -> 0 | BA50: =IF(SUM(AZ$43:AZ$46)>0,$E50*$I50,0) -> 0 | BC50: =IF(SUM(BB$43:BB$46)>0,$E50*$I50,0) -> 0 | BE50: =IF(SUM(BD$43:BD$46)>0,$E50*$I50,0) -> 0 | BG50: =IF(SUM(BF$43:BF$46)>0,$E50*$I50,0) -> 0 | BI50: =IF(SUM(BH$43:BH$46)>0,$E50*$I50,0) -> 0 | BK50: =IF(SUM(BJ$43:BJ$46)>0,$E50*$I50,0) -> 0 | BM50: =IF(SUM(BL$43:BL$46)>0,$E50*$I50,0) -> 0 | BO50: =IF(SUM(BN$43:BN$46)>0,$E50*$I50,0) -> 0 | BQ50: =IF(SUM(BP$43:BP$46)>0,$E50*$I50,0) -> 0 | BS50: =IF(SUM(BR$43:BR$46)>0,$E50*$I50,0) -> 0 | BU50: =IF(SUM(BT$43:BT$46)>0,$E50*$I50,0) -> 0 | BW50: =IF(SUM(BV$43:BV$46)>0,$E50*$I50,0) -> 0 | BY50: =IF(SUM(BX$43:BX$46)>0,$E50*$I50,0) -> 0 | CA50: =IF(SUM(BZ$43:BZ$46)>0,$E50*$I50,0) -> 0 | CC50: =IF(SUM(CB$43:CB$46)>0,$E50*$I50,0) -> 0 | CE50: =IF(SUM(CD$43:CD$46)>0,$E50*$I50,0) -> 0 | CG50: =IF(SUM(CF$43:CF$46)>0,$E50*$I50,0) -> 0 | CI50: =IF(SUM(CH$43:CH$46)>0,$E50*$I50,0) -> 0 | CK50: =IF(SUM(CJ$43:CJ$46)>0,$E50*$I50,0) -> 0 | CM50: =IF(SUM(CL$43:CL$46)>0,$E50*$I50,0) -> 0 | CO50: =IF(SUM(CN$43:CN$46)>0,$E50*$I50,0) -> 0 | CQ50: =IF(SUM(CP$43:CP$46)>0,$E50*$I50,0) -> 0 | CS50: =IF(SUM(CR$43:CR$46)>0,$E50*$I50,0) -> 0 | CU50: =IF(SUM(CT$43:CT$46)>0,$E50*$I50,0) -> 0 | CW50: =IF(SUM(CV$43:CV$46)>0,$E50*$I50,0) -> 0 | CY50: =IF(SUM(CX$43:CX$46)>0,$E50*$I50,0) -> 0 | DA50: =IF(SUM(CZ$43:CZ$46)>0,$E50*$I50,0) -> 0 | DC50: =IF(SUM(DB$43:DB$46)>0,$E50*$I50,0) -> 0 | DE50: =IF(SUM(DD$43:DD$46)>0,$E50*$I50,0) -> 0 | DG50: =IF(SUM(DF$43:DF$46)>0,$E50*$I50,0) -> 0 | DI50: =IF(SUM(DH$43:DH$46)>0,$E50*$I50,0) -> 0 | DK50: =IF(SUM(DJ$43:DJ$46)>0,$E50*$I50,0) -> 0 | DM50: =IF(SUM(DL$43:DL$46)>0,$E50*$I50,0) -> 0 | DO50: =IF(SUM(DN$43:DN$46)>0,$E50*$I50,0) -> 0 | DQ50: =IF(SUM(DP$43:DP$46)>0,$E50*$I50,0) -> 0 | DS50: =IF(SUM(DR$43:DR$46)>0,$E50*$I50,0) -> 0 | DU50: =IF(SUM(DT$43:DT$46)>0,$E50*$I50,0) -> 0 | DW50: =IF(SUM(DV$43:DV$46)>0,$E50*$I50,0) -> 0 | DY50: =IF(SUM(DX$43:DX$46)>0,$E50*$I50,0) -> 0 | EA50: =IF(SUM(DZ$43:DZ$46)>0,$E50*$I50,0) -> 0
C51: 14 | E51: =E50 -> 4 | G51: =G50 ->  | M51: =IF(SUM(L$43:L$46)>0,$E51*$I51,0) -> 0 | O51: =IF(SUM(N$43:N$46)>0,$E51*$I51,0) -> 0 | Q51: =IF(SUM(P$43:P$46)>0,$E51*$I51,0) -> 0 | S51: =IF(SUM(R$43:R$46)>0,$E51*$I51,0) -> 0 | U51: =IF(SUM(T$43:T$46)>0,$E51*$I51,0) -> 0 | W51: =IF(SUM(V$43:V$46)>0,$E51*$I51,0) -> 0 | Y51: =IF(SUM(X$43:X$46)>0,$E51*$I51,0) -> 0 | AA51: =IF(SUM(Z$43:Z$46)>0,$E51*$I51,0) -> 0 | AC51: =IF(SUM(AB$43:AB$46)>0,$E51*$I51,0) -> 0 | AE51: =IF(SUM(AD$43:AD$46)>0,$E51*$I51,0) -> 0 | AG51: 0 | AI51: 0 | AK51: 0 | AM51: 0 | AO51: 0 | AQ51: 0 | AS51: 0 | AU51: 0 | AW51: 0 | AY51: 0 | BA51: 0 | BC51: 0 | BE51: 0 | BG51: 0 | BI51: 0 | BK51: 0 | BM51: 0 | BO51: 0 | BQ51: 0 | BS51: 0 | BU51: 0 | BW51: 0 | BY51: 0 | CA51: 0 | CC51: 0 | CE51: 0 | CG51: 0 | CI51: 0 | CK51: 0 | CM51: 0 | CO51: 0 | CQ51: 0 | CS51: 0 | CU51: 0 | CW51: 0 | CY51: 0 | DA51: 0 | DC51: 0 | DE51: 0 | DG51: 0 | DI51: 0 | DK51: 0 | DM51: 0 | DO51: 0 | DQ51: 0 | DS51: 0 | DU51: 0 | DW51: 0 | DY51: 0 | EA51: 0
C52: 15 | E52: 4 | M52: =IF(SUM(L$43:L$46)>0,$E52*$I52,0) -> 0 | O52: =IF(SUM(N$43:N$46)>0,$E52*$I52,0) -> 0 | Q52: =IF(SUM(P$43:P$46)>0,$E52*$I52,0) -> 0 | S52: =IF(SUM(R$43:R$46)>0,$E52*$I52,0) -> 0 | U52: =IF(SUM(T$43:T$46)>0,$E52*$I52,0) -> 0 | W52: =IF(SUM(V$43:V$46)>0,$E52*$I52,0) -> 0 | Y52: =IF(SUM(X$43:X$46)>0,$E52*$I52,0) -> 0 | AA52: =IF(SUM(Z$43:Z$46)>0,$E52*$I52,0) -> 0 | AC52: =IF(SUM(AB$43:AB$46)>0,$E52*$I52,0) -> 0 | AE52: =IF(SUM(AD$43:AD$46)>0,$E52*$I52,0) -> 0 | AG52: 0 | AI52: 0 | AK52: 0 | AM52: 0 | AO52: 0 | AQ52: 0 | AS52: 0 | AU52: 0 | AW52: 0 | AY52: 0 | BA52: 0 | BC52: 0 | BE52: 0 | BG52: 0 | BI52: 0 | BK52: 0 | BM52: 0 | BO52: 0 | BQ52: 0 | BS52: 0 | BU52: 0 | BW52: 0 | BY52: 0 | CA52: 0 | CC52: 0 | CE52: 0 | CG52: 0 | CI52: 0 | CK52: 0 | CM52: 0 | CO52: 0 | CQ52: 0 | CS52: 0 | CU52: 0 | CW52: 0 | CY52: 0 | DA52: 0 | DC52: 0 | DE52: 0 | DG52: 0 | DI52: 0 | DK52: 0 | DM52: 0 | DO52: 0 | DQ52: 0 | DS52: 0 | DU52: 0 | DW52: 0 | DY52: 0 | EA52: 0
C53: CATEGORIAS | I53: QUANTIDADE | L53: =SUM(L8:L51) -> 1
L54: =IF($C54=L$4,1,0) -> 0 | N54: 0 | P54: 0 | R54: 0 | T54: 0 | V54: 0 | X54: 0 | Z54: 0 | AB54: =IF($C54=AB$4,1,0) -> 0 | AD54: 0 | AF54: 0 | AH54: 0 | AJ54: 0 | AL54: 0 | AN54: 0 | AP54: 0 | AR54: 0 | AT54: 0 | AV54: 0 | AX54: 0 | AZ54: 0 | BB54: 0 | BD54: 0 | BF54: 0 | BH54: 0 | BJ54: 0 | BL54: 0 | BN54: 0 | BP54: 0 | BR54: 0 | BT54: 0 | BV54: 0 | BX54: 0 | BZ54: 0 | CB54: 0 | CD54: 0 | CF54: 0 | CH54: 0 | CJ54: 0 | CL54: 0 | CN54: =IF($C54=CN$4,1,0) -> 0 | CP54: 0 | CR54: 0 | CT54: 0 | CV54: 0 | CX54: 0 | CZ54: 0 | DB54: 0 | DD54: 0 | DF54: 0 | DH54: 0 | DJ54: 0 | DL54: 0 | DN54: 0 | DP54: 0 | DR54: 0 | DT54: 0 | DV54: 0 | DX54: 0 | DZ54: 0
C55: 3 | D55: =HLOOKUP($C55,'Dados Gerais'!$D$5:$BK$10,6) -> ENCARREGADO DE SERVIÇO | F55: 6 | G55: 7 | I55: =HLOOKUP($C55,'Dados Gerais'!$D$5:$BK$14,10) -> 12 | L55: 0 | N55: 0 | P55: 1 | R55: =IF($C55=R$4,1,0) -> 0 | T55: 0 | V55: 0 | X55: 0 | Z55: 0 | AB55: 0 | AD55: 0 | AF55: 0 | AH55: 0 | AJ55: 0 | AL55: 0 | AN55: 0 | AP55: 0 | AR55: 0 | AT55: 0 | AV55: 0 | AX55: 0 | AZ55: 0 | BB55: 0 | BD55: 0 | BF55: 0 | BH55: 0 | BJ55: 0 | BL55: 0 | BN55: 0 | BP55: 0 | BR55: 0 | BT55: 0 | BV55: 0 | BX55: 0 | BZ55: 0 | CB55: 0 | CD55: 0 | CF55: 0 | CH55: 0 | CJ55: 0 | CL55: 0 | CN55: 0 | CP55: 0 | CR55: 0 | CT55: 0 | CV55: 0 | CX55: 0 | CZ55: 0 | DB55: 0 | DD55: 0 | DF55: 0 | DH55: 0 | DJ55: 0 | DL55: 0 | DN55: 0 | DP55: 0 | DR55: 0 | DT55: 0 | DV55: 0 | DX55: 0 | DZ55: 0
C56: 4 | D56: =HLOOKUP($C56,'Dados Gerais'!$D$5:$BK$10,6) -> AUXILIAR DE ENCARREGADO | I56: =HLOOKUP($C56,'Dados Gerais'!$D$5:$BK$14,10) -> 1 | L56: 0 | N56: 0 | P56: 0 | R56: 1 | T56: 0 | V56: 0 | X56: 0 | Z56: 0 | AB56: 0 | AD56: 0 | AF56: =IF($C56=AF$4,1,0) -> 0 | AH56: 0 | AJ56: 0 | AL56: 0 | AN56: 0 | AP56: 0 | AR56: 0 | AT56: 0 | AV56: 0 | AX56: 0 | AZ56: 0 | BB56: 0 | BD56: 0 | BF56: 0 | BH56: 0 | BJ56: 0 | BL56: 0 | BN56: 0 | BP56: 0 | BR56: 0 | BT56: 0 | BV56: 0 | BX56: 0 | BZ56: 0 | CB56: 0 | CD56: 0 | CF56: 0 | CH56: 0 | CJ56: 0 | CL56: 0 | CN56: 0 | CP56: 0 | CR56: 0 | CT56: 0 | CV56: 0 | CX56: 0 | CZ56: 0 | DB56: 0 | DD56: 0 | DF56: 0 | DH56: 0 | DJ56: 0 | DL56: 0 | DN56: 0 | DP56: 0 | DR56: 0 | DT56: 0 | DV56: 0 | DX56: 0 | DZ56: 0
L57: 0 | N57: 0 | P57: 0 | R57: 0 | T57: 0 | V57: 0 | X57: 0 | Z57: 0 | AB57: 0 | AD57: 0 | AF57: 0 | AH57: 0 | AJ57: 0 | AL57: 0 | AN57: 0 | AP57: 0 | AR57: 0 | AT57: 0 | AV57: 0 | AX57: 0 | AZ57: 0 | BB57: 0 | BD57: 0 | BF57: 0 | BH57: 0 | BJ57: 0 | BL57: 0 | BN57: 0 | BP57: 0 | BR57: 0 | BT57: 0 | BV57: 0 | BX57: 0 | BZ57: 0 | CB57: 0 | CD57: 0 | CF57: 0 | CH57: 0 | CJ57: 0 | CL57: 0 | CN57: 0 | CP57: 0 | CR57: 0 | CT57: 0 | CV57: 0 | CX57: 0 | CZ57: 0 | DB57: 0 | DD57: 0 | DF57: 0 | DH57: 0 | DJ57: 0 | DL57: 0 | DN57: 0 | DP57: 0 | DR57: 0 | DT57: 0 | DV57: 0 | DX57: 0 | DZ57: 0
C59: ITEM | D59: DESCRIÇÃO | E59: QUANT ANUAL POR POSTO | F59: % ESTIMADO POR GÊNERO | G59: Nº DE POSTOS | H59: QUANT ANUAL TOTAL ESTIMADA | I59: VALOR
M60: =IF(SUM(L$8:L$11)>0,$E60*$I60,0) -> 0 | O60: =IF(SUM(N$8:N$11)>0,$E60*$I60,0) -> 0 | Q60: =IF(SUM(P$8:P$11)>0,$E60*$I60,0) -> 0 | S60: =IF(SUM(R$8:R$11)>0,$E60*$I60,0) -> 0 | U60: =IF(SUM(T$8:T$11)>0,$E60*$I60,0) -> 0 | W60: =IF(SUM(V$8:V$11)>0,$E60*$I60,0) -> 0 | Y60: =IF(SUM(X$8:X$11)>0,$E60*$I60,0) -> 0 | AA60: =IF(SUM(Z$8:Z$11)>0,$E60*$I60,0) -> 0 | AC60: =IF(SUM(AB$8:AB$11)>0,$E60*$I60,0) -> 0 | AE60: =IF(SUM(AD$8:AD$11)>0,$E60*$I60,0) -> 0 | AG60: =IF(SUM(AF$8:AF$11)>0,$E60*$I60,0) -> 0 | AI60: =IF(SUM(AH$8:AH$11)>0,$E60*$I60,0) -> 0 | AK60: =IF(SUM(AJ$8:AJ$11)>0,$E60*$I60,0) -> 0 | AM60: =IF(SUM(AL$8:AL$11)>0,$E60*$I60,0) -> 0 | AO60: =IF(SUM(AN$8:AN$11)>0,$E60*$I60,0) -> 0 | AQ60: =IF(SUM(AP$8:AP$11)>0,$E60*$I60,0) -> 0 | AS60: =IF(SUM(AR$8:AR$11)>0,$E60*$I60,0) -> 0 | AU60: =IF(SUM(AT$8:AT$11)>0,$E60*$I60,0) -> 0 | AW60: =IF(SUM(AV$8:AV$11)>0,$E60*$I60,0) -> 0 | AY60: =IF(SUM(AX$8:AX$11)>0,$E60*$I60,0) -> 0 | BA60: =IF(SUM(AZ$8:AZ$11)>0,$E60*$I60,0) -> 0 | BC60: =IF(SUM(BB$8:BB$11)>0,$E60*$I60,0) -> 0 | BE60: =IF(SUM(BD$8:BD$11)>0,$E60*$I60,0) -> 0 | BG60: =IF(SUM(BF$8:BF$11)>0,$E60*$I60,0) -> 0 | BI60: =IF(SUM(BH$8:BH$11)>0,$E60*$I60,0) -> 0 | BK60: =IF(SUM(BJ$8:BJ$11)>0,$E60*$I60,0) -> 0 | BM60: =IF(SUM(BL$8:BL$11)>0,$E60*$I60,0) -> 0 | BO60: =IF(SUM(BN$8:BN$11)>0,$E60*$I60,0) -> 0 | BQ60: =IF(SUM(BP$8:BP$11)>0,$E60*$I60,0) -> 0 | BS60: =IF(SUM(BR$8:BR$11)>0,$E60*$I60,0) -> 0 | BU60: =IF(SUM(BT$8:BT$11)>0,$E60*$I60,0) -> 0 | BW60: =IF(SUM(BV$8:BV$11)>0,$E60*$I60,0) -> 0 | BY60: =IF(SUM(BX$8:BX$11)>0,$E60*$I60,0) -> 0 | CA60: =IF(SUM(BZ$8:BZ$11)>0,$E60*$I60,0) -> 0 | CC60: =IF(SUM(CB$8:CB$11)>0,$E60*$I60,0) -> 0 | CE60: =IF(SUM(CD$8:CD$11)>0,$E60*$I60,0) -> 0 | CG60: =IF(SUM(CF$8:CF$11)>0,$E60*$I60,0) -> 0 | CI60: =IF(SUM(CH$8:CH$11)>0,$E60*$I60,0) -> 0 | CK60: =IF(SUM(CJ$8:CJ$11)>0,$E60*$I60,0) -> 0 | CM60: =IF(SUM(CL$8:CL$11)>0,$E60*$I60,0) -> 0 | CO60: =IF(SUM(CN$8:CN$11)>0,$E60*$I60,0) -> 0 | CQ60: =IF(SUM(CP$8:CP$11)>0,$E60*$I60,0) -> 0 | CS60: =IF(SUM(CR$8:CR$11)>0,$E60*$I60,0) -> 0 | CU60: =IF(SUM(CT$8:CT$11)>0,$E60*$I60,0) -> 0 | CW60: =IF(SUM(CV$8:CV$11)>0,$E60*$I60,0) -> 0 | CY60: =IF(SUM(CX$8:CX$11)>0,$E60*$I60,0) -> 0 | DA60: =IF(SUM(CZ$8:CZ$11)>0,$E60*$I60,0) -> 0 | DC60: =IF(SUM(DB$8:DB$11)>0,$E60*$I60,0) -> 0 | DE60: =IF(SUM(DD$8:DD$11)>0,$E60*$I60,0) -> 0 | DG60: =IF(SUM(DF$8:DF$11)>0,$E60*$I60,0) -> 0 | DI60: =IF(SUM(DH$8:DH$11)>0,$E60*$I60,0) -> 0 | DK60: =IF(SUM(DJ$8:DJ$11)>0,$E60*$I60,0) -> 0 | DM60: =IF(SUM(DL$8:DL$11)>0,$E60*$I60,0) -> 0 | DO60: =IF(SUM(DN$8:DN$11)>0,$E60*$I60,0) -> 0 | DQ60: =IF(SUM(DP$8:DP$11)>0,$E60*$I60,0) -> 0 | DS60: =IF(SUM(DR$8:DR$11)>0,$E60*$I60,0) -> 0 | DU60: =IF(SUM(DT$8:DT$11)>0,$E60*$I60,0) -> 0 | DW60: =IF(SUM(DV$8:DV$11)>0,$E60*$I60,0) -> 0 | DY60: =IF(SUM(DX$8:DX$11)>0,$E60*$I60,0) -> 0 | EA60: =IF(SUM(DZ$8:DZ$11)>0,$E60*$I60,0) -> 0
C61: MASCULINO | D61: Calça social de tecido leve, na cor preta, em microfibra | E61: 4 | F61: =ROUNDUP(9/16,2) -> 0.57 | G61: =SUM($I$55:$I$56) -> 13 | H61: =ROUNDUP(E61*F61*G61,0) -> 30 | I61: 72.45 | M61: =IF(SUM(L$54:L$57)>0,$H61*$I61,0)/SUM($I$55:$I56) -> 0 | O61: =IF(SUM(N$54:N$57)>0,$H61*$I61,0)/SUM($I$55:$I56) -> 0 | Q61: =IF(SUM(P$54:P$57)>0,$H61*$I61,0)/SUM($I$55:$I$56) -> 167.1923077 | S61: =IF(SUM(R$54:R$57)>0,$H61*$I61,0)/SUM($I$55:$I$56) -> 167.1923077 | U61: =IF(SUM(T$54:T$57)>0,$H61*$I61,0)/SUM($I$55:$I$56) -> 0 | W61: =IF(SUM(V$54:V$57)>0,$H61*$I61,0) -> 0 | Y61: =IF(SUM(X$54:X$57)>0,$H61*$I61,0) -> 0 | AA61: =IF(SUM(Z$54:Z$57)>0,$H61*$I61,0) -> 0 | AC61: =IF(SUM(AB$54:AB$57)>0,$H61*$I61,0) -> 0 | AE61: =IF(SUM(AD$54:AD$57)>0,$H61*$I61,0) -> 0 | AG61: =IF(SUM(AF$54:AF$57)>0,$H61*$I61,0) -> 0 | AI61: =IF(SUM(AH$54:AH$57)>0,$H61*$I61,0) -> 0 | AK61: =IF(SUM(AJ$54:AJ$57)>0,$H61*$I61,0) -> 0 | AM61: =IF(SUM(AL$54:AL$57)>0,$H61*$I61,0) -> 0 | AO61: =IF(SUM(AN$54:AN$57)>0,$H61*$I61,0) -> 0 | AQ61: =IF(SUM(AP$54:AP$57)>0,$H61*$I61,0) -> 0 | AS61: =IF(SUM(AR$54:AR$57)>0,$H61*$I61,0) -> 0 | AU61: =IF(SUM(AT$54:AT$57)>0,$H61*$I61,0) -> 0 | AW61: =IF(SUM(AV$54:AV$57)>0,$H61*$I61,0) -> 0 | AY61: =IF(SUM(AX$54:AX$57)>0,$H61*$I61,0) -> 0 | BA61: =IF(SUM(AZ$54:AZ$57)>0,$H61*$I61,0) -> 0 | BC61: =IF(SUM(BB$54:BB$57)>0,$H61*$I61,0) -> 0 | BE61: =IF(SUM(BD$54:BD$57)>0,$H61*$I61,0) -> 0 | BG61: =IF(SUM(BF$54:BF$57)>0,$H61*$I61,0) -> 0 | BI61: =IF(SUM(BH$54:BH$57)>0,$H61*$I61,0) -> 0 | BK61: =IF(SUM(BJ$54:BJ$57)>0,$H61*$I61,0) -> 0 | BM61: =IF(SUM(BL$54:BL$57)>0,$H61*$I61,0) -> 0 | BO61: =IF(SUM(BN$54:BN$57)>0,$H61*$I61,0) -> 0 | BQ61: =IF(SUM(BP$54:BP$57)>0,$H61*$I61,0) -> 0 | BS61: =IF(SUM(BR$54:BR$57)>0,$H61*$I61,0) -> 0 | BU61: =IF(SUM(BT$54:BT$57)>0,$H61*$I61,0) -> 0 | BW61: =IF(SUM(BV$54:BV$57)>0,$H61*$I61,0) -> 0 | BY61: =IF(SUM(BX$54:BX$57)>0,$H61*$I61,0) -> 0 | CA61: =IF(SUM(BZ$54:BZ$57)>0,$H61*$I61,0) -> 0 | CC61: =IF(SUM(CB$54:CB$57)>0,$H61*$I61,0) -> 0 | CE61: =IF(SUM(CD$54:CD$57)>0,$H61*$I61,0) -> 0 | CG61: =IF(SUM(CF$54:CF$57)>0,$H61*$I61,0) -> 0 | CI61: =IF(SUM(CH$54:CH$57)>0,$H61*$I61,0) -> 0 | CK61: =IF(SUM(CJ$54:CJ$57)>0,$H61*$I61,0) -> 0 | CM61: =IF(SUM(CL$54:CL$57)>0,$H61*$I61,0) -> 0 | CO61: =IF(SUM(CN$54:CN$57)>0,$H61*$I61,0) -> 0 | CQ61: =IF(SUM(CP$54:CP$57)>0,$H61*$I61,0) -> 0 | CS61: =IF(SUM(CR$54:CR$57)>0,$H61*$I61,0) -> 0 | CU61: =IF(SUM(CT$54:CT$57)>0,$H61*$I61,0) -> 0 | CW61: =IF(SUM(CV$54:CV$57)>0,$H61*$I61,0) -> 0 | CY61: =IF(SUM(CX$54:CX$57)>0,$H61*$I61,0) -> 0 | DA61: =IF(SUM(CZ$54:CZ$57)>0,$H61*$I61,0) -> 0 | DC61: =IF(SUM(DB$54:DB$57)>0,$H61*$I61,0) -> 0 | DE61: =IF(SUM(DD$54:DD$57)>0,$H61*$I61,0) -> 0 | DG61: =IF(SUM(DF$54:DF$57)>0,$H61*$I61,0) -> 0 | DI61: =IF(SUM(DH$54:DH$57)>0,$H61*$I61,0) -> 0 | DK61: =IF(SUM(DJ$54:DJ$57)>0,$H61*$I61,0) -> 0 | DM61: =IF(SUM(DL$54:DL$57)>0,$H61*$I61,0) -> 0 | DO61: =IF(SUM(DN$54:DN$57)>0,$H61*$I61,0) -> 0 | DQ61: =IF(SUM(DP$54:DP$57)>0,$H61*$I61,0) -> 0 | DS61: =IF(SUM(DR$54:DR$57)>0,$H61*$I61,0) -> 0 | DU61: =IF(SUM(DT$54:DT$57)>0,$H61*$I61,0) -> 0 | DW61: =IF(SUM(DV$54:DV$57)>0,$H61*$I61,0) -> 0 | DY61: =IF(SUM(DX$54:DX$57)>0,$H61*$I61,0) -> 0 | EA61: =IF(SUM(DZ$54:DZ$57)>0,$H61*$I61,0) -> 0
D62: Camisa social branca, tecido leve em algodão | E62: 4 | F62: =F61 -> 0.57 | G62: 13 | H62: =ROUNDUP(E62*F62*G62,0) -> 30 | I62: 79.95 | M62: =IF(SUM(L$54:L$57)>0,$H62*$I62,0)/SUM($I$55:$I57) -> 0 | O62: =IF(SUM(N$54:N$57)>0,$H62*$I62,0)/SUM($I$55:$I57) -> 0 | Q62: =IF(SUM(P$54:P$57)>0,$H62*$I62,0)/SUM($I$55:$I$56) -> 184.5 | S62: =IF(SUM(R$54:R$57)>0,$H62*$I62,0)/SUM($I$55:$I$56) -> 184.5 | U62: 0 | W62: 0 | Y62: 0 | AA62: 0 | AC62: 0 | AE62: 0 | AG62: 0 | AI62: 0 | AK62: 0 | AM62: 0 | AO62: 0 | AQ62: 0 | AS62: 0 | AU62: 0 | AW62: 0 | AY62: 0 | BA62: 0 | BC62: 0 | BE62: 0 | BG62: 0 | BI62: 0 | BK62: 0 | BM62: 0 | BO62: 0 | BQ62: 0 | BS62: 0 | BU62: 0 | BW62: 0 | BY62: 0 | CA62: 0 | CC62: 0 | CE62: 0 | CG62: 0 | CI62: 0 | CK62: 0 | CM62: 0 | CO62: 0 | CQ62: 0 | CS62: 0 | CU62: 0 | CW62: 0 | CY62: 0 | DA62: 0 | DC62: 0 | DE62: 0 | DG62: 0 | DI62: 0 | DK62: 0 | DM62: 0 | DO62: 0 | DQ62: 0 | DS62: 0 | DU62: 0 | DW62: 0 | DY62: 0 | EA62: 0
D63: Cinto em couro na cor preta | E63: 2 | F63: =F62 -> 0.57 | G63: 13 | H63: =ROUNDUP(E63*F63*G63,0) -> 15 | I63: =I17 -> 59.18 | M63: =IF(SUM(L$54:L$57)>0,$H63*$I63,0)/SUM($I$55:$I59) -> 0 | O63: =IF(SUM(N$54:N$57)>0,$H63*$I63,0)/SUM($I$55:$I59) -> 0 | Q63: 68.28461538 | S63: 68.28461538 | U63: 0 | W63: 0 | Y63: 0 | AA63: 0 | AC63: 0 | AE63: 0 | AG63: 0 | AI63: 0 | AK63: 0 | AM63: 0 | AO63: 0 | AQ63: 0 | AS63: 0 | AU63: 0 | AW63: 0 | AY63: 0 | BA63: 0 | BC63: 0 | BE63: 0 | BG63: 0 | BI63: 0 | BK63: 0 | BM63: 0 | BO63: 0 | BQ63: 0 | BS63: 0 | BU63: 0 | BW63: 0 | BY63: 0 | CA63: 0 | CC63: 0 | CE63: 0 | CG63: 0 | CI63: 0 | CK63: 0 | CM63: 0 | CO63: 0 | CQ63: 0 | CS63: 0 | CU63: 0 | CW63: 0 | CY63: 0 | DA63: 0 | DC63: 0 | DE63: 0 | DG63: 0 | DI63: 0 | DK63: 0 | DM63: 0 | DO63: 0 | DQ63: 0 | DS63: 0 | DU63: 0 | DW63: 0 | DY63: 0 | EA63: 0
D64: Meia social na cor preta | E64: 4 | F64: 0.57 | G64: 13 | H64: =ROUNDUP(E64*F64*G64,0) -> 30 | I64: =I18 -> 11.54 | M64: =IF(SUM(L$54:L$57)>0,$H64*$I64,0)/SUM($I$55:$I60) -> 0 | O64: =IF(SUM(N$54:N$57)>0,$H64*$I64,0)/SUM($I$55:$I60) -> 0 | Q64: 26.63076923 | S64: 26.63076923 | U64: 0 | W64: 0 | Y64: 0 | AA64: 0 | AC64: 0 | AE64: 0 | AG64: 0 | AI64: 0 | AK64: 0 | AM64: 0 | AO64: 0 | AQ64: 0 | AS64: 0 | AU64: 0 | AW64: 0 | AY64: 0 | BA64: 0 | BC64: 0 | BE64: 0 | BG64: 0 | BI64: 0 | BK64: 0 | BM64: 0 | BO64: 0 | BQ64: 0 | BS64: 0 | BU64: 0 | BW64: 0 | BY64: 0 | CA64: 0 | CC64: 0 | CE64: 0 | CG64: 0 | CI64: 0 | CK64: 0 | CM64: 0 | CO64: 0 | CQ64: 0 | CS64: 0 | CU64: 0 | CW64: 0 | CY64: 0 | DA64: 0 | DC64: 0 | DE64: 0 | DG64: 0 | DI64: 0 | DK64: 0 | DM64: 0 | DO64: 0 | DQ64: 0 | DS64: 0 | DU64: 0 | DW64: 0 | DY64: 0 | EA64: 0
D65: Sapato social preto, em couro acolchoado, com solo antiderrapante | E65: 4 | F65: 0.57 | G65: 13 | H65: =ROUNDUP(E65*F65*G65,0) -> 30 | I65: =I19 -> 153.95 | M65: =IF(SUM(L$54:L$57)>0,$H65*$I65,0)/SUM($I$55:$I61) -> 0 | O65: =IF(SUM(N$54:N$57)>0,$H65*$I65,0)/SUM($I$55:$I61) -> 0 | Q65: 355.2692308 | S65: 355.2692308 | U65: 0 | W65: 0 | Y65: 0 | AA65: 0 | AC65: 0 | AE65: 0 | AG65: 0 | AI65: 0 | AK65: 0 | AM65: 0 | AO65: 0 | AQ65: 0 | AS65: 0 | AU65: 0 | AW65: 0 | AY65: 0 | BA65: 0 | BC65: 0 | BE65: 0 | BG65: 0 | BI65: 0 | BK65: 0 | BM65: 0 | BO65: 0 | BQ65: 0 | BS65: 0 | BU65: 0 | BW65: 0 | BY65: 0 | CA65: 0 | CC65: 0 | CE65: 0 | CG65: 0 | CI65: 0 | CK65: 0 | CM65: 0 | CO65: 0 | CQ65: 0 | CS65: 0 | CU65: 0 | CW65: 0 | CY65: 0 | DA65: 0 | DC65: 0 | DE65: 0 | DG65: 0 | DI65: 0 | DK65: 0 | DM65: 0 | DO65: 0 | DQ65: 0 | DS65: 0 | DU65: 0 | DW65: 0 | DY65: 0 | EA65: 0
C66: FEMININO | D66: Saia de tecido leve, na cor preta, em microfibra | E66: =E61 -> 4 | F66: =100%-F65 -> 0.43 | G66: 13 | H66: 23 | I66: 72.45 | M66: =IF(SUM(L$54:L$57)>0,$H66*$I66,0)/SUM($I$55:$I62) -> 0 | O66: =IF(SUM(N$54:N$57)>0,$H66*$I66,0)/SUM($I$55:$I62) -> 0 | Q66: 128.1807692 | S66: 128.1807692 | U66: 0 | W66: 0 | Y66: 0 | AA66: 0 | AC66: 0 | AE66: 0 | AG66: 0 | AI66: 0 | AK66: 0 | AM66: 0 | AO66: 0 | AQ66: 0 | AS66: 0 | AU66: 0 | AW66: 0 | AY66: 0 | BA66: 0 | BC66: 0 | BE66: 0 | BG66: 0 | BI66: 0 | BK66: 0 | BM66: 0 | BO66: 0 | BQ66: 0 | BS66: 0 | BU66: 0 | BW66: 0 | BY66: 0 | CA66: 0 | CC66: 0 | CE66: 0 | CG66: 0 | CI66: 0 | CK66: 0 | CM66: 0 | CO66: 0 | CQ66: 0 | CS66: 0 | CU66: 0 | CW66: 0 | CY66: 0 | DA66: 0 | DC66: 0 | DE66: 0 | DG66: 0 | DI66: 0 | DK66: 0 | DM66: 0 | DO66: 0 | DQ66: 0 | DS66: 0 | DU66: 0 | DW66: 0 | DY66: 0 | EA66: 0
D67: Blusa social branca, tecido leve em algodão | E67: =E62 -> 4 | F67: =F66 -> 0.43 | G67: 13 | H67: 23 | I67: 82.45 | M67: =IF(SUM(L$54:L$57)>0,$H67*$I67,0)/SUM($I$55:$I62) -> 0 | O67: =IF(SUM(N$54:N$57)>0,$H67*$I67,0)/SUM($I$55:$I62) -> 0 | Q67: =IF(SUM(P$54:P$57)>0,$H67*$I67,0)/SUM($I$55:$I$56) -> 145.8730769 | S67: 145.8730769 | U67: 0 | W67: 0 | Y67: 0 | AA67: 0 | AC67: 0 | AE67: 0 | AG67: 0 | AI67: 0 | AK67: 0 | AM67: 0 | AO67: 0 | AQ67: 0 | AS67: 0 | AU67: 0 | AW67: 0 | AY67: 0 | BA67: 0 | BC67: 0 | BE67: 0 | BG67: 0 | BI67: 0 | BK67: 0 | BM67: 0 | BO67: 0 | BQ67: 0 | BS67: 0 | BU67: 0 | BW67: 0 | BY67: 0 | CA67: 0 | CC67: 0 | CE67: 0 | CG67: 0 | CI67: 0 | CK67: 0 | CM67: 0 | CO67: 0 | CQ67: 0 | CS67: 0 | CU67: 0 | CW67: 0 | CY67: 0 | DA67: 0 | DC67: 0 | DE67: 0 | DG67: 0 | DI67: 0 | DK67: 0 | DM67: 0 | DO67: 0 | DQ67: 0 | DS67: 0 | DU67: 0 | DW67: 0 | DY67: 0 | EA67: 0
D68: Cinto em couro na cor preta | E68: =E63 -> 2 | F68: 0.43 | G68: 13 | H68: =ROUNDUP(E68*F68*G68,0) -> 12 | I68: 59.95 | M68: =IF(SUM(L$54:L$57)>0,$H68*$I68,0)/SUM($I$55:$I64) -> 0 | O68: =IF(SUM(N$54:N$57)>0,$H68*$I68,0)/SUM($I$55:$I64) -> 0 | Q68: 55.33846154 | S68: 55.33846154 | U68: 0 | W68: 0 | Y68: 0 | AA68: 0 | AC68: 0 | AE68: 0 | AG68: 0 | AI68: 0 | AK68: 0 | AM68: 0 | AO68: 0 | AQ68: 0 | AS68: 0 | AU68: 0 | AW68: 0 | AY68: 0 | BA68: 0 | BC68: 0 | BE68: 0 | BG68: 0 | BI68: 0 | BK68: 0 | BM68: 0 | BO68: 0 | BQ68: 0 | BS68: 0 | BU68: 0 | BW68: 0 | BY68: 0 | CA68: 0 | CC68: 0 | CE68: 0 | CG68: 0 | CI68: 0 | CK68: 0 | CM68: 0 | CO68: 0 | CQ68: 0 | CS68: 0 | CU68: 0 | CW68: 0 | CY68: 0 | DA68: 0 | DC68: 0 | DE68: 0 | DG68: 0 | DI68: 0 | DK68: 0 | DM68: 0 | DO68: 0 | DQ68: 0 | DS68: 0 | DU68: 0 | DW68: 0 | DY68: 0 | EA68: 0
D69: Meia social na cor preta | E69: =E64 -> 4 | F69: 0.43 | G69: 13 | H69: 23 | I69: =I23 -> 21 | M69: =IF(SUM(L$54:L$57)>0,$H69*$I69,0)/SUM($I$55:$I65) -> 0 | O69: =IF(SUM(N$54:N$57)>0,$H69*$I69,0)/SUM($I$55:$I65) -> 0 | Q69: 37.15384615 | S69: 37.15384615 | U69: 0 | W69: 0 | Y69: 0 | AA69: 0 | AC69: 0 | AE69: 0 | AG69: 0 | AI69: 0 | AK69: 0 | AM69: 0 | AO69: 0 | AQ69: 0 | AS69: 0 | AU69: 0 | AW69: 0 | AY69: 0 | BA69: 0 | BC69: 0 | BE69: 0 | BG69: 0 | BI69: 0 | BK69: 0 | BM69: 0 | BO69: 0 | BQ69: 0 | BS69: 0 | BU69: 0 | BW69: 0 | BY69: 0 | CA69: 0 | CC69: 0 | CE69: 0 | CG69: 0 | CI69: 0 | CK69: 0 | CM69: 0 | CO69: 0 | CQ69: 0 | CS69: 0 | CU69: 0 | CW69: 0 | CY69: 0 | DA69: 0 | DC69: 0 | DE69: 0 | DG69: 0 | DI69: 0 | DK69: 0 | DM69: 0 | DO69: 0 | DQ69: 0 | DS69: 0 | DU69: 0 | DW69: 0 | DY69: 0 | EA69: 0
D70: Sapato social preto, em couro acolchoado, com solo antiderrapante | E70: =E65 -> 4 | F70: 0.43 | G70: 13 | H70: 23 | I70: =I24 -> 105 | M70: =IF(SUM(L$54:L$57)>0,$H70*$I70,0)/SUM($I$55:$I66) -> 0 | O70: =IF(SUM(N$54:N$57)>0,$H70*$I70,0)/SUM($I$55:$I66) -> 0 | Q70: 185.7692308 | S70: =IF(SUM(R$54:R$57)>0,$H70*$I70,0)/SUM($I$55:$I$56) -> 185.7692308 | U70: 0 | W70: 0 | Y70: 0 | AA70: 0 | AC70: 0 | AE70: 0 | AG70: 0 | AI70: 0 | AK70: 0 | AM70: 0 | AO70: 0 | AQ70: 0 | AS70: 0 | AU70: 0 | AW70: 0 | AY70: 0 | BA70: 0 | BC70: 0 | BE70: 0 | BG70: 0 | BI70: 0 | BK70: 0 | BM70: 0 | BO70: 0 | BQ70: 0 | BS70: 0 | BU70: 0 | BW70: 0 | BY70: 0 | CA70: 0 | CC70: 0 | CE70: 0 | CG70: 0 | CI70: 0 | CK70: 0 | CM70: 0 | CO70: 0 | CQ70: 0 | CS70: 0 | CU70: 0 | CW70: 0 | CY70: 0 | DA70: 0 | DC70: 0 | DE70: 0 | DG70: 0 | DI70: 0 | DK70: 0 | DM70: 0 | DO70: 0 | DQ70: 0 | DS70: 0 | DU70: 0 | DW70: 0 | DY70: 0 | EA70: 0
M71: =IF(SUM(L$8:L$11)>0,$E71*$I71,0) -> 0 | O71: =IF(SUM(N$8:N$11)>0,$E71*$I71,0) -> 0 | Q71: 0 | S71: 0 | U71: 0 | W71: =IF(SUM(V$8:V$11)>0,$E71*$I71,0) -> 0 | Y71: =IF(SUM(X$8:X$11)>0,$E71*$I71,0) -> 0 | AA71: =IF(SUM(Z$8:Z$11)>0,$E71*$I71,0) -> 0 | AC71: =IF(SUM(AB$8:AB$11)>0,$E71*$I71,0) -> 0 | AE71: =IF(SUM(AD$8:AD$11)>0,$E71*$I71,0) -> 0 | AG71: =IF(SUM(AF$8:AF$11)>0,$E71*$I71,0) -> 0 | AI71: =IF(SUM(AH$8:AH$11)>0,$E71*$I71,0) -> 0 | AK71: =IF(SUM(AJ$8:AJ$11)>0,$E71*$I71,0) -> 0 | AM71: =IF(SUM(AL$8:AL$11)>0,$E71*$I71,0) -> 0 | AO71: =IF(SUM(AN$8:AN$11)>0,$E71*$I71,0) -> 0 | AQ71: =IF(SUM(AP$8:AP$11)>0,$E71*$I71,0) -> 0 | AS71: =IF(SUM(AR$8:AR$11)>0,$E71*$I71,0) -> 0 | AU71: =IF(SUM(AT$8:AT$11)>0,$E71*$I71,0) -> 0 | AW71: =IF(SUM(AV$8:AV$11)>0,$E71*$I71,0) -> 0 | AY71: =IF(SUM(AX$8:AX$11)>0,$E71*$I71,0) -> 0 | BA71: =IF(SUM(AZ$8:AZ$11)>0,$E71*$I71,0) -> 0 | BC71: =IF(SUM(BB$8:BB$11)>0,$E71*$I71,0) -> 0 | BE71: =IF(SUM(BD$8:BD$11)>0,$E71*$I71,0) -> 0 | BG71: =IF(SUM(BF$8:BF$11)>0,$E71*$I71,0) -> 0 | BI71: =IF(SUM(BH$8:BH$11)>0,$E71*$I71,0) -> 0 | BK71: =IF(SUM(BJ$8:BJ$11)>0,$E71*$I71,0) -> 0 | BM71: =IF(SUM(BL$8:BL$11)>0,$E71*$I71,0) -> 0 | BO71: =IF(SUM(BN$8:BN$11)>0,$E71*$I71,0) -> 0 | BQ71: =IF(SUM(BP$8:BP$11)>0,$E71*$I71,0) -> 0 | BS71: =IF(SUM(BR$8:BR$11)>0,$E71*$I71,0) -> 0 | BU71: =IF(SUM(BT$8:BT$11)>0,$E71*$I71,0) -> 0 | BW71: =IF(SUM(BV$8:BV$11)>0,$E71*$I71,0) -> 0 | BY71: =IF(SUM(BX$8:BX$11)>0,$E71*$I71,0) -> 0 | CA71: =IF(SUM(BZ$8:BZ$11)>0,$E71*$I71,0) -> 0 | CC71: =IF(SUM(CB$8:CB$11)>0,$E71*$I71,0) -> 0 | CE71: =IF(SUM(CD$8:CD$11)>0,$E71*$I71,0) -> 0 | CG71: =IF(SUM(CF$8:CF$11)>0,$E71*$I71,0) -> 0 | CI71: =IF(SUM(CH$8:CH$11)>0,$E71*$I71,0) -> 0 | CK71: =IF(SUM(CJ$8:CJ$11)>0,$E71*$I71,0) -> 0 | CM71: =IF(SUM(CL$8:CL$11)>0,$E71*$I71,0) -> 0 | CO71: =IF(SUM(CN$8:CN$11)>0,$E71*$I71,0) -> 0 | CQ71: =IF(SUM(CP$8:CP$11)>0,$E71*$I71,0) -> 0 | CS71: =IF(SUM(CR$8:CR$11)>0,$E71*$I71,0) -> 0 | CU71: =IF(SUM(CT$8:CT$11)>0,$E71*$I71,0) -> 0 | CW71: =IF(SUM(CV$8:CV$11)>0,$E71*$I71,0) -> 0 | CY71: =IF(SUM(CX$8:CX$11)>0,$E71*$I71,0) -> 0 | DA71: =IF(SUM(CZ$8:CZ$11)>0,$E71*$I71,0) -> 0 | DC71: =IF(SUM(DB$8:DB$11)>0,$E71*$I71,0) -> 0 | DE71: =IF(SUM(DD$8:DD$11)>0,$E71*$I71,0) -> 0 | DG71: =IF(SUM(DF$8:DF$11)>0,$E71*$I71,0) -> 0 | DI71: =IF(SUM(DH$8:DH$11)>0,$E71*$I71,0) -> 0 | DK71: =IF(SUM(DJ$8:DJ$11)>0,$E71*$I71,0) -> 0 | DM71: =IF(SUM(DL$8:DL$11)>0,$E71*$I71,0) -> 0 | DO71: =IF(SUM(DN$8:DN$11)>0,$E71*$I71,0) -> 0 | DQ71: =IF(SUM(DP$8:DP$11)>0,$E71*$I71,0) -> 0 | DS71: =IF(SUM(DR$8:DR$11)>0,$E71*$I71,0) -> 0 | DU71: =IF(SUM(DT$8:DT$11)>0,$E71*$I71,0) -> 0 | DW71: =IF(SUM(DV$8:DV$11)>0,$E71*$I71,0) -> 0 | DY71: =IF(SUM(DX$8:DX$11)>0,$E71*$I71,0) -> 0 | EA71: =IF(SUM(DZ$8:DZ$11)>0,$E71*$I71,0) -> 0
C73: CATEGORIAS | I73: QUANTIDADE
L74: =IF($C74=L$4,1,0) -> 0 | N74: 0 | P74: 0 | R74: 0 | T74: 0 | V74: 0 | X74: 0 | Z74: 0 | AB74: =IF($C74=AB$4,1,0) -> 0 | AD74: 0 | AF74: 0 | AH74: 0 | AJ74: 0 | AL74: =IF($C74=AL$4,1,0) -> 0 | AN74: 0 | AP74: 0 | AR74: 0 | AT74: 0 | AV74: 0 | AX74: 0 | AZ74: 0 | BB74: 0 | BD74: 0 | BF74: 0 | BH74: 0 | BJ74: 0 | BL74: 0 | BN74: 0 | BP74: 0 | BR74: 0 | BT74: 0 | BV74: 0 | BX74: 0 | BZ74: 0 | CB74: 0 | CD74: 0 | CF74: 0 | CH74: 0 | CJ74: 0 | CL74: 0 | CN74: 0 | CP74: 0 | CR74: 0 | CT74: 0 | CV74: 0 | CX74: =IF($C74=CX$4,1,0) -> 0 | CZ74: 0 | DB74: 0 | DD74: 0 | DF74: 0 | DH74: 0 | DJ74: 0 | DL74: 0 | DN74: 0 | DP74: 0 | DR74: 0 | DT74: 0 | DV74: 0 | DX74: 0 | DZ74: 0
C75: 5 | D75: =HLOOKUP($C75,'Dados Gerais'!$D$5:$BK$10,6) -> ALMOXARIFE | F75: 1 | G75: 1 | I75: =HLOOKUP($C75,'Dados Gerais'!$D$5:$BK$14,10) -> 2 | L75: 0 | N75: 0 | P75: 0 | R75: 0 | T75: 1 | V75: 0 | X75: 0 | Z75: 0 | AB75: 0 | AD75: 0 | AF75: =IF($C75=AF$4,1,0) -> 0 | AH75: 0 | AJ75: 0 | AL75: 0 | AN75: 0 | AP75: 0 | AR75: 0 | AT75: 0 | AV75: 0 | AX75: 0 | AZ75: 0 | BB75: 0 | BD75: 0 | BF75: 0 | BH75: 0 | BJ75: 0 | BL75: 0 | BN75: 0 | BP75: 0 | BR75: 0 | BT75: 0 | BV75: 0 | BX75: 0 | BZ75: 0 | CB75: 0 | CD75: 0 | CF75: 0 | CH75: 0 | CJ75: 0 | CL75: 0 | CN75: 0 | CP75: 0 | CR75: 0 | CT75: 0 | CV75: 0 | CX75: 0 | CZ75: 0 | DB75: 0 | DD75: 0 | DF75: 0 | DH75: 0 | DJ75: 0 | DL75: 0 | DN75: 0 | DP75: 0 | DR75: 0 | DT75: 0 | DV75: 0 | DX75: 0 | DZ75: 0
C76: 6 | D76: =HLOOKUP($C76,'Dados Gerais'!$D$5:$BK$10,6) -> SERVENTE | F76: =I76-G76 -> 125 | G76: 64 | I76: =HLOOKUP($C76,'Dados Gerais'!$D$5:$BK$14,10) -> 189 | L76: 0 | N76: 0 | P76: 0 | R76: 0 | T76: 0 | V76: =IF($C76=V$4,1,0) -> 1 | X76: 0 | Z76: 0 | AB76: 0 | AD76: 0 | AF76: 0 | AH76: 0 | AJ76: 0 | AL76: 0 | AN76: 0 | AP76: 0 | AR76: 0 | AT76: 0 | AV76: 0 | AX76: 0 | AZ76: 0 | BB76: 0 | BD76: 0 | BF76: 0 | BH76: 0 | BJ76: 0 | BL76: 0 | BN76: 0 | BP76: 0 | BR76: 0 | BT76: 0 | BV76: 0 | BX76: 0 | BZ76: 0 | CB76: 0 | CD76: 0 | CF76: 0 | CH76: 0 | CJ76: 0 | CL76: 0 | CN76: 0 | CP76: 0 | CR76: 0 | CT76: 0 | CV76: 0 | CX76: 0 | CZ76: 0 | DB76: 0 | DD76: 0 | DF76: 0 | DH76: 0 | DJ76: 0 | DL76: 0 | DN76: 0 | DP76: 0 | DR76: 0 | DT76: 0 | DV76: 0 | DX76: 0 | DZ76: 0
L77: 0 | N77: 0 | P77: 0 | R77: 0 | T77: 0 | V77: 0 | X77: 0 | Z77: 0 | AB77: 0 | AD77: 0 | AF77: =IF($C77=AF$4,1,0) -> 0 | AH77: 0 | AJ77: 0 | AL77: 0 | AN77: 0 | AP77: 0 | AR77: 0 | AT77: 0 | AV77: 0 | AX77: 0 | AZ77: 0 | BB77: 0 | BD77: 0 | BF77: 0 | BH77: 0 | BJ77: 0 | BL77: 0 | BN77: 0 | BP77: 0 | BR77: 0 | BT77: 0 | BV77: 0 | BX77: 0 | BZ77: 0 | CB77: 0 | CD77: 0 | CF77: 0 | CH77: 0 | CJ77: 0 | CL77: 0 | CN77: 0 | CP77: 0 | CR77: 0 | CT77: 0 | CV77: 0 | CX77: 0 | CZ77: 0 | DB77: 0 | DD77: 0 | DF77: 0 | DH77: 0 | DJ77: 0 | DL77: 0 | DN77: 0 | DP77: 0 | DR77: 0 | DT77: 0 | DV77: 0 | DX77: 0 | DZ77: 0
C79: ITEM | D79: DESCRIÇÃO | E79: QUANT ANUAL POR POSTO | F79: % ESTIMADO POR GÊNERO | G79: Nº DE POSTOS | H79: QUANT ANUAL TOTAL ESTIMADA | I79: VALOR
M80: =IF(SUM(L$8:L$11)>0,$E80*$I80,0) -> 0 | O80: =IF(SUM(N$8:N$11)>0,$E80*$I80,0) -> 0 | Q80: =IF(SUM(P$54:P$57)>0,$H80*$I80,0)/SUM($I$55:$I$56) -> 0 | S80: =IF(SUM(R$54:R$57)>0,$H80*$I80,0)/SUM($I$55:$I$56) -> 0 | U80: =IF(SUM(T$54:T$57)>0,$H80*$I80,0)/SUM($I$55:$I$56) -> 0 | W80: =IF(SUM(V$8:V$11)>0,$E80*$I80,0) -> 0 | Y80: =IF(SUM(X$8:X$11)>0,$E80*$I80,0) -> 0 | AA80: =IF(SUM(Z$8:Z$11)>0,$E80*$I80,0) -> 0 | AC80: =IF(SUM(AB$8:AB$11)>0,$E80*$I80,0) -> 0 | AE80: =IF(SUM(AD$8:AD$11)>0,$E80*$I80,0) -> 0 | AG80: =IF(SUM(AF$8:AF$11)>0,$E80*$I80,0) -> 0 | AI80: =IF(SUM(AH$8:AH$11)>0,$E80*$I80,0) -> 0 | AK80: =IF(SUM(AJ$8:AJ$11)>0,$E80*$I80,0) -> 0 | AM80: =IF(SUM(AL$8:AL$11)>0,$E80*$I80,0) -> 0 | AO80: =IF(SUM(AN$8:AN$11)>0,$E80*$I80,0) -> 0 | AQ80: =IF(SUM(AP$8:AP$11)>0,$E80*$I80,0) -> 0 | AS80: =IF(SUM(AR$8:AR$11)>0,$E80*$I80,0) -> 0 | AU80: =IF(SUM(AT$8:AT$11)>0,$E80*$I80,0) -> 0 | AW80: =IF(SUM(AV$8:AV$11)>0,$E80*$I80,0) -> 0 | AY80: =IF(SUM(AX$8:AX$11)>0,$E80*$I80,0) -> 0 | BA80: =IF(SUM(AZ$8:AZ$11)>0,$E80*$I80,0) -> 0 | BC80: =IF(SUM(BB$8:BB$11)>0,$E80*$I80,0) -> 0 | BE80: =IF(SUM(BD$8:BD$11)>0,$E80*$I80,0) -> 0 | BG80: =IF(SUM(BF$8:BF$11)>0,$E80*$I80,0) -> 0 | BI80: =IF(SUM(BH$8:BH$11)>0,$E80*$I80,0) -> 0 | BK80: =IF(SUM(BJ$8:BJ$11)>0,$E80*$I80,0) -> 0 | BM80: =IF(SUM(BL$8:BL$11)>0,$E80*$I80,0) -> 0 | BO80: =IF(SUM(BN$8:BN$11)>0,$E80*$I80,0) -> 0 | BQ80: =IF(SUM(BP$8:BP$11)>0,$E80*$I80,0) -> 0 | BS80: =IF(SUM(BR$8:BR$11)>0,$E80*$I80,0) -> 0 | BU80: =IF(SUM(BT$8:BT$11)>0,$E80*$I80,0) -> 0 | BW80: =IF(SUM(BV$8:BV$11)>0,$E80*$I80,0) -> 0 | BY80: =IF(SUM(BX$8:BX$11)>0,$E80*$I80,0) -> 0 | CA80: =IF(SUM(BZ$8:BZ$11)>0,$E80*$I80,0) -> 0 | CC80: =IF(SUM(CB$8:CB$11)>0,$E80*$I80,0) -> 0 | CE80: =IF(SUM(CD$8:CD$11)>0,$E80*$I80,0) -> 0 | CG80: =IF(SUM(CF$8:CF$11)>0,$E80*$I80,0) -> 0 | CI80: =IF(SUM(CH$8:CH$11)>0,$E80*$I80,0) -> 0 | CK80: =IF(SUM(CJ$8:CJ$11)>0,$E80*$I80,0) -> 0 | CM80: =IF(SUM(CL$8:CL$11)>0,$E80*$I80,0) -> 0 | CO80: =IF(SUM(CN$8:CN$11)>0,$E80*$I80,0) -> 0 | CQ80: =IF(SUM(CP$8:CP$11)>0,$E80*$I80,0) -> 0 | CS80: =IF(SUM(CR$8:CR$11)>0,$E80*$I80,0) -> 0 | CU80: =IF(SUM(CT$8:CT$11)>0,$E80*$I80,0) -> 0 | CW80: =IF(SUM(CV$8:CV$11)>0,$E80*$I80,0) -> 0 | CY80: =IF(SUM(CX$8:CX$11)>0,$E80*$I80,0) -> 0 | DA80: =IF(SUM(CZ$8:CZ$11)>0,$E80*$I80,0) -> 0 | DC80: =IF(SUM(DB$8:DB$11)>0,$E80*$I80,0) -> 0 | DE80: =IF(SUM(DD$8:DD$11)>0,$E80*$I80,0) -> 0 | DG80: =IF(SUM(DF$8:DF$11)>0,$E80*$I80,0) -> 0 | DI80: =IF(SUM(DH$8:DH$11)>0,$E80*$I80,0) -> 0 | DK80: =IF(SUM(DJ$8:DJ$11)>0,$E80*$I80,0) -> 0 | DM80: =IF(SUM(DL$8:DL$11)>0,$E80*$I80,0) -> 0 | DO80: =IF(SUM(DN$8:DN$11)>0,$E80*$I80,0) -> 0 | DQ80: =IF(SUM(DP$8:DP$11)>0,$E80*$I80,0) -> 0 | DS80: =IF(SUM(DR$8:DR$11)>0,$E80*$I80,0) -> 0 | DU80: =IF(SUM(DT$8:DT$11)>0,$E80*$I80,0) -> 0 | DW80: =IF(SUM(DV$8:DV$11)>0,$E80*$I80,0) -> 0 | DY80: =IF(SUM(DX$8:DX$11)>0,$E80*$I80,0) -> 0 | EA80: =IF(SUM(DZ$8:DZ$11)>0,$E80*$I80,0) -> 0
C81: MASCULINO | D81: Calça com elástico e bolso laterais, na cor azul marinho, tecido brim 100% algodão | E81: 4 | F81: =ROUNDUP(78/180,2) -> 0.44 | G81: =SUM($I$75:$I$76) -> 191 | H81: =ROUNDUP(E81*F81*G81,0) -> 337 | I81: 59.95 | M81: =IF(SUM(L$74:L$76)>0,$H81*$I81,0)/SUM($I$75:$I$76) -> 0 | O81: =IF(SUM(N$74:N$76)>0,$H81*$I81,0)/SUM($I$75:$I$76) -> 0 | Q81: =IF(SUM(P$74:P$78)>0,$H81*$I81,0)/SUM($I$55:$I$56) -> 0 | S81: =IF(SUM(R$74:R$78)>0,$H81*$I81,0)/SUM($I$55:$I$56) -> 0 | U81: =IF(SUM(T$74:T$78)>0,$H81*$I81,0)/SUM($I$75:$I$76) -> 105.7756545 | W81: =IF(SUM(V$74:V$76)>0,$H81*$I81,0)/SUM($I$75:$I$76) -> 105.7756545 | Y81: =IF(SUM(X$74:X$76)>0,$H81*$I81,0)/SUM($I$75:$I$76) -> 0 | AA81: =IF(SUM(Z$74:Z$76)>0,$H81*$I81,0)/SUM($I$75:$I$76) -> 0 | AC81: =IF(SUM(AB$74:AB$76)>0,$H81*$I81,0)/SUM($I$75:$I$76) -> 0 | AE81: =IF(SUM(AD$74:AD$76)>0,$H81*$I81,0)/SUM($I$75:$I$76) -> 0 | AG81: =IF(SUM(AF$74:AF$76)>0,$H81*$I81,0)/SUM($I$75:$I$76) -> 0 | AI81: =IF(SUM(AH$74:AH$76)>0,$H81*$I81,0)/SUM($I$75:$I$76) -> 0 | AK81: =IF(SUM(AJ$74:AJ$76)>0,$H81*$I81,0)/SUM($I$75:$I$76) -> 0 | AM81: =IF(SUM(AL$74:AL$76)>0,$H81*$I81,0)/SUM($I$75:$I$76) -> 0 | AO81: =IF(SUM(AN$74:AN$76)>0,$H81*$I81,0)/SUM($I$75:$I$76) -> 0 | AQ81: =IF(SUM(AP$74:AP$76)>0,$H81*$I81,0)/SUM($I$75:$I$76) -> 0 | AS81: =IF(SUM(AR$74:AR$76)>0,$H81*$I81,0)/SUM($I$75:$I$76) -> 0 | AU81: =IF(SUM(AT$74:AT$76)>0,$H81*$I81,0)/SUM($I$75:$I$76) -> 0 | AW81: =IF(SUM(AV$74:AV$76)>0,$H81*$I81,0)/SUM($I$75:$I$76) -> 0 | AY81: =IF(SUM(AX$74:AX$76)>0,$H81*$I81,0)/SUM($I$75:$I$76) -> 0 | BA81: =IF(SUM(AZ$74:AZ$76)>0,$H81*$I81,0)/SUM($I$75:$I$76) -> 0 | BC81: =IF(SUM(BB$74:BB$76)>0,$H81*$I81,0)/SUM($I$75:$I$76) -> 0 | BE81: =IF(SUM(BD$74:BD$76)>0,$H81*$I81,0)/SUM($I$75:$I$76) -> 0 | BG81: =IF(SUM(BF$74:BF$76)>0,$H81*$I81,0)/SUM($I$75:$I$76) -> 0 | BI81: =IF(SUM(BH$74:BH$76)>0,$H81*$I81,0)/SUM($I$75:$I$76) -> 0 | BK81: =IF(SUM(BJ$74:BJ$76)>0,$H81*$I81,0)/SUM($I$75:$I$76) -> 0 | BM81: =IF(SUM(BL$74:BL$76)>0,$H81*$I81,0)/SUM($I$75:$I$76) -> 0 | BO81: =IF(SUM(BN$74:BN$76)>0,$H81*$I81,0)/SUM($I$75:$I$76) -> 0 | BQ81: =IF(SUM(BP$74:BP$76)>0,$H81*$I81,0)/SUM($I$75:$I$76) -> 0 | BS81: =IF(SUM(BR$74:BR$76)>0,$H81*$I81,0)/SUM($I$75:$I$76) -> 0 | BU81: =IF(SUM(BT$74:BT$76)>0,$H81*$I81,0)/SUM($I$75:$I$76) -> 0 | BW81: =IF(SUM(BV$74:BV$76)>0,$H81*$I81,0)/SUM($I$75:$I$76) -> 0 | BY81: =IF(SUM(BX$74:BX$76)>0,$H81*$I81,0)/SUM($I$75:$I$76) -> 0 | CA81: =IF(SUM(BZ$74:BZ$76)>0,$H81*$I81,0)/SUM($I$75:$I$76) -> 0 | CC81: =IF(SUM(CB$74:CB$76)>0,$H81*$I81,0)/SUM($I$75:$I$76) -> 0 | CE81: =IF(SUM(CD$74:CD$76)>0,$H81*$I81,0)/SUM($I$75:$I$76) -> 0 | CG81: =IF(SUM(CF$74:CF$76)>0,$H81*$I81,0)/SUM($I$75:$I$76) -> 0 | CI81: =IF(SUM(CH$74:CH$76)>0,$H81*$I81,0)/SUM($I$75:$I$76) -> 0 | CK81: =IF(SUM(CJ$74:CJ$76)>0,$H81*$I81,0)/SUM($I$75:$I$76) -> 0 | CM81: =IF(SUM(CL$74:CL$76)>0,$H81*$I81,0)/SUM($I$75:$I$76) -> 0 | CO81: =IF(SUM(CN$74:CN$76)>0,$H81*$I81,0)/SUM($I$75:$I$76) -> 0 | CQ81: =IF(SUM(CP$74:CP$76)>0,$H81*$I81,0)/SUM($I$75:$I$76) -> 0 | CS81: =IF(SUM(CR$74:CR$76)>0,$H81*$I81,0)/SUM($I$75:$I$76) -> 0 | CU81: =IF(SUM(CT$74:CT$76)>0,$H81*$I81,0)/SUM($I$75:$I$76) -> 0 | CW81: =IF(SUM(CV$74:CV$76)>0,$H81*$I81,0)/SUM($I$75:$I$76) -> 0 | CY81: =IF(SUM(CX$74:CX$76)>0,$H81*$I81,0)/SUM($I$75:$I$76) -> 0 | DA81: =IF(SUM(CZ$74:CZ$76)>0,$H81*$I81,0)/SUM($I$75:$I$76) -> 0 | DC81: =IF(SUM(DB$74:DB$76)>0,$H81*$I81,0)/SUM($I$75:$I$76) -> 0 | DE81: =IF(SUM(DD$74:DD$76)>0,$H81*$I81,0)/SUM($I$75:$I$76) -> 0 | DG81: =IF(SUM(DF$74:DF$76)>0,$H81*$I81,0)/SUM($I$75:$I$76) -> 0 | DI81: =IF(SUM(DH$74:DH$76)>0,$H81*$I81,0)/SUM($I$75:$I$76) -> 0 | DK81: =IF(SUM(DJ$74:DJ$76)>0,$H81*$I81,0)/SUM($I$75:$I$76) -> 0 | DM81: =IF(SUM(DL$74:DL$76)>0,$H81*$I81,0)/SUM($I$75:$I$76) -> 0 | DO81: =IF(SUM(DN$74:DN$76)>0,$H81*$I81,0)/SUM($I$75:$I$76) -> 0 | DQ81: =IF(SUM(DP$74:DP$76)>0,$H81*$I81,0)/SUM($I$75:$I$76) -> 0 | DS81: =IF(SUM(DR$74:DR$76)>0,$H81*$I81,0)/SUM($I$75:$I$76) -> 0 | DU81: =IF(SUM(DT$74:DT$76)>0,$H81*$I81,0)/SUM($I$75:$I$76) -> 0 | DW81: =IF(SUM(DV$74:DV$76)>0,$H81*$I81,0)/SUM($I$75:$I$76) -> 0 | DY81: =IF(SUM(DX$74:DX$76)>0,$H81*$I81,0)/SUM($I$75:$I$76) -> 0 | EA81: =IF(SUM(DZ$74:DZ$76)>0,$H81*$I81,0)/SUM($I$75:$I$76) -> 0
D82: Camisa nas cores cinza e azul marinho, tecido leve 100% algodão | E82: 4 | F82: =F81 -> 0.44 | G82: =G81 -> 191 | H82: =ROUNDUP(E82*F82*G82,0) -> 337 | I82: 34.95 | M82: 0 | O82: 0 | Q82: 0 | S82: 0 | U82: =IF(SUM(T$74:T$78)>0,$H82*$I82,0)/SUM($I$75:$I$76) -> 61.66570681 | W82: =IF(SUM(V$74:V$76)>0,$H82*$I82,0)/SUM($I$75:$I$76) -> 61.66570681 | Y82: 0 | AA82: 0 | AC82: 0 | AE82: 0 | AG82: 0 | AI82: 0 | AK82: 0 | AM82: 0 | AO82: 0 | AQ82: 0 | AS82: 0 | AU82: 0 | AW82: 0 | AY82: 0 | BA82: 0 | BC82: 0 | BE82: 0 | BG82: 0 | BI82: 0 | BK82: 0 | BM82: 0 | BO82: 0 | BQ82: 0 | BS82: 0 | BU82: 0 | BW82: 0 | BY82: 0 | CA82: 0 | CC82: 0 | CE82: 0 | CG82: 0 | CI82: 0 | CK82: 0 | CM82: 0 | CO82: 0 | CQ82: 0 | CS82: 0 | CU82: 0 | CW82: 0 | CY82: 0 | DA82: 0 | DC82: 0 | DE82: 0 | DG82: 0 | DI82: 0 | DK82: 0 | DM82: 0 | DO82: 0 | DQ82: 0 | DS82: 0 | DU82: 0 | DW82: 0 | DY82: 0 | EA82: 0
D83: Meia social na cor preta | E83: 4 | F83: =F82 -> 0.44 | G83: =G82 -> 191 | H83: 337 | I83: =I64 -> 11.54 | M83: 0 | O83: 0 | Q83: 0 | S83: 0 | U83: 20.36115183 | W83: 20.36115183 | Y83: 0 | AA83: 0 | AC83: 0 | AE83: 0 | AG83: 0 | AI83: 0 | AK83: 0 | AM83: 0 | AO83: 0 | AQ83: 0 | AS83: 0 | AU83: 0 | AW83: 0 | AY83: 0 | BA83: 0 | BC83: 0 | BE83: 0 | BG83: 0 | BI83: 0 | BK83: 0 | BM83: 0 | BO83: 0 | BQ83: 0 | BS83: 0 | BU83: 0 | BW83: 0 | BY83: 0 | CA83: 0 | CC83: 0 | CE83: 0 | CG83: 0 | CI83: 0 | CK83: 0 | CM83: 0 | CO83: 0 | CQ83: 0 | CS83: 0 | CU83: 0 | CW83: 0 | CY83: 0 | DA83: 0 | DC83: 0 | DE83: 0 | DG83: 0 | DI83: 0 | DK83: 0 | DM83: 0 | DO83: 0 | DQ83: 0 | DS83: 0 | DU83: 0 | DW83: 0 | DY83: 0 | EA83: 0
C84: FEMININO | D84: Calça com elástico e bolso laterais, na cor azul marinho, tecido brim 100% algodão | E84: =E81 -> 4 | F84: =100%-F83 -> 0.56 | G84: 191 | H84: 428 | I84: =I81 -> 59.95 | M84: 0 | O84: 0 | Q84: 0 | S84: 0 | U84: 134.3382199 | W84: 134.3382199 | Y84: 0 | AA84: 0 | AC84: 0 | AE84: 0 | AG84: 0 | AI84: 0 | AK84: 0 | AM84: 0 | AO84: 0 | AQ84: 0 | AS84: 0 | AU84: 0 | AW84: 0 | AY84: 0 | BA84: 0 | BC84: 0 | BE84: 0 | BG84: 0 | BI84: 0 | BK84: 0 | BM84: 0 | BO84: 0 | BQ84: 0 | BS84: 0 | BU84: 0 | BW84: 0 | BY84: 0 | CA84: 0 | CC84: 0 | CE84: 0 | CG84: 0 | CI84: 0 | CK84: 0 | CM84: 0 | CO84: 0 | CQ84: 0 | CS84: 0 | CU84: 0 | CW84: 0 | CY84: 0 | DA84: 0 | DC84: 0 | DE84: 0 | DG84: 0 | DI84: 0 | DK84: 0 | DM84: 0 | DO84: 0 | DQ84: 0 | DS84: 0 | DU84: 0 | DW84: 0 | DY84: 0 | EA84: 0
D85: Blusa nas cores cinza e azul marinho, tecido leve 100% algodão | E85: =E82 -> 4 | F85: =F84 -> 0.56 | G85: 191 | H85: 428 | I85: 34.95 | M85: 0 | O85: 0 | Q85: 0 | S85: 0 | U85: 78.31727749 | W85: 78.31727749 | Y85: 0 | AA85: 0 | AC85: 0 | AE85: 0 | AG85: 0 | AI85: 0 | AK85: 0 | AM85: 0 | AO85: 0 | AQ85: 0 | AS85: 0 | AU85: 0 | AW85: 0 | AY85: 0 | BA85: 0 | BC85: 0 | BE85: 0 | BG85: 0 | BI85: 0 | BK85: 0 | BM85: 0 | BO85: 0 | BQ85: 0 | BS85: 0 | BU85: 0 | BW85: 0 | BY85: 0 | CA85: 0 | CC85: 0 | CE85: 0 | CG85: 0 | CI85: 0 | CK85: 0 | CM85: 0 | CO85: 0 | CQ85: 0 | CS85: 0 | CU85: 0 | CW85: 0 | CY85: 0 | DA85: 0 | DC85: 0 | DE85: 0 | DG85: 0 | DI85: 0 | DK85: 0 | DM85: 0 | DO85: 0 | DQ85: 0 | DS85: 0 | DU85: 0 | DW85: 0 | DY85: 0 | EA85: 0
D86: Meia social na cor preta | E86: 4 | F86: =F85 -> 0.56 | G86: 191 | H86: 428 | I86: =I69 -> 21 | M86: 0 | O86: 0 | Q86: 0 | S86: 0 | U86: 47.05759162 | W86: =IF(SUM(V$74:V$76)>0,$H86*$I86,0)/SUM($I$75:$I$76) -> 47.05759162 | Y86: 0 | AA86: 0 | AC86: 0 | AE86: 0 | AG86: 0 | AI86: 0 | AK86: 0 | AM86: 0 | AO86: 0 | AQ86: 0 | AS86: 0 | AU86: 0 | AW86: 0 | AY86: 0 | BA86: 0 | BC86: 0 | BE86: 0 | BG86: 0 | BI86: 0 | BK86: 0 | BM86: 0 | BO86: 0 | BQ86: 0 | BS86: 0 | BU86: 0 | BW86: 0 | BY86: 0 | CA86: 0 | CC86: 0 | CE86: 0 | CG86: 0 | CI86: 0 | CK86: 0 | CM86: 0 | CO86: 0 | CQ86: 0 | CS86: 0 | CU86: 0 | CW86: 0 | CY86: 0 | DA86: 0 | DC86: 0 | DE86: 0 | DG86: 0 | DI86: 0 | DK86: 0 | DM86: 0 | DO86: 0 | DQ86: 0 | DS86: 0 | DU86: 0 | DW86: 0 | DY86: 0 | EA86: 0
M87: =IF(SUM(L$74:L$76)>0,$H87*$I87,0)/SUM($I79:$I82) -> 0 | O87: =IF(SUM(N$74:N$76)>0,$H87*$I87,0) -> 0 | Q87: 0 | S87: 0 | U87: =IF(SUM(T$74:T$76)>0,$H87*$I87,0) -> 0 | W87: =IF(SUM(V$74:V$76)>0,$H87*$I87,0) -> 0 | Y87: =IF(SUM(X$74:X$76)>0,$H87*$I87,0) -> 0 | AA87: =IF(SUM(Z$74:Z$76)>0,$H87*$I87,0) -> 0 | AC87: =IF(SUM(AB$74:AB$76)>0,$H87*$I87,0) -> 0 | AE87: =IF(SUM(AD$74:AD$76)>0,$H87*$I87,0) -> 0 | AG87: =IF(SUM(AF$74:AF$76)>0,$H87*$I87,0) -> 0 | AI87: =IF(SUM(AH$74:AH$76)>0,$H87*$I87,0) -> 0 | AK87: =IF(SUM(AJ$74:AJ$76)>0,$H87*$I87,0) -> 0 | AM87: =IF(SUM(AL$74:AL$76)>0,$H87*$I87,0) -> 0 | AO87: =IF(SUM(AN$74:AN$76)>0,$H87*$I87,0) -> 0 | AQ87: =IF(SUM(AP$74:AP$76)>0,$H87*$I87,0) -> 0 | AS87: =IF(SUM(AR$74:AR$76)>0,$H87*$I87,0) -> 0 | AU87: =IF(SUM(AT$74:AT$76)>0,$H87*$I87,0) -> 0 | AW87: =IF(SUM(AV$74:AV$76)>0,$H87*$I87,0) -> 0 | AY87: =IF(SUM(AX$74:AX$76)>0,$H87*$I87,0) -> 0 | BA87: =IF(SUM(AZ$74:AZ$76)>0,$H87*$I87,0) -> 0 | BC87: =IF(SUM(BB$74:BB$76)>0,$H87*$I87,0) -> 0 | BE87: =IF(SUM(BD$74:BD$76)>0,$H87*$I87,0) -> 0 | BG87: =IF(SUM(BF$74:BF$76)>0,$H87*$I87,0) -> 0 | BI87: =IF(SUM(BH$74:BH$76)>0,$H87*$I87,0) -> 0 | BK87: =IF(SUM(BJ$74:BJ$76)>0,$H87*$I87,0) -> 0 | BM87: =IF(SUM(BL$74:BL$76)>0,$H87*$I87,0) -> 0 | BO87: =IF(SUM(BN$74:BN$76)>0,$H87*$I87,0) -> 0 | BQ87: =IF(SUM(BP$74:BP$76)>0,$H87*$I87,0) -> 0 | BS87: =IF(SUM(BR$74:BR$76)>0,$H87*$I87,0) -> 0 | BU87: =IF(SUM(BT$74:BT$76)>0,$H87*$I87,0) -> 0 | BW87: =IF(SUM(BV$74:BV$76)>0,$H87*$I87,0) -> 0 | BY87: =IF(SUM(BX$74:BX$76)>0,$H87*$I87,0) -> 0 | CA87: =IF(SUM(BZ$74:BZ$76)>0,$H87*$I87,0) -> 0 | CC87: =IF(SUM(CB$74:CB$76)>0,$H87*$I87,0) -> 0 | CE87: =IF(SUM(CD$74:CD$76)>0,$H87*$I87,0) -> 0 | CG87: =IF(SUM(CF$74:CF$76)>0,$H87*$I87,0) -> 0 | CI87: =IF(SUM(CH$74:CH$76)>0,$H87*$I87,0) -> 0 | CK87: =IF(SUM(CJ$74:CJ$76)>0,$H87*$I87,0) -> 0 | CM87: =IF(SUM(CL$74:CL$76)>0,$H87*$I87,0) -> 0 | CO87: =IF(SUM(CN$74:CN$76)>0,$H87*$I87,0) -> 0 | CQ87: =IF(SUM(CP$74:CP$76)>0,$H87*$I87,0) -> 0 | CS87: =IF(SUM(CR$74:CR$76)>0,$H87*$I87,0) -> 0 | CU87: =IF(SUM(CT$74:CT$76)>0,$H87*$I87,0) -> 0 | CW87: =IF(SUM(CV$74:CV$76)>0,$H87*$I87,0) -> 0 | CY87: =IF(SUM(CX$74:CX$76)>0,$H87*$I87,0) -> 0 | DA87: =IF(SUM(CZ$74:CZ$76)>0,$H87*$I87,0) -> 0 | DC87: =IF(SUM(DB$74:DB$76)>0,$H87*$I87,0) -> 0 | DE87: =IF(SUM(DD$74:DD$76)>0,$H87*$I87,0) -> 0 | DG87: =IF(SUM(DF$74:DF$76)>0,$H87*$I87,0) -> 0 | DI87: =IF(SUM(DH$74:DH$76)>0,$H87*$I87,0) -> 0 | DK87: =IF(SUM(DJ$74:DJ$76)>0,$H87*$I87,0) -> 0 | DM87: =IF(SUM(DL$74:DL$76)>0,$H87*$I87,0) -> 0 | DO87: =IF(SUM(DN$74:DN$76)>0,$H87*$I87,0) -> 0 | DQ87: =IF(SUM(DP$74:DP$76)>0,$H87*$I87,0) -> 0 | DS87: =IF(SUM(DR$74:DR$76)>0,$H87*$I87,0) -> 0 | DU87: =IF(SUM(DT$74:DT$76)>0,$H87*$I87,0) -> 0 | DW87: =IF(SUM(DV$74:DV$76)>0,$H87*$I87,0) -> 0 | DY87: =IF(SUM(DX$74:DX$76)>0,$H87*$I87,0) -> 0 | EA87: =IF(SUM(DZ$74:DZ$76)>0,$H87*$I87,0) -> 0

Sheet EPI
B4: EQUIPAMENTOS DE PROTEÇÃO INDIVIDUAL - AQUISIÇÃO | J4: 1 | L4: =J4+1 -> 2 | N4: =L4+1 -> 3 | P4: =N4+1 -> 4 | R4: =P4+1 -> 5 | T4: =R4+1 -> 6 | V4: =T4+1 -> 7 | X4: =V4+1 -> 8 | Z4: =X4+1 -> 9 | AB4: =Z4+1 -> 10 | AD4: =AB4+1 -> 11 | AF4: =AD4+1 -> 12 | AH4: =AF4+1 -> 13 | AJ4: =AH4+1 -> 14 | AL4: =AJ4+1 -> 15 | AN4: =AL4+1 -> 16 | AP4: =AN4+1 -> 17 | AR4: =AP4+1 -> 18 | AT4: =AR4+1 -> 19 | AV4: =AT4+1 -> 20 | AX4: =AV4+1 -> 21 | AZ4: =AX4+1 -> 22 | BB4: =AZ4+1 -> 23 | BD4: =BB4+1 -> 24 | BF4: =BD4+1 -> 25 | BH4: =BF4+1 -> 26 | BJ4: =BH4+1 -> 27 | BL4: =BJ4+1 -> 28 | BN4: =BL4+1 -> 29 | BP4: =BN4+1 -> 30 | BR4: =BP4+1 -> 31 | BT4: =BR4+1 -> 32 | BV4: =BT4+1 -> 33 | BX4: =BV4+1 -> 34 | BZ4: =BX4+1 -> 35 | CB4: =BZ4+1 -> 36 | CD4: =CB4+1 -> 37 | CF4: =CD4+1 -> 38 | CH4: =CF4+1 -> 39 | CJ4: =CH4+1 -> 40 | CL4: =CJ4+1 -> 41 | CN4: =CL4+1 -> 42 | CP4: =CN4+1 -> 43 | CR4: =CP4+1 -> 44 | CT4: =CR4+1 -> 45 | CV4: =CT4+1 -> 46 | CX4: =CV4+1 -> 47 | CZ4: =CX4+1 -> 48 | DB4: =CZ4+1 -> 49 | DD4: =DB4+1 -> 50 | DF4: =DD4+1 -> 51 | DH4: =DF4+1 -> 52 | DJ4: =DH4+1 -> 53 | DL4: =DJ4+1 -> 54 | DN4: =DL4+1 -> 55 | DP4: =DN4+1 -> 56 | DR4: =DP4+1 -> 57 | DT4: =DR4+1 -> 58 | DV4: =DT4+1 -> 59 | DX4: =DV4+1 -> 60
J6: =ROUND(SUM(K5:K110),2) -> 1.62 | L6: =ROUND(SUM(M5:M110),2) -> 4.11 | N6: =ROUND(SUM(O5:O110),2) -> 4.11 | P6: =ROUND(SUM(Q5:Q110),2) -> 4.11 | R6: =ROUND(SUM(S5:S110),2) -> 276.34 | T6: =ROUND(SUM(U5:U110),2) -> 291.77 | V6: =ROUND(SUM(W5:W110),2) -> 0 | X6: =ROUND(SUM(Y5:Y110),2) -> 0 | Z6: =ROUND(SUM(AA5:AA110),2) -> 0 | AB6: =ROUND(SUM(AC5:AC110),2) -> 0 | AD6: =ROUND(SUM(AE5:AE110),2) -> 0 | AF6: =ROUND(SUM(AG5:AG110),2) -> 0 | AH6: =ROUND(SUM(AI5:AI110),2) -> 0 | AJ6: =ROUND(SUM(AK5:AK110),2) -> 0 | AL6: =ROUND(SUM(AM5:AM110),2) -> 0 | AN6: =ROUND(SUM(AO5:AO110),2) -> 0 | AP6: =ROUND(SUM(AQ5:AQ110),2) -> 0 | AR6: =ROUND(SUM(AS5:AS110),2) -> 0 | AT6: =ROUND(SUM(AU5:AU110),2) -> 0 | AV6: =ROUND(SUM(AW5:AW110),2) -> 0 | AX6: =ROUND(SUM(AY5:AY110),2) -> 0 | AZ6: =ROUND(SUM(BA5:BA110),2) -> 0 | BB6: =ROUND(SUM(BC5:BC110),2) -> 0 | BD6: =ROUND(SUM(BE5:BE110),2) -> 0 | BF6: =ROUND(SUM(BG5:BG110),2) -> 0 | BH6: =ROUND(SUM(BI5:BI110),2) -> 0 | BJ6: =ROUND(SUM(BK5:BK110),2) -> 0 | BL6: =ROUND(SUM(BM5:BM110),2) -> 0 | BN6: =ROUND(SUM(BO5:BO110),2) -> 0 | BP6: =ROUND(SUM(BQ5:BQ110),2) -> 0 | BR6: =ROUND(SUM(BS5:BS110),2) -> 0 | BT6: =ROUND(SUM(BU5:BU110),2) -> 0 | BV6: =ROUND(SUM(BW5:BW110),2) -> 0 | BX6: =ROUND(SUM(BY5:BY110),2) -> 0 | BZ6: =ROUND(SUM(CA5:CA110),2) -> 0 | CB6: =ROUND(SUM(CC5:CC110),2) -> 0 | CD6: =ROUND(SUM(CE5:CE110),2) -> 0 | CF6: =ROUND(SUM(CG5:CG110),2) -> 0 | CH6: =ROUND(SUM(CI5:CI110),2) -> 0 | CJ6: =ROUND(SUM(CK5:CK110),2) -> 0 | CL6: =ROUND(SUM(CM5:CM110),2) -> 0 | CN6: =ROUND(SUM(CO5:CO110),2) -> 0 | CP6: =ROUND(SUM(CQ5:CQ110),2) -> 0 | CR6: =ROUND(SUM(CS5:CS110),2) -> 0 | CT6: =ROUND(SUM(CU5:CU110),2) -> 0 | CV6: =ROUND(SUM(CW5:CW110),2) -> 0 | CX6: =ROUND(SUM(CY5:CY110),2) -> 0 | CZ6: =ROUND(SUM(DA5:DA110),2) -> 0 | DB6: =ROUND(SUM(DC5:DC110),2) -> 0 | DD6: =ROUND(SUM(DE5:DE110),2) -> 0 | DF6: =ROUND(SUM(DG5:DG110),2) -> 0 | DH6: =ROUND(SUM(DI5:DI110),2) -> 0 | DJ6: =ROUND(SUM(DK5:DK110),2) -> 0 | DL6: =ROUND(SUM(DM5:DM110),2) -> 0 | DN6: =ROUND(SUM(DO5:DO110),2) -> 0 | DP6: =ROUND(SUM(DQ5:DQ110),2) -> 0 | DR6: =ROUND(SUM(DS5:DS110),2) -> 0 | DT6: =ROUND(SUM(DU5:DU110),2) -> 0 | DV6: =ROUND(SUM(DW5:DW110),2) -> 0 | DX6: =ROUND(SUM(DY5:DY110),2) -> 0
C7: CATEGORIAS | G7: QUANTIDADE
J8: =IF($C8=J$4,1,0) -> 0 | L8: =IF($C8=L$4,1,0) -> 0 | N8: =IF($C8=N$4,1,0) -> 0 | P8: =IF($C8=P$4,1,0) -> 0 | R8: =IF($C8=R$4,1,0) -> 0 | T8: =IF($C8=T$4,1,0) -> 0 | V8: =IF($C8=V$4,1,0) -> 0 | X8: =IF($C8=X$4,1,0) -> 0 | Z8: =IF($C8=Z$4,1,0) -> 0 | AB8: =IF($C8=AB$4,1,0) -> 0 | AD8: =IF($C8=AD$4,1,0) -> 0 | AF8: =IF($C8=AF$4,1,0) -> 0 | AH8: =IF($C8=AH$4,1,0) -> 0 | AJ8: =IF($C8=AJ$4,1,0) -> 0 | AL8: =IF($C8=AL$4,1,0) -> 0 | AN8: =IF($C8=AN$4,1,0) -> 0 | AP8: =IF($C8=AP$4,1,0) -> 0 | AR8: =IF($C8=AR$4,1,0) -> 0 | AT8: =IF($C8=AT$4,1,0) -> 0 | AV8: =IF($C8=AV$4,1,0) -> 0 | AX8: =IF($C8=AX$4,1,0) -> 0 | AZ8: =IF($C8=AZ$4,1,0) -> 0 | BB8: =IF($C8=BB$4,1,0) -> 0 | BD8: =IF($C8=BD$4,1,0) -> 0 | BF8: =IF($C8=BF$4,1,0) -> 0 | BH8: =IF($C8=BH$4,1,0) -> 0 | BJ8: =IF($C8=BJ$4,1,0) -> 0 | BL8: =IF($C8=BL$4,1,0) -> 0 | BN8: =IF($C8=BN$4,1,0) -> 0 | BP8: =IF($C8=BP$4,1,0) -> 0 | BR8: =IF($C8=BR$4,1,0) -> 0 | BT8: =IF($C8=BT$4,1,0) -> 0 | BV8: =IF($C8=BV$4,1,0) -> 0 | BX8: =IF($C8=BX$4,1,0) -> 0 | BZ8: =IF($C8=BZ$4,1,0) -> 0 | CB8: =IF($C8=CB$4,1,0) -> 0 | CD8: =IF($C8=CD$4,1,0) -> 0 | CF8: =IF($C8=CF$4,1,0) -> 0 | CH8: =IF($C8=CH$4,1,0) -> 0 | CJ8: =IF($C8=CJ$4,1,0) -> 0 | CL8: =IF($C8=CL$4,1,0) -> 0 | CN8: =IF($C8=CN$4,1,0) -> 0 | CP8: =IF($C8=CP$4,1,0) -> 0 | CR8: =IF($C8=CR$4,1,0) -> 0 | CT8: =IF($C8=CT$4,1,0) -> 0 | CV8: =IF($C8=CV$4,1,0) -> 0 | CX8: =IF($C8=CX$4,1,0) -> 0 | CZ8: =IF($C8=CZ$4,1,0) -> 0 | DB8: =IF($C8=DB$4,1,0) -> 0 | DD8: =IF($C8=DD$4,1,0) -> 0 | DF8: =IF($C8=DF$4,1,0) -> 0 | DH8: =IF($C8=DH$4,1,0) -> 0 | DJ8: =IF($C8=DJ$4,1,0) -> 0 | DL8: =IF($C8=DL$4,1,0) -> 0 | DN8: =IF($C8=DN$4,1,0) -> 0 | DP8: =IF($C8=DP$4,1,0) -> 0 | DR8: =IF($C8=DR$4,1,0) -> 0 | DT8: =IF($C8=DT$4,1,0) -> 0 | DV8: =IF($C8=DV$4,1,0) -> 0 | DX8: =IF($C8=DX$4,1,0) -> 0
C9: 1 | D9: =HLOOKUP($C9,'Dados Gerais'!$D$5:$BK$10,6) -> ENCARREGADO GERAL | G9: =HLOOKUP($C9,'Dados Gerais'!$D$5:$BK$14,10) -> 1 | J9: =IF($C9=J$4,1,0) -> 1 | L9: 0 | N9: 0 | P9: 0 | R9: 0 | T9: 0 | V9: 0 | X9: 0 | Z9: 0 | AB9: 0 | AD9: 0 | AF9: 0 | AH9: 0 | AJ9: 0 | AL9: 0 | AN9: 0 | AP9: 0 | AR9: 0 | AT9: 0 | AV9: 0 | AX9: 0 | AZ9: 0 | BB9: 0 | BD9: 0 | BF9: 0 | BH9: 0 | BJ9: 0 | BL9: 0 | BN9: 0 | BP9: 0 | BR9: 0 | BT9: 0 | BV9: 0 | BX9: 0 | BZ9: 0 | CB9: 0 | CD9: 0 | CF9: 0 | CH9: 0 | CJ9: 0 | CL9: 0 | CN9: 0 | CP9: 0 | CR9: 0 | CT9: 0 | CV9: 0 | CX9: 0 | CZ9: 0 | DB9: 0 | DD9: 0 | DF9: 0 | DH9: 0 | DJ9: 0 | DL9: 0 | DN9: 0 | DP9: 0 | DR9: 0 | DT9: 0 | DV9: 0 | DX9: 0
J10: =IF($C10=J$4,1,0) -> 0 | L10: 0 | N10: 0 | P10: 0 | R10: 0 | T10: 0 | V10: 0 | X10: 0 | Z10: 0 | AB10: 0 | AD10: 0 | AF10: 0 | AH10: 0 | AJ10: 0 | AL10: 0 | AN10: 0 | AP10: 0 | AR10: 0 | AT10: 0 | AV10: 0 | AX10: 0 | AZ10: 0 | BB10: 0 | BD10: 0 | BF10: 0 | BH10: 0 | BJ10: 0 | BL10: 0 | BN10: 0 | BP10: 0 | BR10: 0 | BT10: 0 | BV10: 0 | BX10: 0 | BZ10: 0 | CB10: 0 | CD10: 0 | CF10: 0 | CH10: 0 | CJ10: 0 | CL10: 0 | CN10: 0 | CP10: 0 | CR10: 0 | CT10: 0 | CV10: 0 | CX10: 0 | CZ10: 0 | DB10: 0 | DD10: 0 | DF10: 0 | DH10: 0 | DJ10: 0 | DL10: 0 | DN10: 0 | DP10: 0 | DR10: 0 | DT10: 0 | DV10: 0 | DX10: 0
C12: ITEM | D12: DESCRIÇÃO | E12: QUANT ANUAL POR POSTO | F12: UNIDADE | G12: VALOR
K13: =IF(SUM(J$8:J$10)>0,$E13*$G13,0) -> 0 | M13: =IF(SUM(L$8:L$10)>0,$E13*$G13,0) -> 0 | O13: =IF(SUM(N$8:N$10)>0,$E13*$G13,0) -> 0 | Q13: =IF(SUM(P$8:P$10)>0,$E13*$G13,0) -> 0 | S13: =IF(SUM(R$8:R$10)>0,$E13*$G13,0) -> 0 | U13: =IF(SUM(T$8:T$10)>0,$E13*$G13,0) -> 0 | W13: =IF(SUM(V$8:V$10)>0,$E13*$G13,0) -> 0 | Y13: =IF(SUM(X$8:X$10)>0,$E13*$G13,0) -> 0 | AA13: =IF(SUM(Z$8:Z$10)>0,$E13*$G13,0) -> 0 | AC13: =IF(SUM(AB$8:AB$10)>0,$E13*$G13,0) -> 0 | AE13: =IF(SUM(AD$8:AD$10)>0,$E13*$G13,0) -> 0 | AG13: =IF(SUM(AF$8:AF$10)>0,$E13*$G13,0) -> 0 | AI13: =IF(SUM(AH$8:AH$10)>0,$E13*$G13,0) -> 0 | AK13: =IF(SUM(AJ$8:AJ$10)>0,$E13*$G13,0) -> 0 | AM13: =IF(SUM(AL$8:AL$10)>0,$E13*$G13,0) -> 0 | AO13: =IF(SUM(AN$8:AN$10)>0,$E13*$G13,0) -> 0 | AQ13: =IF(SUM(AP$8:AP$10)>0,$E13*$G13,0) -> 0 | AS13: =IF(SUM(AR$8:AR$10)>0,$E13*$G13,0) -> 0 | AU13: =IF(SUM(AT$8:AT$10)>0,$E13*$G13,0) -> 0 | AW13: =IF(SUM(AV$8:AV$10)>0,$E13*$G13,0) -> 0 | AY13: =IF(SUM(AX$8:AX$10)>0,$E13*$G13,0) -> 0 | BA13: =IF(SUM(AZ$8:AZ$10)>0,$E13*$G13,0) -> 0 | BC13: =IF(SUM(BB$8:BB$10)>0,$E13*$G13,0) -> 0 | BE13: =IF(SUM(BD$8:BD$10)>0,$E13*$G13,0) -> 0 | BG13: =IF(SUM(BF$8:BF$10)>0,$E13*$G13,0) -> 0 | BI13: =IF(SUM(BH$8:BH$10)>0,$E13*$G13,0) -> 0 | BK13: =IF(SUM(BJ$8:BJ$10)>0,$E13*$G13,0) -> 0 | BM13: =IF(SUM(BL$8:BL$10)>0,$E13*$G13,0) -> 0 | BO13: =IF(SUM(BN$8:BN$10)>0,$E13*$G13,0) -> 0 | BQ13: =IF(SUM(BP$8:BP$10)>0,$E13*$G13,0) -> 0 | BS13: =IF(SUM(BR$8:BR$10)>0,$E13*$G13,0) -> 0 | BU13: =IF(SUM(BT$8:BT$10)>0,$E13*$G13,0) -> 0 | BW13: =IF(SUM(BV$8:BV$10)>0,$E13*$G13,0) -> 0 | BY13: =IF(SUM(BX$8:BX$10)>0,$E13*$G13,0) -> 0 | CA13: =IF(SUM(BZ$8:BZ$10)>0,$E13*$G13,0) -> 0 | CC13: =IF(SUM(CB$8:CB$10)>0,$E13*$G13,0) -> 0 | CE13: =IF(SUM(CD$8:CD$10)>0,$E13*$G13,0) -> 0 | CG13: =IF(SUM(CF$8:CF$10)>0,$E13*$G13,0) -> 0 | CI13: =IF(SUM(CH$8:CH$10)>0,$E13*$G13,0) -> 0 | CK13: =IF(SUM(CJ$8:CJ$10)>0,$E13*$G13,0) -> 0 | CM13: =IF(SUM(CL$8:CL$10)>0,$E13*$G13,0) -> 0 | CO13: =IF(SUM(CN$8:CN$10)>0,$E13*$G13,0) -> 0 | CQ13: =IF(SUM(CP$8:CP$10)>0,$E13*$G13,0) -> 0 | CS13: =IF(SUM(CR$8:CR$10)>0,$E13*$G13,0) -> 0 | CU13: =IF(SUM(CT$8:CT$10)>0,$E13*$G13,0) -> 0 | CW13: =IF(SUM(CV$8:CV$10)>0,$E13*$G13,0) -> 0 | CY13: =IF(SUM(CX$8:CX$10)>0,$E13*$G13,0) -> 0 | DA13: =IF(SUM(CZ$8:CZ$10)>0,$E13*$G13,0) -> 0 | DC13: =IF(SUM(DB$8:DB$10)>0,$E13*$G13,0) -> 0 | DE13: =IF(SUM(DD$8:DD$10)>0,$E13*$G13,0) -> 0 | DG13: =IF(SUM(DF$8:DF$10)>0,$E13*$G13,0) -> 0 | DI13: =IF(SUM(DH$8:DH$10)>0,$E13*$G13,0) -> 0 | DK13: =IF(SUM(DJ$8:DJ$10)>0,$E13*$G13,0) -> 0 | DM13: =IF(SUM(DL$8:DL$10)>0,$E13*$G13,0) -> 0 | DO13: =IF(SUM(DN$8:DN$10)>0,$E13*$G13,0) -> 0 | DQ13: =IF(SUM(DP$8:DP$10)>0,$E13*$G13,0) -> 0 | DS13: =IF(SUM(DR$8:DR$10)>0,$E13*$G13,0) -> 0 | DU13: =IF(SUM(DT$8:DT$10)>0,$E13*$G13,0) -> 0 | DW13: =IF(SUM(DV$8:DV$10)>0,$E13*$G13,0) -> 0 | DY13: =IF(SUM(DX$8:DX$10)>0,$E13*$G13,0) -> 0
C14: 1 | D14: Respirador purificador de ar tipo, peça semifacial filtrante para partículas (PFF2), com formato dobrável, solda ultra-sônica em todo o seu perímetro. Fita elástica branca fixada nas laterais externas do respirador, perfazendo uma alça na para fixação na parte superior da cabeça e a outra na parte inferior, para fixação na altura da nuca do usuário. A parte superior externa da peça possui tira de material metálico moldável, utilizada para ajuste no septo nasal. Com válvula de exalação. DEVERÁ APRESENTAR O SELO DE APROVAÇÃO DO INMETRO. Ref. 3M | E14: 1 | F14: UND | G14: 1.62 | K14: =IF(SUM(J$8:J$10)>0,$E14*$G14,0) -> 1.62 | M14: =IF(SUM(L$8:L$10)>0,$E14*$G14,0) -> 0 | O14: =IF(SUM(N$8:N$10)>0,$E14*$G14,0) -> 0 | Q14: =IF(SUM(P$8:P$10)>0,$E14*$G14,0) -> 0 | S14: =IF(SUM(R$8:R$10)>0,$E14*$G14,0) -> 0 | U14: =IF(SUM(T$8:T$10)>0,$E14*$G14,0) -> 0 | W14: =IF(SUM(V$8:V$10)>0,$E14*$G14,0) -> 0 | Y14: =IF(SUM(X$8:X$10)>0,$E14*$G14,0) -> 0 | AA14: =IF(SUM(Z$8:Z$10)>0,$E14*$G14,0) -> 0 | AC14: =IF(SUM(AB$8:AB$10)>0,$E14*$G14,0) -> 0 | AE14: =IF(SUM(AD$8:AD$10)>0,$E14*$G14,0) -> 0 | AG14: =IF(SUM(AF$8:AF$10)>0,$E14*$G14,0) -> 0 | AI14: =IF(SUM(AH$8:AH$10)>0,$E14*$G14,0) -> 0 | AK14: =IF(SUM(AJ$8:AJ$10)>0,$E14*$G14,0) -> 0 | AM14: =IF(SUM(AL$8:AL$10)>0,$E14*$G14,0) -> 0 | AO14: =IF(SUM(AN$8:AN$10)>0,$E14*$G14,0) -> 0 | AQ14: =IF(SUM(AP$8:AP$10)>0,$E14*$G14,0) -> 0 | AS14: =IF(SUM(AR$8:AR$10)>0,$E14*$G14,0) -> 0 | AU14: =IF(SUM(AT$8:AT$10)>0,$E14*$G14,0) -> 0 | AW14: =IF(SUM(AV$8:AV$10)>0,$E14*$G14,0) -> 0 | AY14: =IF(SUM(AX$8:AX$10)>0,$E14*$G14,0) -> 0 | BA14: =IF(SUM(AZ$8:AZ$10)>0,$E14*$G14,0) -> 0 | BC14: =IF(SUM(BB$8:BB$10)>0,$E14*$G14,0) -> 0 | BE14: =IF(SUM(BD$8:BD$10)>0,$E14*$G14,0) -> 0 | BG14: =IF(SUM(BF$8:BF$10)>0,$E14*$G14,0) -> 0 | BI14: =IF(SUM(BH$8:BH$10)>0,$E14*$G14,0) -> 0 | BK14: =IF(SUM(BJ$8:BJ$10)>0,$E14*$G14,0) -> 0 | BM14: =IF(SUM(BL$8:BL$10)>0,$E14*$G14,0) -> 0 | BO14: =IF(SUM(BN$8:BN$10)>0,$E14*$G14,0) -> 0 | BQ14: =IF(SUM(BP$8:BP$10)>0,$E14*$G14,0) -> 0 | BS14: =IF(SUM(BR$8:BR$10)>0,$E14*$G14,0) -> 0 | BU14: =IF(SUM(BT$8:BT$10)>0,$E14*$G14,0) -> 0 | BW14: =IF(SUM(BV$8:BV$10)>0,$E14*$G14,0) -> 0 | BY14: =IF(SUM(BX$8:BX$10)>0,$E14*$G14,0) -> 0 | CA14: =IF(SUM(BZ$8:BZ$10)>0,$E14*$G14,0) -> 0 | CC14: =IF(SUM(CB$8:CB$10)>0,$E14*$G14,0) -> 0 | CE14: =IF(SUM(CD$8:CD$10)>0,$E14*$G14,0) -> 0 | CG14: =IF(SUM(CF$8:CF$10)>0,$E14*$G14,0) -> 0 | CI14: =IF(SUM(CH$8:CH$10)>0,$E14*$G14,0) -> 0 | CK14: =IF(SUM(CJ$8:CJ$10)>0,$E14*$G14,0) -> 0 | CM14: =IF(SUM(CL$8:CL$10)>0,$E14*$G14,0) -> 0 | CO14: =IF(SUM(CN$8:CN$10)>0,$E14*$G14,0) -> 0 | CQ14: =IF(SUM(CP$8:CP$10)>0,$E14*$G14,0) -> 0 | CS14: =IF(SUM(CR$8:CR$10)>0,$E14*$G14,0) -> 0 | CU14: =IF(SUM(CT$8:CT$10)>0,$E14*$G14,0) -> 0 | CW14: =IF(SUM(CV$8:CV$10)>0,$E14*$G14,0) -> 0 | CY14: =IF(SUM(CX$8:CX$10)>0,$E14*$G14,0) -> 0 | DA14: =IF(SUM(CZ$8:CZ$10)>0,$E14*$G14,0) -> 0 | DC14: =IF(SUM(DB$8:DB$10)>0,$E14*$G14,0) -> 0 | DE14: =IF(SUM(DD$8:DD$10)>0,$E14*$G14,0) -> 0 | DG14: =IF(SUM(DF$8:DF$10)>0,$E14*$G14,0) -> 0 | DI14: =IF(SUM(DH$8:DH$10)>0,$E14*$G14,0) -> 0 | DK14: =IF(SUM(DJ$8:DJ$10)>0,$E14*$G14,0) -> 0 | DM14: =IF(SUM(DL$8:DL$10)>0,$E14*$G14,0) -> 0 | DO14: =IF(SUM(DN$8:DN$10)>0,$E14*$G14,0) -> 0 | DQ14: =IF(SUM(DP$8:DP$10)>0,$E14*$G14,0) -> 0 | DS14: =IF(SUM(DR$8:DR$10)>0,$E14*$G14,0) -> 0 | DU14: =IF(SUM(DT$8:DT$10)>0,$E14*$G14,0) -> 0 | DW14: =IF(SUM(DV$8:DV$10)>0,$E14*$G14,0) -> 0 | DY14: 0
C16: CATEGORIAS | G16: QUANTIDADE
J17: =IF($C17=J$4,1,0) -> 0 | L17: =IF($C17=L$4,1,0) -> 0 | N17: =IF($C17=N$4,1,0) -> 0 | P17: =IF($C17=P$4,1,0) -> 0 | R17: =IF($C17=R$4,1,0) -> 0 | T17: =IF($C17=T$4,1,0) -> 0 | V17: =IF($C17=V$4,1,0) -> 0 | X17: =IF($C17=X$4,1,0) -> 0 | Z17: =IF($C17=Z$4,1,0) -> 0 | AB17: =IF($C17=AB$4,1,0) -> 0 | AD17: =IF($C17=AD$4,1,0) -> 0 | AF17: =IF($C17=AF$4,1,0) -> 0 | AH17: =IF($C17=AH$4,1,0) -> 0 | AJ17: =IF($C17=AJ$4,1,0) -> 0 | AL17: =IF($C17=AL$4,1,0) -> 0 | AN17: =IF($C17=AN$4,1,0) -> 0 | AP17: =IF($C17=AP$4,1,0) -> 0 | AR17: =IF($C17=AR$4,1,0) -> 0 | AT17: =IF($C17=AT$4,1,0) -> 0 | AV17: =IF($C17=AV$4,1,0) -> 0 | AX17: =IF($C17=AX$4,1,0) -> 0 | AZ17: =IF($C17=AZ$4,1,0) -> 0 | BB17: =IF($C17=BB$4,1,0) -> 0 | BD17: =IF($C17=BD$4,1,0) -> 0 | BF17: =IF($C17=BF$4,1,0) -> 0 | BH17: =IF($C17=BH$4,1,0) -> 0 | BJ17: =IF($C17=BJ$4,1,0) -> 0 | BL17: =IF($C17=BL$4,1,0) -> 0 | BN17: =IF($C17=BN$4,1,0) -> 0 | BP17: =IF($C17=BP$4,1,0) -> 0 | BR17: =IF($C17=BR$4,1,0) -> 0 | BT17: =IF($C17=BT$4,1,0) -> 0 | BV17: =IF($C17=BV$4,1,0) -> 0 | BX17: =IF($C17=BX$4,1,0) -> 0 | BZ17: =IF($C17=BZ$4,1,0) -> 0 | CB17: =IF($C17=CB$4,1,0) -> 0 | CD17: =IF($C17=CD$4,1,0) -> 0 | CF17: =IF($C17=CF$4,1,0) -> 0 | CH17: =IF($C17=CH$4,1,0) -> 0 | CJ17: =IF($C17=CJ$4,1,0) -> 0 | CL17: =IF($C17=CL$4,1,0) -> 0 | CN17: =IF($C17=CN$4,1,0) -> 0 | CP17: =IF($C17=CP$4,1,0) -> 0 | CR17: =IF($C17=CR$4,1,0) -> 0 | CT17: =IF($C17=CT$4,1,0) -> 0 | CV17: =IF($C17=CV$4,1,0) -> 0 | CX17: =IF($C17=CX$4,1,0) -> 0 | CZ17: =IF($C17=CZ$4,1,0) -> 0 | DB17: =IF($C17=DB$4,1,0) -> 0 | DD17: =IF($C17=DD$4,1,0) -> 0 | DF17: =IF($C17=DF$4,1,0) -> 0 | DH17: =IF($C17=DH$4,1,0) -> 0 | DJ17: =IF($C17=DJ$4,1,0) -> 0 | DL17: =IF($C17=DL$4,1,0) -> 0 | DN17: =IF($C17=DN$4,1,0) -> 0 | DP17: =IF($C17=DP$4,1,0) -> 0 | DR17: =IF($C17=DR$4,1,0) -> 0 | DT17: =IF($C17=DT$4,1,0) -> 0 | DV17: =IF($C17=DV$4,1,0) -> 0 | DX17: =IF($C17=DX$4,1,0) -> 0
C18: 2 | D18: =HLOOKUP($C18,'Dados Gerais'!$D$5:$BK$10,6) -> ENCARREGADO SETORIAL | G18: =HLOOKUP($C18,'Dados Gerais'!$D$5:$BK$14,10) -> 2 | J18: =IF($C18=J$4,1,0) -> 0 | L18: 1 | N18: 0 | P18: 0 | R18: 0 | T18: 0 | V18: 0 | X18: 0 | Z18: 0 | AB18: 0 | AD18: 0 | AF18: 0 | AH18: 0 | AJ18: 0 | AL18: 0 | AN18: 0 | AP18: 0 | AR18: 0 | AT18: 0 | AV18: 0 | AX18: 0 | AZ18: 0 | BB18: 0 | BD18: 0 | BF18: 0 | BH18: 0 | BJ18: 0 | BL18: 0 | BN18: 0 | BP18: 0 | BR18: 0 | BT18: 0 | BV18: 0 | BX18: 0 | BZ18: 0 | CB18: 0 | CD18: 0 | CF18: 0 | CH18: 0 | CJ18: 0 | CL18: 0 | CN18: 0 | CP18: 0 | CR18: 0 | CT18: 0 | CV18: 0 | CX18: 0 | CZ18: 0 | DB18: 0 | DD18: 0 | DF18: 0 | DH18: 0 | DJ18: 0 | DL18: 0 | DN18: 0 | DP18: 0 | DR18: 0 | DT18: 0 | DV18: 0 | DX18: 0
J19: =IF($C19=J$4,1,0) -> 0 | L19: 0 | N19: 0 | P19: 0 | R19: 0 | T19: 0 | V19: 0 | X19: 0 | Z19: 0 | AB19: 0 | AD19: 0 | AF19: 0 | AH19: 0 | AJ19: 0 | AL19: 0 | AN19: 0 | AP19: 0 | AR19: 0 | AT19: 0 | AV19: 0 | AX19: 0 | AZ19: 0 | BB19: 0 | BD19: 0 | BF19: 0 | BH19: 0 | BJ19: 0 | BL19: 0 | BN19: 0 | BP19: 0 | BR19: 0 | BT19: 0 | BV19: 0 | BX19: 0 | BZ19: 0 | CB19: 0 | CD19: 0 | CF19: 0 | CH19: 0 | CJ19: 0 | CL19: 0 | CN19: 0 | CP19: 0 | CR19: 0 | CT19: 0 | CV19: 0 | CX19: 0 | CZ19: 0 | DB19: 0 | DD19: 0 | DF19: 0 | DH19: 0 | DJ19: 0 | DL19: 0 | DN19: 0 | DP19: 0 | DR19: 0 | DT19: 0 | DV19: 0 | DX19: 0
C21: ITEM | D21: DESCRIÇÃO | E21: QUANT ANUAL POR POSTO | F21: UNIDADE | G21: VALOR
K22: =IF(SUM(J$8:J$10)>0,$E22*$G22,0) -> 0 | M22: =IF(SUM(L$8:L$10)>0,$E22*$G22,0) -> 0 | O22: =IF(SUM(N$8:N$10)>0,$E22*$G22,0) -> 0 | Q22: =IF(SUM(P$8:P$10)>0,$E22*$G22,0) -> 0 | S22: =IF(SUM(R$8:R$10)>0,$E22*$G22,0) -> 0 | U22: =IF(SUM(T$8:T$10)>0,$E22*$G22,0) -> 0 | W22: =IF(SUM(V$8:V$10)>0,$E22*$G22,0) -> 0 | Y22: =IF(SUM(X$8:X$10)>0,$E22*$G22,0) -> 0 | AA22: =IF(SUM(Z$8:Z$10)>0,$E22*$G22,0) -> 0 | AC22: =IF(SUM(AB$8:AB$10)>0,$E22*$G22,0) -> 0 | AE22: =IF(SUM(AD$8:AD$10)>0,$E22*$G22,0) -> 0 | AG22: =IF(SUM(AF$8:AF$10)>0,$E22*$G22,0) -> 0 | AI22: =IF(SUM(AH$8:AH$10)>0,$E22*$G22,0) -> 0 | AK22: =IF(SUM(AJ$8:AJ$10)>0,$E22*$G22,0) -> 0 | AM22: =IF(SUM(AL$8:AL$10)>0,$E22*$G22,0) -> 0 | AO22: =IF(SUM(AN$8:AN$10)>0,$E22*$G22,0) -> 0 | AQ22: =IF(SUM(AP$8:AP$10)>0,$E22*$G22,0) -> 0 | AS22: =IF(SUM(AR$8:AR$10)>0,$E22*$G22,0) -> 0 | AU22: =IF(SUM(AT$8:AT$10)>0,$E22*$G22,0) -> 0 | AW22: =IF(SUM(AV$8:AV$10)>0,$E22*$G22,0) -> 0 | AY22: =IF(SUM(AX$8:AX$10)>0,$E22*$G22,0) -> 0 | BA22: =IF(SUM(AZ$8:AZ$10)>0,$E22*$G22,0) -> 0 | BC22: =IF(SUM(BB$8:BB$10)>0,$E22*$G22,0) -> 0 | BE22: =IF(SUM(BD$8:BD$10)>0,$E22*$G22,0) -> 0 | BG22: =IF(SUM(BF$8:BF$10)>0,$E22*$G22,0) -> 0 | BI22: =IF(SUM(BH$8:BH$10)>0,$E22*$G22,0) -> 0 | BK22: =IF(SUM(BJ$8:BJ$10)>0,$E22*$G22,0) -> 0 | BM22: =IF(SUM(BL$8:BL$10)>0,$E22*$G22,0) -> 0 | BO22: =IF(SUM(BN$8:BN$10)>0,$E22*$G22,0) -> 0 | BQ22: =IF(SUM(BP$8:BP$10)>0,$E22*$G22,0) -> 0 | BS22: =IF(SUM(BR$8:BR$10)>0,$E22*$G22,0) -> 0 | BU22: =IF(SUM(BT$8:BT$10)>0,$E22*$G22,0) -> 0 | BW22: =IF(SUM(BV$8:BV$10)>0,$E22*$G22,0) -> 0 | BY22: =IF(SUM(BX$8:BX$10)>0,$E22*$G22,0) -> 0 | CA22: =IF(SUM(BZ$8:BZ$10)>0,$E22*$G22,0) -> 0 | CC22: =IF(SUM(CB$8:CB$10)>0,$E22*$G22,0) -> 0 | CE22: =IF(SUM(CD$8:CD$10)>0,$E22*$G22,0) -> 0 | CG22: =IF(SUM(CF$8:CF$10)>0,$E22*$G22,0) -> 0 | CI22: =IF(SUM(CH$8:CH$10)>0,$E22*$G22,0) -> 0 | CK22: =IF(SUM(CJ$8:CJ$10)>0,$E22*$G22,0) -> 0 | CM22: =IF(SUM(CL$8:CL$10)>0,$E22*$G22,0) -> 0 | CO22: =IF(SUM(CN$8:CN$10)>0,$E22*$G22,0) -> 0 | CQ22: =IF(SUM(CP$8:CP$10)>0,$E22*$G22,0) -> 0 | CS22: =IF(SUM(CR$8:CR$10)>0,$E22*$G22,0) -> 0 | CU22: =IF(SUM(CT$8:CT$10)>0,$E22*$G22,0) -> 0 | CW22: =IF(SUM(CV$8:CV$10)>0,$E22*$G22,0) -> 0 | CY22: =IF(SUM(CX$8:CX$10)>0,$E22*$G22,0) -> 0 | DA22: =IF(SUM(CZ$8:CZ$10)>0,$E22*$G22,0) -> 0 | DC22: =IF(SUM(DB$8:DB$10)>0,$E22*$G22,0) -> 0 | DE22: =IF(SUM(DD$8:DD$10)>0,$E22*$G22,0) -> 0 | DG22: =IF(SUM(DF$8:DF$10)>0,$E22*$G22,0) -> 0 | DI22: =IF(SUM(DH$8:DH$10)>0,$E22*$G22,0) -> 0 | DK22: =IF(SUM(DJ$8:DJ$10)>0,$E22*$G22,0) -> 0 | DM22: =IF(SUM(DL$8:DL$10)>0,$E22*$G22,0) -> 0 | DO22: =IF(SUM(DN$8:DN$10)>0,$E22*$G22,0) -> 0 | DQ22: =IF(SUM(DP$8:DP$10)>0,$E22*$G22,0) -> 0 | DS22: =IF(SUM(DR$8:DR$10)>0,$E22*$G22,0) -> 0 | DU22: =IF(SUM(DT$8:DT$10)>0,$E22*$G22,0) -> 0 | DW22: =IF(SUM(DV$8:DV$10)>0,$E22*$G22,0) -> 0 | DY22: =IF(SUM(DX$8:DX$10)>0,$E22*$G22,0) -> 0
C23: 1 | D23: Respirador purificador de ar tipo, peça semifacial filtrante para partículas (PFF2), com formato dobrável, solda ultra-sônica em todo o seu perímetro. Fita elástica branca fixada nas laterais externas do respirador, perfazendo uma alça na para fixação na parte superior da cabeça e a outra na parte inferior, para fixação na altura da nuca do usuário. A parte superior externa da peça possui tira de material metálico moldável, utilizada para ajuste no septo nasal. Com válvula de exalação. DEVERÁ APRESENTAR O SELO DE APROVAÇÃO DO INMETRO. Ref. 3M | E23: 1 | F23: UND | G23: =G14 -> 1.62 | K23: =IF(SUM(J$17:J$19)>0,$E23*$G23,0) -> 0 | M23: =IF(SUM(L$17:L$19)>0,$E23*$G23,0) -> 1.62 | O23: =IF(SUM(N$17:N$19)>0,$E23*$G23,0) -> 0 | Q23: =IF(SUM(P$17:P$19)>0,$E23*$G23,0) -> 0 | S23: =IF(SUM(R$17:R$19)>0,$E23*$G23,0) -> 0 | U23: =IF(SUM(T$17:T$19)>0,$E23*$G23,0) -> 0 | W23: =IF(SUM(V$17:V$19)>0,$E23*$G23,0) -> 0 | Y23: =IF(SUM(X$17:X$19)>0,$E23*$G23,0) -> 0 | AA23: =IF(SUM(Z$17:Z$19)>0,$E23*$G23,0) -> 0 | AC23: =IF(SUM(AB$17:AB$19)>0,$E23*$G23,0) -> 0 | AE23: =IF(SUM(AD$17:AD$19)>0,$E23*$G23,0) -> 0 | AG23: =IF(SUM(AF$17:AF$19)>0,$E23*$G23,0) -> 0 | AI23: =IF(SUM(AH$17:AH$19)>0,$E23*$G23,0) -> 0 | AK23: =IF(SUM(AJ$17:AJ$19)>0,$E23*$G23,0) -> 0 | AM23: =IF(SUM(AL$17:AL$19)>0,$E23*$G23,0) -> 0 | AO23: =IF(SUM(AN$17:AN$19)>0,$E23*$G23,0) -> 0 | AQ23: =IF(SUM(AP$17:AP$19)>0,$E23*$G23,0) -> 0 | AS23: =IF(SUM(AR$17:AR$19)>0,$E23*$G23,0) -> 0 | AU23: =IF(SUM(AT$17:AT$19)>0,$E23*$G23,0) -> 0 | AW23: =IF(SUM(AV$17:AV$19)>0,$E23*$G23,0) -> 0 | AY23: =IF(SUM(AX$17:AX$19)>0,$E23*$G23,0) -> 0 | BA23: =IF(SUM(AZ$17:AZ$19)>0,$E23*$G23,0) -> 0 | BC23: =IF(SUM(BB$17:BB$19)>0,$E23*$G23,0) -> 0 | BE23: =IF(SUM(BD$17:BD$19)>0,$E23*$G23,0) -> 0 | BG23: =IF(SUM(BF$17:BF$19)>0,$E23*$G23,0) -> 0 | BI23: =IF(SUM(BH$17:BH$19)>0,$E23*$G23,0) -> 0 | BK23: =IF(SUM(BJ$17:BJ$19)>0,$E23*$G23,0) -> 0 | BM23: =IF(SUM(BL$17:BL$19)>0,$E23*$G23,0) -> 0 | BO23: =IF(SUM(BN$17:BN$19)>0,$E23*$G23,0) -> 0 | BQ23: =IF(SUM(BP$17:BP$19)>0,$E23*$G23,0) -> 0 | BS23: =IF(SUM(BR$17:BR$19)>0,$E23*$G23,0) -> 0 | BU23: =IF(SUM(BT$17:BT$19)>0,$E23*$G23,0) -> 0 | BW23: =IF(SUM(BV$17:BV$19)>0,$E23*$G23,0) -> 0 | BY23: =IF(SUM(BX$17:BX$19)>0,$E23*$G23,0) -> 0 | CA23: =IF(SUM(BZ$17:BZ$19)>0,$E23*$G23,0) -> 0 | CC23: =IF(SUM(CB$17:CB$19)>0,$E23*$G23,0) -> 0 | CE23: =IF(SUM(CD$17:CD$19)>0,$E23*$G23,0) -> 0 | CG23: =IF(SUM(CF$17:CF$19)>0,$E23*$G23,0) -> 0 | CI23: =IF(SUM(CH$17:CH$19)>0,$E23*$G23,0) -> 0 | CK23: =IF(SUM(CJ$17:CJ$19)>0,$E23*$G23,0) -> 0 | CM23: =IF(SUM(CL$17:CL$19)>0,$E23*$G23,0) -> 0 | CO23: =IF(SUM(CN$17:CN$19)>0,$E23*$G23,0) -> 0 | CQ23: =IF(SUM(CP$17:CP$19)>0,$E23*$G23,0) -> 0 | CS23: =IF(SUM(CR$17:CR$19)>0,$E23*$G23,0) -> 0 | CU23: =IF(SUM(CT$17:CT$19)>0,$E23*$G23,0) -> 0 | CW23: =IF(SUM(CV$17:CV$19)>0,$E23*$G23,0) -> 0 | CY23: =IF(SUM(CX$17:CX$19)>0,$E23*$G23,0) -> 0 | DA23: =IF(SUM(CZ$17:CZ$19)>0,$E23*$G23,0) -> 0 | DC23: =IF(SUM(DB$17:DB$19)>0,$E23*$G23,0) -> 0 | DE23: =IF(SUM(DD$17:DD$19)>0,$E23*$G23,0) -> 0 | DG23: =IF(SUM(DF$17:DF$19)>0,$E23*$G23,0) -> 0 | DI23: =IF(SUM(DH$17:DH$19)>0,$E23*$G23,0) -> 0 | DK23: =IF(SUM(DJ$17:DJ$19)>0,$E23*$G23,0) -> 0 | DM23: =IF(SUM(DL$17:DL$19)>0,$E23*$G23,0) -> 0 | DO23: =IF(SUM(DN$17:DN$19)>0,$E23*$G23,0) -> 0 | DQ23: =IF(SUM(DP$17:DP$19)>0,$E23*$G23,0) -> 0 | DS23: =IF(SUM(DR$17:DR$19)>0,$E23*$G23,0) -> 0 | DU23: =IF(SUM(DT$17:DT$19)>0,$E23*$G23,0) -> 0 | DW23: =IF(SUM(DV$17:DV$19)>0,$E23*$G23,0) -> 0 | DY23: =IF(SUM(DX$17:DX$19)>0,$E23*$G23,0) -> 0
C24: 2 | D24: Protetor auditivo, do tipo inserção pré-moldado, de silicone, lavável, com cordão e tamanho único, com proteção mínima de 18 Db(A) de atenuação pelo método NRRsf. Ref: 3M | E24: 1 | F24: UND | G24: 2.49 | K24: =IF(SUM(J$17:J$19)>0,$E24*$G24,0) -> 0 | M24: =IF(SUM(L$17:L$19)>0,$E24*$G24,0) -> 2.49 | O24: =IF(SUM(N$17:N$19)>0,$E24*$G24,0) -> 0 | Q24: =IF(SUM(P$17:P$19)>0,$E24*$G24,0) -> 0 | S24: =IF(SUM(R$17:R$19)>0,$E24*$G24,0) -> 0 | U24: =IF(SUM(T$17:T$19)>0,$E24*$G24,0) -> 0 | W24: =IF(SUM(V$17:V$19)>0,$E24*$G24,0) -> 0 | Y24: =IF(SUM(X$17:X$19)>0,$E24*$G24,0) -> 0 | AA24: =IF(SUM(Z$17:Z$19)>0,$E24*$G24,0) -> 0 | AC24: =IF(SUM(AB$17:AB$19)>0,$E24*$G24,0) -> 0 | AE24: =IF(SUM(AD$17:AD$19)>0,$E24*$G24,0) -> 0 | AG24: =IF(SUM(AF$17:AF$19)>0,$E24*$G24,0) -> 0 | AI24: =IF(SUM(AH$17:AH$19)>0,$E24*$G24,0) -> 0 | AK24: =IF(SUM(AJ$17:AJ$19)>0,$E24*$G24,0) -> 0 | AM24: =IF(SUM(AL$17:AL$19)>0,$E24*$G24,0) -> 0 | AO24: =IF(SUM(AN$17:AN$19)>0,$E24*$G24,0) -> 0 | AQ24: =IF(SUM(AP$17:AP$19)>0,$E24*$G24,0) -> 0 | AS24: =IF(SUM(AR$17:AR$19)>0,$E24*$G24,0) -> 0 | AU24: =IF(SUM(AT$17:AT$19)>0,$E24*$G24,0) -> 0 | AW24: =IF(SUM(AV$17:AV$19)>0,$E24*$G24,0) -> 0 | AY24: =IF(SUM(AX$17:AX$19)>0,$E24*$G24,0) -> 0 | BA24: =IF(SUM(AZ$17:AZ$19)>0,$E24*$G24,0) -> 0 | BC24: =IF(SUM(BB$17:BB$19)>0,$E24*$G24,0) -> 0 | BE24: =IF(SUM(BD$17:BD$19)>0,$E24*$G24,0) -> 0 | BG24: =IF(SUM(BF$17:BF$19)>0,$E24*$G24,0) -> 0 | BI24: =IF(SUM(BH$17:BH$19)>0,$E24*$G24,0) -> 0 | BK24: =IF(SUM(BJ$17:BJ$19)>0,$E24*$G24,0) -> 0 | BM24: =IF(SUM(BL$17:BL$19)>0,$E24*$G24,0) -> 0 | BO24: =IF(SUM(BN$17:BN$19)>0,$E24*$G24,0) -> 0 | BQ24: =IF(SUM(BP$17:BP$19)>0,$E24*$G24,0) -> 0 | BS24: =IF(SUM(BR$17:BR$19)>0,$E24*$G24,0) -> 0 | BU24: =IF(SUM(BT$17:BT$19)>0,$E24*$G24,0) -> 0 | BW24: =IF(SUM(BV$17:BV$19)>0,$E24*$G24,0) -> 0 | BY24: =IF(SUM(BX$17:BX$19)>0,$E24*$G24,0) -> 0 | CA24: =IF(SUM(BZ$17:BZ$19)>0,$E24*$G24,0) -> 0 | CC24: =IF(SUM(CB$17:CB$19)>0,$E24*$G24,0) -> 0 | CE24: =IF(SUM(CD$17:CD$19)>0,$E24*$G24,0) -> 0 | CG24: =IF(SUM(CF$17:CF$19)>0,$E24*$G24,0) -> 0 | CI24: =IF(SUM(CH$17:CH$19)>0,$E24*$G24,0) -> 0 | CK24: =IF(SUM(CJ$17:CJ$19)>0,$E24*$G24,0) -> 0 | CM24: =IF(SUM(CL$17:CL$19)>0,$E24*$G24,0) -> 0 | CO24: =IF(SUM(CN$17:CN$19)>0,$E24*$G24,0) -> 0 | CQ24: =IF(SUM(CP$17:CP$19)>0,$E24*$G24,0) -> 0 | CS24: =IF(SUM(CR$17:CR$19)>0,$E24*$G24,0) -> 0 | CU24: =IF(SUM(CT$17:CT$19)>0,$E24*$G24,0) -> 0 | CW24: =IF(SUM(CV$17:CV$19)>0,$E24*$G24,0) -> 0 | CY24: =IF(SUM(CX$17:CX$19)>0,$E24*$G24,0) -> 0 | DA24: =IF(SUM(CZ$17:CZ$19)>0,$E24*$G24,0) -> 0 | DC24: =IF(SUM(DB$17:DB$19)>0,$E24*$G24,0) -> 0 | DE24: =IF(SUM(DD$17:DD$19)>0,$E24*$G24,0) -> 0 | DG24: =IF(SUM(DF$17:DF$19)>0,$E24*$G24,0) -> 0 | DI24: =IF(SUM(DH$17:DH$19)>0,$E24*$G24,0) -> 0 | DK24: =IF(SUM(DJ$17:DJ$19)>0,$E24*$G24,0) -> 0 | DM24: =IF(SUM(DL$17:DL$19)>0,$E24*$G24,0) -> 0 | DO24: =IF(SUM(DN$17:DN$19)>0,$E24*$G24,0) -> 0 | DQ24: =IF(SUM(DP$17:DP$19)>0,$E24*$G24,0) -> 0 | DS24: =IF(SUM(DR$17:DR$19)>0,$E24*$G24,0) -> 0 | DU24: =IF(SUM(DT$17:DT$19)>0,$E24*$G24,0) -> 0 | DW24: =IF(SUM(DV$17:DV$19)>0,$E24*$G24,0) -> 0 | DY24: =IF(SUM(DX$17:DX$19)>0,$E24*$G24,0) -> 0
K25: =IF(SUM(J$17:J$19)>0,$E25*$G25,0) -> 0 | M25: =IF(SUM(L$17:L$19)>0,$E25*$G25,0) -> 0 | O25: =IF(SUM(N$17:N$19)>0,$E25*$G25,0) -> 0 | Q25: =IF(SUM(P$17:P$19)>0,$E25*$G25,0) -> 0 | S25: =IF(SUM(R$17:R$19)>0,$E25*$G25,0) -> 0 | U25: =IF(SUM(T$17:T$19)>0,$E25*$G25,0) -> 0 | W25: =IF(SUM(V$17:V$19)>0,$E25*$G25,0) -> 0 | Y25: =IF(SUM(X$17:X$19)>0,$E25*$G25,0) -> 0 | AA25: =IF(SUM(Z$17:Z$19)>0,$E25*$G25,0) -> 0 | AC25: =IF(SUM(AB$17:AB$19)>0,$E25*$G25,0) -> 0 | AE25: =IF(SUM(AD$17:AD$19)>0,$E25*$G25,0) -> 0 | AG25: =IF(SUM(AF$17:AF$19)>0,$E25*$G25,0) -> 0 | AI25: =IF(SUM(AH$17:AH$19)>0,$E25*$G25,0) -> 0 | AK25: =IF(SUM(AJ$17:AJ$19)>0,$E25*$G25,0) -> 0 | AM25: =IF(SUM(AL$17:AL$19)>0,$E25*$G25,0) -> 0 | AO25: =IF(SUM(AN$17:AN$19)>0,$E25*$G25,0) -> 0 | AQ25: =IF(SUM(AP$17:AP$19)>0,$E25*$G25,0) -> 0 | AS25: =IF(SUM(AR$17:AR$19)>0,$E25*$G25,0) -> 0 | AU25: =IF(SUM(AT$17:AT$19)>0,$E25*$G25,0) -> 0 | AW25: =IF(SUM(AV$17:AV$19)>0,$E25*$G25,0) -> 0 | AY25: =IF(SUM(AX$17:AX$19)>0,$E25*$G25,0) -> 0 | BA25: =IF(SUM(AZ$17:AZ$19)>0,$E25*$G25,0) -> 0 | BC25: =IF(SUM(BB$17:BB$19)>0,$E25*$G25,0) -> 0 | BE25: =IF(SUM(BD$17:BD$19)>0,$E25*$G25,0) -> 0 | BG25: =IF(SUM(BF$17:BF$19)>0,$E25*$G25,0) -> 0 | BI25: =IF(SUM(BH$17:BH$19)>0,$E25*$G25,0) -> 0 | BK25: =IF(SUM(BJ$17:BJ$19)>0,$E25*$G25,0) -> 0 | BM25: =IF(SUM(BL$17:BL$19)>0,$E25*$G25,0) -> 0 | BO25: =IF(SUM(BN$17:BN$19)>0,$E25*$G25,0) -> 0 | BQ25: =IF(SUM(BP$17:BP$19)>0,$E25*$G25,0) -> 0 | BS25: =IF(SUM(BR$17:BR$19)>0,$E25*$G25,0) -> 0 | BU25: =IF(SUM(BT$17:BT$19)>0,$E25*$G25,0) -> 0 | BW25: =IF(SUM(BV$17:BV$19)>0,$E25*$G25,0) -> 0 | BY25: =IF(SUM(BX$17:BX$19)>0,$E25*$G25,0) -> 0 | CA25: =IF(SUM(BZ$17:BZ$19)>0,$E25*$G25,0) -> 0 | CC25: =IF(SUM(CB$17:CB$19)>0,$E25*$G25,0) -> 0 | CE25: =IF(SUM(CD$17:CD$19)>0,$E25*$G25,0) -> 0 | CG25: =IF(SUM(CF$17:CF$19)>0,$E25*$G25,0) -> 0 | CI25: =IF(SUM(CH$17:CH$19)>0,$E25*$G25,0) -> 0 | CK25: =IF(SUM(CJ$17:CJ$19)>0,$E25*$G25,0) -> 0 | CM25: =IF(SUM(CL$17:CL$19)>0,$E25*$G25,0) -> 0 | CO25: =IF(SUM(CN$17:CN$19)>0,$E25*$G25,0) -> 0 | CQ25: =IF(SUM(CP$17:CP$19)>0,$E25*$G25,0) -> 0 | CS25: =IF(SUM(CR$17:CR$19)>0,$E25*$G25,0) -> 0 | CU25: =IF(SUM(CT$17:CT$19)>0,$E25*$G25,0) -> 0 | CW25: =IF(SUM(CV$17:CV$19)>0,$E25*$G25,0) -> 0 | CY25: =IF(SUM(CX$17:CX$19)>0,$E25*$G25,0) -> 0 | DA25: =IF(SUM(CZ$17:CZ$19)>0,$E25*$G25,0) -> 0 | DC25: =IF(SUM(DB$17:DB$19)>0,$E25*$G25,0) -> 0 | DE25: =IF(SUM(DD$17:DD$19)>0,$E25*$G25,0) -> 0 | DG25: =IF(SUM(DF$17:DF$19)>0,$E25*$G25,0) -> 0 | DI25: =IF(SUM(DH$17:DH$19)>0,$E25*$G25,0) -> 0 | DK25: =IF(SUM(DJ$17:DJ$19)>0,$E25*$G25,0) -> 0 | DM25: =IF(SUM(DL$17:DL$19)>0,$E25*$G25,0) -> 0 | DO25: =IF(SUM(DN$17:DN$19)>0,$E25*$G25,0) -> 0 | DQ25: =IF(SUM(DP$17:DP$19)>0,$E25*$G25,0) -> 0 | DS25: =IF(SUM(DR$17:DR$19)>0,$E25*$G25,0) -> 0 | DU25: =IF(SUM(DT$17:DT$19)>0,$E25*$G25,0) -> 0 | DW25: =IF(SUM(DV$17:DV$19)>0,$E25*$G25,0) -> 0 | DY25: 0
C26: CATEGORIAS | G26: QUANTIDADE
J27: =IF($C27=J$4,1,0) -> 0 | L27: =IF($C27=L$4,1,0) -> 0 | N27: =IF($C27=N$4,1,0) -> 0 | P27: =IF($C27=P$4,1,0) -> 0 | R27: =IF($C27=R$4,1,0) -> 0 | T27: =IF($C27=T$4,1,0) -> 0 | V27: =IF($C27=V$4,1,0) -> 0 | X27: =IF($C27=X$4,1,0) -> 0 | Z27: =IF($C27=Z$4,1,0) -> 0 | AB27: =IF($C27=AB$4,1,0) -> 0 | AD27: =IF($C27=AD$4,1,0) -> 0 | AF27: =IF($C27=AF$4,1,0) -> 0 | AH27: =IF($C27=AH$4,1,0) -> 0 | AJ27: =IF($C27=AJ$4,1,0) -> 0 | AL27: =IF($C27=AL$4,1,0) -> 0 | AN27: =IF($C27=AN$4,1,0) -> 0 | AP27: =IF($C27=AP$4,1,0) -> 0 | AR27: =IF($C27=AR$4,1,0) -> 0 | AT27: =IF($C27=AT$4,1,0) -> 0 | AV27: =IF($C27=AV$4,1,0) -> 0 | AX27: =IF($C27=AX$4,1,0) -> 0 | AZ27: =IF($C27=AZ$4,1,0) -> 0 | BB27: =IF($C27=BB$4,1,0) -> 0 | BD27: =IF($C27=BD$4,1,0) -> 0 | BF27: =IF($C27=BF$4,1,0) -> 0 | BH27: =IF($C27=BH$4,1,0) -> 0 | BJ27: =IF($C27=BJ$4,1,0) -> 0 | BL27: =IF($C27=BL$4,1,0) -> 0 | BN27: =IF($C27=BN$4,1,0) -> 0 | BP27: =IF($C27=BP$4,1,0) -> 0 | BR27: =IF($C27=BR$4,1,0) -> 0 | BT27: =IF($C27=BT$4,1,0) -> 0 | BV27: =IF($C27=BV$4,1,0) -> 0 | BX27: =IF($C27=BX$4,1,0) -> 0 | BZ27: =IF($C27=BZ$4,1,0) -> 0 | CB27: =IF($C27=CB$4,1,0) -> 0 | CD27: =IF($C27=CD$4,1,0) -> 0 | CF27: =IF($C27=CF$4,1,0) -> 0 | CH27: =IF($C27=CH$4,1,0) -> 0 | CJ27: =IF($C27=CJ$4,1,0) -> 0 | CL27: =IF($C27=CL$4,1,0) -> 0 | CN27: =IF($C27=CN$4,1,0) -> 0 | CP27: =IF($C27=CP$4,1,0) -> 0 | CR27: =IF($C27=CR$4,1,0) -> 0 | CT27: =IF($C27=CT$4,1,0) -> 0 | CV27: =IF($C27=CV$4,1,0) -> 0 | CX27: =IF($C27=CX$4,1,0) -> 0 | CZ27: =IF($C27=CZ$4,1,0) -> 0 | DB27: =IF($C27=DB$4,1,0) -> 0 | DD27: =IF($C27=DD$4,1,0) -> 0 | DF27: =IF($C27=DF$4,1,0) -> 0 | DH27: =IF($C27=DH$4,1,0) -> 0 | DJ27: =IF($C27=DJ$4,1,0) -> 0 | DL27: =IF($C27=DL$4,1,0) -> 0 | DN27: =IF($C27=DN$4,1,0) -> 0 | DP27: =IF($C27=DP$4,1,0) -> 0 | DR27: =IF($C27=DR$4,1,0) -> 0 | DT27: =IF($C27=DT$4,1,0) -> 0 | DV27: =IF($C27=DV$4,1,0) -> 0 | DX27: =IF($C27=DX$4,1,0) -> 0
C28: 3 | D28: =HLOOKUP($C28,'Dados Gerais'!$D$5:$BK$10,6) -> ENCARREGADO DE SERVIÇO | G28: =HLOOKUP($C28,'Dados Gerais'!$D$5:$BK$14,10) -> 12 | J28: =IF($C28=J$4,1,0) -> 0 | L28: 0 | N28: 1 | P28: 0 | R28: 0 | T28: 0 | V28: 0 | X28: 0 | Z28: 0 | AB28: 0 | AD28: 0 | AF28: 0 | AH28: 0 | AJ28: 0 | AL28: 0 | AN28: 0 | AP28: 0 | AR28: 0 | AT28: 0 | AV28: 0 | AX28: 0 | AZ28: 0 | BB28: 0 | BD28: 0 | BF28: 0 | BH28: 0 | BJ28: 0 | BL28: 0 | BN28: 0 | BP28: 0 | BR28: 0 | BT28: 0 | BV28: 0 | BX28: 0 | BZ28: 0 | CB28: 0 | CD28: 0 | CF28: 0 | CH28: 0 | CJ28: 0 | CL28: 0 | CN28: 0 | CP28: 0 | CR28: 0 | CT28: 0 | CV28: 0 | CX28: 0 | CZ28: 0 | DB28: 0 | DD28: 0 | DF28: 0 | DH28: 0 | DJ28: 0 | DL28: 0 | DN28: 0 | DP28: 0 | DR28: 0 | DT28: 0 | DV28: 0 | DX28: 0
C29: 4 | D29: =HLOOKUP($C29,'Dados Gerais'!$D$5:$BK$10,6) -> AUXILIAR DE ENCARREGADO | G29: =HLOOKUP($C29,'Dados Gerais'!$D$5:$BK$14,10) -> 1 | J29: =IF($C29=J$4,1,0) -> 0 | L29: 0 | N29: 0 | P29: 1 | R29: 0 | T29: 0 | V29: 0 | X29: 0 | Z29: 0 | AB29: 0 | AD29: 0 | AF29: 0 | AH29: 0 | AJ29: 0 | AL29: 0 | AN29: 0 | AP29: 0 | AR29: 0 | AT29: 0 | AV29: 0 | AX29: 0 | AZ29: 0 | BB29: 0 | BD29: 0 | BF29: 0 | BH29: 0 | BJ29: 0 | BL29: 0 | BN29: 0 | BP29: 0 | BR29: 0 | BT29: 0 | BV29: 0 | BX29: 0 | BZ29: 0 | CB29: 0 | CD29: 0 | CF29: 0 | CH29: 0 | CJ29: 0 | CL29: 0 | CN29: 0 | CP29: 0 | CR29: 0 | CT29: 0 | CV29: 0 | CX29: 0 | CZ29: 0 | DB29: 0 | DD29: 0 | DF29: 0 | DH29: 0 | DJ29: 0 | DL29: 0 | DN29: 0 | DP29: 0 | DR29: 0 | DT29: 0 | DV29: 0 | DX29: 0
J30: =IF($C30=J$4,1,0) -> 0 | L30: 0 | N30: 0 | P30: 0 | R30: 0 | T30: 0 | V30: 0 | X30: 0 | Z30: 0 | AB30: 0 | AD30: 0 | AF30: 0 | AH30: 0 | AJ30: 0 | AL30: 0 | AN30: 0 | AP30: 0 | AR30: 0 | AT30: 0 | AV30: 0 | AX30: 0 | AZ30: 0 | BB30: 0 | BD30: 0 | BF30: 0 | BH30: 0 | BJ30: 0 | BL30: 0 | BN30: 0 | BP30: 0 | BR30: 0 | BT30: 0 | BV30: 0 | BX30: 0 | BZ30: 0 | CB30: 0 | CD30: 0 | CF30: 0 | CH30: 0 | CJ30: 0 | CL30: 0 | CN30: 0 | CP30: 0 | CR30: 0 | CT30: 0 | CV30: 0 | CX30: 0 | CZ30: 0 | DB30: 0 | DD30: 0 | DF30: 0 | DH30: 0 | DJ30: 0 | DL30: 0 | DN30: 0 | DP30: 0 | DR30: 0 | DT30: 0 | DV30: 0 | DX30: 0
C32: ITEM | D32: DESCRIÇÃO | E32: QUANT ANUAL POR POSTO | F32: UNIDADE | G32: VALOR
K33: =IF(SUM(J$8:J$10)>0,$E33*$G33,0) -> 0 | M33: =IF(SUM(L$8:L$10)>0,$E33*$G33,0) -> 0 | O33: =IF(SUM(N$8:N$10)>0,$E33*$G33,0) -> 0 | Q33: =IF(SUM(P$8:P$10)>0,$E33*$G33,0) -> 0 | S33: =IF(SUM(R$8:R$10)>0,$E33*$G33,0) -> 0 | U33: =IF(SUM(T$8:T$10)>0,$E33*$G33,0) -> 0 | W33: =IF(SUM(V$8:V$10)>0,$E33*$G33,0) -> 0 | Y33: =IF(SUM(X$8:X$10)>0,$E33*$G33,0) -> 0 | AA33: =IF(SUM(Z$8:Z$10)>0,$E33*$G33,0) -> 0 | AC33: =IF(SUM(AB$8:AB$10)>0,$E33*$G33,0) -> 0 | AE33: =IF(SUM(AD$8:AD$10)>0,$E33*$G33,0) -> 0 | AG33: =IF(SUM(AF$8:AF$10)>0,$E33*$G33,0) -> 0 | AI33: =IF(SUM(AH$8:AH$10)>0,$E33*$G33,0) -> 0 | AK33: =IF(SUM(AJ$8:AJ$10)>0,$E33*$G33,0) -> 0 | AM33: =IF(SUM(AL$8:AL$10)>0,$E33*$G33,0) -> 0 | AO33: =IF(SUM(AN$8:AN$10)>0,$E33*$G33,0) -> 0 | AQ33: =IF(SUM(AP$8:AP$10)>0,$E33*$G33,0) -> 0 | AS33: =IF(SUM(AR$8:AR$10)>0,$E33*$G33,0) -> 0 | AU33: =IF(SUM(AT$8:AT$10)>0,$E33*$G33,0) -> 0 | AW33: =IF(SUM(AV$8:AV$10)>0,$E33*$G33,0) -> 0 | AY33: =IF(SUM(AX$8:AX$10)>0,$E33*$G33,0) -> 0 | BA33: =IF(SUM(AZ$8:AZ$10)>0,$E33*$G33,0) -> 0 | BC33: =IF(SUM(BB$8:BB$10)>0,$E33*$G33,0) -> 0 | BE33: =IF(SUM(BD$8:BD$10)>0,$E33*$G33,0) -> 0 | BG33: =IF(SUM(BF$8:BF$10)>0,$E33*$G33,0) -> 0 | BI33: =IF(SUM(BH$8:BH$10)>0,$E33*$G33,0) -> 0 | BK33: =IF(SUM(BJ$8:BJ$10)>0,$E33*$G33,0) -> 0 | BM33: =IF(SUM(BL$8:BL$10)>0,$E33*$G33,0) -> 0 | BO33: =IF(SUM(BN$8:BN$10)>0,$E33*$G33,0) -> 0 | BQ33: =IF(SUM(BP$8:BP$10)>0,$E33*$G33,0) -> 0 | BS33: =IF(SUM(BR$8:BR$10)>0,$E33*$G33,0) -> 0 | BU33: =IF(SUM(BT$8:BT$10)>0,$E33*$G33,0) -> 0 | BW33: =IF(SUM(BV$8:BV$10)>0,$E33*$G33,0) -> 0 | BY33: =IF(SUM(BX$8:BX$10)>0,$E33*$G33,0) -> 0 | CA33: =IF(SUM(BZ$8:BZ$10)>0,$E33*$G33,0) -> 0 | CC33: =IF(SUM(CB$8:CB$10)>0,$E33*$G33,0) -> 0 | CE33: =IF(SUM(CD$8:CD$10)>0,$E33*$G33,0) -> 0 | CG33: =IF(SUM(CF$8:CF$10)>0,$E33*$G33,0) -> 0 | CI33: =IF(SUM(CH$8:CH$10)>0,$E33*$G33,0) -> 0 | CK33: =IF(SUM(CJ$8:CJ$10)>0,$E33*$G33,0) -> 0 | CM33: =IF(SUM(CL$8:CL$10)>0,$E33*$G33,0) -> 0 | CO33: =IF(SUM(CN$8:CN$10)>0,$E33*$G33,0) -> 0 | CQ33: =IF(SUM(CP$8:CP$10)>0,$E33*$G33,0) -> 0 | CS33: =IF(SUM(CR$8:CR$10)>0,$E33*$G33,0) -> 0 | CU33: =IF(SUM(CT$8:CT$10)>0,$E33*$G33,0) -> 0 | CW33: =IF(SUM(CV$8:CV$10)>0,$E33*$G33,0) -> 0 | CY33: =IF(SUM(CX$8:CX$10)>0,$E33*$G33,0) -> 0 | DA33: =IF(SUM(CZ$8:CZ$10)>0,$E33*$G33,0) -> 0 | DC33: =IF(SUM(DB$8:DB$10)>0,$E33*$G33,0) -> 0 | DE33: =IF(SUM(DD$8:DD$10)>0,$E33*$G33,0) -> 0 | DG33: =IF(SUM(DF$8:DF$10)>0,$E33*$G33,0) -> 0 | DI33: =IF(SUM(DH$8:DH$10)>0,$E33*$G33,0) -> 0 | DK33: =IF(SUM(DJ$8:DJ$10)>0,$E33*$G33,0) -> 0 | DM33: =IF(SUM(DL$8:DL$10)>0,$E33*$G33,0) -> 0 | DO33: =IF(SUM(DN$8:DN$10)>0,$E33*$G33,0) -> 0 | DQ33: =IF(SUM(DP$8:DP$10)>0,$E33*$G33,0) -> 0 | DS33: =IF(SUM(DR$8:DR$10)>0,$E33*$G33,0) -> 0 | DU33: =IF(SUM(DT$8:DT$10)>0,$E33*$G33,0) -> 0 | DW33: =IF(SUM(DV$8:DV$10)>0,$E33*$G33,0) -> 0 | DY33: =IF(SUM(DX$8:DX$10)>0,$E33*$G33,0) -> 0
C34: 1 | D34: Respirador purificador de ar tipo, peça semifacial filtrante para partículas (PFF2), com formato dobrável, solda ultra-sônica em todo o seu perímetro. Fita elástica branca fixada nas laterais externas do respirador, perfazendo uma alça na para fixação na parte superior da cabeça e a outra na parte inferior, para fixação na altura da nuca do usuário. A parte superior externa da peça possui tira de material metálico moldável, utilizada para ajuste no septo nasal. Com válvula de exalação. DEVERÁ APRESENTAR O SELO DE APROVAÇÃO DO INMETRO. Ref. 3M | E34: 1 | F34: UND | G34: =G23 -> 1.62 | K34: =IF(SUM(J$27:J$30)>0,$E34*$G34,0) -> 0 | M34: =IF(SUM(L$27:L$30)>0,$E34*$G34,0) -> 0 | O34: =IF(SUM(N$27:N$30)>0,$E34*$G34,0) -> 1.62 | Q34: =IF(SUM(P$27:P$30)>0,$E34*$G34,0) -> 1.62 | S34: =IF(SUM(R$27:R$30)>0,$E34*$G34,0) -> 0 | U34: =IF(SUM(T$27:T$30)>0,$E34*$G34,0) -> 0 | W34: =IF(SUM(V$27:V$30)>0,$E34*$G34,0) -> 0 | Y34: =IF(SUM(X$27:X$30)>0,$E34*$G34,0) -> 0 | AA34: =IF(SUM(Z$27:Z$30)>0,$E34*$G34,0) -> 0 | AC34: =IF(SUM(AB$27:AB$30)>0,$E34*$G34,0) -> 0 | AE34: =IF(SUM(AD$27:AD$30)>0,$E34*$G34,0) -> 0 | AG34: =IF(SUM(AF$27:AF$30)>0,$E34*$G34,0) -> 0 | AI34: =IF(SUM(AH$27:AH$30)>0,$E34*$G34,0) -> 0 | AK34: =IF(SUM(AJ$27:AJ$30)>0,$E34*$G34,0) -> 0 | AM34: =IF(SUM(AL$27:AL$30)>0,$E34*$G34,0) -> 0 | AO34: =IF(SUM(AN$27:AN$30)>0,$E34*$G34,0) -> 0 | AQ34: =IF(SUM(AP$27:AP$30)>0,$E34*$G34,0) -> 0 | AS34: =IF(SUM(AR$27:AR$30)>0,$E34*$G34,0) -> 0 | AU34: =IF(SUM(AT$27:AT$30)>0,$E34*$G34,0) -> 0 | AW34: =IF(SUM(AV$27:AV$30)>0,$E34*$G34,0) -> 0 | AY34: =IF(SUM(AX$27:AX$30)>0,$E34*$G34,0) -> 0 | BA34: =IF(SUM(AZ$27:AZ$30)>0,$E34*$G34,0) -> 0 | BC34: =IF(SUM(BB$27:BB$30)>0,$E34*$G34,0) -> 0 | BE34: =IF(SUM(BD$27:BD$30)>0,$E34*$G34,0) -> 0 | BG34: =IF(SUM(BF$27:BF$30)>0,$E34*$G34,0) -> 0 | BI34: =IF(SUM(BH$27:BH$30)>0,$E34*$G34,0) -> 0 | BK34: =IF(SUM(BJ$27:BJ$30)>0,$E34*$G34,0) -> 0 | BM34: =IF(SUM(BL$27:BL$30)>0,$E34*$G34,0) -> 0 | BO34: =IF(SUM(BN$27:BN$30)>0,$E34*$G34,0) -> 0 | BQ34: =IF(SUM(BP$27:BP$30)>0,$E34*$G34,0) -> 0 | BS34: =IF(SUM(BR$27:BR$30)>0,$E34*$G34,0) -> 0 | BU34: =IF(SUM(BT$27:BT$30)>0,$E34*$G34,0) -> 0 | BW34: =IF(SUM(BV$27:BV$30)>0,$E34*$G34,0) -> 0 | BY34: =IF(SUM(BX$27:BX$30)>0,$E34*$G34,0) -> 0 | CA34: =IF(SUM(BZ$27:BZ$30)>0,$E34*$G34,0) -> 0 | CC34: =IF(SUM(CB$27:CB$30)>0,$E34*$G34,0) -> 0 | CE34: =IF(SUM(CD$27:CD$30)>0,$E34*$G34,0) -> 0 | CG34: =IF(SUM(CF$27:CF$30)>0,$E34*$G34,0) -> 0 | CI34: =IF(SUM(CH$27:CH$30)>0,$E34*$G34,0) -> 0 | CK34: =IF(SUM(CJ$27:CJ$30)>0,$E34*$G34,0) -> 0 | CM34: =IF(SUM(CL$27:CL$30)>0,$E34*$G34,0) -> 0 | CO34: =IF(SUM(CN$27:CN$30)>0,$E34*$G34,0) -> 0 | CQ34: =IF(SUM(CP$27:CP$30)>0,$E34*$G34,0) -> 0 | CS34: =IF(SUM(CR$27:CR$30)>0,$E34*$G34,0) -> 0 | CU34: =IF(SUM(CT$27:CT$30)>0,$E34*$G34,0) -> 0 | CW34: =IF(SUM(CV$27:CV$30)>0,$E34*$G34,0) -> 0 | CY34: =IF(SUM(CX$27:CX$30)>0,$E34*$G34,0) -> 0 | DA34: =IF(SUM(CZ$27:CZ$30)>0,$E34*$G34,0) -> 0 | DC34: =IF(SUM(DB$27:DB$30)>0,$E34*$G34,0) -> 0 | DE34: =IF(SUM(DD$27:DD$30)>0,$E34*$G34,0) -> 0 | DG34: =IF(SUM(DF$27:DF$30)>0,$E34*$G34,0) -> 0 | DI34: =IF(SUM(DH$27:DH$30)>0,$E34*$G34,0) -> 0 | DK34: =IF(SUM(DJ$27:DJ$30)>0,$E34*$G34,0) -> 0 | DM34: =IF(SUM(DL$27:DL$30)>0,$E34*$G34,0) -> 0 | DO34: =IF(SUM(DN$27:DN$30)>0,$E34*$G34,0) -> 0 | DQ34: =IF(SUM(DP$27:DP$30)>0,$E34*$G34,0) -> 0 | DS34: =IF(SUM(DR$27:DR$30)>0,$E34*$G34,0) -> 0 | DU34: =IF(SUM(DT$27:DT$30)>0,$E34*$G34,0) -> 0 | DW34: =IF(SUM(DV$27:DV$30)>0,$E34*$G34,0) -> 0 | DY34: =IF(SUM(DX$27:DX$30)>0,$E34*$G34,0) -> 0
C35: 2 | D35: Protetor auditivo, do tipo inserção pré-moldado, de silicone, lavável, com cordão e tamanho único, com proteção mínima de 18 Db(A) de atenuação pelo método NRRsf. Ref: 3M | E35: 1 | F35: UND | G35: =G24 -> 2.49 | K35: =IF(SUM(J$27:J$30)>0,$E35*$G35,0) -> 0 | M35: =IF(SUM(L$27:L$30)>0,$E35*$G35,0) -> 0 | O35: =IF(SUM(N$27:N$30)>0,$E35*$G35,0) -> 2.49 | Q35: =IF(SUM(P$27:P$30)>0,$E35*$G35,0) -> 2.49 | S35: =IF(SUM(R$27:R$30)>0,$E35*$G35,0) -> 0 | U35: =IF(SUM(T$27:T$30)>0,$E35*$G35,0) -> 0 | W35: =IF(SUM(V$27:V$30)>0,$E35*$G35,0) -> 0 | Y35: =IF(SUM(X$27:X$30)>0,$E35*$G35,0) -> 0 | AA35: =IF(SUM(Z$27:Z$30)>0,$E35*$G35,0) -> 0 | AC35: =IF(SUM(AB$27:AB$30)>0,$E35*$G35,0) -> 0 | AE35: =IF(SUM(AD$27:AD$30)>0,$E35*$G35,0) -> 0 | AG35: =IF(SUM(AF$27:AF$30)>0,$E35*$G35,0) -> 0 | AI35: =IF(SUM(AH$27:AH$30)>0,$E35*$G35,0) -> 0 | AK35: =IF(SUM(AJ$27:AJ$30)>0,$E35*$G35,0) -> 0 | AM35: =IF(SUM(AL$27:AL$30)>0,$E35*$G35,0) -> 0 | AO35: =IF(SUM(AN$27:AN$30)>0,$E35*$G35,0) -> 0 | AQ35: =IF(SUM(AP$27:AP$30)>0,$E35*$G35,0) -> 0 | AS35: =IF(SUM(AR$27:AR$30)>0,$E35*$G35,0) -> 0 | AU35: =IF(SUM(AT$27:AT$30)>0,$E35*$G35,0) -> 0 | AW35: =IF(SUM(AV$27:AV$30)>0,$E35*$G35,0) -> 0 | AY35: =IF(SUM(AX$27:AX$30)>0,$E35*$G35,0) -> 0 | BA35: =IF(SUM(AZ$27:AZ$30)>0,$E35*$G35,0) -> 0 | BC35: =IF(SUM(BB$27:BB$30)>0,$E35*$G35,0) -> 0 | BE35: =IF(SUM(BD$27:BD$30)>0,$E35*$G35,0) -> 0 | BG35: =IF(SUM(BF$27:BF$30)>0,$E35*$G35,0) -> 0 | BI35: =IF(SUM(BH$27:BH$30)>0,$E35*$G35,0) -> 0 | BK35: =IF(SUM(BJ$27:BJ$30)>0,$E35*$G35,0) -> 0 | BM35: =IF(SUM(BL$27:BL$30)>0,$E35*$G35,0) -> 0 | BO35: =IF(SUM(BN$27:BN$30)>0,$E35*$G35,0) -> 0 | BQ35: =IF(SUM(BP$27:BP$30)>0,$E35*$G35,0) -> 0 | BS35: =IF(SUM(BR$27:BR$30)>0,$E35*$G35,0) -> 0 | BU35: =IF(SUM(BT$27:BT$30)>0,$E35*$G35,0) -> 0 | BW35: =IF(SUM(BV$27:BV$30)>0,$E35*$G35,0) -> 0 | BY35: =IF(SUM(BX$27:BX$30)>0,$E35*$G35,0) -> 0 | CA35: =IF(SUM(BZ$27:BZ$30)>0,$E35*$G35,0) -> 0 | CC35: =IF(SUM(CB$27:CB$30)>0,$E35*$G35,0) -> 0 | CE35: =IF(SUM(CD$27:CD$30)>0,$E35*$G35,0) -> 0 | CG35: =IF(SUM(CF$27:CF$30)>0,$E35*$G35,0) -> 0 | CI35: =IF(SUM(CH$27:CH$30)>0,$E35*$G35,0) -> 0 | CK35: =IF(SUM(CJ$27:CJ$30)>0,$E35*$G35,0) -> 0 | CM35: =IF(SUM(CL$27:CL$30)>0,$E35*$G35,0) -> 0 | CO35: =IF(SUM(CN$27:CN$30)>0,$E35*$G35,0) -> 0 | CQ35: =IF(SUM(CP$27:CP$30)>0,$E35*$G35,0) -> 0 | CS35: =IF(SUM(CR$27:CR$30)>0,$E35*$G35,0) -> 0 | CU35: =IF(SUM(CT$27:CT$30)>0,$E35*$G35,0) -> 0 | CW35: =IF(SUM(CV$27:CV$30)>0,$E35*$G35,0) -> 0 | CY35: =IF(SUM(CX$27:CX$30)>0,$E35*$G35,0) -> 0 | DA35: =IF(SUM(CZ$27:CZ$30)>0,$E35*$G35,0) -> 0 | DC35: =IF(SUM(DB$27:DB$30)>0,$E35*$G35,0) -> 0 | DE35: =IF(SUM(DD$27:DD$30)>0,$E35*$G35,0) -> 0 | DG35: =IF(SUM(DF$27:DF$30)>0,$E35*$G35,0) -> 0 | DI35: =IF(SUM(DH$27:DH$30)>0,$E35*$G35,0) -> 0 | DK35: =IF(SUM(DJ$27:DJ$30)>0,$E35*$G35,0) -> 0 | DM35: =IF(SUM(DL$27:DL$30)>0,$E35*$G35,0) -> 0 | DO35: =IF(SUM(DN$27:DN$30)>0,$E35*$G35,0) -> 0 | DQ35: =IF(SUM(DP$27:DP$30)>0,$E35*$G35,0) -> 0 | DS35: =IF(SUM(DR$27:DR$30)>0,$E35*$G35,0) -> 0 | DU35: =IF(SUM(DT$27:DT$30)>0,$E35*$G35,0) -> 0 | DW35: =IF(SUM(DV$27:DV$30)>0,$E35*$G35,0) -> 0 | DY35: 0
C37: CATEGORIAS | G37: QUANTIDADE
J38: =IF($C38=J$4,1,0) -> 0 | L38: =IF($C38=L$4,1,0) -> 0 | N38: =IF($C38=N$4,1,0) -> 0 | P38: =IF($C38=P$4,1,0) -> 0 | R38: =IF($C38=R$4,1,0) -> 0 | T38: =IF($C38=T$4,1,0) -> 0 | V38: =IF($C38=V$4,1,0) -> 0 | X38: =IF($C38=X$4,1,0) -> 0 | Z38: =IF($C38=Z$4,1,0) -> 0 | AB38: =IF($C38=AB$4,1,0) -> 0 | AD38: =IF($C38=AD$4,1,0) -> 0 | AF38: =IF($C38=AF$4,1,0) -> 0 | AH38: =IF($C38=AH$4,1,0) -> 0 | AJ38: =IF($C38=AJ$4,1,0) -> 0 | AL38: =IF($C38=AL$4,1,0) -> 0 | AN38: =IF($C38=AN$4,1,0) -> 0 | AP38: =IF($C38=AP$4,1,0) -> 0 | AR38: =IF($C38=AR$4,1,0) -> 0 | AT38: =IF($C38=AT$4,1,0) -> 0 | AV38: =IF($C38=AV$4,1,0) -> 0 | AX38: =IF($C38=AX$4,1,0) -> 0 | AZ38: =IF($C38=AZ$4,1,0) -> 0 | BB38: =IF($C38=BB$4,1,0) -> 0 | BD38: =IF($C38=BD$4,1,0) -> 0 | BF38: =IF($C38=BF$4,1,0) -> 0 | BH38: =IF($C38=BH$4,1,0) -> 0 | BJ38: =IF($C38=BJ$4,1,0) -> 0 | BL38: =IF($C38=BL$4,1,0) -> 0 | BN38: =IF($C38=BN$4,1,0) -> 0 | BP38: =IF($C38=BP$4,1,0) -> 0 | BR38: =IF($C38=BR$4,1,0) -> 0 | BT38: =IF($C38=BT$4,1,0) -> 0 | BV38: =IF($C38=BV$4,1,0) -> 0 | BX38: =IF($C38=BX$4,1,0) -> 0 | BZ38: =IF($C38=BZ$4,1,0) -> 0 | CB38: =IF($C38=CB$4,1,0) -> 0 | CD38: =IF($C38=CD$4,1,0) -> 0 | CF38: =IF($C38=CF$4,1,0) -> 0 | CH38: =IF($C38=CH$4,1,0) -> 0 | CJ38: =IF($C38=CJ$4,1,0) -> 0 | CL38: =IF($C38=CL$4,1,0) -> 0 | CN38: =IF($C38=CN$4,1,0) -> 0 | CP38: =IF($C38=CP$4,1,0) -> 0 | CR38: =IF($C38=CR$4,1,0) -> 0 | CT38: =IF($C38=CT$4,1,0) -> 0 | CV38: =IF($C38=CV$4,1,0) -> 0 | CX38: =IF($C38=CX$4,1,0) -> 0 | CZ38: =IF($C38=CZ$4,1,0) -> 0 | DB38: =IF($C38=DB$4,1,0) -> 0 | DD38: =IF($C38=DD$4,1,0) -> 0 | DF38: =IF($C38=DF$4,1,0) -> 0 | DH38: =IF($C38=DH$4,1,0) -> 0 | DJ38: =IF($C38=DJ$4,1,0) -> 0 | DL38: =IF($C38=DL$4,1,0) -> 0 | DN38: =IF($C38=DN$4,1,0) -> 0 | DP38: =IF($C38=DP$4,1,0) -> 0 | DR38: =IF($C38=DR$4,1,0) -> 0 | DT38: =IF($C38=DT$4,1,0) -> 0 | DV38: =IF($C38=DV$4,1,0) -> 0 | DX38: =IF($C38=DX$4,1,0) -> 0
C39: 5 | D39: =HLOOKUP($C39,'Dados Gerais'!$D$5:$BK$10,6) -> ALMOXARIFE | G39: =HLOOKUP($C39,'Dados Gerais'!$D$5:$BK$14,10) -> 2 | J39: =IF($C39=J$4,1,0) -> 0 | L39: 0 | N39: 0 | P39: 0 | R39: 1 | T39: 0 | V39: 0 | X39: 0 | Z39: 0 | AB39: 0 | AD39: 0 | AF39: 0 | AH39: 0 | AJ39: 0 | AL39: 0 | AN39: 0 | AP39: 0 | AR39: 0 | AT39: 0 | AV39: 0 | AX39: 0 | AZ39: 0 | BB39: 0 | BD39: 0 | BF39: 0 | BH39: 0 | BJ39: 0 | BL39: 0 | BN39: 0 | BP39: 0 | BR39: 0 | BT39: 0 | BV39: 0 | BX39: 0 | BZ39: 0 | CB39: 0 | CD39: 0 | CF39: 0 | CH39: 0 | CJ39: 0 | CL39: 0 | CN39: 0 | CP39: 0 | CR39: 0 | CT39: 0 | CV39: 0 | CX39: 0 | CZ39: 0 | DB39: 0 | DD39: 0 | DF39: 0 | DH39: 0 | DJ39: 0 | DL39: 0 | DN39: 0 | DP39: 0 | DR39: 0 | DT39: 0 | DV39: 0 | DX39: 0
J40: =IF($C40=J$4,1,0) -> 0 | L40: 0 | N40: 0 | P40: 0 | R40: 0 | T40: 0 | V40: 0 | X40: 0 | Z40: 0 | AB40: 0 | AD40: 0 | AF40: 0 | AH40: 0 | AJ40: 0 | AL40: 0 | AN40: 0 | AP40: 0 | AR40: 0 | AT40: 0 | AV40: 0 | AX40: 0 | AZ40: 0 | BB40: 0 | BD40: 0 | BF40: 0 | BH40: 0 | BJ40: 0 | BL40: 0 | BN40: 0 | BP40: 0 | BR40: 0 | BT40: 0 | BV40: 0 | BX40: 0 | BZ40: 0 | CB40: 0 | CD40: 0 | CF40: 0 | CH40: 0 | CJ40: 0 | CL40: 0 | CN40: 0 | CP40: 0 | CR40: 0 | CT40: 0 | CV40: 0 | CX40: 0 | CZ40: 0 | DB40: 0 | DD40: 0 | DF40: 0 | DH40: 0 | DJ40: 0 | DL40: 0 | DN40: 0 | DP40: 0 | DR40: 0 | DT40: 0 | DV40: 0 | DX40: 0
C42: ITEM | D42: DESCRIÇÃO | E42: QUANT ANUAL POR POSTO | F42: UNIDADE | G42: VALOR
K43: =IF(SUM(J$8:J$10)>0,$E43*$G43,0) -> 0 | M43: =IF(SUM(L$8:L$10)>0,$E43*$G43,0) -> 0 | O43: =IF(SUM(N$8:N$10)>0,$E43*$G43,0) -> 0 | Q43: =IF(SUM(P$8:P$10)>0,$E43*$G43,0) -> 0 | S43: =IF(SUM(R$8:R$10)>0,$E43*$G43,0) -> 0 | U43: =IF(SUM(T$8:T$10)>0,$E43*$G43,0) -> 0 | W43: =IF(SUM(V$8:V$10)>0,$E43*$G43,0) -> 0 | Y43: =IF(SUM(X$8:X$10)>0,$E43*$G43,0) -> 0 | AA43: =IF(SUM(Z$8:Z$10)>0,$E43*$G43,0) -> 0 | AC43: =IF(SUM(AB$8:AB$10)>0,$E43*$G43,0) -> 0 | AE43: =IF(SUM(AD$8:AD$10)>0,$E43*$G43,0) -> 0 | AG43: =IF(SUM(AF$8:AF$10)>0,$E43*$G43,0) -> 0 | AI43: =IF(SUM(AH$8:AH$10)>0,$E43*$G43,0) -> 0 | AK43: =IF(SUM(AJ$8:AJ$10)>0,$E43*$G43,0) -> 0 | AM43: =IF(SUM(AL$8:AL$10)>0,$E43*$G43,0) -> 0 | AO43: =IF(SUM(AN$8:AN$10)>0,$E43*$G43,0) -> 0 | AQ43: =IF(SUM(AP$8:AP$10)>0,$E43*$G43,0) -> 0 | AS43: =IF(SUM(AR$8:AR$10)>0,$E43*$G43,0) -> 0 | AU43: =IF(SUM(AT$8:AT$10)>0,$E43*$G43,0) -> 0 | AW43: =IF(SUM(AV$8:AV$10)>0,$E43*$G43,0) -> 0 | AY43: =IF(SUM(AX$8:AX$10)>0,$E43*$G43,0) -> 0 | BA43: =IF(SUM(AZ$8:AZ$10)>0,$E43*$G43,0) -> 0 | BC43: =IF(SUM(BB$8:BB$10)>0,$E43*$G43,0) -> 0 | BE43: =IF(SUM(BD$8:BD$10)>0,$E43*$G43,0) -> 0 | BG43: =IF(SUM(BF$8:BF$10)>0,$E43*$G43,0) -> 0 | BI43: =IF(SUM(BH$8:BH$10)>0,$E43*$G43,0) -> 0 | BK43: =IF(SUM(BJ$8:BJ$10)>0,$E43*$G43,0) -> 0 | BM43: =IF(SUM(BL$8:BL$10)>0,$E43*$G43,0) -> 0 | BO43: =IF(SUM(BN$8:BN$10)>0,$E43*$G43,0) -> 0 | BQ43: =IF(SUM(BP$8:BP$10)>0,$E43*$G43,0) -> 0 | BS43: =IF(SUM(BR$8:BR$10)>0,$E43*$G43,0) -> 0 | BU43: =IF(SUM(BT$8:BT$10)>0,$E43*$G43,0) -> 0 | BW43: =IF(SUM(BV$8:BV$10)>0,$E43*$G43,0) -> 0 | BY43: =IF(SUM(BX$8:BX$10)>0,$E43*$G43,0) -> 0 | CA43: =IF(SUM(BZ$8:BZ$10)>0,$E43*$G43,0) -> 0 | CC43: =IF(SUM(CB$8:CB$10)>0,$E43*$G43,0) -> 0 | CE43: =IF(SUM(CD$8:CD$10)>0,$E43*$G43,0) -> 0 | CG43: =IF(SUM(CF$8:CF$10)>0,$E43*$G43,0) -> 0 | CI43: =IF(SUM(CH$8:CH$10)>0,$E43*$G43,0) -> 0 | CK43: =IF(SUM(CJ$8:CJ$10)>0,$E43*$G43,0) -> 0 | CM43: =IF(SUM(CL$8:CL$10)>0,$E43*$G43,0) -> 0 | CO43: =IF(SUM(CN$8:CN$10)>0,$E43*$G43,0) -> 0 | CQ43: =IF(SUM(CP$8:CP$10)>0,$E43*$G43,0) -> 0 | CS43: =IF(SUM(CR$8:CR$10)>0,$E43*$G43,0) -> 0 | CU43: =IF(SUM(CT$8:CT$10)>0,$E43*$G43,0) -> 0 | CW43: =IF(SUM(CV$8:CV$10)>0,$E43*$G43,0) -> 0 | CY43: =IF(SUM(CX$8:CX$10)>0,$E43*$G43,0) -> 0 | DA43: =IF(SUM(CZ$8:CZ$10)>0,$E43*$G43,0) -> 0 | DC43: =IF(SUM(DB$8:DB$10)>0,$E43*$G43,0) -> 0 | DE43: =IF(SUM(DD$8:DD$10)>0,$E43*$G43,0) -> 0 | DG43: =IF(SUM(DF$8:DF$10)>0,$E43*$G43,0) -> 0 | DI43: =IF(SUM(DH$8:DH$10)>0,$E43*$G43,0) -> 0 | DK43: =IF(SUM(DJ$8:DJ$10)>0,$E43*$G43,0) -> 0 | DM43: =IF(SUM(DL$8:DL$10)>0,$E43*$G43,0) -> 0 | DO43: =IF(SUM(DN$8:DN$10)>0,$E43*$G43,0) -> 0 | DQ43: =IF(SUM(DP$8:DP$10)>0,$E43*$G43,0) -> 0 | DS43: =IF(SUM(DR$8:DR$10)>0,$E43*$G43,0) -> 0 | DU43: =IF(SUM(DT$8:DT$10)>0,$E43*$G43,0) -> 0 | DW43: =IF(SUM(DV$8:DV$10)>0,$E43*$G43,0) -> 0 | DY43: =IF(SUM(DX$8:DX$10)>0,$E43*$G43,0) -> 0
C44: 1 | D44: Respirador purificador de ar tipo, peça semifacial filtrante para partículas (PFF2), com formato dobrável, solda ultra-sônica em todo o seu perímetro. Fita elástica branca fixada nas laterais externas do respirador, perfazendo uma alça na para fixação na parte superior da cabeça e a outra na parte inferior, para fixação na altura da nuca do usuário. A parte superior externa da peça possui tira de material metálico moldável, utilizada para ajuste no septo nasal. Com válvula de exalação. DEVERÁ APRESENTAR O SELO DE APROVAÇÃO DO INMETRO. Ref. 3M | E44: 4 | F44: UND | G44: =G34 -> 1.62 | K44: =IF(SUM(J$38:J$40)>0,$E44*$G44,0) -> 0 | M44: =IF(SUM(L$38:L$40)>0,$E44*$G44,0) -> 0 | O44: =IF(SUM(N$38:N$40)>0,$E44*$G44,0) -> 0 | Q44: =IF(SUM(P$38:P$40)>0,$E44*$G44,0) -> 0 | S44: =IF(SUM(R$38:R$40)>0,$E44*$G44,0) -> 6.48 | U44: =IF(SUM(T$38:T$40)>0,$E44*$G44,0) -> 0 | W44: =IF(SUM(V$38:V$40)>0,$E44*$G44,0) -> 0 | Y44: =IF(SUM(X$38:X$40)>0,$E44*$G44,0) -> 0 | AA44: =IF(SUM(Z$38:Z$40)>0,$E44*$G44,0) -> 0 | AC44: =IF(SUM(AB$38:AB$40)>0,$E44*$G44,0) -> 0 | AE44: =IF(SUM(AD$38:AD$40)>0,$E44*$G44,0) -> 0 | AG44: =IF(SUM(AF$38:AF$40)>0,$E44*$G44,0) -> 0 | AI44: =IF(SUM(AH$38:AH$40)>0,$E44*$G44,0) -> 0 | AK44: =IF(SUM(AJ$38:AJ$40)>0,$E44*$G44,0) -> 0 | AM44: =IF(SUM(AL$38:AL$40)>0,$E44*$G44,0) -> 0 | AO44: =IF(SUM(AN$38:AN$40)>0,$E44*$G44,0) -> 0 | AQ44: =IF(SUM(AP$38:AP$40)>0,$E44*$G44,0) -> 0 | AS44: =IF(SUM(AR$38:AR$40)>0,$E44*$G44,0) -> 0 | AU44: =IF(SUM(AT$38:AT$40)>0,$E44*$G44,0) -> 0 | AW44: =IF(SUM(AV$38:AV$40)>0,$E44*$G44,0) -> 0 | AY44: =IF(SUM(AX$38:AX$40)>0,$E44*$G44,0) -> 0 | BA44: =IF(SUM(AZ$38:AZ$40)>0,$E44*$G44,0) -> 0 | BC44: =IF(SUM(BB$38:BB$40)>0,$E44*$G44,0) -> 0 | BE44: =IF(SUM(BD$38:BD$40)>0,$E44*$G44,0) -> 0 | BG44: =IF(SUM(BF$38:BF$40)>0,$E44*$G44,0) -> 0 | BI44: =IF(SUM(BH$38:BH$40)>0,$E44*$G44,0) -> 0 | BK44: =IF(SUM(BJ$38:BJ$40)>0,$E44*$G44,0) -> 0 | BM44: =IF(SUM(BL$38:BL$40)>0,$E44*$G44,0) -> 0 | BO44: =IF(SUM(BN$38:BN$40)>0,$E44*$G44,0) -> 0 | BQ44: =IF(SUM(BP$38:BP$40)>0,$E44*$G44,0) -> 0 | BS44: =IF(SUM(BR$38:BR$40)>0,$E44*$G44,0) -> 0 | BU44: =IF(SUM(BT$38:BT$40)>0,$E44*$G44,0) -> 0 | BW44: =IF(SUM(BV$38:BV$40)>0,$E44*$G44,0) -> 0 | BY44: =IF(SUM(BX$38:BX$40)>0,$E44*$G44,0) -> 0 | CA44: =IF(SUM(BZ$38:BZ$40)>0,$E44*$G44,0) -> 0 | CC44: =IF(SUM(CB$38:CB$40)>0,$E44*$G44,0) -> 0 | CE44: =IF(SUM(CD$38:CD$40)>0,$E44*$G44,0) -> 0 | CG44: =IF(SUM(CF$38:CF$40)>0,$E44*$G44,0) -> 0 | CI44: =IF(SUM(CH$38:CH$40)>0,$E44*$G44,0) -> 0 | CK44: =IF(SUM(CJ$38:CJ$40)>0,$E44*$G44,0) -> 0 | CM44: =IF(SUM(CL$38:CL$40)>0,$E44*$G44,0) -> 0 | CO44: =IF(SUM(CN$38:CN$40)>0,$E44*$G44,0) -> 0 | CQ44: =IF(SUM(CP$38:CP$40)>0,$E44*$G44,0) -> 0 | CS44: =IF(SUM(CR$38:CR$40)>0,$E44*$G44,0) -> 0 | CU44: =IF(SUM(CT$38:CT$40)>0,$E44*$G44,0) -> 0 | CW44: =IF(SUM(CV$38:CV$40)>0,$E44*$G44,0) -> 0 | CY44: =IF(SUM(CX$38:CX$40)>0,$E44*$G44,0) -> 0 | DA44: =IF(SUM(CZ$38:CZ$40)>0,$E44*$G44,0) -> 0 | DC44: =IF(SUM(DB$38:DB$40)>0,$E44*$G44,0) -> 0 | DE44: =IF(SUM(DD$38:DD$40)>0,$E44*$G44,0) -> 0 | DG44: =IF(SUM(DF$38:DF$40)>0,$E44*$G44,0) -> 0 | DI44: =IF(SUM(DH$38:DH$40)>0,$E44*$G44,0) -> 0 | DK44: =IF(SUM(DJ$38:DJ$40)>0,$E44*$G44,0) -> 0 | DM44: =IF(SUM(DL$38:DL$40)>0,$E44*$G44,0) -> 0 | DO44: =IF(SUM(DN$38:DN$40)>0,$E44*$G44,0) -> 0 | DQ44: =IF(SUM(DP$38:DP$40)>0,$E44*$G44,0) -> 0 | DS44: =IF(SUM(DR$38:DR$40)>0,$E44*$G44,0) -> 0 | DU44: =IF(SUM(DT$38:DT$40)>0,$E44*$G44,0) -> 0 | DW44: =IF(SUM(DV$38:DV$40)>0,$E44*$G44,0) -> 0 | DY44: =IF(SUM(DX$38:DX$40)>0,$E44*$G44,0) -> 0
C45: 2 | D45: Protetor auditivo, do tipo inserção pré-moldado, de silicone, lavável, com cordão e tamanho único, com proteção mínima de 18 Db(A) de atenuação pelo método NRRsf. Ref: 3M | E45: 1 | F45: UND | G45: =G35 -> 2.49 | K45: =IF(SUM(J$38:J$40)>0,$E45*$G45,0) -> 0 | M45: 0 | O45: 0 | Q45: 0 | S45: 2.49 | U45: 0 | W45: 0 | Y45: 0 | AA45: 0 | AC45: 0 | AE45: 0 | AG45: 0 | AI45: 0 | AK45: 0 | AM45: 0 | AO45: 0 | AQ45: 0 | AS45: 0 | AU45: 0 | AW45: 0 | AY45: 0 | BA45: 0 | BC45: 0 | BE45: 0 | BG45: 0 | BI45: 0 | BK45: 0 | BM45: 0 | BO45: 0 | BQ45: 0 | BS45: 0 | BU45: 0 | BW45: 0 | BY45: 0 | CA45: 0 | CC45: 0 | CE45: 0 | CG45: 0 | CI45: 0 | CK45: 0 | CM45: 0 | CO45: 0 | CQ45: 0 | CS45: 0 | CU45: 0 | CW45: 0 | CY45: 0 | DA45: 0 | DC45: 0 | DE45: 0 | DG45: 0 | DI45: 0 | DK45: 0 | DM45: 0 | DO45: 0 | DQ45: 0 | DS45: 0 | DU45: 0 | DW45: 0 | DY45: =IF(SUM(DX$38:DX$40)>0,$E45*$G45,0) -> 0
C46: 3 | D46: Calçado de segurança tipo sapato com resistência a objetos pontiagudos, fechamento em elástico, couro preto, forração em tecido, bico de composite, palmilha de montagem têxtil resistente à perfuração, solado de PU (poliuretano), bidensidade sem cadarço. Ref. MARLUVAS. | E46: 3 | F46: PAR | G46: 76.9 | K46: =IF(SUM(J$38:J$40)>0,$E46*$G46,0) -> 0 | M46: 0 | O46: 0 | Q46: 0 | S46: 230.7 | U46: 0 | W46: =IF(SUM(V$38:V$40)>0,$E46*$G46,0) -> 0 | Y46: =IF(SUM(X$38:X$40)>0,$E46*$G46,0) -> 0 | AA46: =IF(SUM(Z$38:Z$40)>0,$E46*$G46,0) -> 0 | AC46: =IF(SUM(AB$38:AB$40)>0,$E46*$G46,0) -> 0 | AE46: =IF(SUM(AD$38:AD$40)>0,$E46*$G46,0) -> 0 | AG46: =IF(SUM(AF$38:AF$40)>0,$E46*$G46,0) -> 0 | AI46: =IF(SUM(AH$38:AH$40)>0,$E46*$G46,0) -> 0 | AK46: =IF(SUM(AJ$38:AJ$40)>0,$E46*$G46,0) -> 0 | AM46: =IF(SUM(AL$38:AL$40)>0,$E46*$G46,0) -> 0 | AO46: =IF(SUM(AN$38:AN$40)>0,$E46*$G46,0) -> 0 | AQ46: =IF(SUM(AP$38:AP$40)>0,$E46*$G46,0) -> 0 | AS46: =IF(SUM(AR$38:AR$40)>0,$E46*$G46,0) -> 0 | AU46: =IF(SUM(AT$38:AT$40)>0,$E46*$G46,0) -> 0 | AW46: =IF(SUM(AV$38:AV$40)>0,$E46*$G46,0) -> 0 | AY46: =IF(SUM(AX$38:AX$40)>0,$E46*$G46,0) -> 0 | BA46: =IF(SUM(AZ$38:AZ$40)>0,$E46*$G46,0) -> 0 | BC46: =IF(SUM(BB$38:BB$40)>0,$E46*$G46,0) -> 0 | BE46: =IF(SUM(BD$38:BD$40)>0,$E46*$G46,0) -> 0 | BG46: =IF(SUM(BF$38:BF$40)>0,$E46*$G46,0) -> 0 | BI46: =IF(SUM(BH$38:BH$40)>0,$E46*$G46,0) -> 0 | BK46: =IF(SUM(BJ$38:BJ$40)>0,$E46*$G46,0) -> 0 | BM46: =IF(SUM(BL$38:BL$40)>0,$E46*$G46,0) -> 0 | BO46: =IF(SUM(BN$38:BN$40)>0,$E46*$G46,0) -> 0 | BQ46: =IF(SUM(BP$38:BP$40)>0,$E46*$G46,0) -> 0 | BS46: =IF(SUM(BR$38:BR$40)>0,$E46*$G46,0) -> 0 | BU46: =IF(SUM(BT$38:BT$40)>0,$E46*$G46,0) -> 0 | BW46: =IF(SUM(BV$38:BV$40)>0,$E46*$G46,0) -> 0 | BY46: =IF(SUM(BX$38:BX$40)>0,$E46*$G46,0) -> 0 | CA46: =IF(SUM(BZ$38:BZ$40)>0,$E46*$G46,0) -> 0 | CC46: =IF(SUM(CB$38:CB$40)>0,$E46*$G46,0) -> 0 | CE46: =IF(SUM(CD$38:CD$40)>0,$E46*$G46,0) -> 0 | CG46: =IF(SUM(CF$38:CF$40)>0,$E46*$G46,0) -> 0 | CI46: =IF(SUM(CH$38:CH$40)>0,$E46*$G46,0) -> 0 | CK46: =IF(SUM(CJ$38:CJ$40)>0,$E46*$G46,0) -> 0 | CM46: =IF(SUM(CL$38:CL$40)>0,$E46*$G46,0) -> 0 | CO46: =IF(SUM(CN$38:CN$40)>0,$E46*$G46,0) -> 0 | CQ46: =IF(SUM(CP$38:CP$40)>0,$E46*$G46,0) -> 0 | CS46: =IF(SUM(CR$38:CR$40)>0,$E46*$G46,0) -> 0 | CU46: =IF(SUM(CT$38:CT$40)>0,$E46*$G46,0) -> 0 | CW46: =IF(SUM(CV$38:CV$40)>0,$E46*$G46,0) -> 0 | CY46: =IF(SUM(CX$38:CX$40)>0,$E46*$G46,0) -> 0 | DA46: =IF(SUM(CZ$38:CZ$40)>0,$E46*$G46,0) -> 0 | DC46: =IF(SUM(DB$38:DB$40)>0,$E46*$G46,0) -> 0 | DE46: =IF(SUM(DD$38:DD$40)>0,$E46*$G46,0) -> 0 | DG46: =IF(SUM(DF$38:DF$40)>0,$E46*$G46,0) -> 0 | DI46: =IF(SUM(DH$38:DH$40)>0,$E46*$G46,0) -> 0 | DK46: =IF(SUM(DJ$38:DJ$40)>0,$E46*$G46,0) -> 0 | DM46: =IF(SUM(DL$38:DL$40)>0,$E46*$G46,0) -> 0 | DO46: =IF(SUM(DN$38:DN$40)>0,$E46*$G46,0) -> 0 | DQ46: =IF(SUM(DP$38:DP$40)>0,$E46*$G46,0) -> 0 | DS46: =IF(SUM(DR$38:DR$40)>0,$E46*$G46,0) -> 0 | DU46: =IF(SUM(DT$38:DT$40)>0,$E46*$G46,0) -> 0 | DW46: =IF(SUM(DV$38:DV$40)>0,$E46*$G46,0) -> 0 | DY46: =IF(SUM(DX$38:DX$40)>0,$E46*$G46,0) -> 0
C47: 4 | D47: Óculos de segurança constituídos de armação e visor confeccionados em uma única peça de policarbonato INCOLOR, anti-risco, apoio nasal de plástico maleável. Hastes emborrachadas. Ref.: 3M Virtua V4 | E47: 1 | F47: UND | G47: 36.67 | K47: =IF(SUM(J$38:J$40)>0,$E47*$G47,0) -> 0 | M47: =IF(SUM(L$38:L$40)>0,$E47*$G47,0) -> 0 | O47: =IF(SUM(N$38:N$40)>0,$E47*$G47,0) -> 0 | Q47: =IF(SUM(P$38:P$40)>0,$E47*$G47,0) -> 0 | S47: =IF(SUM(R$38:R$40)>0,$E47*$G47,0) -> 36.67 | U47: =IF(SUM(T$38:T$40)>0,$E47*$G47,0) -> 0 | W47: =IF(SUM(V$38:V$40)>0,$E47*$G47,0) -> 0 | Y47: =IF(SUM(X$38:X$40)>0,$E47*$G47,0) -> 0 | AA47: =IF(SUM(Z$38:Z$40)>0,$E47*$G47,0) -> 0 | AC47: =IF(SUM(AB$38:AB$40)>0,$E47*$G47,0) -> 0 | AE47: =IF(SUM(AD$38:AD$40)>0,$E47*$G47,0) -> 0 | AG47: =IF(SUM(AF$38:AF$40)>0,$E47*$G47,0) -> 0 | AI47: =IF(SUM(AH$38:AH$40)>0,$E47*$G47,0) -> 0 | AK47: =IF(SUM(AJ$38:AJ$40)>0,$E47*$G47,0) -> 0 | AM47: =IF(SUM(AL$38:AL$40)>0,$E47*$G47,0) -> 0 | AO47: =IF(SUM(AN$38:AN$40)>0,$E47*$G47,0) -> 0 | AQ47: =IF(SUM(AP$38:AP$40)>0,$E47*$G47,0) -> 0 | AS47: =IF(SUM(AR$38:AR$40)>0,$E47*$G47,0) -> 0 | AU47: =IF(SUM(AT$38:AT$40)>0,$E47*$G47,0) -> 0 | AW47: =IF(SUM(AV$38:AV$40)>0,$E47*$G47,0) -> 0 | AY47: =IF(SUM(AX$38:AX$40)>0,$E47*$G47,0) -> 0 | BA47: =IF(SUM(AZ$38:AZ$40)>0,$E47*$G47,0) -> 0 | BC47: =IF(SUM(BB$38:BB$40)>0,$E47*$G47,0) -> 0 | BE47: =IF(SUM(BD$38:BD$40)>0,$E47*$G47,0) -> 0 | BG47: =IF(SUM(BF$38:BF$40)>0,$E47*$G47,0) -> 0 | BI47: =IF(SUM(BH$38:BH$40)>0,$E47*$G47,0) -> 0 | BK47: =IF(SUM(BJ$38:BJ$40)>0,$E47*$G47,0) -> 0 | BM47: =IF(SUM(BL$38:BL$40)>0,$E47*$G47,0) -> 0 | BO47: =IF(SUM(BN$38:BN$40)>0,$E47*$G47,0) -> 0 | BQ47: =IF(SUM(BP$38:BP$40)>0,$E47*$G47,0) -> 0 | BS47: =IF(SUM(BR$38:BR$40)>0,$E47*$G47,0) -> 0 | BU47: =IF(SUM(BT$38:BT$40)>0,$E47*$G47,0) -> 0 | BW47: =IF(SUM(BV$38:BV$40)>0,$E47*$G47,0) -> 0 | BY47: =IF(SUM(BX$38:BX$40)>0,$E47*$G47,0) -> 0 | CA47: =IF(SUM(BZ$38:BZ$40)>0,$E47*$G47,0) -> 0 | CC47: =IF(SUM(CB$38:CB$40)>0,$E47*$G47,0) -> 0 | CE47: =IF(SUM(CD$38:CD$40)>0,$E47*$G47,0) -> 0 | CG47: =IF(SUM(CF$38:CF$40)>0,$E47*$G47,0) -> 0 | CI47: =IF(SUM(CH$38:CH$40)>0,$E47*$G47,0) -> 0 | CK47: =IF(SUM(CJ$38:CJ$40)>0,$E47*$G47,0) -> 0 | CM47: =IF(SUM(CL$38:CL$40)>0,$E47*$G47,0) -> 0 | CO47: =IF(SUM(CN$38:CN$40)>0,$E47*$G47,0) -> 0 | CQ47: =IF(SUM(CP$38:CP$40)>0,$E47*$G47,0) -> 0 | CS47: =IF(SUM(CR$38:CR$40)>0,$E47*$G47,0) -> 0 | CU47: =IF(SUM(CT$38:CT$40)>0,$E47*$G47,0) -> 0 | CW47: =IF(SUM(CV$38:CV$40)>0,$E47*$G47,0) -> 0 | CY47: =IF(SUM(CX$38:CX$40)>0,$E47*$G47,0) -> 0 | DA47: =IF(SUM(CZ$38:CZ$40)>0,$E47*$G47,0) -> 0 | DC47: =IF(SUM(DB$38:DB$40)>0,$E47*$G47,0) -> 0 | DE47: =IF(SUM(DD$38:DD$40)>0,$E47*$G47,0) -> 0 | DG47: =IF(SUM(DF$38:DF$40)>0,$E47*$G47,0) -> 0 | DI47: =IF(SUM(DH$38:DH$40)>0,$E47*$G47,0) -> 0 | DK47: =IF(SUM(DJ$38:DJ$40)>0,$E47*$G47,0) -> 0 | DM47: =IF(SUM(DL$38:DL$40)>0,$E47*$G47,0) -> 0 | DO47: =IF(SUM(DN$38:DN$40)>0,$E47*$G47,0) -> 0 | DQ47: =IF(SUM(DP$38:DP$40)>0,$E47*$G47,0) -> 0 | DS47: =IF(SUM(DR$38:DR$40)>0,$E47*$G47,0) -> 0 | DU47: =IF(SUM(DT$38:DT$40)>0,$E47*$G47,0) -> 0 | DW47: =IF(SUM(DV$38:DV$40)>0,$E47*$G47,0) -> 0 | DY47: 0
C49: CATEGORIAS | G49: QUANTIDADE
J50: =IF($C50=J$4,1,0) -> 0 | L50: =IF($C50=L$4,1,0) -> 0 | N50: =IF($C50=N$4,1,0) -> 0 | P50: =IF($C50=P$4,1,0) -> 0 | R50: =IF($C50=R$4,1,0) -> 0 | T50: =IF($C50=T$4,1,0) -> 0 | V50: =IF($C50=V$4,1,0) -> 0 | X50: =IF($C50=X$4,1,0) -> 0 | Z50: =IF($C50=Z$4,1,0) -> 0 | AB50: =IF($C50=AB$4,1,0) -> 0 | AD50: =IF($C50=AD$4,1,0) -> 0 | AF50: =IF($C50=AF$4,1,0) -> 0 | AH50: =IF($C50=AH$4,1,0) -> 0 | AJ50: =IF($C50=AJ$4,1,0) -> 0 | AL50: =IF($C50=AL$4,1,0) -> 0 | AN50: =IF($C50=AN$4,1,0) -> 0 | AP50: =IF($C50=AP$4,1,0) -> 0 | AR50: =IF($C50=AR$4,1,0) -> 0 | AT50: =IF($C50=AT$4,1,0) -> 0 | AV50: =IF($C50=AV$4,1,0) -> 0 | AX50: =IF($C50=AX$4,1,0) -> 0 | AZ50: =IF($C50=AZ$4,1,0) -> 0 | BB50: =IF($C50=BB$4,1,0) -> 0 | BD50: =IF($C50=BD$4,1,0) -> 0 | BF50: =IF($C50=BF$4,1,0) -> 0 | BH50: =IF($C50=BH$4,1,0) -> 0 | BJ50: =IF($C50=BJ$4,1,0) -> 0 | BL50: =IF($C50=BL$4,1,0) -> 0 | BN50: =IF($C50=BN$4,1,0) -> 0 | BP50: =IF($C50=BP$4,1,0) -> 0 | BR50: =IF($C50=BR$4,1,0) -> 0 | BT50: =IF($C50=BT$4,1,0) -> 0 | BV50: =IF($C50=BV$4,1,0) -> 0 | BX50: =IF($C50=BX$4,1,0) -> 0 | BZ50: =IF($C50=BZ$4,1,0) -> 0 | CB50: =IF($C50=CB$4,1,0) -> 0 | CD50: =IF($C50=CD$4,1,0) -> 0 | CF50: =IF($C50=CF$4,1,0) -> 0 | CH50: =IF($C50=CH$4,1,0) -> 0 | CJ50: =IF($C50=CJ$4,1,0) -> 0 | CL50: =IF($C50=CL$4,1,0) -> 0 | CN50: =IF($C50=CN$4,1,0) -> 0 | CP50: =IF($C50=CP$4,1,0) -> 0 | CR50: =IF($C50=CR$4,1,0) -> 0 | CT50: =IF($C50=CT$4,1,0) -> 0 | CV50: =IF($C50=CV$4,1,0) -> 0 | CX50: =IF($C50=CX$4,1,0) -> 0 | CZ50: =IF($C50=CZ$4,1,0) -> 0 | DB50: =IF($C50=DB$4,1,0) -> 0 | DD50: =IF($C50=DD$4,1,0) -> 0 | DF50: =IF($C50=DF$4,1,0) -> 0 | DH50: =IF($C50=DH$4,1,0) -> 0 | DJ50: =IF($C50=DJ$4,1,0) -> 0 | DL50: =IF($C50=DL$4,1,0) -> 0 | DN50: =IF($C50=DN$4,1,0) -> 0 | DP50: =IF($C50=DP$4,1,0) -> 0 | DR50: =IF($C50=DR$4,1,0) -> 0 | DT50: =IF($C50=DT$4,1,0) -> 0 | DV50: =IF($C50=DV$4,1,0) -> 0 | DX50: =IF($C50=DX$4,1,0) -> 0
C51: 6 | D51: =HLOOKUP($C51,'Dados Gerais'!$D$5:$BK$10,6) -> SERVENTE | G51: =HLOOKUP($C51,'Dados Gerais'!$D$5:$BK$14,10) -> 189 | J51: =IF($C51=J$4,1,0) -> 0 | L51: 0 | N51: 0 | P51: 0 | R51: 0 | T51: 1 | V51: 0 | X51: 0 | Z51: 0 | AB51: 0 | AD51: 0 | AF51: 0 | AH51: 0 | AJ51: 0 | AL51: 0 | AN51: 0 | AP51: 0 | AR51: 0 | AT51: 0 | AV51: 0 | AX51: 0 | AZ51: 0 | BB51: 0 | BD51: 0 | BF51: 0 | BH51: 0 | BJ51: 0 | BL51: 0 | BN51: 0 | BP51: 0 | BR51: 0 | BT51: 0 | BV51: 0 | BX51: 0 | BZ51: 0 | CB51: 0 | CD51: 0 | CF51: 0 | CH51: 0 | CJ51: 0 | CL51: 0 | CN51: 0 | CP51: 0 | CR51: 0 | CT51: 0 | CV51: 0 | CX51: 0 | CZ51: 0 | DB51: 0 | DD51: 0 | DF51: 0 | DH51: 0 | DJ51: 0 | DL51: 0 | DN51: 0 | DP51: 0 | DR51: 0 | DT51: 0 | DV51: 0 | DX51: 0
J52: =IF($C52=J$4,1,0) -> 0 | L52: 0 | N52: 0 | P52: 0 | R52: 0 | T52: 0 | V52: 0 | X52: 0 | Z52: 0 | AB52: 0 | AD52: 0 | AF52: 0 | AH52: 0 | AJ52: 0 | AL52: 0 | AN52: 0 | AP52: 0 | AR52: 0 | AT52: 0 | AV52: 0 | AX52: 0 | AZ52: 0 | BB52: 0 | BD52: 0 | BF52: 0 | BH52: 0 | BJ52: 0 | BL52: 0 | BN52: 0 | BP52: 0 | BR52: 0 | BT52: 0 | BV52: 0 | BX52: 0 | BZ52: 0 | CB52: 0 | CD52: 0 | CF52: 0 | CH52: 0 | CJ52: 0 | CL52: 0 | CN52: 0 | CP52: 0 | CR52: 0 | CT52: 0 | CV52: 0 | CX52: 0 | CZ52: 0 | DB52: 0 | DD52: 0 | DF52: 0 | DH52: 0 | DJ52: 0 | DL52: 0 | DN52: 0 | DP52: 0 | DR52: 0 | DT52: 0 | DV52: 0 | DX52: 0
L53: =SUM(L8:L51) -> 1
C54: ITEM | D54: DESCRIÇÃO | E54: QUANT ANUAL POR POSTO | F54: UNIDADE | G54: VALOR
